Workbook

Sheet Feuil1 (hidden)

Sheet CLASSEMENT
A1: -4 | E1: 2023-2024 | J1: Date de la mise-à-jour | N1: 2024-05-05 | R1: Tireurs actifs: | U1: =COUNTIF(F11:F719,">0") -> 411 | W1: RÉSULTATS DES TOURNOIS | Y1: SAISON EXTÉRIEURE 2022 | AU1: Finale extérieure Mt-Laurier | AW1: SAISON INTÉRIEURE 2023 | BT1: Finale intérieure Nord'Arc
A2: -3 | J2: Date de renouvellement des membres 2023 | K2: Extérieur 2023 | O2: FINALE EXTÉRIEURE | P2: Date de renouvellement des membres 2024 | Q2: Intérieur 2024 | U2: FINALE INTÉRIEURE | X2: Club hôte | Y2: St-Francois | Z2: Le Gardeur | AA2: Chez Julien | AB2: Centre du Qc | AC2: Lac St-Charles Qc | AD2: Mt-Laurier | AE2: Cantley | AF2: Rouyn-Noranda | AG2: Amos | AH2: St-Francois | AI2: Ascot-Corner | AJ2: Brome-Bolton | AK2: LaTuque | AL2: LaTuque | AM2: Centre du Qc | AN2: Mt-Laurier | AO2: Nord-Ouest | AP2: Val-d'or | AQ2: Ile Perrot | AR2: Victoriaville | AS2: Sorel | AW2: Coaticook | AX2: Le Gardeur | AY2: St-Roch-de-l'Achigan | AZ2: Nord'Arc | BA2: Ascot Corner | BB2: Drummondville | BC2: Nord'Arc | BD2: St-Roch-de-l'Achigan | BF2: Buckhingham | BG2: Drummondville | BH2: Le Gardeur | BI2: Lasarre
E3: Date de début des inscription 2023 : | H3: 2023-01-01
A4: -2 | E4: Date de début des inscription 2024 : | H4: 2024-01-01 | K4: meilleurs pointages ( sur 55 pts ) | Q4: meilleurs pointages (sur 55 pts )
A5: -1 | E5: Date limite des inscription pour 2024 : | H5: 2024-02-28 | X5: Participants | Y5: =COUNTIF(Y8:Y757,">=0") -> 44 | Z5: 61 | AA5: 18 | AB5: 72 | AC5: 49 | AD5: 29 | AE5: 46 | AF5: 0 | AG5: 0 | AH5: 42 | AI5: 44 | AJ5: 41 | AK5: 24 | AL5: 5 | AM5: 79 | AN5: 27 | AO5: 11 | AP5: 18 | AQ5: 31 | AR5: 32 | AS5: 26 | AT5: 0 | AU5: 78 | AW5: =COUNTIF(AW8:AW757,">=0") -> 49 | AX5: 65 | AY5: 52 | AZ5: 54 | BA5: 56 | BB5: 80 | BC5: 59 | BD5: 52 | BE5: 0 | BF5: 59 | BG5: 66 | BH5: 71 | BI5: 8 | BJ5: 0 | BK5: 0 | BL5: 0 | BM5: 0 | BN5: 0 | BO5: 0 | BP5: =COUNTIF(BP8:BP758,">=0") -> 0 | BQ5: =COUNTIF(BQ8:BQ758,">=0") -> 0 | BR5: =COUNTIF(BR8:BR758,">=0") -> 0 | BS5: =COUNTIF(BS8:BS758,">=0") -> 0 | BT5: =COUNTIF(BT8:BT758,">=0") -> 98
A6: 0 | B6: rang | C6: # membre | D6: nom | E6: prénom | F6: classe | G6: Club | H6: NB | I6: TOTAL ANNUEL | K6: 1 | L6: 2 | M6: 3 | N6: 4 | Q6: 1 | R6: 2 | S6: 3 | T6: 4 | X6: Date | Y6: 2023-05-07 | Z6: 2023-05-13 | AA6: 2023-05-21 | AB6: 2023-05-28 | AC6: 2023-06-04 | AD6: 2023-06-11 | AE6: 2023-06-18 | AF6: 2023-06-24 | AG6: 2023-06-25 | AH6: 2023-07-02 | AI6: 2023-07-09 | AJ6: 2023-07-23 | AK6: 2023-07-29 | AL6: 2023-07-30 | AM6: 2023-08-06 | AN6: 2023-08-13 | AO6: 2023-08-19 | AP6: 2023-08-20 | AQ6: 2023-08-20 | AR6: 2023-09-03 | AS6: 2023-09-10 | AU6: 2023-08-26 | AW6: 2024-01-21 | AX6: 2024-01-28 | AY6: 2024-02-04 | AZ6: 2024-02-11 | BA6: 2024-02-18 | BB6: 2024-02-25 | BC6: 2024-03-03 | BD6: 2024-03-10 | BE6: 2024-03-17 | BF6: 2024-03-24 | BG6: 2024-03-31 | BH6: 2024-04-07 | BI6: 2024-04-13 | BT6: 2024-04-21
A7: =A8 -> 1 | I7: 1324 | J7: 1 | P7: 1
A8: =A9 -> 1 | I8: 1324 | J8: 1 | P8: 1
A9: 1 | B9: Classe 1 et | E9: HOMME FUTUR ARCHER - POULIES ( - 12 ans ) | I9: 1323 | J9: 1 | K9: 15 mètres | M9: BLANC | P9: 1
A10: =A9 -> 1 | B10: Classe 3 | E10: HOMME FUTUR ARCHER - TRADITIONNEL ( -12 ans) | I10: 1322 | J10: 1 | K10: 15 mètres | M10: BLANC | P10: 1
A11: =A10 -> 1 | I11: 1321 | J11: 1 | P11: 1
A12: =A11 -> 1 | B12: =B11+1 -> 1 | C12: 5364 | D12: =IF($C12="","",IF($N$1>$H$4,IFERROR(VLOOKUP($C12,'Membres-2024'!$A:$G,2,FALSE),""),IFERROR(VLOOKUP($C12,'Membres-2023'!$A:$G,2,FALSE),""))) -> Laurin Luna | E12: =IF($C12="","",IF($N$1>$H$4,IFERROR(VLOOKUP($C12,'Membres-2024'!$A:$G,3,FALSE),""),IFERROR(VLOOKUP($C12,'Membres-2023'!$A:$G,3,FALSE),""))) -> Nicolas | F12: =IF($C12="","",IF($N$1>$H$4,IFERROR(VLOOKUP($C12,'Membres-2024'!$A:$G,7,FALSE),""),IFERROR(VLOOKUP($C12,'Membres-2023'!$A:$G,7,FALSE),""))) -> 3 | G12: =IF($C12="","",IF($N$1>$H$4,IFERROR(VLOOKUP($C12,'Membres-2024'!$A:$G,5,FALSE),""),IFERROR(VLOOKUP($C12,'Membres-2023'!$A:$G,5,FALSE),""))) -> Perrotdamois | H12: =COUNTIF($Y12:$BT12,">=0") -> 6 | I12: =SUM(K12:O12,Q12:U12) -> 496.8333333 | J12: =IFERROR(IF(VLOOKUP(C12,'Membres-2023'!$A:$F,6,FALSE)>=$H$3,VLOOKUP(C12,'Membres-2023'!$A:$F,6,FALSE),"non inscrit"),IF($C12>0,"non inscrit","")) -> 2023-02-27 | K12: =IFERROR(IF(COUNTA(Y12:AT12)>0,LARGE(Y12:AT12,1)/6,""),"") -> 41.66666667 | L12: =IFERROR(IF(COUNTA(Y12:AT12)>1,LARGE(Y12:AT12,2)/6,""),"") -> 41.16666667 | M12: =IFERROR(IF(COUNTA(Y12:AT12)>2,LARGE(Y12:AT12,3)/6,""),"") -> 40.5 | N12: =IFERROR(IF(COUNTA(Y12:AT12)>3,LARGE(Y12:AT12,4)/6,""),"") ->  | O12: =IF(AU12<>"",AU12,"") -> 279 | P12: =IFERROR(IF(VLOOKUP(C12,'Membres-2024'!$A:$F,6,FALSE)>=$H$3,VLOOKUP(C12,'Membres-2024'!$A:$F,6,FALSE),"non inscrit"),IF($C12>0,"non inscrit","")) -> 2024-01-22 | Q12: =IFERROR(IF(COUNTA(AW12:BS12)>0,LARGE(AW12:BS12,1)/6,""),"") -> 48 | R12: =IFERROR(IF(COUNTA(AW12:BS12)>1,LARGE(AW12:BS12,2)/6,""),"") -> 46.5 | S12: =IFERROR(IF(COUNTA(AW12:BS12)>2,LARGE(AW12:BS12,3)/6,""),"") ->  | T12: =IFERROR(IF(COUNTA(AW12:BS12)>3,LARGE(AW12:BS12,4)/6,""),"") ->  | U12: =IF(BT12<>"",BT12,"") ->  | Y12: =IF(IF(AND($J12="non inscrit",Y$6>$H$4),OR($P12<$H$5,$P12<Y$6),OR($J12<$H$5,$J12<Y$6)),IFERROR(IF(VLOOKUP($C12,ASF_ext!$C$12:$K$400,5,FALSE)=$F12,VLOOKUP($C12,ASF_ext!$C$12:$K$400,9,FALSE),""),""),"") ->  | Z12: =IF(IF(AND($J12="non inscrit",Z$6>$H$4),OR($P12<$H$5,$P12<Z$6),OR($J12<$H$5,$J12<Z$6)),IFERROR(IF(VLOOKUP($C12,LG_ext!$C$12:$K$400,5,FALSE)=$F12,VLOOKUP($C12,LG_ext!$C$12:$K$400,9,FALSE),""),""),"") ->  | AA12: =IF(IF(AND($J12="non inscrit",AA$6>$H$4),OR($P12<$H$5,$P12<AA$6),OR($J12<$H$5,$J12<AA$6)),IFERROR(IF(VLOOKUP($C12,Jul_ext!$C$12:$K$400,5,FALSE)=$F12,VLOOKUP($C12,Jul_ext!$C$12:$K$400,9,FALSE),""),""),"") ->  | AB12: =IF(IF(AND($J12="non inscrit",AB$6>$H$4),OR($P12<$H$5,$P12<AB$6),OR($J12<$H$5,$J12<AB$6)),IFERROR(IF(VLOOKUP($C12,CQ_ext!$C$12:$K$400,5,FALSE)=$F12,VLOOKUP($C12,CQ_ext!$C$12:$K$400,9,FALSE),""),""),"") ->  | AC12: =IF(IF(AND($J12="non inscrit",AC$6>$H$4),OR($P12<$H$5,$P12<AC$6),OR($J12<$H$5,$J12<AC$6)),IFERROR(IF(VLOOKUP($C12,NAQ_ext!$C$12:$K$400,5,FALSE)=$F12,VLOOKUP($C12,NAQ_ext!$C$12:$K$400,9,FALSE),""),""),"") ->  | AD12: =IF(IF(AND($J12="non inscrit",AD$6>$H$4),OR($P12<$H$5,$P12<AD$6),OR($J12<$H$5,$J12<AD$6)),IFERROR(IF(VLOOKUP($C12,MtL_ext!$C$12:$K$400,5,FALSE)=$F12,VLOOKUP($C12,MtL_ext!$C$12:$K$400,9,FALSE),""),""),"") ->  | AE12: =IF(IF(AND($J12="non inscrit",AE$6>$H$4),OR($P12<$H$5,$P12<AE$6),OR($J12<$H$5,$J12<AE$6)),IFERROR(IF(VLOOKUP($C12,Cant_ext!$C$12:$K$400,5,FALSE)=$F12,VLOOKUP($C12,Cant_ext!$C$12:$K$400,9,FALSE),""),""),"") ->  | AH12: =IF(IF(AND($J12="non inscrit",AH$6>$H$4),OR($P12<$H$5,$P12<AH$6),OR($J12<$H$5,$J12<AH$6)),IFERROR(IF(VLOOKUP($C12,ASF2_ext!$C$12:$K$400,5,FALSE)=$F12,VLOOKUP($C12,ASF2_ext!$C$12:$K$400,9,FALSE),""),""),"") ->  | AI12: =IF(IF(AND($J12="non inscrit",AI$6>$H$4),OR($P12<$H$5,$P12<AI$6),OR($J12<$H$5,$J12<AI$6)),IFERROR(IF(VLOOKUP($C12,Ascot_ext!$C$12:$K$400,5,FALSE)=$F12,VLOOKUP($C12,Ascot_ext!$C$12:$K$400,9,FALSE),""),""),"") ->  | AJ12: =IF(IF(AND($J12="non inscrit",AJ$6>$H$4),OR($P12<$H$5,$P12<AJ$6),OR($J12<$H$5,$J12<AJ$6)),IFERROR(IF(VLOOKUP($C12,BBA_ext!$C$12:$K$400,5,FALSE)=1,VLOOKUP($C12,BBA_ext!$C$12:$K$400,9,FALSE),""),""),"") -> 250 | AK12: =IF(IF(AND($J12="non inscrit",AK$6>$H$4),OR($P12<$H$5,$P12<AK$6),OR($J12<$H$5,$J12<AK$6)),IFERROR(IF(VLOOKUP($C12,Tuq1_ext!$C$12:$K$400,5,FALSE)=$F12,VLOOKUP($C12,Tuq1_ext!$C$12:$K$400,9,FALSE),""),""),"") ->  | AL12: =IF(IF(AND($J12="non inscrit",AL$6>$H$4),OR($P12<$H$5,$P12<AL$6),OR($J12<$H$5,$J12<AL$6)),IFERROR(IF(VLOOKUP($C12,Tuq2_ext!$C$12:$K$400,5,FALSE)=$F12,VLOOKUP($C12,Tuq2_ext!$C$12:$K$400,9,FALSE),""),""),"") ->  | AM12: =IF(IF(AND($J12="non inscrit",AM$6>$H$4),OR($P12<$H$5,$P12<AM$6),OR($J12<$H$5,$J12<AM$6)),IFERROR(IF(VLOOKUP($C12,CQ2_ext!$C$12:$K$400,5,FALSE)=$F12,VLOOKUP($C12,CQ2_ext!$C$12:$K$400,9,FALSE),""),""),"") -> 243 | AN12: =IF(IF(AND($J12="non inscrit",AN$6>$H$4),OR($P12<$H$5,$P12<AN$6),OR($J12<$H$5,$J12<AN$6)),IFERROR(IF(VLOOKUP($C12,MTL2_ext!$C$12:$K$400,5,FALSE)=$F12,VLOOKUP($C12,MTL2_ext!$C$12:$K$400,9,FALSE),""),""),"") ->  | AO12: =IF(IF(AND($J12="non inscrit",AO$6>$H$4),OR($P12<$H$5,$P12<AO$6),OR($J12<$H$5,$J12<AO$6)),IFERROR(IF(VLOOKUP($C12,NO_ext!$C$12:$K$400,5,FALSE)=$F12,VLOOKUP($C12,NO_ext!$C$12:$K$400,9,FALSE),""),""),"") ->  | AP12: =IF(IF(AND($J12="non inscrit",AP$6>$H$4),OR($P12<$H$5,$P12<AP$6),OR($J12<$H$5,$J12<AP$6)),IFERROR(IF(VLOOKUP($C12,VD_ext!$C$12:$K$400,5,FALSE)=$F12,VLOOKUP($C12,VD_ext!$C$12:$K$400,9,FALSE),""),""),"") ->  | AQ12: =IF(IF(AND($J12="non inscrit",AQ$6>$H$4),OR($P12<$H$5,$P12<AQ$6),OR($J12<$H$5,$J12<AQ$6)),IFERROR(IF(VLOOKUP($C12,PT_ext!$C$12:$K$400,5,FALSE)=$F12,VLOOKUP($C12,PT_ext!$C$12:$K$400,9,FALSE),""),""),"") -> 247 | AR12: =IF(IF(AND($J12="non inscrit",AR$6>$H$4),OR($P12<$H$5,$P12<AR$6),OR($J12<$H$5,$J12<AR$6)),IFERROR(IF(VLOOKUP($C12,Vic_ext!$C$12:$K$400,5,FALSE)=$F12,VLOOKUP($C12,Vic_ext!$C$12:$K$400,9,FALSE),""),""),"") ->  | AS12: =IF(IF(AND($J12="non inscrit",AS$6>$H$4),OR($P12<$H$5,$P12<AS$6),OR($J12<$H$5,$J12<AS$6)),IFERROR(IF(VLOOKUP($C12,Sor_ext!$C$12:$K$400,5,FALSE)=$F12,VLOOKUP($C12,Sor_ext!$C$12:$K$400,9,FALSE),""),""),"") ->  | AU12: =IF(IF(AND($J12="non inscrit",AU$6>$H$4),OR($P12<$H$5,$P12<AU$6),OR($J12<$H$5,$J12<AU$6)),IFERROR(IF(VLOOKUP($C12,PROV_ext!$C$12:$K$400,5,FALSE)=$F12,VLOOKUP($C12,PROV_ext!$C$12:$K$400,9,FALSE),""),""),"") -> 279 | AW12: =IF(IF(AND($J12="non inscrit",AW$6>$H$4),OR($P12<$H$5,$P12<AQ$6),OR($J12<$H$5,$J12<AQ$6)),IFERROR(IF(VLOOKUP($C12,Coat_int!$C$12:$K$400,5,FALSE)=$F12,VLOOKUP($C12,Coat_int!$C$12:$K$400,9,FALSE),""),""),"") ->  | AX12: =IF(IF(AND($J12="non inscrit",AX$6>$H$4),OR($P12<$H$5,$P12<AR$6),OR($J12<$H$5,$J12<AR$6)),IFERROR(IF(VLOOKUP($C12,LG_int!$C$12:$K$400,5,FALSE)=$F12,VLOOKUP($C12,LG_int!$C$12:$K$400,9,FALSE),""),""),"") ->  | AY12: =IF(IF(AND($J12="non inscrit",AY$6>$H$4),OR($P12<$H$5,$P12<AS$6),OR($J12<$H$5,$J12<AS$6)),IFERROR(IF(VLOOKUP($C12,Roc_int!$C$12:$K$400,5,FALSE)=$F12,VLOOKUP($C12,Roc_int!$C$12:$K$400,9,FALSE),""),""),"") ->  | AZ12: =IF(IF(AND($J12="non inscrit",AZ$6>$H$4),OR($P12<$H$5,$P12<AT$6),OR($J12<$H$5,$J12<AT$6)),IFERROR(IF(VLOOKUP($C12,Qc_int!$C$12:$K$400,5,FALSE)=$F12,VLOOKUP($C12,Qc_int!$C$12:$K$400,9,FALSE),""),""),"") ->  | BA12: =IF(IF(AND($J12="non inscrit",BA$6>$H$4),OR($P12<$H$5,$P12<AU$6),OR($J12<$H$5,$J12<AU$6)),IFERROR(IF(VLOOKUP($C12,Asc_int!$C$12:$K$400,5,FALSE)=$F12,VLOOKUP($C12,Asc_int!$C$12:$K$400,9,FALSE),""),""),"") ->  | BB12: =IF(IF(AND($J12="non inscrit",BB$6>$H$4),OR($P12<$H$5,$P12<AV$6),OR($J12<$H$5,$J12<AV$6)),IFERROR(IF(VLOOKUP($C12,CQ_int!$C$12:$K$400,5,FALSE)=$F12,VLOOKUP($C12,CQ_int!$C$12:$K$400,9,FALSE),""),""),"") ->  | BC12: =IF(IF(AND($J12="non inscrit",BC$6>$H$4),OR($P12<$H$5,$P12<AW$6),OR($J12<$H$5,$J12<AW$6)),IFERROR(IF(VLOOKUP($C12,QC2_int!$C$12:$K$400,5,FALSE)=$F12,VLOOKUP($C12,QC2_int!$C$12:$K$400,9,FALSE),""),""),"") ->  | BD12: =IF(IF(AND($J12="non inscrit",BD$6>$H$4),OR($P12<$H$5,$P12<AX$6),OR($J12<$H$5,$J12<AX$6)),IFERROR(IF(VLOOKUP($C12,Ach_int!$C$12:$K$400,5,FALSE)=$F12,VLOOKUP($C12,Ach_int!$C$12:$K$400,9,FALSE),""),""),"") ->  | BF12: =IF(IF(AND($J12="non inscrit",BF$6>$H$4),OR($P12<$H$5,$P12<AZ$6),OR($J12<$H$5,$J12<AZ$6)),IFERROR(IF(VLOOKUP($C12,Buck_int!$C$12:$K$400,5,FALSE)=$F12,VLOOKUP($C12,Buck_int!$C$12:$K$400,9,FALSE),""),""),"") ->  | BG12: =IF(IF(AND($J12="non inscrit",BG$6>$H$4),OR($P12<$H$5,$P12<BA$6),OR($J12<$H$5,$J12<BA$6)),IFERROR(IF(VLOOKUP($C12,CQC_int!$C$12:$K$400,5,FALSE)=$F12,VLOOKUP($C12,CQC_int!$C$12:$K$400,9,FALSE),""),""),"") -> 288 | BH12: =IF(IF(AND($J12="non inscrit",BH$6>$H$4),OR($P12<$H$5,$P12<BB$6),OR($J12<$H$5,$J12<BB$6)),IFERROR(IF(VLOOKUP($C12,LG3_int!$C$12:$K$400,5,FALSE)=$F12,VLOOKUP($C12,LG3_int!$C$12:$K$400,9,FALSE),""),""),"") -> 279 | BI12: =IF(IF(AND($J12="non inscrit",BI$6>$H$4),OR($P12<$H$5,$P12<BC$6),OR($J12<$H$5,$J12<BC$6)),IFERROR(IF(VLOOKUP($C12,LS_int!$C$12:$K$400,5,FALSE)=$F12,VLOOKUP($C12,LS_int!$C$12:$K$400,9,FALSE),""),""),"") ->  | BT12: =IF(IF(AND($J12="non inscrit",BT$6>$H$4),OR($P12<$H$5,$P12<BN$6),OR($J12<$H$5,$J12<BN$6)),IFERROR(IF(VLOOKUP($C12,FI!$C$12:$K$400,5,FALSE)=$F12,VLOOKUP($C12,FI!$C$12:$K$400,9,FALSE),""),""),"") -> 
A13: =A12 -> 1 | B13: =B12+1 -> 2 | C13: 7627 | D13: =IF($C13="","",IF($N$1>$H$4,IFERROR(VLOOKUP($C13,'Membres-2024'!$A:$G,2,FALSE),""),IFERROR(VLOOKUP($C13,'Membres-2023'!$A:$G,2,FALSE),""))) -> Lessard | E13: =IF($C13="","",IF($N$1>$H$4,IFERROR(VLOOKUP($C13,'Membres-2024'!$A:$G,3,FALSE),""),IFERROR(VLOOKUP($C13,'Membres-2023'!$A:$G,3,FALSE),""))) -> Abraham | F13: =IF($C13="","",IF($N$1>$H$4,IFERROR(VLOOKUP($C13,'Membres-2024'!$A:$G,7,FALSE),""),IFERROR(VLOOKUP($C13,'Membres-2023'!$A:$G,7,FALSE),""))) -> 1 | G13: =IF($C13="","",IF($N$1>$H$4,IFERROR(VLOOKUP($C13,'Membres-2024'!$A:$G,5,FALSE),""),IFERROR(VLOOKUP($C13,'Membres-2023'!$A:$G,5,FALSE),""))) -> Québec (Nord'arc) | H13: =COUNTIF($Y13:$BT13,">=0") -> 5 | I13: =SUM(K13:O13,Q13:U13) -> 359 | J13: =IFERROR(IF(VLOOKUP(C13,'Membres-2023'!$A:$F,6,FALSE)>=$H$3,VLOOKUP(C13,'Membres-2023'!$A:$F,6,FALSE),"non inscrit"),IF($C13>0,"non inscrit","")) -> 2023-04-19 | K13: =IFERROR(IF(COUNTA(Y13:AT13)>0,LARGE(Y13:AT13,1)/6,""),"") -> 41.5 | L13: =IFERROR(IF(COUNTA(Y13:AT13)>1,LARGE(Y13:AT13,2)/6,""),"") -> 39.83333333 | M13: =IFERROR(IF(COUNTA(Y13:AT13)>2,LARGE(Y13:AT13,3)/6,""),"") ->  | N13: =IFERROR(IF(COUNTA(Y13:AT13)>3,LARGE(Y13:AT13,4)/6,""),"") ->  | O13: =IF(AU13<>"",AU13,"") ->  | P13: =IFERROR(IF(VLOOKUP(C13,'Membres-2024'!$A:$F,6,FALSE)>=$H$3,VLOOKUP(C13,'Membres-2024'!$A:$F,6,FALSE),"non inscrit"),IF($C13>0,"non inscrit","")) -> 2024-01-13 | Q13: =IFERROR(IF(COUNTA(AW13:BS13)>0,LARGE(AW13:BS13,1)/6,""),"") -> 34.83333333 | R13: =IFERROR(IF(COUNTA(AW13:BS13)>1,LARGE(AW13:BS13,2)/6,""),"") -> 31.83333333 | S13: =IFERROR(IF(COUNTA(AW13:BS13)>2,LARGE(AW13:BS13,3)/6,""),"") ->  | T13: =IFERROR(IF(COUNTA(AW13:BS13)>3,LARGE(AW13:BS13,4)/6,""),"") ->  | U13: =IF(BT13<>"",BT13,"") -> 211 | Y13: =IF(IF(AND($J13="non inscrit",Y$6>$H$4),OR($P13<$H$5,$P13<Y$6),OR($J13<$H$5,$J13<Y$6)),IFERROR(IF(VLOOKUP($C13,ASF_ext!$C$12:$K$400,5,FALSE)=$F13,VLOOKUP($C13,ASF_ext!$C$12:$K$400,9,FALSE),""),""),"") ->  | Z13: =IF(IF(AND($J13="non inscrit",Z$6>$H$4),OR($P13<$H$5,$P13<Z$6),OR($J13<$H$5,$J13<Z$6)),IFERROR(IF(VLOOKUP($C13,LG_ext!$C$12:$K$400,5,FALSE)=$F13,VLOOKUP($C13,LG_ext!$C$12:$K$400,9,FALSE),""),""),"") ->  | AA13: =IF(IF(AND($J13="non inscrit",AA$6>$H$4),OR($P13<$H$5,$P13<AA$6),OR($J13<$H$5,$J13<AA$6)),IFERROR(IF(VLOOKUP($C13,Jul_ext!$C$12:$K$400,5,FALSE)=$F13,VLOOKUP($C13,Jul_ext!$C$12:$K$400,9,FALSE),""),""),"") ->  | AB13: =IF(IF(AND($J13="non inscrit",AB$6>$H$4),OR($P13<$H$5,$P13<AB$6),OR($J13<$H$5,$J13<AB$6)),IFERROR(IF(VLOOKUP($C13,CQ_ext!$C$12:$K$400,5,FALSE)=$F13,VLOOKUP($C13,CQ_ext!$C$12:$K$400,9,FALSE),""),""),"") ->  | AC13: =IF(IF(AND($J13="non inscrit",AC$6>$H$4),OR($P13<$H$5,$P13<AC$6),OR($J13<$H$5,$J13<AC$6)),IFERROR(IF(VLOOKUP($C13,NAQ_ext!$C$12:$K$400,5,FALSE)=$F13,VLOOKUP($C13,NAQ_ext!$C$12:$K$400,9,FALSE),""),""),"") -> 249 | AD13: =IF(IF(AND($J13="non inscrit",AD$6>$H$4),OR($P13<$H$5,$P13<AD$6),OR($J13<$H$5,$J13<AD$6)),IFERROR(IF(VLOOKUP($C13,MtL_ext!$C$12:$K$400,5,FALSE)=$F13,VLOOKUP($C13,MtL_ext!$C$12:$K$400,9,FALSE),""),""),"") ->  | AE13: =IF(IF(AND($J13="non inscrit",AE$6>$H$4),OR($P13<$H$5,$P13<AE$6),OR($J13<$H$5,$J13<AE$6)),IFERROR(IF(VLOOKUP($C13,Cant_ext!$C$12:$K$400,5,FALSE)=$F13,VLOOKUP($C13,Cant_ext!$C$12:$K$400,9,FALSE),""),""),"") ->  | AH13: =IF(IF(AND($J13="non inscrit",AH$6>$H$4),OR($P13<$H$5,$P13<AH$6),OR($J13<$H$5,$J13<AH$6)),IFERROR(IF(VLOOKUP($C13,ASF2_ext!$C$12:$K$400,5,FALSE)=$F13,VLOOKUP($C13,ASF2_ext!$C$12:$K$400,9,FALSE),""),""),"") -> 239 | AI13: =IF(IF(AND($J13="non inscrit",AI$6>$H$4),OR($P13<$H$5,$P13<AI$6),OR($J13<$H$5,$J13<AI$6)),IFERROR(IF(VLOOKUP($C13,Ascot_ext!$C$12:$K$400,5,FALSE)=$F13,VLOOKUP($C13,Ascot_ext!$C$12:$K$400,9,FALSE),""),""),"") ->  | AJ13: =IF(IF(AND($J13="non inscrit",AJ$6>$H$4),OR($P13<$H$5,$P13<AJ$6),OR($J13<$H$5,$J13<AJ$6)),IFERROR(IF(VLOOKUP($C13,BBA_ext!$C$12:$K$400,5,FALSE)=$F13,VLOOKUP($C13,BBA_ext!$C$12:$K$400,9,FALSE),""),""),"") ->  | AK13: =IF(IF(AND($J13="non inscrit",AK$6>$H$4),OR($P13<$H$5,$P13<AK$6),OR($J13<$H$5,$J13<AK$6)),IFERROR(IF(VLOOKUP($C13,Tuq1_ext!$C$12:$K$400,5,FALSE)=$F13,VLOOKUP($C13,Tuq1_ext!$C$12:$K$400,9,FALSE),""),""),"") ->  | AL13: =IF(IF(AND($J13="non inscrit",AL$6>$H$4),OR($P13<$H$5,$P13<AL$6),OR($J13<$H$5,$J13<AL$6)),IFERROR(IF(VLOOKUP($C13,Tuq2_ext!$C$12:$K$400,5,FALSE)=$F13,VLOOKUP($C13,Tuq2_ext!$C$12:$K$400,9,FALSE),""),""),"") ->  | AM13: =IF(IF(AND($J13="non inscrit",AM$6>$H$4),OR($P13<$H$5,$P13<AM$6),OR($J13<$H$5,$J13<AM$6)),IFERROR(IF(VLOOKUP($C13,CQ2_ext!$C$12:$K$400,5,FALSE)=$F13,VLOOKUP($C13,CQ2_ext!$C$12:$K$400,9,FALSE),""),""),"") ->  | AN13: =IF(IF(AND($J13="non inscrit",AN$6>$H$4),OR($P13<$H$5,$P13<AN$6),OR($J13<$H$5,$J13<AN$6)),IFERROR(IF(VLOOKUP($C13,MTL2_ext!$C$12:$K$400,5,FALSE)=$F13,VLOOKUP($C13,MTL2_ext!$C$12:$K$400,9,FALSE),""),""),"") ->  | AO13: =IF(IF(AND($J13="non inscrit",AO$6>$H$4),OR($P13<$H$5,$P13<AO$6),OR($J13<$H$5,$J13<AO$6)),IFERROR(IF(VLOOKUP($C13,NO_ext!$C$12:$K$400,5,FALSE)=$F13,VLOOKUP($C13,NO_ext!$C$12:$K$400,9,FALSE),""),""),"") ->  | AP13: =IF(IF(AND($J13="non inscrit",AP$6>$H$4),OR($P13<$H$5,$P13<AP$6),OR($J13<$H$5,$J13<AP$6)),IFERROR(IF(VLOOKUP($C13,VD_ext!$C$12:$K$400,5,FALSE)=$F13,VLOOKUP($C13,VD_ext!$C$12:$K$400,9,FALSE),""),""),"") ->  | AQ13: =IF(IF(AND($J13="non inscrit",AQ$6>$H$4),OR($P13<$H$5,$P13<AQ$6),OR($J13<$H$5,$J13<AQ$6)),IFERROR(IF(VLOOKUP($C13,PT_ext!$C$12:$K$400,5,FALSE)=$F13,VLOOKUP($C13,PT_ext!$C$12:$K$400,9,FALSE),""),""),"") ->  | AR13: =IF(IF(AND($J13="non inscrit",AR$6>$H$4),OR($P13<$H$5,$P13<AR$6),OR($J13<$H$5,$J13<AR$6)),IFERROR(IF(VLOOKUP($C13,Vic_ext!$C$12:$K$400,5,FALSE)=$F13,VLOOKUP($C13,Vic_ext!$C$12:$K$400,9,FALSE),""),""),"") ->  | AS13: =IF(IF(AND($J13="non inscrit",AS$6>$H$4),OR($P13<$H$5,$P13<AS$6),OR($J13<$H$5,$J13<AS$6)),IFERROR(IF(VLOOKUP($C13,Sor_ext!$C$12:$K$400,5,FALSE)=$F13,VLOOKUP($C13,Sor_ext!$C$12:$K$400,9,FALSE),""),""),"") ->  | AU13: =IF(IF(AND($J13="non inscrit",AU$6>$H$4),OR($P13<$H$5,$P13<AU$6),OR($J13<$H$5,$J13<AU$6)),IFERROR(IF(VLOOKUP($C13,PROV_ext!$C$12:$K$400,5,FALSE)=$F13,VLOOKUP($C13,PROV_ext!$C$12:$K$400,9,FALSE),""),""),"") ->  | AW13: =IF(IF(AND($J13="non inscrit",AW$6>$H$4),OR($P13<$H$5,$P13<AQ$6),OR($J13<$H$5,$J13<AQ$6)),IFERROR(IF(VLOOKUP($C13,Coat_int!$C$12:$K$400,5,FALSE)=$F13,VLOOKUP($C13,Coat_int!$C$12:$K$400,9,FALSE),""),""),"") ->  | AX13: =IF(IF(AND($J13="non inscrit",AX$6>$H$4),OR($P13<$H$5,$P13<AR$6),OR($J13<$H$5,$J13<AR$6)),IFERROR(IF(VLOOKUP($C13,LG_int!$C$12:$K$400,5,FALSE)=$F13,VLOOKUP($C13,LG_int!$C$12:$K$400,9,FALSE),""),""),"") ->  | AY13: =IF(IF(AND($J13="non inscrit",AY$6>$H$4),OR($P13<$H$5,$P13<AS$6),OR($J13<$H$5,$J13<AS$6)),IFERROR(IF(VLOOKUP($C13,Roc_int!$C$12:$K$400,5,FALSE)=$F13,VLOOKUP($C13,Roc_int!$C$12:$K$400,9,FALSE),""),""),"") ->  | AZ13: =IF(IF(AND($J13="non inscrit",AZ$6>$H$4),OR($P13<$H$5,$P13<AT$6),OR($J13<$H$5,$J13<AT$6)),IFERROR(IF(VLOOKUP($C13,Qc_int!$C$12:$K$400,5,FALSE)=$F13,VLOOKUP($C13,Qc_int!$C$12:$K$400,9,FALSE),""),""),"") -> 209 | BA13: =IF(IF(AND($J13="non inscrit",BA$6>$H$4),OR($P13<$H$5,$P13<AU$6),OR($J13<$H$5,$J13<AU$6)),IFERROR(IF(VLOOKUP($C13,Asc_int!$C$12:$K$400,5,FALSE)=$F13,VLOOKUP($C13,Asc_int!$C$12:$K$400,9,FALSE),""),""),"") ->  | BB13: =IF(IF(AND($J13="non inscrit",BB$6>$H$4),OR($P13<$H$5,$P13<AV$6),OR($J13<$H$5,$J13<AV$6)),IFERROR(IF(VLOOKUP($C13,CQ_int!$C$12:$K$400,5,FALSE)=$F13,VLOOKUP($C13,CQ_int!$C$12:$K$400,9,FALSE),""),""),"") ->  | BC13: =IF(IF(AND($J13="non inscrit",BC$6>$H$4),OR($P13<$H$5,$P13<AW$6),OR($J13<$H$5,$J13<AW$6)),IFERROR(IF(VLOOKUP($C13,QC2_int!$C$12:$K$400,5,FALSE)=$F13,VLOOKUP($C13,QC2_int!$C$12:$K$400,9,FALSE),""),""),"") -> 191 | BD13: =IF(IF(AND($J13="non inscrit",BD$6>$H$4),OR($P13<$H$5,$P13<AX$6),OR($J13<$H$5,$J13<AX$6)),IFERROR(IF(VLOOKUP($C13,Ach_int!$C$12:$K$400,5,FALSE)=$F13,VLOOKUP($C13,Ach_int!$C$12:$K$400,9,FALSE),""),""),"") ->  | BF13: =IF(IF(AND($J13="non inscrit",BF$6>$H$4),OR($P13<$H$5,$P13<AZ$6),OR($J13<$H$5,$J13<AZ$6)),IFERROR(IF(VLOOKUP($C13,Buck_int!$C$12:$K$400,5,FALSE)=$F13,VLOOKUP($C13,Buck_int!$C$12:$K$400,9,FALSE),""),""),"") ->  | BG13: =IF(IF(AND($J13="non inscrit",BG$6>$H$4),OR($P13<$H$5,$P13<BA$6),OR($J13<$H$5,$J13<BA$6)),IFERROR(IF(VLOOKUP($C13,CQC_int!$C$12:$K$400,5,FALSE)=$F13,VLOOKUP($C13,CQC_int!$C$12:$K$400,9,FALSE),""),""),"") ->  | BH13: =IF(IF(AND($J13="non inscrit",BH$6>$H$4),OR($P13<$H$5,$P13<BB$6),OR($J13<$H$5,$J13<BB$6)),IFERROR(IF(VLOOKUP($C13,LG3_int!$C$12:$K$400,5,FALSE)=$F13,VLOOKUP($C13,LG3_int!$C$12:$K$400,9,FALSE),""),""),"") ->  | BI13: =IF(IF(AND($J13="non inscrit",BI$6>$H$4),OR($P13<$H$5,$P13<BC$6),OR($J13<$H$5,$J13<BC$6)),IFERROR(IF(VLOOKUP($C13,LS_int!$C$12:$K$400,5,FALSE)=$F13,VLOOKUP($C13,LS_int!$C$12:$K$400,9,FALSE),""),""),"") ->  | BT13: =IF(IF(AND($J13="non inscrit",BT$6>$H$4),OR($P13<$H$5,$P13<BN$6),OR($J13<$H$5,$J13<BN$6)),IFERROR(IF(VLOOKUP($C13,FI!$C$12:$K$400,5,FALSE)=$F13,VLOOKUP($C13,FI!$C$12:$K$400,9,FALSE),""),""),"") -> 211
A14: =A13 -> 1 | B14: =B13+1 -> 3 | C14: 7077 | D14: =IF($C14="","",IF($N$1>$H$4,IFERROR(VLOOKUP($C14,'Membres-2024'!$A:$G,2,FALSE),""),IFERROR(VLOOKUP($C14,'Membres-2023'!$A:$G,2,FALSE),""))) -> BOUDREAU | E14: =IF($C14="","",IF($N$1>$H$4,IFERROR(VLOOKUP($C14,'Membres-2024'!$A:$G,3,FALSE),""),IFERROR(VLOOKUP($C14,'Membres-2023'!$A:$G,3,FALSE),""))) -> STANISLAS | F14: =IF($C14="","",IF($N$1>$H$4,IFERROR(VLOOKUP($C14,'Membres-2024'!$A:$G,7,FALSE),""),IFERROR(VLOOKUP($C14,'Membres-2023'!$A:$G,7,FALSE),""))) -> 1 | G14: =IF($C14="","",IF($N$1>$H$4,IFERROR(VLOOKUP($C14,'Membres-2024'!$A:$G,5,FALSE),""),IFERROR(VLOOKUP($C14,'Membres-2023'!$A:$G,5,FALSE),""))) -> Mont-Laurier (Lynx) | H14: =COUNTIF($Y14:$BT14,">=0") -> 2 | I14: =SUM(K14:O14,Q14:U14) -> 174.6666667 | J14: =IFERROR(IF(VLOOKUP(C14,'Membres-2023'!$A:$F,6,FALSE)>=$H$3,VLOOKUP(C14,'Membres-2023'!$A:$F,6,FALSE),"non inscrit"),IF($C14>0,"non inscrit","")) -> 2023-06-16 | K14: =IFERROR(IF(COUNTA(Y14:AT14)>0,LARGE(Y14:AT14,1)/6,""),"") -> 18.66666667 | L14: =IFERROR(IF(COUNTA(Y14:AT14)>1,LARGE(Y14:AT14,2)/6,""),"") ->  | M14: =IFERROR(IF(COUNTA(Y14:AT14)>2,LARGE(Y14:AT14,3)/6,""),"") ->  | N14: =IFERROR(IF(COUNTA(Y14:AT14)>3,LARGE(Y14:AT14,4)/6,""),"") ->  | O14: =IF(AU14<>"",AU14,"") -> 156 | P14: =IFERROR(IF(VLOOKUP(C14,'Membres-2024'!$A:$F,6,FALSE)>=$H$3,VLOOKUP(C14,'Membres-2024'!$A:$F,6,FALSE),"non inscrit"),IF($C14>0,"non inscrit","")) -> 2023-06-16 | Q14: =IFERROR(IF(COUNTA(AW14:BS14)>0,LARGE(AW14:BS14,1)/6,""),"") ->  | R14: =IFERROR(IF(COUNTA(AW14:BS14)>1,LARGE(AW14:BS14,2)/6,""),"") ->  | S14: =IFERROR(IF(COUNTA(AW14:BS14)>2,LARGE(AW14:BS14,3)/6,""),"") ->  | T14: =IFERROR(IF(COUNTA(AW14:BS14)>3,LARGE(AW14:BS14,4)/6,""),"") ->  | U14: =IF(BT14<>"",BT14,"") ->  | Y14: =IF(IF(AND($J14="non inscrit",Y$6>$H$4),OR($P14<$H$5,$P14<Y$6),OR($J14<$H$5,$J14<Y$6)),IFERROR(IF(VLOOKUP($C14,ASF_ext!$C$12:$K$400,5,FALSE)=$F14,VLOOKUP($C14,ASF_ext!$C$12:$K$400,9,FALSE),""),""),"") ->  | Z14: =IF(IF(AND($J14="non inscrit",Z$6>$H$4),OR($P14<$H$5,$P14<Z$6),OR($J14<$H$5,$J14<Z$6)),IFERROR(IF(VLOOKUP($C14,LG_ext!$C$12:$K$400,5,FALSE)=$F14,VLOOKUP($C14,LG_ext!$C$12:$K$400,9,FALSE),""),""),"") ->  | AA14: =IF(IF(AND($J14="non inscrit",AA$6>$H$4),OR($P14<$H$5,$P14<AA$6),OR($J14<$H$5,$J14<AA$6)),IFERROR(IF(VLOOKUP($C14,Jul_ext!$C$12:$K$400,5,FALSE)=$F14,VLOOKUP($C14,Jul_ext!$C$12:$K$400,9,FALSE),""),""),"") ->  | AB14: =IF(IF(AND($J14="non inscrit",AB$6>$H$4),OR($P14<$H$5,$P14<AB$6),OR($J14<$H$5,$J14<AB$6)),IFERROR(IF(VLOOKUP($C14,CQ_ext!$C$12:$K$400,5,FALSE)=$F14,VLOOKUP($C14,CQ_ext!$C$12:$K$400,9,FALSE),""),""),"") ->  | AC14: =IF(IF(AND($J14="non inscrit",AC$6>$H$4),OR($P14<$H$5,$P14<AC$6),OR($J14<$H$5,$J14<AC$6)),IFERROR(IF(VLOOKUP($C14,NAQ_ext!$C$12:$K$400,5,FALSE)=$F14,VLOOKUP($C14,NAQ_ext!$C$12:$K$400,9,FALSE),""),""),"") ->  | AD14: =IF(IF(AND($J14="non inscrit",AD$6>$H$4),OR($P14<$H$5,$P14<AD$6),OR($J14<$H$5,$J14<AD$6)),IFERROR(IF(VLOOKUP($C14,MtL_ext!$C$12:$K$400,5,FALSE)=$F14,VLOOKUP($C14,MtL_ext!$C$12:$K$400,9,FALSE),""),""),"") ->  | AE14: =IF(IF(AND($J14="non inscrit",AE$6>$H$4),OR($P14<$H$5,$P14<AE$6),OR($J14<$H$5,$J14<AE$6)),IFERROR(IF(VLOOKUP($C14,Cant_ext!$C$12:$K$400,5,FALSE)=$F14,VLOOKUP($C14,Cant_ext!$C$12:$K$400,9,FALSE),""),""),"") ->  | AH14: =IF(IF(AND($J14="non inscrit",AH$6>$H$4),OR($P14<$H$5,$P14<AH$6),OR($J14<$H$5,$J14<AH$6)),IFERROR(IF(VLOOKUP($C14,ASF2_ext!$C$12:$K$400,5,FALSE)=$F14,VLOOKUP($C14,ASF2_ext!$C$12:$K$400,9,FALSE),""),""),"") ->  | AI14: =IF(IF(AND($J14="non inscrit",AI$6>$H$4),OR($P14<$H$5,$P14<AI$6),OR($J14<$H$5,$J14<AI$6)),IFERROR(IF(VLOOKUP($C14,Ascot_ext!$C$12:$K$400,5,FALSE)=$F14,VLOOKUP($C14,Ascot_ext!$C$12:$K$400,9,FALSE),""),""),"") ->  | AJ14: =IF(IF(AND($J14="non inscrit",AJ$6>$H$4),OR($P14<$H$5,$P14<AJ$6),OR($J14<$H$5,$J14<AJ$6)),IFERROR(IF(VLOOKUP($C14,BBA_ext!$C$12:$K$400,5,FALSE)=$F14,VLOOKUP($C14,BBA_ext!$C$12:$K$400,9,FALSE),""),""),"") ->  | AK14: =IF(IF(AND($J14="non inscrit",AK$6>$H$4),OR($P14<$H$5,$P14<AK$6),OR($J14<$H$5,$J14<AK$6)),IFERROR(IF(VLOOKUP($C14,Tuq1_ext!$C$12:$K$400,5,FALSE)=$F14,VLOOKUP($C14,Tuq1_ext!$C$12:$K$400,9,FALSE),""),""),"") ->  | AL14: =IF(IF(AND($J14="non inscrit",AL$6>$H$4),OR($P14<$H$5,$P14<AL$6),OR($J14<$H$5,$J14<AL$6)),IFERROR(IF(VLOOKUP($C14,Tuq2_ext!$C$12:$K$400,5,FALSE)=$F14,VLOOKUP($C14,Tuq2_ext!$C$12:$K$400,9,FALSE),""),""),"") ->  | AM14: =IF(IF(AND($J14="non inscrit",AM$6>$H$4),OR($P14<$H$5,$P14<AM$6),OR($J14<$H$5,$J14<AM$6)),IFERROR(IF(VLOOKUP($C14,CQ2_ext!$C$12:$K$400,5,FALSE)=$F14,VLOOKUP($C14,CQ2_ext!$C$12:$K$400,9,FALSE),""),""),"") ->  | AN14: =IF(IF(AND($J14="non inscrit",AN$6>$H$4),OR($P14<$H$5,$P14<AN$6),OR($J14<$H$5,$J14<AN$6)),IFERROR(IF(VLOOKUP($C14,MTL2_ext!$C$12:$K$400,5,FALSE)=$F14,VLOOKUP($C14,MTL2_ext!$C$12:$K$400,9,FALSE),""),""),"") -> 112 | AO14: =IF(IF(AND($J14="non inscrit",AO$6>$H$4),OR($P14<$H$5,$P14<AO$6),OR($J14<$H$5,$J14<AO$6)),IFERROR(IF(VLOOKUP($C14,NO_ext!$C$12:$K$400,5,FALSE)=$F14,VLOOKUP($C14,NO_ext!$C$12:$K$400,9,FALSE),""),""),"") ->  | AP14: =IF(IF(AND($J14="non inscrit",AP$6>$H$4),OR($P14<$H$5,$P14<AP$6),OR($J14<$H$5,$J14<AP$6)),IFERROR(IF(VLOOKUP($C14,VD_ext!$C$12:$K$400,5,FALSE)=$F14,VLOOKUP($C14,VD_ext!$C$12:$K$400,9,FALSE),""),""),"") ->  | AQ14: =IF(IF(AND($J14="non inscrit",AQ$6>$H$4),OR($P14<$H$5,$P14<AQ$6),OR($J14<$H$5,$J14<AQ$6)),IFERROR(IF(VLOOKUP($C14,PT_ext!$C$12:$K$400,5,FALSE)=$F14,VLOOKUP($C14,PT_ext!$C$12:$K$400,9,FALSE),""),""),"") ->  | AR14: =IF(IF(AND($J14="non inscrit",AR$6>$H$4),OR($P14<$H$5,$P14<AR$6),OR($J14<$H$5,$J14<AR$6)),IFERROR(IF(VLOOKUP($C14,Vic_ext!$C$12:$K$400,5,FALSE)=$F14,VLOOKUP($C14,Vic_ext!$C$12:$K$400,9,FALSE),""),""),"") ->  | AS14: =IF(IF(AND($J14="non inscrit",AS$6>$H$4),OR($P14<$H$5,$P14<AS$6),OR($J14<$H$5,$J14<AS$6)),IFERROR(IF(VLOOKUP($C14,Sor_ext!$C$12:$K$400,5,FALSE)=$F14,VLOOKUP($C14,Sor_ext!$C$12:$K$400,9,FALSE),""),""),"") ->  | AU14: =IF(IF(AND($J14="non inscrit",AU$6>$H$4),OR($P14<$H$5,$P14<AU$6),OR($J14<$H$5,$J14<AU$6)),IFERROR(IF(VLOOKUP($C14,PROV_ext!$C$12:$K$400,5,FALSE)=$F14,VLOOKUP($C14,PROV_ext!$C$12:$K$400,9,FALSE),""),""),"") -> 156 | AW14: =IF(IF(AND($J14="non inscrit",AW$6>$H$4),OR($P14<$H$5,$P14<AQ$6),OR($J14<$H$5,$J14<AQ$6)),IFERROR(IF(VLOOKUP($C14,Coat_int!$C$12:$K$400,5,FALSE)=$F14,VLOOKUP($C14,Coat_int!$C$12:$K$400,9,FALSE),""),""),"") ->  | AX14: =IF(IF(AND($J14="non inscrit",AX$6>$H$4),OR($P14<$H$5,$P14<AR$6),OR($J14<$H$5,$J14<AR$6)),IFERROR(IF(VLOOKUP($C14,LG_int!$C$12:$K$400,5,FALSE)=$F14,VLOOKUP($C14,LG_int!$C$12:$K$400,9,FALSE),""),""),"") ->  | AY14: =IF(IF(AND($J14="non inscrit",AY$6>$H$4),OR($P14<$H$5,$P14<AS$6),OR($J14<$H$5,$J14<AS$6)),IFERROR(IF(VLOOKUP($C14,Roc_int!$C$12:$K$400,5,FALSE)=$F14,VLOOKUP($C14,Roc_int!$C$12:$K$400,9,FALSE),""),""),"") ->  | AZ14: =IF(IF(AND($J14="non inscrit",AZ$6>$H$4),OR($P14<$H$5,$P14<AT$6),OR($J14<$H$5,$J14<AT$6)),IFERROR(IF(VLOOKUP($C14,Qc_int!$C$12:$K$400,5,FALSE)=$F14,VLOOKUP($C14,Qc_int!$C$12:$K$400,9,FALSE),""),""),"") ->  | BA14: =IF(IF(AND($J14="non inscrit",BA$6>$H$4),OR($P14<$H$5,$P14<AU$6),OR($J14<$H$5,$J14<AU$6)),IFERROR(IF(VLOOKUP($C14,Asc_int!$C$12:$K$400,5,FALSE)=$F14,VLOOKUP($C14,Asc_int!$C$12:$K$400,9,FALSE),""),""),"") ->  | BB14: =IF(IF(AND($J14="non inscrit",BB$6>$H$4),OR($P14<$H$5,$P14<AV$6),OR($J14<$H$5,$J14<AV$6)),IFERROR(IF(VLOOKUP($C14,CQ_int!$C$12:$K$400,5,FALSE)=$F14,VLOOKUP($C14,CQ_int!$C$12:$K$400,9,FALSE),""),""),"") ->  | BC14: =IF(IF(AND($J14="non inscrit",BC$6>$H$4),OR($P14<$H$5,$P14<AW$6),OR($J14<$H$5,$J14<AW$6)),IFERROR(IF(VLOOKUP($C14,QC2_int!$C$12:$K$400,5,FALSE)=$F14,VLOOKUP($C14,QC2_int!$C$12:$K$400,9,FALSE),""),""),"") ->  | BD14: =IF(IF(AND($J14="non inscrit",BD$6>$H$4),OR($P14<$H$5,$P14<AX$6),OR($J14<$H$5,$J14<AX$6)),IFERROR(IF(VLOOKUP($C14,Ach_int!$C$12:$K$400,5,FALSE)=$F14,VLOOKUP($C14,Ach_int!$C$12:$K$400,9,FALSE),""),""),"") ->  | BF14: =IF(IF(AND($J14="non inscrit",BF$6>$H$4),OR($P14<$H$5,$P14<AZ$6),OR($J14<$H$5,$J14<AZ$6)),IFERROR(IF(VLOOKUP($C14,Buck_int!$C$12:$K$400,5,FALSE)=$F14,VLOOKUP($C14,Buck_int!$C$12:$K$400,9,FALSE),""),""),"") ->  | BG14: =IF(IF(AND($J14="non inscrit",BG$6>$H$4),OR($P14<$H$5,$P14<BA$6),OR($J14<$H$5,$J14<BA$6)),IFERROR(IF(VLOOKUP($C14,CQC_int!$C$12:$K$400,5,FALSE)=$F14,VLOOKUP($C14,CQC_int!$C$12:$K$400,9,FALSE),""),""),"") ->  | BH14: =IF(IF(AND($J14="non inscrit",BH$6>$H$4),OR($P14<$H$5,$P14<BB$6),OR($J14<$H$5,$J14<BB$6)),IFERROR(IF(VLOOKUP($C14,LG3_int!$C$12:$K$400,5,FALSE)=$F14,VLOOKUP($C14,LG3_int!$C$12:$K$400,9,FALSE),""),""),"") ->  | BI14: =IF(IF(AND($J14="non inscrit",BI$6>$H$4),OR($P14<$H$5,$P14<BC$6),OR($J14<$H$5,$J14<BC$6)),IFERROR(IF(VLOOKUP($C14,LS_int!$C$12:$K$400,5,FALSE)=$F14,VLOOKUP($C14,LS_int!$C$12:$K$400,9,FALSE),""),""),"") ->  | BT14: =IF(IF(AND($J14="non inscrit",BT$6>$H$4),OR($P14<$H$5,$P14<BN$6),OR($J14<$H$5,$J14<BN$6)),IFERROR(IF(VLOOKUP($C14,FI!$C$12:$K$400,5,FALSE)=$F14,VLOOKUP($C14,FI!$C$12:$K$400,9,FALSE),""),""),"") -> 
A15: =A14 -> 1 | B15: =B14+1 -> 4 | C15: 8471 | D15: =IF($C15="","",IF($N$1>$H$4,IFERROR(VLOOKUP($C15,'Membres-2024'!$A:$G,2,FALSE),""),IFERROR(VLOOKUP($C15,'Membres-2023'!$A:$G,2,FALSE),""))) -> Taillade | E15: =IF($C15="","",IF($N$1>$H$4,IFERROR(VLOOKUP($C15,'Membres-2024'!$A:$G,3,FALSE),""),IFERROR(VLOOKUP($C15,'Membres-2023'!$A:$G,3,FALSE),""))) -> William | F15: =IF($C15="","",IF($N$1>$H$4,IFERROR(VLOOKUP($C15,'Membres-2024'!$A:$G,7,FALSE),""),IFERROR(VLOOKUP($C15,'Membres-2023'!$A:$G,7,FALSE),""))) -> 1 | G15: =IF($C15="","",IF($N$1>$H$4,IFERROR(VLOOKUP($C15,'Membres-2024'!$A:$G,5,FALSE),""),IFERROR(VLOOKUP($C15,'Membres-2023'!$A:$G,5,FALSE),""))) -> Club de tir Legardeur | H15: =COUNTIF($Y15:$BT15,">=0") -> 4 | I15: =SUM(K15:O15,Q15:U15) -> 152.5 | J15: =IFERROR(IF(VLOOKUP(C15,'Membres-2023'!$A:$F,6,FALSE)>=$H$3,VLOOKUP(C15,'Membres-2023'!$A:$F,6,FALSE),"non inscrit"),IF($C15>0,"non inscrit","")) -> non inscrit | K15: =IFERROR(IF(COUNTA(Y15:AT15)>0,LARGE(Y15:AT15,1)/6,""),"") ->  | L15: =IFERROR(IF(COUNTA(Y15:AT15)>1,LARGE(Y15:AT15,2)/6,""),"") ->  | M15: =IFERROR(IF(COUNTA(Y15:AT15)>2,LARGE(Y15:AT15,3)/6,""),"") ->  | N15: =IFERROR(IF(COUNTA(Y15:AT15)>3,LARGE(Y15:AT15,4)/6,""),"") ->  | O15: =IF(AU15<>"",AU15,"") ->  | P15: =IFERROR(IF(VLOOKUP(C15,'Membres-2024'!$A:$F,6,FALSE)>=$H$3,VLOOKUP(C15,'Membres-2024'!$A:$F,6,FALSE),"non inscrit"),IF($C15>0,"non inscrit","")) -> 2024-01-01 | Q15: =IFERROR(IF(COUNTA(AW15:BS15)>0,LARGE(AW15:BS15,1)/6,""),"") -> 42.33333333 | R15: =IFERROR(IF(COUNTA(AW15:BS15)>1,LARGE(AW15:BS15,2)/6,""),"") -> 41.33333333 | S15: =IFERROR(IF(COUNTA(AW15:BS15)>2,LARGE(AW15:BS15,3)/6,""),"") -> 35.83333333 | T15: =IFERROR(IF(COUNTA(AW15:BS15)>3,LARGE(AW15:BS15,4)/6,""),"") -> 33 | U15: =IF(BT15<>"",BT15,"") ->  | Y15: =IF(IF(AND($J15="non inscrit",Y$6>$H$4),OR($P15<$H$5,$P15<Y$6),OR($J15<$H$5,$J15<Y$6)),IFERROR(IF(VLOOKUP($C15,ASF_ext!$C$12:$K$400,5,FALSE)=$F15,VLOOKUP($C15,ASF_ext!$C$12:$K$400,9,FALSE),""),""),"") ->  | Z15: =IF(IF(AND($J15="non inscrit",Z$6>$H$4),OR($P15<$H$5,$P15<Z$6),OR($J15<$H$5,$J15<Z$6)),IFERROR(IF(VLOOKUP($C15,LG_ext!$C$12:$K$400,5,FALSE)=$F15,VLOOKUP($C15,LG_ext!$C$12:$K$400,9,FALSE),""),""),"") ->  | AA15: =IF(IF(AND($J15="non inscrit",AA$6>$H$4),OR($P15<$H$5,$P15<AA$6),OR($J15<$H$5,$J15<AA$6)),IFERROR(IF(VLOOKUP($C15,Jul_ext!$C$12:$K$400,5,FALSE)=$F15,VLOOKUP($C15,Jul_ext!$C$12:$K$400,9,FALSE),""),""),"") ->  | AB15: =IF(IF(AND($J15="non inscrit",AB$6>$H$4),OR($P15<$H$5,$P15<AB$6),OR($J15<$H$5,$J15<AB$6)),IFERROR(IF(VLOOKUP($C15,CQ_ext!$C$12:$K$400,5,FALSE)=$F15,VLOOKUP($C15,CQ_ext!$C$12:$K$400,9,FALSE),""),""),"") ->  | AC15: =IF(IF(AND($J15="non inscrit",AC$6>$H$4),OR($P15<$H$5,$P15<AC$6),OR($J15<$H$5,$J15<AC$6)),IFERROR(IF(VLOOKUP($C15,NAQ_ext!$C$12:$K$400,5,FALSE)=$F15,VLOOKUP($C15,NAQ_ext!$C$12:$K$400,9,FALSE),""),""),"") ->  | AD15: =IF(IF(AND($J15="non inscrit",AD$6>$H$4),OR($P15<$H$5,$P15<AD$6),OR($J15<$H$5,$J15<AD$6)),IFERROR(IF(VLOOKUP($C15,MtL_ext!$C$12:$K$400,5,FALSE)=$F15,VLOOKUP($C15,MtL_ext!$C$12:$K$400,9,FALSE),""),""),"") ->  | AE15: =IF(IF(AND($J15="non inscrit",AE$6>$H$4),OR($P15<$H$5,$P15<AE$6),OR($J15<$H$5,$J15<AE$6)),IFERROR(IF(VLOOKUP($C15,Cant_ext!$C$12:$K$400,5,FALSE)=$F15,VLOOKUP($C15,Cant_ext!$C$12:$K$400,9,FALSE),""),""),"") ->  | AH15: =IF(IF(AND($J15="non inscrit",AH$6>$H$4),OR($P15<$H$5,$P15<AH$6),OR($J15<$H$5,$J15<AH$6)),IFERROR(IF(VLOOKUP($C15,ASF2_ext!$C$12:$K$400,5,FALSE)=$F15,VLOOKUP($C15,ASF2_ext!$C$12:$K$400,9,FALSE),""),""),"") ->  | AI15: =IF(IF(AND($J15="non inscrit",AI$6>$H$4),OR($P15<$H$5,$P15<AI$6),OR($J15<$H$5,$J15<AI$6)),IFERROR(IF(VLOOKUP($C15,Ascot_ext!$C$12:$K$400,5,FALSE)=$F15,VLOOKUP($C15,Ascot_ext!$C$12:$K$400,9,FALSE),""),""),"") ->  | AJ15: =IF(IF(AND($J15="non inscrit",AJ$6>$H$4),OR($P15<$H$5,$P15<AJ$6),OR($J15<$H$5,$J15<AJ$6)),IFERROR(IF(VLOOKUP($C15,BBA_ext!$C$12:$K$400,5,FALSE)=$F15,VLOOKUP($C15,BBA_ext!$C$12:$K$400,9,FALSE),""),""),"") ->  | AK15: =IF(IF(AND($J15="non inscrit",AK$6>$H$4),OR($P15<$H$5,$P15<AK$6),OR($J15<$H$5,$J15<AK$6)),IFERROR(IF(VLOOKUP($C15,Tuq1_ext!$C$12:$K$400,5,FALSE)=$F15,VLOOKUP($C15,Tuq1_ext!$C$12:$K$400,9,FALSE),""),""),"") ->  | AL15: =IF(IF(AND($J15="non inscrit",AL$6>$H$4),OR($P15<$H$5,$P15<AL$6),OR($J15<$H$5,$J15<AL$6)),IFERROR(IF(VLOOKUP($C15,Tuq2_ext!$C$12:$K$400,5,FALSE)=$F15,VLOOKUP($C15,Tuq2_ext!$C$12:$K$400,9,FALSE),""),""),"") ->  | AM15: =IF(IF(AND($J15="non inscrit",AM$6>$H$4),OR($P15<$H$5,$P15<AM$6),OR($J15<$H$5,$J15<AM$6)),IFERROR(IF(VLOOKUP($C15,CQ2_ext!$C$12:$K$400,5,FALSE)=$F15,VLOOKUP($C15,CQ2_ext!$C$12:$K$400,9,FALSE),""),""),"") ->  | AN15: =IF(IF(AND($J15="non inscrit",AN$6>$H$4),OR($P15<$H$5,$P15<AN$6),OR($J15<$H$5,$J15<AN$6)),IFERROR(IF(VLOOKUP($C15,MTL2_ext!$C$12:$K$400,5,FALSE)=$F15,VLOOKUP($C15,MTL2_ext!$C$12:$K$400,9,FALSE),""),""),"") ->  | AO15: =IF(IF(AND($J15="non inscrit",AO$6>$H$4),OR($P15<$H$5,$P15<AO$6),OR($J15<$H$5,$J15<AO$6)),IFERROR(IF(VLOOKUP($C15,NO_ext!$C$12:$K$400,5,FALSE)=$F15,VLOOKUP($C15,NO_ext!$C$12:$K$400,9,FALSE),""),""),"") ->  | AP15: =IF(IF(AND($J15="non inscrit",AP$6>$H$4),OR($P15<$H$5,$P15<AP$6),OR($J15<$H$5,$J15<AP$6)),IFERROR(IF(VLOOKUP($C15,VD_ext!$C$12:$K$400,5,FALSE)=$F15,VLOOKUP($C15,VD_ext!$C$12:$K$400,9,FALSE),""),""),"") ->  | AQ15: =IF(IF(AND($J15="non inscrit",AQ$6>$H$4),OR($P15<$H$5,$P15<AQ$6),OR($J15<$H$5,$J15<AQ$6)),IFERROR(IF(VLOOKUP($C15,PT_ext!$C$12:$K$400,5,FALSE)=$F15,VLOOKUP($C15,PT_ext!$C$12:$K$400,9,FALSE),""),""),"") ->  | AR15: =IF(IF(AND($J15="non inscrit",AR$6>$H$4),OR($P15<$H$5,$P15<AR$6),OR($J15<$H$5,$J15<AR$6)),IFERROR(IF(VLOOKUP($C15,Vic_ext!$C$12:$K$400,5,FALSE)=$F15,VLOOKUP($C15,Vic_ext!$C$12:$K$400,9,FALSE),""),""),"") ->  | AS15: =IF(IF(AND($J15="non inscrit",AS$6>$H$4),OR($P15<$H$5,$P15<AS$6),OR($J15<$H$5,$J15<AS$6)),IFERROR(IF(VLOOKUP($C15,Sor_ext!$C$12:$K$400,5,FALSE)=$F15,VLOOKUP($C15,Sor_ext!$C$12:$K$400,9,FALSE),""),""),"") ->  | AU15: =IF(IF(AND($J15="non inscrit",AU$6>$H$4),OR($P15<$H$5,$P15<AU$6),OR($J15<$H$5,$J15<AU$6)),IFERROR(IF(VLOOKUP($C15,PROV_ext!$C$12:$K$400,5,FALSE)=$F15,VLOOKUP($C15,PROV_ext!$C$12:$K$400,9,FALSE),""),""),"") ->  | AW15: =IF(IF(AND($J15="non inscrit",AW$6>$H$4),OR($P15<$H$5,$P15<AQ$6),OR($J15<$H$5,$J15<AQ$6)),IFERROR(IF(VLOOKUP($C15,Coat_int!$C$12:$K$400,5,FALSE)=$F15,VLOOKUP($C15,Coat_int!$C$12:$K$400,9,FALSE),""),""),"") ->  | AX15: =IF(IF(AND($J15="non inscrit",AX$6>$H$4),OR($P15<$H$5,$P15<AR$6),OR($J15<$H$5,$J15<AR$6)),IFERROR(IF(VLOOKUP($C15,LG_int!$C$12:$K$400,5,FALSE)=$F15,VLOOKUP($C15,LG_int!$C$12:$K$400,9,FALSE),""),""),"") -> 248 | AY15: =IF(IF(AND($J15="non inscrit",AY$6>$H$4),OR($P15<$H$5,$P15<AS$6),OR($J15<$H$5,$J15<AS$6)),IFERROR(IF(VLOOKUP($C15,Roc_int!$C$12:$K$400,5,FALSE)=$F15,VLOOKUP($C15,Roc_int!$C$12:$K$400,9,FALSE),""),""),"") -> 215 | AZ15: =IF(IF(AND($J15="non inscrit",AZ$6>$H$4),OR($P15<$H$5,$P15<AT$6),OR($J15<$H$5,$J15<AT$6)),IFERROR(IF(VLOOKUP($C15,Qc_int!$C$12:$K$400,5,FALSE)=$F15,VLOOKUP($C15,Qc_int!$C$12:$K$400,9,FALSE),""),""),"") ->  | BA15: =IF(IF(AND($J15="non inscrit",BA$6>$H$4),OR($P15<$H$5,$P15<AU$6),OR($J15<$H$5,$J15<AU$6)),IFERROR(IF(VLOOKUP($C15,Asc_int!$C$12:$K$400,5,FALSE)=$F15,VLOOKUP($C15,Asc_int!$C$12:$K$400,9,FALSE),""),""),"") ->  | BB15: =IF(IF(AND($J15="non inscrit",BB$6>$H$4),OR($P15<$H$5,$P15<AV$6),OR($J15<$H$5,$J15<AV$6)),IFERROR(IF(VLOOKUP($C15,CQ_int!$C$12:$K$400,5,FALSE)=$F15,VLOOKUP($C15,CQ_int!$C$12:$K$400,9,FALSE),""),""),"") ->  | BC15: =IF(IF(AND($J15="non inscrit",BC$6>$H$4),OR($P15<$H$5,$P15<AW$6),OR($J15<$H$5,$J15<AW$6)),IFERROR(IF(VLOOKUP($C15,QC2_int!$C$12:$K$400,5,FALSE)=$F15,VLOOKUP($C15,QC2_int!$C$12:$K$400,9,FALSE),""),""),"") ->  | BD15: =IF(IF(AND($J15="non inscrit",BD$6>$H$4),OR($P15<$H$5,$P15<AX$6),OR($J15<$H$5,$J15<AX$6)),IFERROR(IF(VLOOKUP($C15,Ach_int!$C$12:$K$400,5,FALSE)=$F15,VLOOKUP($C15,Ach_int!$C$12:$K$400,9,FALSE),""),""),"") -> 198 | BF15: =IF(IF(AND($J15="non inscrit",BF$6>$H$4),OR($P15<$H$5,$P15<AZ$6),OR($J15<$H$5,$J15<AZ$6)),IFERROR(IF(VLOOKUP($C15,Buck_int!$C$12:$K$400,5,FALSE)=$F15,VLOOKUP($C15,Buck_int!$C$12:$K$400,9,FALSE),""),""),"") ->  | BG15: =IF(IF(AND($J15="non inscrit",BG$6>$H$4),OR($P15<$H$5,$P15<BA$6),OR($J15<$H$5,$J15<BA$6)),IFERROR(IF(VLOOKUP($C15,CQC_int!$C$12:$K$400,5,FALSE)=$F15,VLOOKUP($C15,CQC_int!$C$12:$K$400,9,FALSE),""),""),"") ->  | BH15: =IF(IF(AND($J15="non inscrit",BH$6>$H$4),OR($P15<$H$5,$P15<BB$6),OR($J15<$H$5,$J15<BB$6)),IFERROR(IF(VLOOKUP($C15,LG3_int!$C$12:$K$400,5,FALSE)=$F15,VLOOKUP($C15,LG3_int!$C$12:$K$400,9,FALSE),""),""),"") -> 254 | BI15: =IF(IF(AND($J15="non inscrit",BI$6>$H$4),OR($P15<$H$5,$P15<BC$6),OR($J15<$H$5,$J15<BC$6)),IFERROR(IF(VLOOKUP($C15,LS_int!$C$12:$K$400,5,FALSE)=$F15,VLOOKUP($C15,LS_int!$C$12:$K$400,9,FALSE),""),""),"") ->  | BT15: =IF(IF(AND($J15="non inscrit",BT$6>$H$4),OR($P15<$H$5,$P15<BN$6),OR($J15<$H$5,$J15<BN$6)),IFERROR(IF(VLOOKUP($C15,FI!$C$12:$K$400,5,FALSE)=$F15,VLOOKUP($C15,FI!$C$12:$K$400,9,FALSE),""),""),"") -> 
A16: =A15 -> 1 | B16: =B15+1 -> 5 | C16: 7895 | D16: =IF($C16="","",IF($N$1>$H$4,IFERROR(VLOOKUP($C16,'Membres-2024'!$A:$G,2,FALSE),""),IFERROR(VLOOKUP($C16,'Membres-2023'!$A:$G,2,FALSE),""))) -> Lapointe | E16: =IF($C16="","",IF($N$1>$H$4,IFERROR(VLOOKUP($C16,'Membres-2024'!$A:$G,3,FALSE),""),IFERROR(VLOOKUP($C16,'Membres-2023'!$A:$G,3,FALSE),""))) -> Rémi | F16: =IF($C16="","",IF($N$1>$H$4,IFERROR(VLOOKUP($C16,'Membres-2024'!$A:$G,7,FALSE),""),IFERROR(VLOOKUP($C16,'Membres-2023'!$A:$G,7,FALSE),""))) -> 1 | G16: =IF($C16="","",IF($N$1>$H$4,IFERROR(VLOOKUP($C16,'Membres-2024'!$A:$G,5,FALSE),""),IFERROR(VLOOKUP($C16,'Membres-2023'!$A:$G,5,FALSE),""))) -> Club de tir Legardeur | H16: =COUNTIF($Y16:$BT16,">=0") -> 3 | I16: =SUM(K16:O16,Q16:U16) -> 91.5 | J16: =IFERROR(IF(VLOOKUP(C16,'Membres-2023'!$A:$F,6,FALSE)>=$H$3,VLOOKUP(C16,'Membres-2023'!$A:$F,6,FALSE),"non inscrit"),IF($C16>0,"non inscrit","")) -> non inscrit | K16: =IFERROR(IF(COUNTA(Y16:AT16)>0,LARGE(Y16:AT16,1)/6,""),"") ->  | L16: =IFERROR(IF(COUNTA(Y16:AT16)>1,LARGE(Y16:AT16,2)/6,""),"") ->  | M16: =IFERROR(IF(COUNTA(Y16:AT16)>2,LARGE(Y16:AT16,3)/6,""),"") ->  | N16: =IFERROR(IF(COUNTA(Y16:AT16)>3,LARGE(Y16:AT16,4)/6,""),"") ->  | O16: =IF(AU16<>"",AU16,"") ->  | P16: =IFERROR(IF(VLOOKUP(C16,'Membres-2024'!$A:$F,6,FALSE)>=$H$3,VLOOKUP(C16,'Membres-2024'!$A:$F,6,FALSE),"non inscrit"),IF($C16>0,"non inscrit","")) -> 2024-01-07 | Q16: =IFERROR(IF(COUNTA(AW16:BS16)>0,LARGE(AW16:BS16,1)/6,""),"") -> 38.5 | R16: =IFERROR(IF(COUNTA(AW16:BS16)>1,LARGE(AW16:BS16,2)/6,""),"") -> 27 | S16: =IFERROR(IF(COUNTA(AW16:BS16)>2,LARGE(AW16:BS16,3)/6,""),"") -> 26 | T16: =IFERROR(IF(COUNTA(AW16:BS16)>3,LARGE(AW16:BS16,4)/6,""),"") ->  | U16: =IF(BT16<>"",BT16,"") ->  | Y16: =IF(IF(AND($J16="non inscrit",Y$6>$H$4),OR($P16<$H$5,$P16<Y$6),OR($J16<$H$5,$J16<Y$6)),IFERROR(IF(VLOOKUP($C16,ASF_ext!$C$12:$K$400,5,FALSE)=$F16,VLOOKUP($C16,ASF_ext!$C$12:$K$400,9,FALSE),""),""),"") ->  | Z16: =IF(IF(AND($J16="non inscrit",Z$6>$H$4),OR($P16<$H$5,$P16<Z$6),OR($J16<$H$5,$J16<Z$6)),IFERROR(IF(VLOOKUP($C16,LG_ext!$C$12:$K$400,5,FALSE)=$F16,VLOOKUP($C16,LG_ext!$C$12:$K$400,9,FALSE),""),""),"") ->  | AA16: =IF(IF(AND($J16="non inscrit",AA$6>$H$4),OR($P16<$H$5,$P16<AA$6),OR($J16<$H$5,$J16<AA$6)),IFERROR(IF(VLOOKUP($C16,Jul_ext!$C$12:$K$400,5,FALSE)=$F16,VLOOKUP($C16,Jul_ext!$C$12:$K$400,9,FALSE),""),""),"") ->  | AB16: =IF(IF(AND($J16="non inscrit",AB$6>$H$4),OR($P16<$H$5,$P16<AB$6),OR($J16<$H$5,$J16<AB$6)),IFERROR(IF(VLOOKUP($C16,CQ_ext!$C$12:$K$400,5,FALSE)=$F16,VLOOKUP($C16,CQ_ext!$C$12:$K$400,9,FALSE),""),""),"") ->  | AC16: =IF(IF(AND($J16="non inscrit",AC$6>$H$4),OR($P16<$H$5,$P16<AC$6),OR($J16<$H$5,$J16<AC$6)),IFERROR(IF(VLOOKUP($C16,NAQ_ext!$C$12:$K$400,5,FALSE)=$F16,VLOOKUP($C16,NAQ_ext!$C$12:$K$400,9,FALSE),""),""),"") ->  | AD16: =IF(IF(AND($J16="non inscrit",AD$6>$H$4),OR($P16<$H$5,$P16<AD$6),OR($J16<$H$5,$J16<AD$6)),IFERROR(IF(VLOOKUP($C16,MtL_ext!$C$12:$K$400,5,FALSE)=$F16,VLOOKUP($C16,MtL_ext!$C$12:$K$400,9,FALSE),""),""),"") ->  | AE16: =IF(IF(AND($J16="non inscrit",AE$6>$H$4),OR($P16<$H$5,$P16<AE$6),OR($J16<$H$5,$J16<AE$6)),IFERROR(IF(VLOOKUP($C16,Cant_ext!$C$12:$K$400,5,FALSE)=$F16,VLOOKUP($C16,Cant_ext!$C$12:$K$400,9,FALSE),""),""),"") ->  | AH16: =IF(IF(AND($J16="non inscrit",AH$6>$H$4),OR($P16<$H$5,$P16<AH$6),OR($J16<$H$5,$J16<AH$6)),IFERROR(IF(VLOOKUP($C16,ASF2_ext!$C$12:$K$400,5,FALSE)=$F16,VLOOKUP($C16,ASF2_ext!$C$12:$K$400,9,FALSE),""),""),"") ->  | AI16: =IF(IF(AND($J16="non inscrit",AI$6>$H$4),OR($P16<$H$5,$P16<AI$6),OR($J16<$H$5,$J16<AI$6)),IFERROR(IF(VLOOKUP($C16,Ascot_ext!$C$12:$K$400,5,FALSE)=$F16,VLOOKUP($C16,Ascot_ext!$C$12:$K$400,9,FALSE),""),""),"") ->  | AJ16: =IF(IF(AND($J16="non inscrit",AJ$6>$H$4),OR($P16<$H$5,$P16<AJ$6),OR($J16<$H$5,$J16<AJ$6)),IFERROR(IF(VLOOKUP($C16,BBA_ext!$C$12:$K$400,5,FALSE)=$F16,VLOOKUP($C16,BBA_ext!$C$12:$K$400,9,FALSE),""),""),"") ->  | AK16: =IF(IF(AND($J16="non inscrit",AK$6>$H$4),OR($P16<$H$5,$P16<AK$6),OR($J16<$H$5,$J16<AK$6)),IFERROR(IF(VLOOKUP($C16,Tuq1_ext!$C$12:$K$400,5,FALSE)=$F16,VLOOKUP($C16,Tuq1_ext!$C$12:$K$400,9,FALSE),""),""),"") ->  | AL16: =IF(IF(AND($J16="non inscrit",AL$6>$H$4),OR($P16<$H$5,$P16<AL$6),OR($J16<$H$5,$J16<AL$6)),IFERROR(IF(VLOOKUP($C16,Tuq2_ext!$C$12:$K$400,5,FALSE)=$F16,VLOOKUP($C16,Tuq2_ext!$C$12:$K$400,9,FALSE),""),""),"") ->  | AM16: =IF(IF(AND($J16="non inscrit",AM$6>$H$4),OR($P16<$H$5,$P16<AM$6),OR($J16<$H$5,$J16<AM$6)),IFERROR(IF(VLOOKUP($C16,CQ2_ext!$C$12:$K$400,5,FALSE)=$F16,VLOOKUP($C16,CQ2_ext!$C$12:$K$400,9,FALSE),""),""),"") ->  | AN16: =IF(IF(AND($J16="non inscrit",AN$6>$H$4),OR($P16<$H$5,$P16<AN$6),OR($J16<$H$5,$J16<AN$6)),IFERROR(IF(VLOOKUP($C16,MTL2_ext!$C$12:$K$400,5,FALSE)=$F16,VLOOKUP($C16,MTL2_ext!$C$12:$K$400,9,FALSE),""),""),"") ->  | AO16: =IF(IF(AND($J16="non inscrit",AO$6>$H$4),OR($P16<$H$5,$P16<AO$6),OR($J16<$H$5,$J16<AO$6)),IFERROR(IF(VLOOKUP($C16,NO_ext!$C$12:$K$400,5,FALSE)=$F16,VLOOKUP($C16,NO_ext!$C$12:$K$400,9,FALSE),""),""),"") ->  | AP16: =IF(IF(AND($J16="non inscrit",AP$6>$H$4),OR($P16<$H$5,$P16<AP$6),OR($J16<$H$5,$J16<AP$6)),IFERROR(IF(VLOOKUP($C16,VD_ext!$C$12:$K$400,5,FALSE)=$F16,VLOOKUP($C16,VD_ext!$C$12:$K$400,9,FALSE),""),""),"") ->  | AQ16: =IF(IF(AND($J16="non inscrit",AQ$6>$H$4),OR($P16<$H$5,$P16<AQ$6),OR($J16<$H$5,$J16<AQ$6)),IFERROR(IF(VLOOKUP($C16,PT_ext!$C$12:$K$400,5,FALSE)=$F16,VLOOKUP($C16,PT_ext!$C$12:$K$400,9,FALSE),""),""),"") ->  | AR16: =IF(IF(AND($J16="non inscrit",AR$6>$H$4),OR($P16<$H$5,$P16<AR$6),OR($J16<$H$5,$J16<AR$6)),IFERROR(IF(VLOOKUP($C16,Vic_ext!$C$12:$K$400,5,FALSE)=$F16,VLOOKUP($C16,Vic_ext!$C$12:$K$400,9,FALSE),""),""),"") ->  | AS16: =IF(IF(AND($J16="non inscrit",AS$6>$H$4),OR($P16<$H$5,$P16<AS$6),OR($J16<$H$5,$J16<AS$6)),IFERROR(IF(VLOOKUP($C16,Sor_ext!$C$12:$K$400,5,FALSE)=$F16,VLOOKUP($C16,Sor_ext!$C$12:$K$400,9,FALSE),""),""),"") ->  | AU16: =IF(IF(AND($J16="non inscrit",AU$6>$H$4),OR($P16<$H$5,$P16<AU$6),OR($J16<$H$5,$J16<AU$6)),IFERROR(IF(VLOOKUP($C16,PROV_ext!$C$12:$K$400,5,FALSE)=$F16,VLOOKUP($C16,PROV_ext!$C$12:$K$400,9,FALSE),""),""),"") ->  | AW16: =IF(IF(AND($J16="non inscrit",AW$6>$H$4),OR($P16<$H$5,$P16<AQ$6),OR($J16<$H$5,$J16<AQ$6)),IFERROR(IF(VLOOKUP($C16,Coat_int!$C$12:$K$400,5,FALSE)=$F16,VLOOKUP($C16,Coat_int!$C$12:$K$400,9,FALSE),""),""),"") ->  | AX16: =IF(IF(AND($J16="non inscrit",AX$6>$H$4),OR($P16<$H$5,$P16<AR$6),OR($J16<$H$5,$J16<AR$6)),IFERROR(IF(VLOOKUP($C16,LG_int!$C$12:$K$400,5,FALSE)=$F16,VLOOKUP($C16,LG_int!$C$12:$K$400,9,FALSE),""),""),"") -> 231 | AY16: =IF(IF(AND($J16="non inscrit",AY$6>$H$4),OR($P16<$H$5,$P16<AS$6),OR($J16<$H$5,$J16<AS$6)),IFERROR(IF(VLOOKUP($C16,Roc_int!$C$12:$K$400,5,FALSE)=$F16,VLOOKUP($C16,Roc_int!$C$12:$K$400,9,FALSE),""),""),"") ->  | AZ16: =IF(IF(AND($J16="non inscrit",AZ$6>$H$4),OR($P16<$H$5,$P16<AT$6),OR($J16<$H$5,$J16<AT$6)),IFERROR(IF(VLOOKUP($C16,Qc_int!$C$12:$K$400,5,FALSE)=$F16,VLOOKUP($C16,Qc_int!$C$12:$K$400,9,FALSE),""),""),"") ->  | BA16: =IF(IF(AND($J16="non inscrit",BA$6>$H$4),OR($P16<$H$5,$P16<AU$6),OR($J16<$H$5,$J16<AU$6)),IFERROR(IF(VLOOKUP($C16,Asc_int!$C$12:$K$400,5,FALSE)=$F16,VLOOKUP($C16,Asc_int!$C$12:$K$400,9,FALSE),""),""),"") ->  | BB16: =IF(IF(AND($J16="non inscrit",BB$6>$H$4),OR($P16<$H$5,$P16<AV$6),OR($J16<$H$5,$J16<AV$6)),IFERROR(IF(VLOOKUP($C16,CQ_int!$C$12:$K$400,5,FALSE)=$F16,VLOOKUP($C16,CQ_int!$C$12:$K$400,9,FALSE),""),""),"") ->  | BC16: =IF(IF(AND($J16="non inscrit",BC$6>$H$4),OR($P16<$H$5,$P16<AW$6),OR($J16<$H$5,$J16<AW$6)),IFERROR(IF(VLOOKUP($C16,QC2_int!$C$12:$K$400,5,FALSE)=$F16,VLOOKUP($C16,QC2_int!$C$12:$K$400,9,FALSE),""),""),"") ->  | BD16: =IF(IF(AND($J16="non inscrit",BD$6>$H$4),OR($P16<$H$5,$P16<AX$6),OR($J16<$H$5,$J16<AX$6)),IFERROR(IF(VLOOKUP($C16,Ach_int!$C$12:$K$400,5,FALSE)=$F16,VLOOKUP($C16,Ach_int!$C$12:$K$400,9,FALSE),""),""),"") -> 156 | BF16: =IF(IF(AND($J16="non inscrit",BF$6>$H$4),OR($P16<$H$5,$P16<AZ$6),OR($J16<$H$5,$J16<AZ$6)),IFERROR(IF(VLOOKUP($C16,Buck_int!$C$12:$K$400,5,FALSE)=$F16,VLOOKUP($C16,Buck_int!$C$12:$K$400,9,FALSE),""),""),"") -> 162 | BG16: =IF(IF(AND($J16="non inscrit",BG$6>$H$4),OR($P16<$H$5,$P16<BA$6),OR($J16<$H$5,$J16<BA$6)),IFERROR(IF(VLOOKUP($C16,CQC_int!$C$12:$K$400,5,FALSE)=$F16,VLOOKUP($C16,CQC_int!$C$12:$K$400,9,FALSE),""),""),"") ->  | BH16: =IF(IF(AND($J16="non inscrit",BH$6>$H$4),OR($P16<$H$5,$P16<BB$6),OR($J16<$H$5,$J16<BB$6)),IFERROR(IF(VLOOKUP($C16,LG3_int!$C$12:$K$400,5,FALSE)=$F16,VLOOKUP($C16,LG3_int!$C$12:$K$400,9,FALSE),""),""),"") ->  | BI16: =IF(IF(AND($J16="non inscrit",BI$6>$H$4),OR($P16<$H$5,$P16<BC$6),OR($J16<$H$5,$J16<BC$6)),IFERROR(IF(VLOOKUP($C16,LS_int!$C$12:$K$400,5,FALSE)=$F16,VLOOKUP($C16,LS_int!$C$12:$K$400,9,FALSE),""),""),"") ->  | BT16: =IF(IF(AND($J16="non inscrit",BT$6>$H$4),OR($P16<$H$5,$P16<BN$6),OR($J16<$H$5,$J16<BN$6)),IFERROR(IF(VLOOKUP($C16,FI!$C$12:$K$400,5,FALSE)=$F16,VLOOKUP($C16,FI!$C$12:$K$400,9,FALSE),""),""),"") -> 
A17: =A16 -> 1 | B17: =B16+1 -> 6 | C17: 7603 | D17: =IF($C17="","",IF($N$1>$H$4,IFERROR(VLOOKUP($C17,'Membres-2024'!$A:$G,2,FALSE),""),IFERROR(VLOOKUP($C17,'Membres-2023'!$A:$G,2,FALSE),""))) -> Leblanc | E17: =IF($C17="","",IF($N$1>$H$4,IFERROR(VLOOKUP($C17,'Membres-2024'!$A:$G,3,FALSE),""),IFERROR(VLOOKUP($C17,'Membres-2023'!$A:$G,3,FALSE),""))) -> David | F17: =IF($C17="","",IF($N$1>$H$4,IFERROR(VLOOKUP($C17,'Membres-2024'!$A:$G,7,FALSE),""),IFERROR(VLOOKUP($C17,'Membres-2023'!$A:$G,7,FALSE),""))) -> 1 | G17: =IF($C17="","",IF($N$1>$H$4,IFERROR(VLOOKUP($C17,'Membres-2024'!$A:$G,5,FALSE),""),IFERROR(VLOOKUP($C17,'Membres-2023'!$A:$G,5,FALSE),""))) -> Québec (Nord'arc) | H17: =COUNTIF($Y17:$BT17,">=0") -> 2 | I17: =SUM(K17:O17,Q17:U17) -> 87.66666667 | J17: =IFERROR(IF(VLOOKUP(C17,'Membres-2023'!$A:$F,6,FALSE)>=$H$3,VLOOKUP(C17,'Membres-2023'!$A:$F,6,FALSE),"non inscrit"),IF($C17>0,"non inscrit","")) -> 2023-03-15 | K17: =IFERROR(IF(COUNTA(Y17:AT17)>0,LARGE(Y17:AT17,1)/6,""),"") -> 44.66666667 | L17: =IFERROR(IF(COUNTA(Y17:AT17)>1,LARGE(Y17:AT17,2)/6,""),"") -> 43 | M17: =IFERROR(IF(COUNTA(Y17:AT17)>2,LARGE(Y17:AT17,3)/6,""),"") ->  | N17: =IFERROR(IF(COUNTA(Y17:AT17)>3,LARGE(Y17:AT17,4)/6,""),"") ->  | O17: =IF(AU17<>"",AU17,"") ->  | P17: =IFERROR(IF(VLOOKUP(C17,'Membres-2024'!$A:$F,6,FALSE)>=$H$3,VLOOKUP(C17,'Membres-2024'!$A:$F,6,FALSE),"non inscrit"),IF($C17>0,"non inscrit","")) -> 2024-02-17 | Q17: =IFERROR(IF(COUNTA(AW17:BS17)>0,LARGE(AW17:BS17,1)/6,""),"") ->  | R17: =IFERROR(IF(COUNTA(AW17:BS17)>1,LARGE(AW17:BS17,2)/6,""),"") ->  | S17: =IFERROR(IF(COUNTA(AW17:BS17)>2,LARGE(AW17:BS17,3)/6,""),"") ->  | T17: =IFERROR(IF(COUNTA(AW17:BS17)>3,LARGE(AW17:BS17,4)/6,""),"") ->  | U17: =IF(BT17<>"",BT17,"") ->  | Y17: =IF(IF(AND($J17="non inscrit",Y$6>$H$4),OR($P17<$H$5,$P17<Y$6),OR($J17<$H$5,$J17<Y$6)),IFERROR(IF(VLOOKUP($C17,ASF_ext!$C$12:$K$400,5,FALSE)=$F17,VLOOKUP($C17,ASF_ext!$C$12:$K$400,9,FALSE),""),""),"") ->  | Z17: =IF(IF(AND($J17="non inscrit",Z$6>$H$4),OR($P17<$H$5,$P17<Z$6),OR($J17<$H$5,$J17<Z$6)),IFERROR(IF(VLOOKUP($C17,LG_ext!$C$12:$K$400,5,FALSE)=$F17,VLOOKUP($C17,LG_ext!$C$12:$K$400,9,FALSE),""),""),"") ->  | AA17: =IF(IF(AND($J17="non inscrit",AA$6>$H$4),OR($P17<$H$5,$P17<AA$6),OR($J17<$H$5,$J17<AA$6)),IFERROR(IF(VLOOKUP($C17,Jul_ext!$C$12:$K$400,5,FALSE)=$F17,VLOOKUP($C17,Jul_ext!$C$12:$K$400,9,FALSE),""),""),"") ->  | AB17: =IF(IF(AND($J17="non inscrit",AB$6>$H$4),OR($P17<$H$5,$P17<AB$6),OR($J17<$H$5,$J17<AB$6)),IFERROR(IF(VLOOKUP($C17,CQ_ext!$C$12:$K$400,5,FALSE)=$F17,VLOOKUP($C17,CQ_ext!$C$12:$K$400,9,FALSE),""),""),"") ->  | AC17: =IF(IF(AND($J17="non inscrit",AC$6>$H$4),OR($P17<$H$5,$P17<AC$6),OR($J17<$H$5,$J17<AC$6)),IFERROR(IF(VLOOKUP($C17,NAQ_ext!$C$12:$K$400,5,FALSE)=$F17,VLOOKUP($C17,NAQ_ext!$C$12:$K$400,9,FALSE),""),""),"") -> 268 | AD17: =IF(IF(AND($J17="non inscrit",AD$6>$H$4),OR($P17<$H$5,$P17<AD$6),OR($J17<$H$5,$J17<AD$6)),IFERROR(IF(VLOOKUP($C17,MtL_ext!$C$12:$K$400,5,FALSE)=$F17,VLOOKUP($C17,MtL_ext!$C$12:$K$400,9,FALSE),""),""),"") ->  | AE17: =IF(IF(AND($J17="non inscrit",AE$6>$H$4),OR($P17<$H$5,$P17<AE$6),OR($J17<$H$5,$J17<AE$6)),IFERROR(IF(VLOOKUP($C17,Cant_ext!$C$12:$K$400,5,FALSE)=$F17,VLOOKUP($C17,Cant_ext!$C$12:$K$400,9,FALSE),""),""),"") ->  | AH17: =IF(IF(AND($J17="non inscrit",AH$6>$H$4),OR($P17<$H$5,$P17<AH$6),OR($J17<$H$5,$J17<AH$6)),IFERROR(IF(VLOOKUP($C17,ASF2_ext!$C$12:$K$400,5,FALSE)=$F17,VLOOKUP($C17,ASF2_ext!$C$12:$K$400,9,FALSE),""),""),"") -> 258 | AI17: =IF(IF(AND($J17="non inscrit",AI$6>$H$4),OR($P17<$H$5,$P17<AI$6),OR($J17<$H$5,$J17<AI$6)),IFERROR(IF(VLOOKUP($C17,Ascot_ext!$C$12:$K$400,5,FALSE)=$F17,VLOOKUP($C17,Ascot_ext!$C$12:$K$400,9,FALSE),""),""),"") ->  | AJ17: =IF(IF(AND($J17="non inscrit",AJ$6>$H$4),OR($P17<$H$5,$P17<AJ$6),OR($J17<$H$5,$J17<AJ$6)),IFERROR(IF(VLOOKUP($C17,BBA_ext!$C$12:$K$400,5,FALSE)=$F17,VLOOKUP($C17,BBA_ext!$C$12:$K$400,9,FALSE),""),""),"") ->  | AK17: =IF(IF(AND($J17="non inscrit",AK$6>$H$4),OR($P17<$H$5,$P17<AK$6),OR($J17<$H$5,$J17<AK$6)),IFERROR(IF(VLOOKUP($C17,Tuq1_ext!$C$12:$K$400,5,FALSE)=$F17,VLOOKUP($C17,Tuq1_ext!$C$12:$K$400,9,FALSE),""),""),"") ->  | AL17: =IF(IF(AND($J17="non inscrit",AL$6>$H$4),OR($P17<$H$5,$P17<AL$6),OR($J17<$H$5,$J17<AL$6)),IFERROR(IF(VLOOKUP($C17,Tuq2_ext!$C$12:$K$400,5,FALSE)=$F17,VLOOKUP($C17,Tuq2_ext!$C$12:$K$400,9,FALSE),""),""),"") ->  | AM17: =IF(IF(AND($J17="non inscrit",AM$6>$H$4),OR($P17<$H$5,$P17<AM$6),OR($J17<$H$5,$J17<AM$6)),IFERROR(IF(VLOOKUP($C17,CQ2_ext!$C$12:$K$400,5,FALSE)=$F17,VLOOKUP($C17,CQ2_ext!$C$12:$K$400,9,FALSE),""),""),"") ->  | AN17: =IF(IF(AND($J17="non inscrit",AN$6>$H$4),OR($P17<$H$5,$P17<AN$6),OR($J17<$H$5,$J17<AN$6)),IFERROR(IF(VLOOKUP($C17,MTL2_ext!$C$12:$K$400,5,FALSE)=$F17,VLOOKUP($C17,MTL2_ext!$C$12:$K$400,9,FALSE),""),""),"") ->  | AO17: =IF(IF(AND($J17="non inscrit",AO$6>$H$4),OR($P17<$H$5,$P17<AO$6),OR($J17<$H$5,$J17<AO$6)),IFERROR(IF(VLOOKUP($C17,NO_ext!$C$12:$K$400,5,FALSE)=$F17,VLOOKUP($C17,NO_ext!$C$12:$K$400,9,FALSE),""),""),"") ->  | AP17: =IF(IF(AND($J17="non inscrit",AP$6>$H$4),OR($P17<$H$5,$P17<AP$6),OR($J17<$H$5,$J17<AP$6)),IFERROR(IF(VLOOKUP($C17,VD_ext!$C$12:$K$400,5,FALSE)=$F17,VLOOKUP($C17,VD_ext!$C$12:$K$400,9,FALSE),""),""),"") ->  | AQ17: =IF(IF(AND($J17="non inscrit",AQ$6>$H$4),OR($P17<$H$5,$P17<AQ$6),OR($J17<$H$5,$J17<AQ$6)),IFERROR(IF(VLOOKUP($C17,PT_ext!$C$12:$K$400,5,FALSE)=$F17,VLOOKUP($C17,PT_ext!$C$12:$K$400,9,FALSE),""),""),"") ->  | AR17: =IF(IF(AND($J17="non inscrit",AR$6>$H$4),OR($P17<$H$5,$P17<AR$6),OR($J17<$H$5,$J17<AR$6)),IFERROR(IF(VLOOKUP($C17,Vic_ext!$C$12:$K$400,5,FALSE)=$F17,VLOOKUP($C17,Vic_ext!$C$12:$K$400,9,FALSE),""),""),"") ->  | AS17: =IF(IF(AND($J17="non inscrit",AS$6>$H$4),OR($P17<$H$5,$P17<AS$6),OR($J17<$H$5,$J17<AS$6)),IFERROR(IF(VLOOKUP($C17,Sor_ext!$C$12:$K$400,5,FALSE)=$F17,VLOOKUP($C17,Sor_ext!$C$12:$K$400,9,FALSE),""),""),"") ->  | AU17: =IF(IF(AND($J17="non inscrit",AU$6>$H$4),OR($P17<$H$5,$P17<AU$6),OR($J17<$H$5,$J17<AU$6)),IFERROR(IF(VLOOKUP($C17,PROV_ext!$C$12:$K$400,5,FALSE)=$F17,VLOOKUP($C17,PROV_ext!$C$12:$K$400,9,FALSE),""),""),"") ->  | AW17: =IF(IF(AND($J17="non inscrit",AW$6>$H$4),OR($P17<$H$5,$P17<AQ$6),OR($J17<$H$5,$J17<AQ$6)),IFERROR(IF(VLOOKUP($C17,Coat_int!$C$12:$K$400,5,FALSE)=$F17,VLOOKUP($C17,Coat_int!$C$12:$K$400,9,FALSE),""),""),"") ->  | AX17: =IF(IF(AND($J17="non inscrit",AX$6>$H$4),OR($P17<$H$5,$P17<AR$6),OR($J17<$H$5,$J17<AR$6)),IFERROR(IF(VLOOKUP($C17,LG_int!$C$12:$K$400,5,FALSE)=$F17,VLOOKUP($C17,LG_int!$C$12:$K$400,9,FALSE),""),""),"") ->  | AY17: =IF(IF(AND($J17="non inscrit",AY$6>$H$4),OR($P17<$H$5,$P17<AS$6),OR($J17<$H$5,$J17<AS$6)),IFERROR(IF(VLOOKUP($C17,Roc_int!$C$12:$K$400,5,FALSE)=$F17,VLOOKUP($C17,Roc_int!$C$12:$K$400,9,FALSE),""),""),"") ->  | AZ17: =IF(IF(AND($J17="non inscrit",AZ$6>$H$4),OR($P17<$H$5,$P17<AT$6),OR($J17<$H$5,$J17<AT$6)),IFERROR(IF(VLOOKUP($C17,Qc_int!$C$12:$K$400,5,FALSE)=$F17,VLOOKUP($C17,Qc_int!$C$12:$K$400,9,FALSE),""),""),"") ->  | BA17: =IF(IF(AND($J17="non inscrit",BA$6>$H$4),OR($P17<$H$5,$P17<AU$6),OR($J17<$H$5,$J17<AU$6)),IFERROR(IF(VLOOKUP($C17,Asc_int!$C$12:$K$400,5,FALSE)=$F17,VLOOKUP($C17,Asc_int!$C$12:$K$400,9,FALSE),""),""),"") ->  | BB17: =IF(IF(AND($J17="non inscrit",BB$6>$H$4),OR($P17<$H$5,$P17<AV$6),OR($J17<$H$5,$J17<AV$6)),IFERROR(IF(VLOOKUP($C17,CQ_int!$C$12:$K$400,5,FALSE)=$F17,VLOOKUP($C17,CQ_int!$C$12:$K$400,9,FALSE),""),""),"") ->  | BC17: =IF(IF(AND($J17="non inscrit",BC$6>$H$4),OR($P17<$H$5,$P17<AW$6),OR($J17<$H$5,$J17<AW$6)),IFERROR(IF(VLOOKUP($C17,QC2_int!$C$12:$K$400,5,FALSE)=$F17,VLOOKUP($C17,QC2_int!$C$12:$K$400,9,FALSE),""),""),"") ->  | BD17: =IF(IF(AND($J17="non inscrit",BD$6>$H$4),OR($P17<$H$5,$P17<AX$6),OR($J17<$H$5,$J17<AX$6)),IFERROR(IF(VLOOKUP($C17,Ach_int!$C$12:$K$400,5,FALSE)=$F17,VLOOKUP($C17,Ach_int!$C$12:$K$400,9,FALSE),""),""),"") ->  | BF17: =IF(IF(AND($J17="non inscrit",BF$6>$H$4),OR($P17<$H$5,$P17<AZ$6),OR($J17<$H$5,$J17<AZ$6)),IFERROR(IF(VLOOKUP($C17,Buck_int!$C$12:$K$400,5,FALSE)=$F17,VLOOKUP($C17,Buck_int!$C$12:$K$400,9,FALSE),""),""),"") ->  | BG17: =IF(IF(AND($J17="non inscrit",BG$6>$H$4),OR($P17<$H$5,$P17<BA$6),OR($J17<$H$5,$J17<BA$6)),IFERROR(IF(VLOOKUP($C17,CQC_int!$C$12:$K$400,5,FALSE)=$F17,VLOOKUP($C17,CQC_int!$C$12:$K$400,9,FALSE),""),""),"") ->  | BH17: =IF(IF(AND($J17="non inscrit",BH$6>$H$4),OR($P17<$H$5,$P17<BB$6),OR($J17<$H$5,$J17<BB$6)),IFERROR(IF(VLOOKUP($C17,LG3_int!$C$12:$K$400,5,FALSE)=$F17,VLOOKUP($C17,LG3_int!$C$12:$K$400,9,FALSE),""),""),"") ->  | BI17: =IF(IF(AND($J17="non inscrit",BI$6>$H$4),OR($P17<$H$5,$P17<BC$6),OR($J17<$H$5,$J17<BC$6)),IFERROR(IF(VLOOKUP($C17,LS_int!$C$12:$K$400,5,FALSE)=$F17,VLOOKUP($C17,LS_int!$C$12:$K$400,9,FALSE),""),""),"") ->  | BT17: =IF(IF(AND($J17="non inscrit",BT$6>$H$4),OR($P17<$H$5,$P17<BN$6),OR($J17<$H$5,$J17<BN$6)),IFERROR(IF(VLOOKUP($C17,FI!$C$12:$K$400,5,FALSE)=$F17,VLOOKUP($C17,FI!$C$12:$K$400,9,FALSE),""),""),"") -> 
A18: =A17 -> 1 | B18: =B17+1 -> 7 | C18: 7067 | D18: =IF($C18="","",IF($N$1>$H$4,IFERROR(VLOOKUP($C18,'Membres-2024'!$A:$G,2,FALSE),""),IFERROR(VLOOKUP($C18,'Membres-2023'!$A:$G,2,FALSE),""))) -> GRENIER | E18: =IF($C18="","",IF($N$1>$H$4,IFERROR(VLOOKUP($C18,'Membres-2024'!$A:$G,3,FALSE),""),IFERROR(VLOOKUP($C18,'Membres-2023'!$A:$G,3,FALSE),""))) -> MYLAN | F18: =IF($C18="","",IF($N$1>$H$4,IFERROR(VLOOKUP($C18,'Membres-2024'!$A:$G,7,FALSE),""),IFERROR(VLOOKUP($C18,'Membres-2023'!$A:$G,7,FALSE),""))) -> 1 | G18: =IF($C18="","",IF($N$1>$H$4,IFERROR(VLOOKUP($C18,'Membres-2024'!$A:$G,5,FALSE),""),IFERROR(VLOOKUP($C18,'Membres-2023'!$A:$G,5,FALSE),""))) -> Mont-Laurier (Lynx) | H18: =COUNTIF($Y18:$BT18,">=0") -> 2 | I18: =SUM(K18:O18,Q18:U18) -> 87.5 | J18: =IFERROR(IF(VLOOKUP(C18,'Membres-2023'!$A:$F,6,FALSE)>=$H$3,VLOOKUP(C18,'Membres-2023'!$A:$F,6,FALSE),"non inscrit"),IF($C18>0,"non inscrit","")) -> 2023-02-12 | K18: =IFERROR(IF(COUNTA(Y18:AT18)>0,LARGE(Y18:AT18,1)/6,""),"") -> 44.66666667 | L18: =IFERROR(IF(COUNTA(Y18:AT18)>1,LARGE(Y18:AT18,2)/6,""),"") -> 42.83333333 | M18: =IFERROR(IF(COUNTA(Y18:AT18)>2,LARGE(Y18:AT18,3)/6,""),"") ->  | N18: =IFERROR(IF(COUNTA(Y18:AT18)>3,LARGE(Y18:AT18,4)/6,""),"") ->  | O18: =IF(AU18<>"",AU18,"") ->  | P18: =IFERROR(IF(VLOOKUP(C18,'Membres-2024'!$A:$F,6,FALSE)>=$H$3,VLOOKUP(C18,'Membres-2024'!$A:$F,6,FALSE),"non inscrit"),IF($C18>0,"non inscrit","")) -> 2024-01-21 | Q18: =IFERROR(IF(COUNTA(AW18:BS18)>0,LARGE(AW18:BS18,1)/6,""),"") ->  | R18: =IFERROR(IF(COUNTA(AW18:BS18)>1,LARGE(AW18:BS18,2)/6,""),"") ->  | S18: =IFERROR(IF(COUNTA(AW18:BS18)>2,LARGE(AW18:BS18,3)/6,""),"") ->  | T18: =IFERROR(IF(COUNTA(AW18:BS18)>3,LARGE(AW18:BS18,4)/6,""),"") ->  | U18: =IF(BT18<>"",BT18,"") ->  | Y18: =IF(IF(AND($J18="non inscrit",Y$6>$H$4),OR($P18<$H$5,$P18<Y$6),OR($J18<$H$5,$J18<Y$6)),IFERROR(IF(VLOOKUP($C18,ASF_ext!$C$12:$K$400,5,FALSE)=$F18,VLOOKUP($C18,ASF_ext!$C$12:$K$400,9,FALSE),""),""),"") ->  | Z18: =IF(IF(AND($J18="non inscrit",Z$6>$H$4),OR($P18<$H$5,$P18<Z$6),OR($J18<$H$5,$J18<Z$6)),IFERROR(IF(VLOOKUP($C18,LG_ext!$C$12:$K$400,5,FALSE)=$F18,VLOOKUP($C18,LG_ext!$C$12:$K$400,9,FALSE),""),""),"") ->  | AA18: =IF(IF(AND($J18="non inscrit",AA$6>$H$4),OR($P18<$H$5,$P18<AA$6),OR($J18<$H$5,$J18<AA$6)),IFERROR(IF(VLOOKUP($C18,Jul_ext!$C$12:$K$400,5,FALSE)=$F18,VLOOKUP($C18,Jul_ext!$C$12:$K$400,9,FALSE),""),""),"") ->  | AB18: =IF(IF(AND($J18="non inscrit",AB$6>$H$4),OR($P18<$H$5,$P18<AB$6),OR($J18<$H$5,$J18<AB$6)),IFERROR(IF(VLOOKUP($C18,CQ_ext!$C$12:$K$400,5,FALSE)=$F18,VLOOKUP($C18,CQ_ext!$C$12:$K$400,9,FALSE),""),""),"") ->  | AC18: =IF(IF(AND($J18="non inscrit",AC$6>$H$4),OR($P18<$H$5,$P18<AC$6),OR($J18<$H$5,$J18<AC$6)),IFERROR(IF(VLOOKUP($C18,NAQ_ext!$C$12:$K$400,5,FALSE)=$F18,VLOOKUP($C18,NAQ_ext!$C$12:$K$400,9,FALSE),""),""),"") ->  | AD18: =IF(IF(AND($J18="non inscrit",AD$6>$H$4),OR($P18<$H$5,$P18<AD$6),OR($J18<$H$5,$J18<AD$6)),IFERROR(IF(VLOOKUP($C18,MtL_ext!$C$12:$K$400,5,FALSE)=$F18,VLOOKUP($C18,MtL_ext!$C$12:$K$400,9,FALSE),""),""),"") -> 257 | AE18: =IF(IF(AND($J18="non inscrit",AE$6>$H$4),OR($P18<$H$5,$P18<AE$6),OR($J18<$H$5,$J18<AE$6)),IFERROR(IF(VLOOKUP($C18,Cant_ext!$C$12:$K$400,5,FALSE)=$F18,VLOOKUP($C18,Cant_ext!$C$12:$K$400,9,FALSE),""),""),"") ->  | AH18: =IF(IF(AND($J18="non inscrit",AH$6>$H$4),OR($P18<$H$5,$P18<AH$6),OR($J18<$H$5,$J18<AH$6)),IFERROR(IF(VLOOKUP($C18,ASF2_ext!$C$12:$K$400,5,FALSE)=$F18,VLOOKUP($C18,ASF2_ext!$C$12:$K$400,9,FALSE),""),""),"") ->  | AI18: =IF(IF(AND($J18="non inscrit",AI$6>$H$4),OR($P18<$H$5,$P18<AI$6),OR($J18<$H$5,$J18<AI$6)),IFERROR(IF(VLOOKUP($C18,Ascot_ext!$C$12:$K$400,5,FALSE)=$F18,VLOOKUP($C18,Ascot_ext!$C$12:$K$400,9,FALSE),""),""),"") ->  | AJ18: =IF(IF(AND($J18="non inscrit",AJ$6>$H$4),OR($P18<$H$5,$P18<AJ$6),OR($J18<$H$5,$J18<AJ$6)),IFERROR(IF(VLOOKUP($C18,BBA_ext!$C$12:$K$400,5,FALSE)=$F18,VLOOKUP($C18,BBA_ext!$C$12:$K$400,9,FALSE),""),""),"") ->  | AK18: =IF(IF(AND($J18="non inscrit",AK$6>$H$4),OR($P18<$H$5,$P18<AK$6),OR($J18<$H$5,$J18<AK$6)),IFERROR(IF(VLOOKUP($C18,Tuq1_ext!$C$12:$K$400,5,FALSE)=$F18,VLOOKUP($C18,Tuq1_ext!$C$12:$K$400,9,FALSE),""),""),"") ->  | AL18: =IF(IF(AND($J18="non inscrit",AL$6>$H$4),OR($P18<$H$5,$P18<AL$6),OR($J18<$H$5,$J18<AL$6)),IFERROR(IF(VLOOKUP($C18,Tuq2_ext!$C$12:$K$400,5,FALSE)=$F18,VLOOKUP($C18,Tuq2_ext!$C$12:$K$400,9,FALSE),""),""),"") ->  | AM18: =IF(IF(AND($J18="non inscrit",AM$6>$H$4),OR($P18<$H$5,$P18<AM$6),OR($J18<$H$5,$J18<AM$6)),IFERROR(IF(VLOOKUP($C18,CQ2_ext!$C$12:$K$400,5,FALSE)=$F18,VLOOKUP($C18,CQ2_ext!$C$12:$K$400,9,FALSE),""),""),"") ->  | AN18: =IF(IF(AND($J18="non inscrit",AN$6>$H$4),OR($P18<$H$5,$P18<AN$6),OR($J18<$H$5,$J18<AN$6)),IFERROR(IF(VLOOKUP($C18,MTL2_ext!$C$12:$K$400,5,FALSE)=$F18,VLOOKUP($C18,MTL2_ext!$C$12:$K$400,9,FALSE),""),""),"") -> 268 | AO18: =IF(IF(AND($J18="non inscrit",AO$6>$H$4),OR($P18<$H$5,$P18<AO$6),OR($J18<$H$5,$J18<AO$6)),IFERROR(IF(VLOOKUP($C18,NO_ext!$C$12:$K$400,5,FALSE)=$F18,VLOOKUP($C18,NO_ext!$C$12:$K$400,9,FALSE),""),""),"") ->  | AP18: =IF(IF(AND($J18="non inscrit",AP$6>$H$4),OR($P18<$H$5,$P18<AP$6),OR($J18<$H$5,$J18<AP$6)),IFERROR(IF(VLOOKUP($C18,VD_ext!$C$12:$K$400,5,FALSE)=$F18,VLOOKUP($C18,VD_ext!$C$12:$K$400,9,FALSE),""),""),"") ->  | AQ18: =IF(IF(AND($J18="non inscrit",AQ$6>$H$4),OR($P18<$H$5,$P18<AQ$6),OR($J18<$H$5,$J18<AQ$6)),IFERROR(IF(VLOOKUP($C18,PT_ext!$C$12:$K$400,5,FALSE)=$F18,VLOOKUP($C18,PT_ext!$C$12:$K$400,9,FALSE),""),""),"") ->  | AR18: =IF(IF(AND($J18="non inscrit",AR$6>$H$4),OR($P18<$H$5,$P18<AR$6),OR($J18<$H$5,$J18<AR$6)),IFERROR(IF(VLOOKUP($C18,Vic_ext!$C$12:$K$400,5,FALSE)=$F18,VLOOKUP($C18,Vic_ext!$C$12:$K$400,9,FALSE),""),""),"") ->  | AS18: =IF(IF(AND($J18="non inscrit",AS$6>$H$4),OR($P18<$H$5,$P18<AS$6),OR($J18<$H$5,$J18<AS$6)),IFERROR(IF(VLOOKUP($C18,Sor_ext!$C$12:$K$400,5,FALSE)=$F18,VLOOKUP($C18,Sor_ext!$C$12:$K$400,9,FALSE),""),""),"") ->  | AU18: =IF(IF(AND($J18="non inscrit",AU$6>$H$4),OR($P18<$H$5,$P18<AU$6),OR($J18<$H$5,$J18<AU$6)),IFERROR(IF(VLOOKUP($C18,PROV_ext!$C$12:$K$400,5,FALSE)=$F18,VLOOKUP($C18,PROV_ext!$C$12:$K$400,9,FALSE),""),""),"") ->  | AW18: =IF(IF(AND($J18="non inscrit",AW$6>$H$4),OR($P18<$H$5,$P18<AQ$6),OR($J18<$H$5,$J18<AQ$6)),IFERROR(IF(VLOOKUP($C18,Coat_int!$C$12:$K$400,5,FALSE)=$F18,VLOOKUP($C18,Coat_int!$C$12:$K$400,9,FALSE),""),""),"") ->  | AX18: =IF(IF(AND($J18="non inscrit",AX$6>$H$4),OR($P18<$H$5,$P18<AR$6),OR($J18<$H$5,$J18<AR$6)),IFERROR(IF(VLOOKUP($C18,LG_int!$C$12:$K$400,5,FALSE)=$F18,VLOOKUP($C18,LG_int!$C$12:$K$400,9,FALSE),""),""),"") ->  | AY18: =IF(IF(AND($J18="non inscrit",AY$6>$H$4),OR($P18<$H$5,$P18<AS$6),OR($J18<$H$5,$J18<AS$6)),IFERROR(IF(VLOOKUP($C18,Roc_int!$C$12:$K$400,5,FALSE)=$F18,VLOOKUP($C18,Roc_int!$C$12:$K$400,9,FALSE),""),""),"") ->  | AZ18: =IF(IF(AND($J18="non inscrit",AZ$6>$H$4),OR($P18<$H$5,$P18<AT$6),OR($J18<$H$5,$J18<AT$6)),IFERROR(IF(VLOOKUP($C18,Qc_int!$C$12:$K$400,5,FALSE)=$F18,VLOOKUP($C18,Qc_int!$C$12:$K$400,9,FALSE),""),""),"") ->  | BA18: =IF(IF(AND($J18="non inscrit",BA$6>$H$4),OR($P18<$H$5,$P18<AU$6),OR($J18<$H$5,$J18<AU$6)),IFERROR(IF(VLOOKUP($C18,Asc_int!$C$12:$K$400,5,FALSE)=$F18,VLOOKUP($C18,Asc_int!$C$12:$K$400,9,FALSE),""),""),"") ->  | BB18: =IF(IF(AND($J18="non inscrit",BB$6>$H$4),OR($P18<$H$5,$P18<AV$6),OR($J18<$H$5,$J18<AV$6)),IFERROR(IF(VLOOKUP($C18,CQ_int!$C$12:$K$400,5,FALSE)=$F18,VLOOKUP($C18,CQ_int!$C$12:$K$400,9,FALSE),""),""),"") ->  | BC18: =IF(IF(AND($J18="non inscrit",BC$6>$H$4),OR($P18<$H$5,$P18<AW$6),OR($J18<$H$5,$J18<AW$6)),IFERROR(IF(VLOOKUP($C18,QC2_int!$C$12:$K$400,5,FALSE)=$F18,VLOOKUP($C18,QC2_int!$C$12:$K$400,9,FALSE),""),""),"") ->  | BD18: =IF(IF(AND($J18="non inscrit",BD$6>$H$4),OR($P18<$H$5,$P18<AX$6),OR($J18<$H$5,$J18<AX$6)),IFERROR(IF(VLOOKUP($C18,Ach_int!$C$12:$K$400,5,FALSE)=$F18,VLOOKUP($C18,Ach_int!$C$12:$K$400,9,FALSE),""),""),"") ->  | BF18: =IF(IF(AND($J18="non inscrit",BF$6>$H$4),OR($P18<$H$5,$P18<AZ$6),OR($J18<$H$5,$J18<AZ$6)),IFERROR(IF(VLOOKUP($C18,Buck_int!$C$12:$K$400,5,FALSE)=$F18,VLOOKUP($C18,Buck_int!$C$12:$K$400,9,FALSE),""),""),"") ->  | BG18: =IF(IF(AND($J18="non inscrit",BG$6>$H$4),OR($P18<$H$5,$P18<BA$6),OR($J18<$H$5,$J18<BA$6)),IFERROR(IF(VLOOKUP($C18,CQC_int!$C$12:$K$400,5,FALSE)=$F18,VLOOKUP($C18,CQC_int!$C$12:$K$400,9,FALSE),""),""),"") ->  | BH18: =IF(IF(AND($J18="non inscrit",BH$6>$H$4),OR($P18<$H$5,$P18<BB$6),OR($J18<$H$5,$J18<BB$6)),IFERROR(IF(VLOOKUP($C18,LG3_int!$C$12:$K$400,5,FALSE)=$F18,VLOOKUP($C18,LG3_int!$C$12:$K$400,9,FALSE),""),""),"") ->  | BI18: =IF(IF(AND($J18="non inscrit",BI$6>$H$4),OR($P18<$H$5,$P18<BC$6),OR($J18<$H$5,$J18<BC$6)),IFERROR(IF(VLOOKUP($C18,LS_int!$C$12:$K$400,5,FALSE)=$F18,VLOOKUP($C18,LS_int!$C$12:$K$400,9,FALSE),""),""),"") ->  | BT18: =IF(IF(AND($J18="non inscrit",BT$6>$H$4),OR($P18<$H$5,$P18<BN$6),OR($J18<$H$5,$J18<BN$6)),IFERROR(IF(VLOOKUP($C18,FI!$C$12:$K$400,5,FALSE)=$F18,VLOOKUP($C18,FI!$C$12:$K$400,9,FALSE),""),""),"") -> 
A19: =A18 -> 1 | B19: =B18+1 -> 8 | C19: 3853 | D19: =IF($C19="","",IF($N$1>$H$4,IFERROR(VLOOKUP($C19,'Membres-2024'!$A:$G,2,FALSE),""),IFERROR(VLOOKUP($C19,'Membres-2023'!$A:$G,2,FALSE),""))) -> Berthiaume | E19: =IF($C19="","",IF($N$1>$H$4,IFERROR(VLOOKUP($C19,'Membres-2024'!$A:$G,3,FALSE),""),IFERROR(VLOOKUP($C19,'Membres-2023'!$A:$G,3,FALSE),""))) -> Manuel | F19: =IF($C19="","",IF($N$1>$H$4,IFERROR(VLOOKUP($C19,'Membres-2024'!$A:$G,7,FALSE),""),IFERROR(VLOOKUP($C19,'Membres-2023'!$A:$G,7,FALSE),""))) -> 1 | G19: =IF($C19="","",IF($N$1>$H$4,IFERROR(VLOOKUP($C19,'Membres-2024'!$A:$G,5,FALSE),""),IFERROR(VLOOKUP($C19,'Membres-2023'!$A:$G,5,FALSE),""))) -> Mont-Laurier (Lynx) | H19: =COUNTIF($Y19:$BT19,">=0") -> 2 | I19: =SUM(K19:O19,Q19:U19) -> 74.66666667 | J19: =IFERROR(IF(VLOOKUP(C19,'Membres-2023'!$A:$F,6,FALSE)>=$H$3,VLOOKUP(C19,'Membres-2023'!$A:$F,6,FALSE),"non inscrit"),IF($C19>0,"non inscrit","")) -> 2023-01-23 | K19: =IFERROR(IF(COUNTA(Y19:AT19)>0,LARGE(Y19:AT19,1)/6,""),"") -> 42 | L19: =IFERROR(IF(COUNTA(Y19:AT19)>1,LARGE(Y19:AT19,2)/6,""),"") -> 32.66666667 | M19: =IFERROR(IF(COUNTA(Y19:AT19)>2,LARGE(Y19:AT19,3)/6,""),"") ->  | N19: =IFERROR(IF(COUNTA(Y19:AT19)>3,LARGE(Y19:AT19,4)/6,""),"") ->  | O19: =IF(AU19<>"",AU19,"") ->  | P19: =IFERROR(IF(VLOOKUP(C19,'Membres-2024'!$A:$F,6,FALSE)>=$H$3,VLOOKUP(C19,'Membres-2024'!$A:$F,6,FALSE),"non inscrit"),IF($C19>0,"non inscrit","")) -> 2024-01-08 | Q19: =IFERROR(IF(COUNTA(AW19:BS19)>0,LARGE(AW19:BS19,1)/6,""),"") ->  | R19: =IFERROR(IF(COUNTA(AW19:BS19)>1,LARGE(AW19:BS19,2)/6,""),"") ->  | S19: =IFERROR(IF(COUNTA(AW19:BS19)>2,LARGE(AW19:BS19,3)/6,""),"") ->  | T19: =IFERROR(IF(COUNTA(AW19:BS19)>3,LARGE(AW19:BS19,4)/6,""),"") ->  | U19: =IF(BT19<>"",BT19,"") ->  | Y19: =IF(IF(AND($J19="non inscrit",Y$6>$H$4),OR($P19<$H$5,$P19<Y$6),OR($J19<$H$5,$J19<Y$6)),IFERROR(IF(VLOOKUP($C19,ASF_ext!$C$12:$K$400,5,FALSE)=$F19,VLOOKUP($C19,ASF_ext!$C$12:$K$400,9,FALSE),""),""),"") ->  | Z19: =IF(IF(AND($J19="non inscrit",Z$6>$H$4),OR($P19<$H$5,$P19<Z$6),OR($J19<$H$5,$J19<Z$6)),IFERROR(IF(VLOOKUP($C19,LG_ext!$C$12:$K$400,5,FALSE)=$F19,VLOOKUP($C19,LG_ext!$C$12:$K$400,9,FALSE),""),""),"") ->  | AA19: =IF(IF(AND($J19="non inscrit",AA$6>$H$4),OR($P19<$H$5,$P19<AA$6),OR($J19<$H$5,$J19<AA$6)),IFERROR(IF(VLOOKUP($C19,Jul_ext!$C$12:$K$400,5,FALSE)=$F19,VLOOKUP($C19,Jul_ext!$C$12:$K$400,9,FALSE),""),""),"") ->  | AB19: =IF(IF(AND($J19="non inscrit",AB$6>$H$4),OR($P19<$H$5,$P19<AB$6),OR($J19<$H$5,$J19<AB$6)),IFERROR(IF(VLOOKUP($C19,CQ_ext!$C$12:$K$400,5,FALSE)=$F19,VLOOKUP($C19,CQ_ext!$C$12:$K$400,9,FALSE),""),""),"") ->  | AC19: =IF(IF(AND($J19="non inscrit",AC$6>$H$4),OR($P19<$H$5,$P19<AC$6),OR($J19<$H$5,$J19<AC$6)),IFERROR(IF(VLOOKUP($C19,NAQ_ext!$C$12:$K$400,5,FALSE)=$F19,VLOOKUP($C19,NAQ_ext!$C$12:$K$400,9,FALSE),""),""),"") ->  | AD19: =IF(IF(AND($J19="non inscrit",AD$6>$H$4),OR($P19<$H$5,$P19<AD$6),OR($J19<$H$5,$J19<AD$6)),IFERROR(IF(VLOOKUP($C19,MtL_ext!$C$12:$K$400,5,FALSE)=$F19,VLOOKUP($C19,MtL_ext!$C$12:$K$400,9,FALSE),""),""),"") -> 252 | AE19: =IF(IF(AND($J19="non inscrit",AE$6>$H$4),OR($P19<$H$5,$P19<AE$6),OR($J19<$H$5,$J19<AE$6)),IFERROR(IF(VLOOKUP($C19,Cant_ext!$C$12:$K$400,5,FALSE)=$F19,VLOOKUP($C19,Cant_ext!$C$12:$K$400,9,FALSE),""),""),"") ->  | AH19: =IF(IF(AND($J19="non inscrit",AH$6>$H$4),OR($P19<$H$5,$P19<AH$6),OR($J19<$H$5,$J19<AH$6)),IFERROR(IF(VLOOKUP($C19,ASF2_ext!$C$12:$K$400,5,FALSE)=$F19,VLOOKUP($C19,ASF2_ext!$C$12:$K$400,9,FALSE),""),""),"") ->  | AI19: =IF(IF(AND($J19="non inscrit",AI$6>$H$4),OR($P19<$H$5,$P19<AI$6),OR($J19<$H$5,$J19<AI$6)),IFERROR(IF(VLOOKUP($C19,Ascot_ext!$C$12:$K$400,5,FALSE)=$F19,VLOOKUP($C19,Ascot_ext!$C$12:$K$400,9,FALSE),""),""),"") ->  | AJ19: =IF(IF(AND($J19="non inscrit",AJ$6>$H$4),OR($P19<$H$5,$P19<AJ$6),OR($J19<$H$5,$J19<AJ$6)),IFERROR(IF(VLOOKUP($C19,BBA_ext!$C$12:$K$400,5,FALSE)=$F19,VLOOKUP($C19,BBA_ext!$C$12:$K$400,9,FALSE),""),""),"") ->  | AK19: =IF(IF(AND($J19="non inscrit",AK$6>$H$4),OR($P19<$H$5,$P19<AK$6),OR($J19<$H$5,$J19<AK$6)),IFERROR(IF(VLOOKUP($C19,Tuq1_ext!$C$12:$K$400,5,FALSE)=$F19,VLOOKUP($C19,Tuq1_ext!$C$12:$K$400,9,FALSE),""),""),"") ->  | AL19: =IF(IF(AND($J19="non inscrit",AL$6>$H$4),OR($P19<$H$5,$P19<AL$6),OR($J19<$H$5,$J19<AL$6)),IFERROR(IF(VLOOKUP($C19,Tuq2_ext!$C$12:$K$400,5,FALSE)=$F19,VLOOKUP($C19,Tuq2_ext!$C$12:$K$400,9,FALSE),""),""),"") ->  | AM19: =IF(IF(AND($J19="non inscrit",AM$6>$H$4),OR($P19<$H$5,$P19<AM$6),OR($J19<$H$5,$J19<AM$6)),IFERROR(IF(VLOOKUP($C19,CQ2_ext!$C$12:$K$400,5,FALSE)=$F19,VLOOKUP($C19,CQ2_ext!$C$12:$K$400,9,FALSE),""),""),"") ->  | AN19: =IF(IF(AND($J19="non inscrit",AN$6>$H$4),OR($P19<$H$5,$P19<AN$6),OR($J19<$H$5,$J19<AN$6)),IFERROR(IF(VLOOKUP($C19,MTL2_ext!$C$12:$K$400,5,FALSE)=$F19,VLOOKUP($C19,MTL2_ext!$C$12:$K$400,9,FALSE),""),""),"") -> 196 | AO19: =IF(IF(AND($J19="non inscrit",AO$6>$H$4),OR($P19<$H$5,$P19<AO$6),OR($J19<$H$5,$J19<AO$6)),IFERROR(IF(VLOOKUP($C19,NO_ext!$C$12:$K$400,5,FALSE)=$F19,VLOOKUP($C19,NO_ext!$C$12:$K$400,9,FALSE),""),""),"") ->  | AP19: =IF(IF(AND($J19="non inscrit",AP$6>$H$4),OR($P19<$H$5,$P19<AP$6),OR($J19<$H$5,$J19<AP$6)),IFERROR(IF(VLOOKUP($C19,VD_ext!$C$12:$K$400,5,FALSE)=$F19,VLOOKUP($C19,VD_ext!$C$12:$K$400,9,FALSE),""),""),"") ->  | AQ19: =IF(IF(AND($J19="non inscrit",AQ$6>$H$4),OR($P19<$H$5,$P19<AQ$6),OR($J19<$H$5,$J19<AQ$6)),IFERROR(IF(VLOOKUP($C19,PT_ext!$C$12:$K$400,5,FALSE)=$F19,VLOOKUP($C19,PT_ext!$C$12:$K$400,9,FALSE),""),""),"") ->  | AR19: =IF(IF(AND($J19="non inscrit",AR$6>$H$4),OR($P19<$H$5,$P19<AR$6),OR($J19<$H$5,$J19<AR$6)),IFERROR(IF(VLOOKUP($C19,Vic_ext!$C$12:$K$400,5,FALSE)=$F19,VLOOKUP($C19,Vic_ext!$C$12:$K$400,9,FALSE),""),""),"") ->  | AS19: =IF(IF(AND($J19="non inscrit",AS$6>$H$4),OR($P19<$H$5,$P19<AS$6),OR($J19<$H$5,$J19<AS$6)),IFERROR(IF(VLOOKUP($C19,Sor_ext!$C$12:$K$400,5,FALSE)=$F19,VLOOKUP($C19,Sor_ext!$C$12:$K$400,9,FALSE),""),""),"") ->  | AU19: =IF(IF(AND($J19="non inscrit",AU$6>$H$4),OR($P19<$H$5,$P19<AU$6),OR($J19<$H$5,$J19<AU$6)),IFERROR(IF(VLOOKUP($C19,PROV_ext!$C$12:$K$400,5,FALSE)=$F19,VLOOKUP($C19,PROV_ext!$C$12:$K$400,9,FALSE),""),""),"") ->  | AW19: =IF(IF(AND($J19="non inscrit",AW$6>$H$4),OR($P19<$H$5,$P19<AQ$6),OR($J19<$H$5,$J19<AQ$6)),IFERROR(IF(VLOOKUP($C19,Coat_int!$C$12:$K$400,5,FALSE)=$F19,VLOOKUP($C19,Coat_int!$C$12:$K$400,9,FALSE),""),""),"") ->  | AX19: =IF(IF(AND($J19="non inscrit",AX$6>$H$4),OR($P19<$H$5,$P19<AR$6),OR($J19<$H$5,$J19<AR$6)),IFERROR(IF(VLOOKUP($C19,LG_int!$C$12:$K$400,5,FALSE)=$F19,VLOOKUP($C19,LG_int!$C$12:$K$400,9,FALSE),""),""),"") ->  | AY19: =IF(IF(AND($J19="non inscrit",AY$6>$H$4),OR($P19<$H$5,$P19<AS$6),OR($J19<$H$5,$J19<AS$6)),IFERROR(IF(VLOOKUP($C19,Roc_int!$C$12:$K$400,5,FALSE)=$F19,VLOOKUP($C19,Roc_int!$C$12:$K$400,9,FALSE),""),""),"") ->  | AZ19: =IF(IF(AND($J19="non inscrit",AZ$6>$H$4),OR($P19<$H$5,$P19<AT$6),OR($J19<$H$5,$J19<AT$6)),IFERROR(IF(VLOOKUP($C19,Qc_int!$C$12:$K$400,5,FALSE)=$F19,VLOOKUP($C19,Qc_int!$C$12:$K$400,9,FALSE),""),""),"") ->  | BA19: =IF(IF(AND($J19="non inscrit",BA$6>$H$4),OR($P19<$H$5,$P19<AU$6),OR($J19<$H$5,$J19<AU$6)),IFERROR(IF(VLOOKUP($C19,Asc_int!$C$12:$K$400,5,FALSE)=$F19,VLOOKUP($C19,Asc_int!$C$12:$K$400,9,FALSE),""),""),"") ->  | BB19: =IF(IF(AND($J19="non inscrit",BB$6>$H$4),OR($P19<$H$5,$P19<AV$6),OR($J19<$H$5,$J19<AV$6)),IFERROR(IF(VLOOKUP($C19,CQ_int!$C$12:$K$400,5,FALSE)=$F19,VLOOKUP($C19,CQ_int!$C$12:$K$400,9,FALSE),""),""),"") ->  | BC19: =IF(IF(AND($J19="non inscrit",BC$6>$H$4),OR($P19<$H$5,$P19<AW$6),OR($J19<$H$5,$J19<AW$6)),IFERROR(IF(VLOOKUP($C19,QC2_int!$C$12:$K$400,5,FALSE)=$F19,VLOOKUP($C19,QC2_int!$C$12:$K$400,9,FALSE),""),""),"") ->  | BD19: =IF(IF(AND($J19="non inscrit",BD$6>$H$4),OR($P19<$H$5,$P19<AX$6),OR($J19<$H$5,$J19<AX$6)),IFERROR(IF(VLOOKUP($C19,Ach_int!$C$12:$K$400,5,FALSE)=$F19,VLOOKUP($C19,Ach_int!$C$12:$K$400,9,FALSE),""),""),"") ->  | BF19: =IF(IF(AND($J19="non inscrit",BF$6>$H$4),OR($P19<$H$5,$P19<AZ$6),OR($J19<$H$5,$J19<AZ$6)),IFERROR(IF(VLOOKUP($C19,Buck_int!$C$12:$K$400,5,FALSE)=$F19,VLOOKUP($C19,Buck_int!$C$12:$K$400,9,FALSE),""),""),"") ->  | BG19: =IF(IF(AND($J19="non inscrit",BG$6>$H$4),OR($P19<$H$5,$P19<BA$6),OR($J19<$H$5,$J19<BA$6)),IFERROR(IF(VLOOKUP($C19,CQC_int!$C$12:$K$400,5,FALSE)=$F19,VLOOKUP($C19,CQC_int!$C$12:$K$400,9,FALSE),""),""),"") ->  | BH19: =IF(IF(AND($J19="non inscrit",BH$6>$H$4),OR($P19<$H$5,$P19<BB$6),OR($J19<$H$5,$J19<BB$6)),IFERROR(IF(VLOOKUP($C19,LG3_int!$C$12:$K$400,5,FALSE)=$F19,VLOOKUP($C19,LG3_int!$C$12:$K$400,9,FALSE),""),""),"") ->  | BI19: =IF(IF(AND($J19="non inscrit",BI$6>$H$4),OR($P19<$H$5,$P19<BC$6),OR($J19<$H$5,$J19<BC$6)),IFERROR(IF(VLOOKUP($C19,LS_int!$C$12:$K$400,5,FALSE)=$F19,VLOOKUP($C19,LS_int!$C$12:$K$400,9,FALSE),""),""),"") ->  | BT19: =IF(IF(AND($J19="non inscrit",BT$6>$H$4),OR($P19<$H$5,$P19<BN$6),OR($J19<$H$5,$J19<BN$6)),IFERROR(IF(VLOOKUP($C19,FI!$C$12:$K$400,5,FALSE)=$F19,VLOOKUP($C19,FI!$C$12:$K$400,9,FALSE),""),""),"") -> 
A20: =A19 -> 1 | B20: =B19+1 -> 9 | C20: 7068 | D20: =IF($C20="","",IF($N$1>$H$4,IFERROR(VLOOKUP($C20,'Membres-2024'!$A:$G,2,FALSE),""),IFERROR(VLOOKUP($C20,'Membres-2023'!$A:$G,2,FALSE),""))) -> GRENIER | E20: =IF($C20="","",IF($N$1>$H$4,IFERROR(VLOOKUP($C20,'Membres-2024'!$A:$G,3,FALSE),""),IFERROR(VLOOKUP($C20,'Membres-2023'!$A:$G,3,FALSE),""))) -> MALIX | F20: =IF($C20="","",IF($N$1>$H$4,IFERROR(VLOOKUP($C20,'Membres-2024'!$A:$G,7,FALSE),""),IFERROR(VLOOKUP($C20,'Membres-2023'!$A:$G,7,FALSE),""))) -> 1 | G20: =IF($C20="","",IF($N$1>$H$4,IFERROR(VLOOKUP($C20,'Membres-2024'!$A:$G,5,FALSE),""),IFERROR(VLOOKUP($C20,'Membres-2023'!$A:$G,5,FALSE),""))) -> Mont-Laurier (Lynx) | H20: =COUNTIF($Y20:$BT20,">=0") -> 2 | I20: =SUM(K20:O20,Q20:U20) -> 49 | J20: =IFERROR(IF(VLOOKUP(C20,'Membres-2023'!$A:$F,6,FALSE)>=$H$3,VLOOKUP(C20,'Membres-2023'!$A:$F,6,FALSE),"non inscrit"),IF($C20>0,"non inscrit","")) -> 2023-02-12 | K20: =IFERROR(IF(COUNTA(Y20:AT20)>0,LARGE(Y20:AT20,1)/6,""),"") -> 26 | L20: =IFERROR(IF(COUNTA(Y20:AT20)>1,LARGE(Y20:AT20,2)/6,""),"") -> 23 | M20: =IFERROR(IF(COUNTA(Y20:AT20)>2,LARGE(Y20:AT20,3)/6,""),"") ->  | N20: =IFERROR(IF(COUNTA(Y20:AT20)>3,LARGE(Y20:AT20,4)/6,""),"") ->  | O20: =IF(AU20<>"",AU20,"") ->  | P20: =IFERROR(IF(VLOOKUP(C20,'Membres-2024'!$A:$F,6,FALSE)>=$H$3,VLOOKUP(C20,'Membres-2024'!$A:$F,6,FALSE),"non inscrit"),IF($C20>0,"non inscrit","")) -> 2024-01-21 | Q20: =IFERROR(IF(COUNTA(AW20:BS20)>0,LARGE(AW20:BS20,1)/6,""),"") ->  | R20: =IFERROR(IF(COUNTA(AW20:BS20)>1,LARGE(AW20:BS20,2)/6,""),"") ->  | S20: =IFERROR(IF(COUNTA(AW20:BS20)>2,LARGE(AW20:BS20,3)/6,""),"") ->  | T20: =IFERROR(IF(COUNTA(AW20:BS20)>3,LARGE(AW20:BS20,4)/6,""),"") ->  | U20: =IF(BT20<>"",BT20,"") ->  | Y20: =IF(IF(AND($J20="non inscrit",Y$6>$H$4),OR($P20<$H$5,$P20<Y$6),OR($J20<$H$5,$J20<Y$6)),IFERROR(IF(VLOOKUP($C20,ASF_ext!$C$12:$K$400,5,FALSE)=$F20,VLOOKUP($C20,ASF_ext!$C$12:$K$400,9,FALSE),""),""),"") ->  | Z20: =IF(IF(AND($J20="non inscrit",Z$6>$H$4),OR($P20<$H$5,$P20<Z$6),OR($J20<$H$5,$J20<Z$6)),IFERROR(IF(VLOOKUP($C20,LG_ext!$C$12:$K$400,5,FALSE)=$F20,VLOOKUP($C20,LG_ext!$C$12:$K$400,9,FALSE),""),""),"") ->  | AA20: =IF(IF(AND($J20="non inscrit",AA$6>$H$4),OR($P20<$H$5,$P20<AA$6),OR($J20<$H$5,$J20<AA$6)),IFERROR(IF(VLOOKUP($C20,Jul_ext!$C$12:$K$400,5,FALSE)=$F20,VLOOKUP($C20,Jul_ext!$C$12:$K$400,9,FALSE),""),""),"") ->  | AB20: =IF(IF(AND($J20="non inscrit",AB$6>$H$4),OR($P20<$H$5,$P20<AB$6),OR($J20<$H$5,$J20<AB$6)),IFERROR(IF(VLOOKUP($C20,CQ_ext!$C$12:$K$400,5,FALSE)=$F20,VLOOKUP($C20,CQ_ext!$C$12:$K$400,9,FALSE),""),""),"") ->  | AC20: =IF(IF(AND($J20="non inscrit",AC$6>$H$4),OR($P20<$H$5,$P20<AC$6),OR($J20<$H$5,$J20<AC$6)),IFERROR(IF(VLOOKUP($C20,NAQ_ext!$C$12:$K$400,5,FALSE)=$F20,VLOOKUP($C20,NAQ_ext!$C$12:$K$400,9,FALSE),""),""),"") ->  | AD20: =IF(IF(AND($J20="non inscrit",AD$6>$H$4),OR($P20<$H$5,$P20<AD$6),OR($J20<$H$5,$J20<AD$6)),IFERROR(IF(VLOOKUP($C20,MtL_ext!$C$12:$K$400,5,FALSE)=$F20,VLOOKUP($C20,MtL_ext!$C$12:$K$400,9,FALSE),""),""),"") -> 156 | AE20: =IF(IF(AND($J20="non inscrit",AE$6>$H$4),OR($P20<$H$5,$P20<AE$6),OR($J20<$H$5,$J20<AE$6)),IFERROR(IF(VLOOKUP($C20,Cant_ext!$C$12:$K$400,5,FALSE)=$F20,VLOOKUP($C20,Cant_ext!$C$12:$K$400,9,FALSE),""),""),"") ->  | AH20: =IF(IF(AND($J20="non inscrit",AH$6>$H$4),OR($P20<$H$5,$P20<AH$6),OR($J20<$H$5,$J20<AH$6)),IFERROR(IF(VLOOKUP($C20,ASF2_ext!$C$12:$K$400,5,FALSE)=$F20,VLOOKUP($C20,ASF2_ext!$C$12:$K$400,9,FALSE),""),""),"") ->  | AI20: =IF(IF(AND($J20="non inscrit",AI$6>$H$4),OR($P20<$H$5,$P20<AI$6),OR($J20<$H$5,$J20<AI$6)),IFERROR(IF(VLOOKUP($C20,Ascot_ext!$C$12:$K$400,5,FALSE)=$F20,VLOOKUP($C20,Ascot_ext!$C$12:$K$400,9,FALSE),""),""),"") ->  | AJ20: =IF(IF(AND($J20="non inscrit",AJ$6>$H$4),OR($P20<$H$5,$P20<AJ$6),OR($J20<$H$5,$J20<AJ$6)),IFERROR(IF(VLOOKUP($C20,BBA_ext!$C$12:$K$400,5,FALSE)=$F20,VLOOKUP($C20,BBA_ext!$C$12:$K$400,9,FALSE),""),""),"") ->  | AK20: =IF(IF(AND($J20="non inscrit",AK$6>$H$4),OR($P20<$H$5,$P20<AK$6),OR($J20<$H$5,$J20<AK$6)),IFERROR(IF(VLOOKUP($C20,Tuq1_ext!$C$12:$K$400,5,FALSE)=$F20,VLOOKUP($C20,Tuq1_ext!$C$12:$K$400,9,FALSE),""),""),"") ->  | AL20: =IF(IF(AND($J20="non inscrit",AL$6>$H$4),OR($P20<$H$5,$P20<AL$6),OR($J20<$H$5,$J20<AL$6)),IFERROR(IF(VLOOKUP($C20,Tuq2_ext!$C$12:$K$400,5,FALSE)=$F20,VLOOKUP($C20,Tuq2_ext!$C$12:$K$400,9,FALSE),""),""),"") ->  | AM20: =IF(IF(AND($J20="non inscrit",AM$6>$H$4),OR($P20<$H$5,$P20<AM$6),OR($J20<$H$5,$J20<AM$6)),IFERROR(IF(VLOOKUP($C20,CQ2_ext!$C$12:$K$400,5,FALSE)=$F20,VLOOKUP($C20,CQ2_ext!$C$12:$K$400,9,FALSE),""),""),"") ->  | AN20: =IF(IF(AND($J20="non inscrit",AN$6>$H$4),OR($P20<$H$5,$P20<AN$6),OR($J20<$H$5,$J20<AN$6)),IFERROR(IF(VLOOKUP($C20,MTL2_ext!$C$12:$K$400,5,FALSE)=$F20,VLOOKUP($C20,MTL2_ext!$C$12:$K$400,9,FALSE),""),""),"") -> 138 | AO20: =IF(IF(AND($J20="non inscrit",AO$6>$H$4),OR($P20<$H$5,$P20<AO$6),OR($J20<$H$5,$J20<AO$6)),IFERROR(IF(VLOOKUP($C20,NO_ext!$C$12:$K$400,5,FALSE)=$F20,VLOOKUP($C20,NO_ext!$C$12:$K$400,9,FALSE),""),""),"") ->  | AP20: =IF(IF(AND($J20="non inscrit",AP$6>$H$4),OR($P20<$H$5,$P20<AP$6),OR($J20<$H$5,$J20<AP$6)),IFERROR(IF(VLOOKUP($C20,VD_ext!$C$12:$K$400,5,FALSE)=$F20,VLOOKUP($C20,VD_ext!$C$12:$K$400,9,FALSE),""),""),"") ->  | AQ20: =IF(IF(AND($J20="non inscrit",AQ$6>$H$4),OR($P20<$H$5,$P20<AQ$6),OR($J20<$H$5,$J20<AQ$6)),IFERROR(IF(VLOOKUP($C20,PT_ext!$C$12:$K$400,5,FALSE)=$F20,VLOOKUP($C20,PT_ext!$C$12:$K$400,9,FALSE),""),""),"") ->  | AR20: =IF(IF(AND($J20="non inscrit",AR$6>$H$4),OR($P20<$H$5,$P20<AR$6),OR($J20<$H$5,$J20<AR$6)),IFERROR(IF(VLOOKUP($C20,Vic_ext!$C$12:$K$400,5,FALSE)=$F20,VLOOKUP($C20,Vic_ext!$C$12:$K$400,9,FALSE),""),""),"") ->  | AS20: =IF(IF(AND($J20="non inscrit",AS$6>$H$4),OR($P20<$H$5,$P20<AS$6),OR($J20<$H$5,$J20<AS$6)),IFERROR(IF(VLOOKUP($C20,Sor_ext!$C$12:$K$400,5,FALSE)=$F20,VLOOKUP($C20,Sor_ext!$C$12:$K$400,9,FALSE),""),""),"") ->  | AU20: =IF(IF(AND($J20="non inscrit",AU$6>$H$4),OR($P20<$H$5,$P20<AU$6),OR($J20<$H$5,$J20<AU$6)),IFERROR(IF(VLOOKUP($C20,PROV_ext!$C$12:$K$400,5,FALSE)=$F20,VLOOKUP($C20,PROV_ext!$C$12:$K$400,9,FALSE),""),""),"") ->  | AW20: =IF(IF(AND($J20="non inscrit",AW$6>$H$4),OR($P20<$H$5,$P20<AQ$6),OR($J20<$H$5,$J20<AQ$6)),IFERROR(IF(VLOOKUP($C20,Coat_int!$C$12:$K$400,5,FALSE)=$F20,VLOOKUP($C20,Coat_int!$C$12:$K$400,9,FALSE),""),""),"") ->  | AX20: =IF(IF(AND($J20="non inscrit",AX$6>$H$4),OR($P20<$H$5,$P20<AR$6),OR($J20<$H$5,$J20<AR$6)),IFERROR(IF(VLOOKUP($C20,LG_int!$C$12:$K$400,5,FALSE)=$F20,VLOOKUP($C20,LG_int!$C$12:$K$400,9,FALSE),""),""),"") ->  | AY20: =IF(IF(AND($J20="non inscrit",AY$6>$H$4),OR($P20<$H$5,$P20<AS$6),OR($J20<$H$5,$J20<AS$6)),IFERROR(IF(VLOOKUP($C20,Roc_int!$C$12:$K$400,5,FALSE)=$F20,VLOOKUP($C20,Roc_int!$C$12:$K$400,9,FALSE),""),""),"") ->  | AZ20: =IF(IF(AND($J20="non inscrit",AZ$6>$H$4),OR($P20<$H$5,$P20<AT$6),OR($J20<$H$5,$J20<AT$6)),IFERROR(IF(VLOOKUP($C20,Qc_int!$C$12:$K$400,5,FALSE)=$F20,VLOOKUP($C20,Qc_int!$C$12:$K$400,9,FALSE),""),""),"") ->  | BA20: =IF(IF(AND($J20="non inscrit",BA$6>$H$4),OR($P20<$H$5,$P20<AU$6),OR($J20<$H$5,$J20<AU$6)),IFERROR(IF(VLOOKUP($C20,Asc_int!$C$12:$K$400,5,FALSE)=$F20,VLOOKUP($C20,Asc_int!$C$12:$K$400,9,FALSE),""),""),"") ->  | BB20: =IF(IF(AND($J20="non inscrit",BB$6>$H$4),OR($P20<$H$5,$P20<AV$6),OR($J20<$H$5,$J20<AV$6)),IFERROR(IF(VLOOKUP($C20,CQ_int!$C$12:$K$400,5,FALSE)=$F20,VLOOKUP($C20,CQ_int!$C$12:$K$400,9,FALSE),""),""),"") ->  | BC20: =IF(IF(AND($J20="non inscrit",BC$6>$H$4),OR($P20<$H$5,$P20<AW$6),OR($J20<$H$5,$J20<AW$6)),IFERROR(IF(VLOOKUP($C20,QC2_int!$C$12:$K$400,5,FALSE)=$F20,VLOOKUP($C20,QC2_int!$C$12:$K$400,9,FALSE),""),""),"") ->  | BD20: =IF(IF(AND($J20="non inscrit",BD$6>$H$4),OR($P20<$H$5,$P20<AX$6),OR($J20<$H$5,$J20<AX$6)),IFERROR(IF(VLOOKUP($C20,Ach_int!$C$12:$K$400,5,FALSE)=$F20,VLOOKUP($C20,Ach_int!$C$12:$K$400,9,FALSE),""),""),"") ->  | BF20: =IF(IF(AND($J20="non inscrit",BF$6>$H$4),OR($P20<$H$5,$P20<AZ$6),OR($J20<$H$5,$J20<AZ$6)),IFERROR(IF(VLOOKUP($C20,Buck_int!$C$12:$K$400,5,FALSE)=$F20,VLOOKUP($C20,Buck_int!$C$12:$K$400,9,FALSE),""),""),"") ->  | BG20: =IF(IF(AND($J20="non inscrit",BG$6>$H$4),OR($P20<$H$5,$P20<BA$6),OR($J20<$H$5,$J20<BA$6)),IFERROR(IF(VLOOKUP($C20,CQC_int!$C$12:$K$400,5,FALSE)=$F20,VLOOKUP($C20,CQC_int!$C$12:$K$400,9,FALSE),""),""),"") ->  | BH20: =IF(IF(AND($J20="non inscrit",BH$6>$H$4),OR($P20<$H$5,$P20<BB$6),OR($J20<$H$5,$J20<BB$6)),IFERROR(IF(VLOOKUP($C20,LG3_int!$C$12:$K$400,5,FALSE)=$F20,VLOOKUP($C20,LG3_int!$C$12:$K$400,9,FALSE),""),""),"") ->  | BI20: =IF(IF(AND($J20="non inscrit",BI$6>$H$4),OR($P20<$H$5,$P20<BC$6),OR($J20<$H$5,$J20<BC$6)),IFERROR(IF(VLOOKUP($C20,LS_int!$C$12:$K$400,5,FALSE)=$F20,VLOOKUP($C20,LS_int!$C$12:$K$400,9,FALSE),""),""),"") ->  | BT20: =IF(IF(AND($J20="non inscrit",BT$6>$H$4),OR($P20<$H$5,$P20<BN$6),OR($J20<$H$5,$J20<BN$6)),IFERROR(IF(VLOOKUP($C20,FI!$C$12:$K$400,5,FALSE)=$F20,VLOOKUP($C20,FI!$C$12:$K$400,9,FALSE),""),""),"") -> 
A21: =A20 -> 1 | B21: =B20+1 -> 10 | C21: 7081 | D21: =IF($C21="","",IF($N$1>$H$4,IFERROR(VLOOKUP($C21,'Membres-2024'!$A:$G,2,FALSE),""),IFERROR(VLOOKUP($C21,'Membres-2023'!$A:$G,2,FALSE),""))) -> LACROIX | E21: =IF($C21="","",IF($N$1>$H$4,IFERROR(VLOOKUP($C21,'Membres-2024'!$A:$G,3,FALSE),""),IFERROR(VLOOKUP($C21,'Membres-2023'!$A:$G,3,FALSE),""))) -> NATHAN | F21: =IF($C21="","",IF($N$1>$H$4,IFERROR(VLOOKUP($C21,'Membres-2024'!$A:$G,7,FALSE),""),IFERROR(VLOOKUP($C21,'Membres-2023'!$A:$G,7,FALSE),""))) -> 1 | G21: =IF($C21="","",IF($N$1>$H$4,IFERROR(VLOOKUP($C21,'Membres-2024'!$A:$G,5,FALSE),""),IFERROR(VLOOKUP($C21,'Membres-2023'!$A:$G,5,FALSE),""))) -> Mont-Laurier (Lynx) | H21: =COUNTIF($Y21:$BT21,">=0") -> 1 | I21: =SUM(K21:O21,Q21:U21) -> 44.33333333 | J21: =IFERROR(IF(VLOOKUP(C21,'Membres-2023'!$A:$F,6,FALSE)>=$H$3,VLOOKUP(C21,'Membres-2023'!$A:$F,6,FALSE),"non inscrit"),IF($C21>0,"non inscrit","")) -> 2023-06-16 | K21: =IFERROR(IF(COUNTA(Y21:AT21)>0,LARGE(Y21:AT21,1)/6,""),"") -> 44.33333333 | L21: =IFERROR(IF(COUNTA(Y21:AT21)>1,LARGE(Y21:AT21,2)/6,""),"") ->  | M21: =IFERROR(IF(COUNTA(Y21:AT21)>2,LARGE(Y21:AT21,3)/6,""),"") ->  | N21: =IFERROR(IF(COUNTA(Y21:AT21)>3,LARGE(Y21:AT21,4)/6,""),"") ->  | O21: =IF(AU21<>"",AU21,"") ->  | P21: =IFERROR(IF(VLOOKUP(C21,'Membres-2024'!$A:$F,6,FALSE)>=$H$3,VLOOKUP(C21,'Membres-2024'!$A:$F,6,FALSE),"non inscrit"),IF($C21>0,"non inscrit","")) -> 2024-01-08 | Q21: =IFERROR(IF(COUNTA(AW21:BS21)>0,LARGE(AW21:BS21,1)/6,""),"") ->  | R21: =IFERROR(IF(COUNTA(AW21:BS21)>1,LARGE(AW21:BS21,2)/6,""),"") ->  | S21: =IFERROR(IF(COUNTA(AW21:BS21)>2,LARGE(AW21:BS21,3)/6,""),"") ->  | T21: =IFERROR(IF(COUNTA(AW21:BS21)>3,LARGE(AW21:BS21,4)/6,""),"") ->  | U21: =IF(BT21<>"",BT21,"") ->  | Y21: =IF(IF(AND($J21="non inscrit",Y$6>$H$4),OR($P21<$H$5,$P21<Y$6),OR($J21<$H$5,$J21<Y$6)),IFERROR(IF(VLOOKUP($C21,ASF_ext!$C$12:$K$400,5,FALSE)=$F21,VLOOKUP($C21,ASF_ext!$C$12:$K$400,9,FALSE),""),""),"") ->  | Z21: =IF(IF(AND($J21="non inscrit",Z$6>$H$4),OR($P21<$H$5,$P21<Z$6),OR($J21<$H$5,$J21<Z$6)),IFERROR(IF(VLOOKUP($C21,LG_ext!$C$12:$K$400,5,FALSE)=$F21,VLOOKUP($C21,LG_ext!$C$12:$K$400,9,FALSE),""),""),"") ->  | AA21: =IF(IF(AND($J21="non inscrit",AA$6>$H$4),OR($P21<$H$5,$P21<AA$6),OR($J21<$H$5,$J21<AA$6)),IFERROR(IF(VLOOKUP($C21,Jul_ext!$C$12:$K$400,5,FALSE)=$F21,VLOOKUP($C21,Jul_ext!$C$12:$K$400,9,FALSE),""),""),"") ->  | AB21: =IF(IF(AND($J21="non inscrit",AB$6>$H$4),OR($P21<$H$5,$P21<AB$6),OR($J21<$H$5,$J21<AB$6)),IFERROR(IF(VLOOKUP($C21,CQ_ext!$C$12:$K$400,5,FALSE)=$F21,VLOOKUP($C21,CQ_ext!$C$12:$K$400,9,FALSE),""),""),"") ->  | AC21: =IF(IF(AND($J21="non inscrit",AC$6>$H$4),OR($P21<$H$5,$P21<AC$6),OR($J21<$H$5,$J21<AC$6)),IFERROR(IF(VLOOKUP($C21,NAQ_ext!$C$12:$K$400,5,FALSE)=$F21,VLOOKUP($C21,NAQ_ext!$C$12:$K$400,9,FALSE),""),""),"") ->  | AD21: =IF(IF(AND($J21="non inscrit",AD$6>$H$4),OR($P21<$H$5,$P21<AD$6),OR($J21<$H$5,$J21<AD$6)),IFERROR(IF(VLOOKUP($C21,MtL_ext!$C$12:$K$400,5,FALSE)=$F21,VLOOKUP($C21,MtL_ext!$C$12:$K$400,9,FALSE),""),""),"") ->  | AE21: =IF(IF(AND($J21="non inscrit",AE$6>$H$4),OR($P21<$H$5,$P21<AE$6),OR($J21<$H$5,$J21<AE$6)),IFERROR(IF(VLOOKUP($C21,Cant_ext!$C$12:$K$400,5,FALSE)=$F21,VLOOKUP($C21,Cant_ext!$C$12:$K$400,9,FALSE),""),""),"") ->  | AH21: =IF(IF(AND($J21="non inscrit",AH$6>$H$4),OR($P21<$H$5,$P21<AH$6),OR($J21<$H$5,$J21<AH$6)),IFERROR(IF(VLOOKUP($C21,ASF2_ext!$C$12:$K$400,5,FALSE)=$F21,VLOOKUP($C21,ASF2_ext!$C$12:$K$400,9,FALSE),""),""),"") ->  | AI21: =IF(IF(AND($J21="non inscrit",AI$6>$H$4),OR($P21<$H$5,$P21<AI$6),OR($J21<$H$5,$J21<AI$6)),IFERROR(IF(VLOOKUP($C21,Ascot_ext!$C$12:$K$400,5,FALSE)=$F21,VLOOKUP($C21,Ascot_ext!$C$12:$K$400,9,FALSE),""),""),"") ->  | AJ21: =IF(IF(AND($J21="non inscrit",AJ$6>$H$4),OR($P21<$H$5,$P21<AJ$6),OR($J21<$H$5,$J21<AJ$6)),IFERROR(IF(VLOOKUP($C21,BBA_ext!$C$12:$K$400,5,FALSE)=$F21,VLOOKUP($C21,BBA_ext!$C$12:$K$400,9,FALSE),""),""),"") ->  | AK21: =IF(IF(AND($J21="non inscrit",AK$6>$H$4),OR($P21<$H$5,$P21<AK$6),OR($J21<$H$5,$J21<AK$6)),IFERROR(IF(VLOOKUP($C21,Tuq1_ext!$C$12:$K$400,5,FALSE)=$F21,VLOOKUP($C21,Tuq1_ext!$C$12:$K$400,9,FALSE),""),""),"") ->  | AL21: =IF(IF(AND($J21="non inscrit",AL$6>$H$4),OR($P21<$H$5,$P21<AL$6),OR($J21<$H$5,$J21<AL$6)),IFERROR(IF(VLOOKUP($C21,Tuq2_ext!$C$12:$K$400,5,FALSE)=$F21,VLOOKUP($C21,Tuq2_ext!$C$12:$K$400,9,FALSE),""),""),"") ->  | AM21: =IF(IF(AND($J21="non inscrit",AM$6>$H$4),OR($P21<$H$5,$P21<AM$6),OR($J21<$H$5,$J21<AM$6)),IFERROR(IF(VLOOKUP($C21,CQ2_ext!$C$12:$K$400,5,FALSE)=$F21,VLOOKUP($C21,CQ2_ext!$C$12:$K$400,9,FALSE),""),""),"") ->  | AN21: =IF(IF(AND($J21="non inscrit",AN$6>$H$4),OR($P21<$H$5,$P21<AN$6),OR($J21<$H$5,$J21<AN$6)),IFERROR(IF(VLOOKUP($C21,MTL2_ext!$C$12:$K$400,5,FALSE)=$F21,VLOOKUP($C21,MTL2_ext!$C$12:$K$400,9,FALSE),""),""),"") -> 266 | AO21: =IF(IF(AND($J21="non inscrit",AO$6>$H$4),OR($P21<$H$5,$P21<AO$6),OR($J21<$H$5,$J21<AO$6)),IFERROR(IF(VLOOKUP($C21,NO_ext!$C$12:$K$400,5,FALSE)=$F21,VLOOKUP($C21,NO_ext!$C$12:$K$400,9,FALSE),""),""),"") ->  | AP21: =IF(IF(AND($J21="non inscrit",AP$6>$H$4),OR($P21<$H$5,$P21<AP$6),OR($J21<$H$5,$J21<AP$6)),IFERROR(IF(VLOOKUP($C21,VD_ext!$C$12:$K$400,5,FALSE)=$F21,VLOOKUP($C21,VD_ext!$C$12:$K$400,9,FALSE),""),""),"") ->  | AQ21: =IF(IF(AND($J21="non inscrit",AQ$6>$H$4),OR($P21<$H$5,$P21<AQ$6),OR($J21<$H$5,$J21<AQ$6)),IFERROR(IF(VLOOKUP($C21,PT_ext!$C$12:$K$400,5,FALSE)=$F21,VLOOKUP($C21,PT_ext!$C$12:$K$400,9,FALSE),""),""),"") ->  | AR21: =IF(IF(AND($J21="non inscrit",AR$6>$H$4),OR($P21<$H$5,$P21<AR$6),OR($J21<$H$5,$J21<AR$6)),IFERROR(IF(VLOOKUP($C21,Vic_ext!$C$12:$K$400,5,FALSE)=$F21,VLOOKUP($C21,Vic_ext!$C$12:$K$400,9,FALSE),""),""),"") ->  | AS21: =IF(IF(AND($J21="non inscrit",AS$6>$H$4),OR($P21<$H$5,$P21<AS$6),OR($J21<$H$5,$J21<AS$6)),IFERROR(IF(VLOOKUP($C21,Sor_ext!$C$12:$K$400,5,FALSE)=$F21,VLOOKUP($C21,Sor_ext!$C$12:$K$400,9,FALSE),""),""),"") ->  | AU21: =IF(IF(AND($J21="non inscrit",AU$6>$H$4),OR($P21<$H$5,$P21<AU$6),OR($J21<$H$5,$J21<AU$6)),IFERROR(IF(VLOOKUP($C21,PROV_ext!$C$12:$K$400,5,FALSE)=$F21,VLOOKUP($C21,PROV_ext!$C$12:$K$400,9,FALSE),""),""),"") ->  | AW21: =IF(IF(AND($J21="non inscrit",AW$6>$H$4),OR($P21<$H$5,$P21<AQ$6),OR($J21<$H$5,$J21<AQ$6)),IFERROR(IF(VLOOKUP($C21,Coat_int!$C$12:$K$400,5,FALSE)=$F21,VLOOKUP($C21,Coat_int!$C$12:$K$400,9,FALSE),""),""),"") ->  | AX21: =IF(IF(AND($J21="non inscrit",AX$6>$H$4),OR($P21<$H$5,$P21<AR$6),OR($J21<$H$5,$J21<AR$6)),IFERROR(IF(VLOOKUP($C21,LG_int!$C$12:$K$400,5,FALSE)=$F21,VLOOKUP($C21,LG_int!$C$12:$K$400,9,FALSE),""),""),"") ->  | AY21: =IF(IF(AND($J21="non inscrit",AY$6>$H$4),OR($P21<$H$5,$P21<AS$6),OR($J21<$H$5,$J21<AS$6)),IFERROR(IF(VLOOKUP($C21,Roc_int!$C$12:$K$400,5,FALSE)=$F21,VLOOKUP($C21,Roc_int!$C$12:$K$400,9,FALSE),""),""),"") ->  | AZ21: =IF(IF(AND($J21="non inscrit",AZ$6>$H$4),OR($P21<$H$5,$P21<AT$6),OR($J21<$H$5,$J21<AT$6)),IFERROR(IF(VLOOKUP($C21,Qc_int!$C$12:$K$400,5,FALSE)=$F21,VLOOKUP($C21,Qc_int!$C$12:$K$400,9,FALSE),""),""),"") ->  | BA21: =IF(IF(AND($J21="non inscrit",BA$6>$H$4),OR($P21<$H$5,$P21<AU$6),OR($J21<$H$5,$J21<AU$6)),IFERROR(IF(VLOOKUP($C21,Asc_int!$C$12:$K$400,5,FALSE)=$F21,VLOOKUP($C21,Asc_int!$C$12:$K$400,9,FALSE),""),""),"") ->  | BB21: =IF(IF(AND($J21="non inscrit",BB$6>$H$4),OR($P21<$H$5,$P21<AV$6),OR($J21<$H$5,$J21<AV$6)),IFERROR(IF(VLOOKUP($C21,CQ_int!$C$12:$K$400,5,FALSE)=$F21,VLOOKUP($C21,CQ_int!$C$12:$K$400,9,FALSE),""),""),"") ->  | BC21: =IF(IF(AND($J21="non inscrit",BC$6>$H$4),OR($P21<$H$5,$P21<AW$6),OR($J21<$H$5,$J21<AW$6)),IFERROR(IF(VLOOKUP($C21,QC2_int!$C$12:$K$400,5,FALSE)=$F21,VLOOKUP($C21,QC2_int!$C$12:$K$400,9,FALSE),""),""),"") ->  | BD21: =IF(IF(AND($J21="non inscrit",BD$6>$H$4),OR($P21<$H$5,$P21<AX$6),OR($J21<$H$5,$J21<AX$6)),IFERROR(IF(VLOOKUP($C21,Ach_int!$C$12:$K$400,5,FALSE)=$F21,VLOOKUP($C21,Ach_int!$C$12:$K$400,9,FALSE),""),""),"") ->  | BF21: =IF(IF(AND($J21="non inscrit",BF$6>$H$4),OR($P21<$H$5,$P21<AZ$6),OR($J21<$H$5,$J21<AZ$6)),IFERROR(IF(VLOOKUP($C21,Buck_int!$C$12:$K$400,5,FALSE)=$F21,VLOOKUP($C21,Buck_int!$C$12:$K$400,9,FALSE),""),""),"") ->  | BG21: =IF(IF(AND($J21="non inscrit",BG$6>$H$4),OR($P21<$H$5,$P21<BA$6),OR($J21<$H$5,$J21<BA$6)),IFERROR(IF(VLOOKUP($C21,CQC_int!$C$12:$K$400,5,FALSE)=$F21,VLOOKUP($C21,CQC_int!$C$12:$K$400,9,FALSE),""),""),"") ->  | BH21: =IF(IF(AND($J21="non inscrit",BH$6>$H$4),OR($P21<$H$5,$P21<BB$6),OR($J21<$H$5,$J21<BB$6)),IFERROR(IF(VLOOKUP($C21,LG3_int!$C$12:$K$400,5,FALSE)=$F21,VLOOKUP($C21,LG3_int!$C$12:$K$400,9,FALSE),""),""),"") ->  | BI21: =IF(IF(AND($J21="non inscrit",BI$6>$H$4),OR($P21<$H$5,$P21<BC$6),OR($J21<$H$5,$J21<BC$6)),IFERROR(IF(VLOOKUP($C21,LS_int!$C$12:$K$400,5,FALSE)=$F21,VLOOKUP($C21,LS_int!$C$12:$K$400,9,FALSE),""),""),"") ->  | BT21: =IF(IF(AND($J21="non inscrit",BT$6>$H$4),OR($P21<$H$5,$P21<BN$6),OR($J21<$H$5,$J21<BN$6)),IFERROR(IF(VLOOKUP($C21,FI!$C$12:$K$400,5,FALSE)=$F21,VLOOKUP($C21,FI!$C$12:$K$400,9,FALSE),""),""),"") -> 
A22: =A21 -> 1 | B22: =B21+1 -> 11 | C22: 6333 | D22: =IF($C22="","",IF($N$1>$H$4,IFERROR(VLOOKUP($C22,'Membres-2024'!$A:$G,2,FALSE),""),IFERROR(VLOOKUP($C22,'Membres-2023'!$A:$G,2,FALSE),""))) -> Bernier | E22: =IF($C22="","",IF($N$1>$H$4,IFERROR(VLOOKUP($C22,'Membres-2024'!$A:$G,3,FALSE),""),IFERROR(VLOOKUP($C22,'Membres-2023'!$A:$G,3,FALSE),""))) -> Alexis | F22: =IF($C22="","",IF($N$1>$H$4,IFERROR(VLOOKUP($C22,'Membres-2024'!$A:$G,7,FALSE),""),IFERROR(VLOOKUP($C22,'Membres-2023'!$A:$G,7,FALSE),""))) -> 1 | G22: =IF($C22="","",IF($N$1>$H$4,IFERROR(VLOOKUP($C22,'Membres-2024'!$A:$G,5,FALSE),""),IFERROR(VLOOKUP($C22,'Membres-2023'!$A:$G,5,FALSE),""))) -> Acti-Sports de Coaticok | H22: =COUNTIF($Y22:$BT22,">=0") -> 1 | I22: =SUM(K22:O22,Q22:U22) -> 40 | J22: =IFERROR(IF(VLOOKUP(C22,'Membres-2023'!$A:$F,6,FALSE)>=$H$3,VLOOKUP(C22,'Membres-2023'!$A:$F,6,FALSE),"non inscrit"),IF($C22>0,"non inscrit","")) -> 2023-02-24 | K22: =IFERROR(IF(COUNTA(Y22:AT22)>0,LARGE(Y22:AT22,1)/6,""),"") -> 40 | L22: =IFERROR(IF(COUNTA(Y22:AT22)>1,LARGE(Y22:AT22,2)/6,""),"") ->  | M22: =IFERROR(IF(COUNTA(Y22:AT22)>2,LARGE(Y22:AT22,3)/6,""),"") ->  | N22: =IFERROR(IF(COUNTA(Y22:AT22)>3,LARGE(Y22:AT22,4)/6,""),"") ->  | O22: =IF(AU22<>"",AU22,"") ->  | P22: =IFERROR(IF(VLOOKUP(C22,'Membres-2024'!$A:$F,6,FALSE)>=$H$3,VLOOKUP(C22,'Membres-2024'!$A:$F,6,FALSE),"non inscrit"),IF($C22>0,"non inscrit","")) -> 2023-02-24 | Q22: =IFERROR(IF(COUNTA(AW22:BS22)>0,LARGE(AW22:BS22,1)/6,""),"") ->  | R22: =IFERROR(IF(COUNTA(AW22:BS22)>1,LARGE(AW22:BS22,2)/6,""),"") ->  | S22: =IFERROR(IF(COUNTA(AW22:BS22)>2,LARGE(AW22:BS22,3)/6,""),"") ->  | T22: =IFERROR(IF(COUNTA(AW22:BS22)>3,LARGE(AW22:BS22,4)/6,""),"") ->  | U22: =IF(BT22<>"",BT22,"") ->  | Y22: =IF(IF(AND($J22="non inscrit",Y$6>$H$4),OR($P22<$H$5,$P22<Y$6),OR($J22<$H$5,$J22<Y$6)),IFERROR(IF(VLOOKUP($C22,ASF_ext!$C$12:$K$400,5,FALSE)=$F22,VLOOKUP($C22,ASF_ext!$C$12:$K$400,9,FALSE),""),""),"") ->  | Z22: =IF(IF(AND($J22="non inscrit",Z$6>$H$4),OR($P22<$H$5,$P22<Z$6),OR($J22<$H$5,$J22<Z$6)),IFERROR(IF(VLOOKUP($C22,LG_ext!$C$12:$K$400,5,FALSE)=$F22,VLOOKUP($C22,LG_ext!$C$12:$K$400,9,FALSE),""),""),"") ->  | AA22: =IF(IF(AND($J22="non inscrit",AA$6>$H$4),OR($P22<$H$5,$P22<AA$6),OR($J22<$H$5,$J22<AA$6)),IFERROR(IF(VLOOKUP($C22,Jul_ext!$C$12:$K$400,5,FALSE)=$F22,VLOOKUP($C22,Jul_ext!$C$12:$K$400,9,FALSE),""),""),"") ->  | AB22: =IF(IF(AND($J22="non inscrit",AB$6>$H$4),OR($P22<$H$5,$P22<AB$6),OR($J22<$H$5,$J22<AB$6)),IFERROR(IF(VLOOKUP($C22,CQ_ext!$C$12:$K$400,5,FALSE)=$F22,VLOOKUP($C22,CQ_ext!$C$12:$K$400,9,FALSE),""),""),"") -> 240 | AC22: =IF(IF(AND($J22="non inscrit",AC$6>$H$4),OR($P22<$H$5,$P22<AC$6),OR($J22<$H$5,$J22<AC$6)),IFERROR(IF(VLOOKUP($C22,NAQ_ext!$C$12:$K$400,5,FALSE)=$F22,VLOOKUP($C22,NAQ_ext!$C$12:$K$400,9,FALSE),""),""),"") ->  | AD22: =IF(IF(AND($J22="non inscrit",AD$6>$H$4),OR($P22<$H$5,$P22<AD$6),OR($J22<$H$5,$J22<AD$6)),IFERROR(IF(VLOOKUP($C22,MtL_ext!$C$12:$K$400,5,FALSE)=$F22,VLOOKUP($C22,MtL_ext!$C$12:$K$400,9,FALSE),""),""),"") ->  | AE22: =IF(IF(AND($J22="non inscrit",AE$6>$H$4),OR($P22<$H$5,$P22<AE$6),OR($J22<$H$5,$J22<AE$6)),IFERROR(IF(VLOOKUP($C22,Cant_ext!$C$12:$K$400,5,FALSE)=$F22,VLOOKUP($C22,Cant_ext!$C$12:$K$400,9,FALSE),""),""),"") ->  | AH22: =IF(IF(AND($J22="non inscrit",AH$6>$H$4),OR($P22<$H$5,$P22<AH$6),OR($J22<$H$5,$J22<AH$6)),IFERROR(IF(VLOOKUP($C22,ASF2_ext!$C$12:$K$400,5,FALSE)=$F22,VLOOKUP($C22,ASF2_ext!$C$12:$K$400,9,FALSE),""),""),"") ->  | AI22: =IF(IF(AND($J22="non inscrit",AI$6>$H$4),OR($P22<$H$5,$P22<AI$6),OR($J22<$H$5,$J22<AI$6)),IFERROR(IF(VLOOKUP($C22,Ascot_ext!$C$12:$K$400,5,FALSE)=$F22,VLOOKUP($C22,Ascot_ext!$C$12:$K$400,9,FALSE),""),""),"") ->  | AJ22: =IF(IF(AND($J22="non inscrit",AJ$6>$H$4),OR($P22<$H$5,$P22<AJ$6),OR($J22<$H$5,$J22<AJ$6)),IFERROR(IF(VLOOKUP($C22,BBA_ext!$C$12:$K$400,5,FALSE)=$F22,VLOOKUP($C22,BBA_ext!$C$12:$K$400,9,FALSE),""),""),"") ->  | AK22: =IF(IF(AND($J22="non inscrit",AK$6>$H$4),OR($P22<$H$5,$P22<AK$6),OR($J22<$H$5,$J22<AK$6)),IFERROR(IF(VLOOKUP($C22,Tuq1_ext!$C$12:$K$400,5,FALSE)=$F22,VLOOKUP($C22,Tuq1_ext!$C$12:$K$400,9,FALSE),""),""),"") ->  | AL22: =IF(IF(AND($J22="non inscrit",AL$6>$H$4),OR($P22<$H$5,$P22<AL$6),OR($J22<$H$5,$J22<AL$6)),IFERROR(IF(VLOOKUP($C22,Tuq2_ext!$C$12:$K$400,5,FALSE)=$F22,VLOOKUP($C22,Tuq2_ext!$C$12:$K$400,9,FALSE),""),""),"") ->  | AM22: =IF(IF(AND($J22="non inscrit",AM$6>$H$4),OR($P22<$H$5,$P22<AM$6),OR($J22<$H$5,$J22<AM$6)),IFERROR(IF(VLOOKUP($C22,CQ2_ext!$C$12:$K$400,5,FALSE)=$F22,VLOOKUP($C22,CQ2_ext!$C$12:$K$400,9,FALSE),""),""),"") ->  | AN22: =IF(IF(AND($J22="non inscrit",AN$6>$H$4),OR($P22<$H$5,$P22<AN$6),OR($J22<$H$5,$J22<AN$6)),IFERROR(IF(VLOOKUP($C22,MTL2_ext!$C$12:$K$400,5,FALSE)=$F22,VLOOKUP($C22,MTL2_ext!$C$12:$K$400,9,FALSE),""),""),"") ->  | AO22: =IF(IF(AND($J22="non inscrit",AO$6>$H$4),OR($P22<$H$5,$P22<AO$6),OR($J22<$H$5,$J22<AO$6)),IFERROR(IF(VLOOKUP($C22,NO_ext!$C$12:$K$400,5,FALSE)=$F22,VLOOKUP($C22,NO_ext!$C$12:$K$400,9,FALSE),""),""),"") ->  | AP22: =IF(IF(AND($J22="non inscrit",AP$6>$H$4),OR($P22<$H$5,$P22<AP$6),OR($J22<$H$5,$J22<AP$6)),IFERROR(IF(VLOOKUP($C22,VD_ext!$C$12:$K$400,5,FALSE)=$F22,VLOOKUP($C22,VD_ext!$C$12:$K$400,9,FALSE),""),""),"") ->  | AQ22: =IF(IF(AND($J22="non inscrit",AQ$6>$H$4),OR($P22<$H$5,$P22<AQ$6),OR($J22<$H$5,$J22<AQ$6)),IFERROR(IF(VLOOKUP($C22,PT_ext!$C$12:$K$400,5,FALSE)=$F22,VLOOKUP($C22,PT_ext!$C$12:$K$400,9,FALSE),""),""),"") ->  | AR22: =IF(IF(AND($J22="non inscrit",AR$6>$H$4),OR($P22<$H$5,$P22<AR$6),OR($J22<$H$5,$J22<AR$6)),IFERROR(IF(VLOOKUP($C22,Vic_ext!$C$12:$K$400,5,FALSE)=$F22,VLOOKUP($C22,Vic_ext!$C$12:$K$400,9,FALSE),""),""),"") ->  | AS22: =IF(IF(AND($J22="non inscrit",AS$6>$H$4),OR($P22<$H$5,$P22<AS$6),OR($J22<$H$5,$J22<AS$6)),IFERROR(IF(VLOOKUP($C22,Sor_ext!$C$12:$K$400,5,FALSE)=$F22,VLOOKUP($C22,Sor_ext!$C$12:$K$400,9,FALSE),""),""),"") ->  | AU22: =IF(IF(AND($J22="non inscrit",AU$6>$H$4),OR($P22<$H$5,$P22<AU$6),OR($J22<$H$5,$J22<AU$6)),IFERROR(IF(VLOOKUP($C22,PROV_ext!$C$12:$K$400,5,FALSE)=$F22,VLOOKUP($C22,PROV_ext!$C$12:$K$400,9,FALSE),""),""),"") ->  | AW22: =IF(IF(AND($J22="non inscrit",AW$6>$H$4),OR($P22<$H$5,$P22<AQ$6),OR($J22<$H$5,$J22<AQ$6)),IFERROR(IF(VLOOKUP($C22,Coat_int!$C$12:$K$400,5,FALSE)=$F22,VLOOKUP($C22,Coat_int!$C$12:$K$400,9,FALSE),""),""),"") ->  | AX22: =IF(IF(AND($J22="non inscrit",AX$6>$H$4),OR($P22<$H$5,$P22<AR$6),OR($J22<$H$5,$J22<AR$6)),IFERROR(IF(VLOOKUP($C22,LG_int!$C$12:$K$400,5,FALSE)=$F22,VLOOKUP($C22,LG_int!$C$12:$K$400,9,FALSE),""),""),"") ->  | AY22: =IF(IF(AND($J22="non inscrit",AY$6>$H$4),OR($P22<$H$5,$P22<AS$6),OR($J22<$H$5,$J22<AS$6)),IFERROR(IF(VLOOKUP($C22,Roc_int!$C$12:$K$400,5,FALSE)=$F22,VLOOKUP($C22,Roc_int!$C$12:$K$400,9,FALSE),""),""),"") ->  | AZ22: =IF(IF(AND($J22="non inscrit",AZ$6>$H$4),OR($P22<$H$5,$P22<AT$6),OR($J22<$H$5,$J22<AT$6)),IFERROR(IF(VLOOKUP($C22,Qc_int!$C$12:$K$400,5,FALSE)=$F22,VLOOKUP($C22,Qc_int!$C$12:$K$400,9,FALSE),""),""),"") ->  | BA22: =IF(IF(AND($J22="non inscrit",BA$6>$H$4),OR($P22<$H$5,$P22<AU$6),OR($J22<$H$5,$J22<AU$6)),IFERROR(IF(VLOOKUP($C22,Asc_int!$C$12:$K$400,5,FALSE)=$F22,VLOOKUP($C22,Asc_int!$C$12:$K$400,9,FALSE),""),""),"") ->  | BB22: =IF(IF(AND($J22="non inscrit",BB$6>$H$4),OR($P22<$H$5,$P22<AV$6),OR($J22<$H$5,$J22<AV$6)),IFERROR(IF(VLOOKUP($C22,CQ_int!$C$12:$K$400,5,FALSE)=$F22,VLOOKUP($C22,CQ_int!$C$12:$K$400,9,FALSE),""),""),"") ->  | BC22: =IF(IF(AND($J22="non inscrit",BC$6>$H$4),OR($P22<$H$5,$P22<AW$6),OR($J22<$H$5,$J22<AW$6)),IFERROR(IF(VLOOKUP($C22,QC2_int!$C$12:$K$400,5,FALSE)=$F22,VLOOKUP($C22,QC2_int!$C$12:$K$400,9,FALSE),""),""),"") ->  | BD22: =IF(IF(AND($J22="non inscrit",BD$6>$H$4),OR($P22<$H$5,$P22<AX$6),OR($J22<$H$5,$J22<AX$6)),IFERROR(IF(VLOOKUP($C22,Ach_int!$C$12:$K$400,5,FALSE)=$F22,VLOOKUP($C22,Ach_int!$C$12:$K$400,9,FALSE),""),""),"") ->  | BF22: =IF(IF(AND($J22="non inscrit",BF$6>$H$4),OR($P22<$H$5,$P22<AZ$6),OR($J22<$H$5,$J22<AZ$6)),IFERROR(IF(VLOOKUP($C22,Buck_int!$C$12:$K$400,5,FALSE)=$F22,VLOOKUP($C22,Buck_int!$C$12:$K$400,9,FALSE),""),""),"") ->  | BG22: =IF(IF(AND($J22="non inscrit",BG$6>$H$4),OR($P22<$H$5,$P22<BA$6),OR($J22<$H$5,$J22<BA$6)),IFERROR(IF(VLOOKUP($C22,CQC_int!$C$12:$K$400,5,FALSE)=$F22,VLOOKUP($C22,CQC_int!$C$12:$K$400,9,FALSE),""),""),"") ->  | BH22: =IF(IF(AND($J22="non inscrit",BH$6>$H$4),OR($P22<$H$5,$P22<BB$6),OR($J22<$H$5,$J22<BB$6)),IFERROR(IF(VLOOKUP($C22,LG3_int!$C$12:$K$400,5,FALSE)=$F22,VLOOKUP($C22,LG3_int!$C$12:$K$400,9,FALSE),""),""),"") ->  | BI22: =IF(IF(AND($J22="non inscrit",BI$6>$H$4),OR($P22<$H$5,$P22<BC$6),OR($J22<$H$5,$J22<BC$6)),IFERROR(IF(VLOOKUP($C22,LS_int!$C$12:$K$400,5,FALSE)=$F22,VLOOKUP($C22,LS_int!$C$12:$K$400,9,FALSE),""),""),"") ->  | BT22: =IF(IF(AND($J22="non inscrit",BT$6>$H$4),OR($P22<$H$5,$P22<BN$6),OR($J22<$H$5,$J22<BN$6)),IFERROR(IF(VLOOKUP($C22,FI!$C$12:$K$400,5,FALSE)=$F22,VLOOKUP($C22,FI!$C$12:$K$400,9,FALSE),""),""),"") -> 
A23: =A22 -> 1 | B23: =B22+1 -> 12 | D23: =IF($C23="","",IF($N$1>$H$4,IFERROR(VLOOKUP($C23,'Membres-2024'!$A:$G,2,FALSE),""),IFERROR(VLOOKUP($C23,'Membres-2023'!$A:$G,2,FALSE),""))) ->  | E23: =IF($C23="","",IF($N$1>$H$4,IFERROR(VLOOKUP($C23,'Membres-2024'!$A:$G,3,FALSE),""),IFERROR(VLOOKUP($C23,'Membres-2023'!$A:$G,3,FALSE),""))) ->  | F23: =IF($C23="","",IF($N$1>$H$4,IFERROR(VLOOKUP($C23,'Membres-2024'!$A:$G,7,FALSE),""),IFERROR(VLOOKUP($C23,'Membres-2023'!$A:$G,7,FALSE),""))) ->  | G23: =IF($C23="","",IF($N$1>$H$4,IFERROR(VLOOKUP($C23,'Membres-2024'!$A:$G,5,FALSE),""),IFERROR(VLOOKUP($C23,'Membres-2023'!$A:$G,5,FALSE),""))) ->  | H23: =COUNTIF($Y23:$BT23,">=0") -> 0 | I23: =SUM(K23:O23,Q23:U23) -> 0 | J23: =IFERROR(IF(VLOOKUP(C23,'Membres-2023'!$A:$F,6,FALSE)>=$H$3,VLOOKUP(C23,'Membres-2023'!$A:$F,6,FALSE),"non inscrit"),IF($C23>0,"non inscrit","")) ->  | K23: =IFERROR(IF(COUNTA(Y23:AT23)>0,LARGE(Y23:AT23,1)/6,""),"") ->  | L23: =IFERROR(IF(COUNTA(Y23:AT23)>1,LARGE(Y23:AT23,2)/6,""),"") ->  | M23: =IFERROR(IF(COUNTA(Y23:AT23)>2,LARGE(Y23:AT23,3)/6,""),"") ->  | N23: =IFERROR(IF(COUNTA(Y23:AT23)>3,LARGE(Y23:AT23,4)/6,""),"") ->  | O23: =IF(AU23<>"",AU23,"") ->  | P23: =IFERROR(IF(VLOOKUP(C23,'Membres-2024'!$A:$F,6,FALSE)>=$H$3,VLOOKUP(C23,'Membres-2024'!$A:$F,6,FALSE),"non inscrit"),IF($C23>0,"non inscrit","")) ->  | Q23: =IFERROR(IF(COUNTA(AW23:BS23)>0,LARGE(AW23:BS23,1)/6,""),"") ->  | R23: =IFERROR(IF(COUNTA(AW23:BS23)>1,LARGE(AW23:BS23,2)/6,""),"") ->  | S23: =IFERROR(IF(COUNTA(AW23:BS23)>2,LARGE(AW23:BS23,3)/6,""),"") ->  | T23: =IFERROR(IF(COUNTA(AW23:BS23)>3,LARGE(AW23:BS23,4)/6,""),"") ->  | U23: =IF(BT23<>"",BT23,"") ->  | Y23: =IF(IF(AND($J23="non inscrit",Y$6>$H$4),OR($P23<$H$5,$P23<Y$6),OR($J23<$H$5,$J23<Y$6)),IFERROR(IF(VLOOKUP($C23,ASF_ext!$C$12:$K$400,5,FALSE)=$F23,VLOOKUP($C23,ASF_ext!$C$12:$K$400,9,FALSE),""),""),"") ->  | Z23: =IF(IF(AND($J23="non inscrit",Z$6>$H$4),OR($P23<$H$5,$P23<Z$6),OR($J23<$H$5,$J23<Z$6)),IFERROR(IF(VLOOKUP($C23,LG_ext!$C$12:$K$400,5,FALSE)=$F23,VLOOKUP($C23,LG_ext!$C$12:$K$400,9,FALSE),""),""),"") ->  | AA23: =IF(IF(AND($J23="non inscrit",AA$6>$H$4),OR($P23<$H$5,$P23<AA$6),OR($J23<$H$5,$J23<AA$6)),IFERROR(IF(VLOOKUP($C23,Jul_ext!$C$12:$K$400,5,FALSE)=$F23,VLOOKUP($C23,Jul_ext!$C$12:$K$400,9,FALSE),""),""),"") ->  | AB23: =IF(IF(AND($J23="non inscrit",AB$6>$H$4),OR($P23<$H$5,$P23<AB$6),OR($J23<$H$5,$J23<AB$6)),IFERROR(IF(VLOOKUP($C23,CQ_ext!$C$12:$K$400,5,FALSE)=$F23,VLOOKUP($C23,CQ_ext!$C$12:$K$400,9,FALSE),""),""),"") ->  | AC23: =IF(IF(AND($J23="non inscrit",AC$6>$H$4),OR($P23<$H$5,$P23<AC$6),OR($J23<$H$5,$J23<AC$6)),IFERROR(IF(VLOOKUP($C23,NAQ_ext!$C$12:$K$400,5,FALSE)=$F23,VLOOKUP($C23,NAQ_ext!$C$12:$K$400,9,FALSE),""),""),"") ->  | AD23: =IF(IF(AND($J23="non inscrit",AD$6>$H$4),OR($P23<$H$5,$P23<AD$6),OR($J23<$H$5,$J23<AD$6)),IFERROR(IF(VLOOKUP($C23,MtL_ext!$C$12:$K$400,5,FALSE)=$F23,VLOOKUP($C23,MtL_ext!$C$12:$K$400,9,FALSE),""),""),"") ->  | AE23: =IF(IF(AND($J23="non inscrit",AE$6>$H$4),OR($P23<$H$5,$P23<AE$6),OR($J23<$H$5,$J23<AE$6)),IFERROR(IF(VLOOKUP($C23,Cant_ext!$C$12:$K$400,5,FALSE)=$F23,VLOOKUP($C23,Cant_ext!$C$12:$K$400,9,FALSE),""),""),"") ->  | AH23: =IF(IF(AND($J23="non inscrit",AH$6>$H$4),OR($P23<$H$5,$P23<AH$6),OR($J23<$H$5,$J23<AH$6)),IFERROR(IF(VLOOKUP($C23,ASF2_ext!$C$12:$K$400,5,FALSE)=$F23,VLOOKUP($C23,ASF2_ext!$C$12:$K$400,9,FALSE),""),""),"") ->  | AI23: =IF(IF(AND($J23="non inscrit",AI$6>$H$4),OR($P23<$H$5,$P23<AI$6),OR($J23<$H$5,$J23<AI$6)),IFERROR(IF(VLOOKUP($C23,Ascot_ext!$C$12:$K$400,5,FALSE)=$F23,VLOOKUP($C23,Ascot_ext!$C$12:$K$400,9,FALSE),""),""),"") ->  | AJ23: =IF(IF(AND($J23="non inscrit",AJ$6>$H$4),OR($P23<$H$5,$P23<AJ$6),OR($J23<$H$5,$J23<AJ$6)),IFERROR(IF(VLOOKUP($C23,BBA_ext!$C$12:$K$400,5,FALSE)=$F23,VLOOKUP($C23,BBA_ext!$C$12:$K$400,9,FALSE),""),""),"") ->  | AK23: =IF(IF(AND($J23="non inscrit",AK$6>$H$4),OR($P23<$H$5,$P23<AK$6),OR($J23<$H$5,$J23<AK$6)),IFERROR(IF(VLOOKUP($C23,Tuq1_ext!$C$12:$K$400,5,FALSE)=$F23,VLOOKUP($C23,Tuq1_ext!$C$12:$K$400,9,FALSE),""),""),"") ->  | AL23: =IF(IF(AND($J23="non inscrit",AL$6>$H$4),OR($P23<$H$5,$P23<AL$6),OR($J23<$H$5,$J23<AL$6)),IFERROR(IF(VLOOKUP($C23,Tuq2_ext!$C$12:$K$400,5,FALSE)=$F23,VLOOKUP($C23,Tuq2_ext!$C$12:$K$400,9,FALSE),""),""),"") ->  | AM23: =IF(IF(AND($J23="non inscrit",AM$6>$H$4),OR($P23<$H$5,$P23<AM$6),OR($J23<$H$5,$J23<AM$6)),IFERROR(IF(VLOOKUP($C23,CQ2_ext!$C$12:$K$400,5,FALSE)=$F23,VLOOKUP($C23,CQ2_ext!$C$12:$K$400,9,FALSE),""),""),"") ->  | AN23: =IF(IF(AND($J23="non inscrit",AN$6>$H$4),OR($P23<$H$5,$P23<AN$6),OR($J23<$H$5,$J23<AN$6)),IFERROR(IF(VLOOKUP($C23,MTL2_ext!$C$12:$K$400,5,FALSE)=$F23,VLOOKUP($C23,MTL2_ext!$C$12:$K$400,9,FALSE),""),""),"") ->  | AO23: =IF(IF(AND($J23="non inscrit",AO$6>$H$4),OR($P23<$H$5,$P23<AO$6),OR($J23<$H$5,$J23<AO$6)),IFERROR(IF(VLOOKUP($C23,NO_ext!$C$12:$K$400,5,FALSE)=$F23,VLOOKUP($C23,NO_ext!$C$12:$K$400,9,FALSE),""),""),"") ->  | AP23: =IF(IF(AND($J23="non inscrit",AP$6>$H$4),OR($P23<$H$5,$P23<AP$6),OR($J23<$H$5,$J23<AP$6)),IFERROR(IF(VLOOKUP($C23,VD_ext!$C$12:$K$400,5,FALSE)=$F23,VLOOKUP($C23,VD_ext!$C$12:$K$400,9,FALSE),""),""),"") ->  | AQ23: =IF(IF(AND($J23="non inscrit",AQ$6>$H$4),OR($P23<$H$5,$P23<AQ$6),OR($J23<$H$5,$J23<AQ$6)),IFERROR(IF(VLOOKUP($C23,PT_ext!$C$12:$K$400,5,FALSE)=$F23,VLOOKUP($C23,PT_ext!$C$12:$K$400,9,FALSE),""),""),"") ->  | AR23: =IF(IF(AND($J23="non inscrit",AR$6>$H$4),OR($P23<$H$5,$P23<AR$6),OR($J23<$H$5,$J23<AR$6)),IFERROR(IF(VLOOKUP($C23,Vic_ext!$C$12:$K$400,5,FALSE)=$F23,VLOOKUP($C23,Vic_ext!$C$12:$K$400,9,FALSE),""),""),"") ->  | AS23: =IF(IF(AND($J23="non inscrit",AS$6>$H$4),OR($P23<$H$5,$P23<AS$6),OR($J23<$H$5,$J23<AS$6)),IFERROR(IF(VLOOKUP($C23,Sor_ext!$C$12:$K$400,5,FALSE)=$F23,VLOOKUP($C23,Sor_ext!$C$12:$K$400,9,FALSE),""),""),"") ->  | AU23: =IF(IF(AND($J23="non inscrit",AU$6>$H$4),OR($P23<$H$5,$P23<AU$6),OR($J23<$H$5,$J23<AU$6)),IFERROR(IF(VLOOKUP($C23,PROV_ext!$C$12:$K$400,5,FALSE)=$F23,VLOOKUP($C23,PROV_ext!$C$12:$K$400,9,FALSE),""),""),"") ->  | AW23: =IF(IF(AND($J23="non inscrit",AW$6>$H$4),OR($P23<$H$5,$P23<AQ$6),OR($J23<$H$5,$J23<AQ$6)),IFERROR(IF(VLOOKUP($C23,Coat_int!$C$12:$K$400,5,FALSE)=$F23,VLOOKUP($C23,Coat_int!$C$12:$K$400,9,FALSE),""),""),"") ->  | AX23: =IF(IF(AND($J23="non inscrit",AX$6>$H$4),OR($P23<$H$5,$P23<AR$6),OR($J23<$H$5,$J23<AR$6)),IFERROR(IF(VLOOKUP($C23,LG_int!$C$12:$K$400,5,FALSE)=$F23,VLOOKUP($C23,LG_int!$C$12:$K$400,9,FALSE),""),""),"") ->  | AY23: =IF(IF(AND($J23="non inscrit",AY$6>$H$4),OR($P23<$H$5,$P23<AS$6),OR($J23<$H$5,$J23<AS$6)),IFERROR(IF(VLOOKUP($C23,Roc_int!$C$12:$K$400,5,FALSE)=$F23,VLOOKUP($C23,Roc_int!$C$12:$K$400,9,FALSE),""),""),"") ->  | AZ23: =IF(IF(AND($J23="non inscrit",AZ$6>$H$4),OR($P23<$H$5,$P23<AT$6),OR($J23<$H$5,$J23<AT$6)),IFERROR(IF(VLOOKUP($C23,Qc_int!$C$12:$K$400,5,FALSE)=$F23,VLOOKUP($C23,Qc_int!$C$12:$K$400,9,FALSE),""),""),"") ->  | BA23: =IF(IF(AND($J23="non inscrit",BA$6>$H$4),OR($P23<$H$5,$P23<AU$6),OR($J23<$H$5,$J23<AU$6)),IFERROR(IF(VLOOKUP($C23,Asc_int!$C$12:$K$400,5,FALSE)=$F23,VLOOKUP($C23,Asc_int!$C$12:$K$400,9,FALSE),""),""),"") ->  | BB23: =IF(IF(AND($J23="non inscrit",BB$6>$H$4),OR($P23<$H$5,$P23<AV$6),OR($J23<$H$5,$J23<AV$6)),IFERROR(IF(VLOOKUP($C23,CQ_int!$C$12:$K$400,5,FALSE)=$F23,VLOOKUP($C23,CQ_int!$C$12:$K$400,9,FALSE),""),""),"") ->  | BC23: =IF(IF(AND($J23="non inscrit",BC$6>$H$4),OR($P23<$H$5,$P23<AW$6),OR($J23<$H$5,$J23<AW$6)),IFERROR(IF(VLOOKUP($C23,QC2_int!$C$12:$K$400,5,FALSE)=$F23,VLOOKUP($C23,QC2_int!$C$12:$K$400,9,FALSE),""),""),"") ->  | BD23: =IF(IF(AND($J23="non inscrit",BD$6>$H$4),OR($P23<$H$5,$P23<AX$6),OR($J23<$H$5,$J23<AX$6)),IFERROR(IF(VLOOKUP($C23,Ach_int!$C$12:$K$400,5,FALSE)=$F23,VLOOKUP($C23,Ach_int!$C$12:$K$400,9,FALSE),""),""),"") ->  | BF23: =IF(IF(AND($J23="non inscrit",BF$6>$H$4),OR($P23<$H$5,$P23<AZ$6),OR($J23<$H$5,$J23<AZ$6)),IFERROR(IF(VLOOKUP($C23,Buck_int!$C$12:$K$400,5,FALSE)=$F23,VLOOKUP($C23,Buck_int!$C$12:$K$400,9,FALSE),""),""),"") ->  | BG23: =IF(IF(AND($J23="non inscrit",BG$6>$H$4),OR($P23<$H$5,$P23<BA$6),OR($J23<$H$5,$J23<BA$6)),IFERROR(IF(VLOOKUP($C23,CQC_int!$C$12:$K$400,5,FALSE)=$F23,VLOOKUP($C23,CQC_int!$C$12:$K$400,9,FALSE),""),""),"") ->  | BH23: =IF(IF(AND($J23="non inscrit",BH$6>$H$4),OR($P23<$H$5,$P23<BB$6),OR($J23<$H$5,$J23<BB$6)),IFERROR(IF(VLOOKUP($C23,LG3_int!$C$12:$K$400,5,FALSE)=$F23,VLOOKUP($C23,LG3_int!$C$12:$K$400,9,FALSE),""),""),"") ->  | BI23: =IF(IF(AND($J23="non inscrit",BI$6>$H$4),OR($P23<$H$5,$P23<BC$6),OR($J23<$H$5,$J23<BC$6)),IFERROR(IF(VLOOKUP($C23,LS_int!$C$12:$K$400,5,FALSE)=$F23,VLOOKUP($C23,LS_int!$C$12:$K$400,9,FALSE),""),""),"") ->  | BT23: =IF(IF(AND($J23="non inscrit",BT$6>$H$4),OR($P23<$H$5,$P23<BN$6),OR($J23<$H$5,$J23<BN$6)),IFERROR(IF(VLOOKUP($C23,FI!$C$12:$K$400,5,FALSE)=$F23,VLOOKUP($C23,FI!$C$12:$K$400,9,FALSE),""),""),"") -> 
A24: =A23 -> 1 | B24: =B23+1 -> 13 | D24: =IF($C24="","",IF($N$1>$H$4,IFERROR(VLOOKUP($C24,'Membres-2024'!$A:$G,2,FALSE),""),IFERROR(VLOOKUP($C24,'Membres-2023'!$A:$G,2,FALSE),""))) ->  | E24: =IF($C24="","",IF($N$1>$H$4,IFERROR(VLOOKUP($C24,'Membres-2024'!$A:$G,3,FALSE),""),IFERROR(VLOOKUP($C24,'Membres-2023'!$A:$G,3,FALSE),""))) ->  | F24: =IF($C24="","",IF($N$1>$H$4,IFERROR(VLOOKUP($C24,'Membres-2024'!$A:$G,7,FALSE),""),IFERROR(VLOOKUP($C24,'Membres-2023'!$A:$G,7,FALSE),""))) ->  | G24: =IF($C24="","",IF($N$1>$H$4,IFERROR(VLOOKUP($C24,'Membres-2024'!$A:$G,5,FALSE),""),IFERROR(VLOOKUP($C24,'Membres-2023'!$A:$G,5,FALSE),""))) ->  | H24: =COUNTIF($Y24:$BT24,">=0") -> 0 | I24: =SUM(K24:O24,Q24:U24) -> 0 | J24: =IFERROR(IF(VLOOKUP(C24,'Membres-2023'!$A:$F,6,FALSE)>=$H$3,VLOOKUP(C24,'Membres-2023'!$A:$F,6,FALSE),"non inscrit"),IF($C24>0,"non inscrit","")) ->  | K24: =IFERROR(IF(COUNTA(Y24:AT24)>0,LARGE(Y24:AT24,1)/6,""),"") ->  | L24: =IFERROR(IF(COUNTA(Y24:AT24)>1,LARGE(Y24:AT24,2)/6,""),"") ->  | M24: =IFERROR(IF(COUNTA(Y24:AT24)>2,LARGE(Y24:AT24,3)/6,""),"") ->  | N24: =IFERROR(IF(COUNTA(Y24:AT24)>3,LARGE(Y24:AT24,4)/6,""),"") ->  | O24: =IF(AU24<>"",AU24,"") ->  | P24: =IFERROR(IF(VLOOKUP(C24,'Membres-2024'!$A:$F,6,FALSE)>=$H$3,VLOOKUP(C24,'Membres-2024'!$A:$F,6,FALSE),"non inscrit"),IF($C24>0,"non inscrit","")) ->  | Q24: =IFERROR(IF(COUNTA(AW24:BS24)>0,LARGE(AW24:BS24,1)/6,""),"") ->  | R24: =IFERROR(IF(COUNTA(AW24:BS24)>1,LARGE(AW24:BS24,2)/6,""),"") ->  | S24: =IFERROR(IF(COUNTA(AW24:BS24)>2,LARGE(AW24:BS24,3)/6,""),"") ->  | T24: =IFERROR(IF(COUNTA(AW24:BS24)>3,LARGE(AW24:BS24,4)/6,""),"") ->  | U24: =IF(BT24<>"",BT24,"") ->  | Y24: =IF(IF(AND($J24="non inscrit",Y$6>$H$4),OR($P24<$H$5,$P24<Y$6),OR($J24<$H$5,$J24<Y$6)),IFERROR(IF(VLOOKUP($C24,ASF_ext!$C$12:$K$400,5,FALSE)=$F24,VLOOKUP($C24,ASF_ext!$C$12:$K$400,9,FALSE),""),""),"") ->  | Z24: =IF(IF(AND($J24="non inscrit",Z$6>$H$4),OR($P24<$H$5,$P24<Z$6),OR($J24<$H$5,$J24<Z$6)),IFERROR(IF(VLOOKUP($C24,LG_ext!$C$12:$K$400,5,FALSE)=$F24,VLOOKUP($C24,LG_ext!$C$12:$K$400,9,FALSE),""),""),"") ->  | AA24: =IF(IF(AND($J24="non inscrit",AA$6>$H$4),OR($P24<$H$5,$P24<AA$6),OR($J24<$H$5,$J24<AA$6)),IFERROR(IF(VLOOKUP($C24,Jul_ext!$C$12:$K$400,5,FALSE)=$F24,VLOOKUP($C24,Jul_ext!$C$12:$K$400,9,FALSE),""),""),"") ->  | AB24: =IF(IF(AND($J24="non inscrit",AB$6>$H$4),OR($P24<$H$5,$P24<AB$6),OR($J24<$H$5,$J24<AB$6)),IFERROR(IF(VLOOKUP($C24,CQ_ext!$C$12:$K$400,5,FALSE)=$F24,VLOOKUP($C24,CQ_ext!$C$12:$K$400,9,FALSE),""),""),"") ->  | AC24: =IF(IF(AND($J24="non inscrit",AC$6>$H$4),OR($P24<$H$5,$P24<AC$6),OR($J24<$H$5,$J24<AC$6)),IFERROR(IF(VLOOKUP($C24,NAQ_ext!$C$12:$K$400,5,FALSE)=$F24,VLOOKUP($C24,NAQ_ext!$C$12:$K$400,9,FALSE),""),""),"") ->  | AD24: =IF(IF(AND($J24="non inscrit",AD$6>$H$4),OR($P24<$H$5,$P24<AD$6),OR($J24<$H$5,$J24<AD$6)),IFERROR(IF(VLOOKUP($C24,MtL_ext!$C$12:$K$400,5,FALSE)=$F24,VLOOKUP($C24,MtL_ext!$C$12:$K$400,9,FALSE),""),""),"") ->  | AE24: =IF(IF(AND($J24="non inscrit",AE$6>$H$4),OR($P24<$H$5,$P24<AE$6),OR($J24<$H$5,$J24<AE$6)),IFERROR(IF(VLOOKUP($C24,Cant_ext!$C$12:$K$400,5,FALSE)=$F24,VLOOKUP($C24,Cant_ext!$C$12:$K$400,9,FALSE),""),""),"") ->  | AH24: =IF(IF(AND($J24="non inscrit",AH$6>$H$4),OR($P24<$H$5,$P24<AH$6),OR($J24<$H$5,$J24<AH$6)),IFERROR(IF(VLOOKUP($C24,ASF2_ext!$C$12:$K$400,5,FALSE)=$F24,VLOOKUP($C24,ASF2_ext!$C$12:$K$400,9,FALSE),""),""),"") ->  | AI24: =IF(IF(AND($J24="non inscrit",AI$6>$H$4),OR($P24<$H$5,$P24<AI$6),OR($J24<$H$5,$J24<AI$6)),IFERROR(IF(VLOOKUP($C24,Ascot_ext!$C$12:$K$400,5,FALSE)=$F24,VLOOKUP($C24,Ascot_ext!$C$12:$K$400,9,FALSE),""),""),"") ->  | AJ24: =IF(IF(AND($J24="non inscrit",AJ$6>$H$4),OR($P24<$H$5,$P24<AJ$6),OR($J24<$H$5,$J24<AJ$6)),IFERROR(IF(VLOOKUP($C24,BBA_ext!$C$12:$K$400,5,FALSE)=$F24,VLOOKUP($C24,BBA_ext!$C$12:$K$400,9,FALSE),""),""),"") ->  | AK24: =IF(IF(AND($J24="non inscrit",AK$6>$H$4),OR($P24<$H$5,$P24<AK$6),OR($J24<$H$5,$J24<AK$6)),IFERROR(IF(VLOOKUP($C24,Tuq1_ext!$C$12:$K$400,5,FALSE)=$F24,VLOOKUP($C24,Tuq1_ext!$C$12:$K$400,9,FALSE),""),""),"") ->  | AL24: =IF(IF(AND($J24="non inscrit",AL$6>$H$4),OR($P24<$H$5,$P24<AL$6),OR($J24<$H$5,$J24<AL$6)),IFERROR(IF(VLOOKUP($C24,Tuq2_ext!$C$12:$K$400,5,FALSE)=$F24,VLOOKUP($C24,Tuq2_ext!$C$12:$K$400,9,FALSE),""),""),"") ->  | AM24: =IF(IF(AND($J24="non inscrit",AM$6>$H$4),OR($P24<$H$5,$P24<AM$6),OR($J24<$H$5,$J24<AM$6)),IFERROR(IF(VLOOKUP($C24,CQ2_ext!$C$12:$K$400,5,FALSE)=$F24,VLOOKUP($C24,CQ2_ext!$C$12:$K$400,9,FALSE),""),""),"") ->  | AN24: =IF(IF(AND($J24="non inscrit",AN$6>$H$4),OR($P24<$H$5,$P24<AN$6),OR($J24<$H$5,$J24<AN$6)),IFERROR(IF(VLOOKUP($C24,MTL2_ext!$C$12:$K$400,5,FALSE)=$F24,VLOOKUP($C24,MTL2_ext!$C$12:$K$400,9,FALSE),""),""),"") ->  | AO24: =IF(IF(AND($J24="non inscrit",AO$6>$H$4),OR($P24<$H$5,$P24<AO$6),OR($J24<$H$5,$J24<AO$6)),IFERROR(IF(VLOOKUP($C24,NO_ext!$C$12:$K$400,5,FALSE)=$F24,VLOOKUP($C24,NO_ext!$C$12:$K$400,9,FALSE),""),""),"") ->  | AP24: =IF(IF(AND($J24="non inscrit",AP$6>$H$4),OR($P24<$H$5,$P24<AP$6),OR($J24<$H$5,$J24<AP$6)),IFERROR(IF(VLOOKUP($C24,VD_ext!$C$12:$K$400,5,FALSE)=$F24,VLOOKUP($C24,VD_ext!$C$12:$K$400,9,FALSE),""),""),"") ->  | AQ24: =IF(IF(AND($J24="non inscrit",AQ$6>$H$4),OR($P24<$H$5,$P24<AQ$6),OR($J24<$H$5,$J24<AQ$6)),IFERROR(IF(VLOOKUP($C24,PT_ext!$C$12:$K$400,5,FALSE)=$F24,VLOOKUP($C24,PT_ext!$C$12:$K$400,9,FALSE),""),""),"") ->  | AR24: =IF(IF(AND($J24="non inscrit",AR$6>$H$4),OR($P24<$H$5,$P24<AR$6),OR($J24<$H$5,$J24<AR$6)),IFERROR(IF(VLOOKUP($C24,Vic_ext!$C$12:$K$400,5,FALSE)=$F24,VLOOKUP($C24,Vic_ext!$C$12:$K$400,9,FALSE),""),""),"") ->  | AS24: =IF(IF(AND($J24="non inscrit",AS$6>$H$4),OR($P24<$H$5,$P24<AS$6),OR($J24<$H$5,$J24<AS$6)),IFERROR(IF(VLOOKUP($C24,Sor_ext!$C$12:$K$400,5,FALSE)=$F24,VLOOKUP($C24,Sor_ext!$C$12:$K$400,9,FALSE),""),""),"") ->  | AU24: =IF(IF(AND($J24="non inscrit",AU$6>$H$4),OR($P24<$H$5,$P24<AU$6),OR($J24<$H$5,$J24<AU$6)),IFERROR(IF(VLOOKUP($C24,PROV_ext!$C$12:$K$400,5,FALSE)=$F24,VLOOKUP($C24,PROV_ext!$C$12:$K$400,9,FALSE),""),""),"") ->  | AW24: =IF(IF(AND($J24="non inscrit",AW$6>$H$4),OR($P24<$H$5,$P24<AQ$6),OR($J24<$H$5,$J24<AQ$6)),IFERROR(IF(VLOOKUP($C24,Coat_int!$C$12:$K$400,5,FALSE)=$F24,VLOOKUP($C24,Coat_int!$C$12:$K$400,9,FALSE),""),""),"") ->  | AX24: =IF(IF(AND($J24="non inscrit",AX$6>$H$4),OR($P24<$H$5,$P24<AR$6),OR($J24<$H$5,$J24<AR$6)),IFERROR(IF(VLOOKUP($C24,LG_int!$C$12:$K$400,5,FALSE)=$F24,VLOOKUP($C24,LG_int!$C$12:$K$400,9,FALSE),""),""),"") ->  | AY24: =IF(IF(AND($J24="non inscrit",AY$6>$H$4),OR($P24<$H$5,$P24<AS$6),OR($J24<$H$5,$J24<AS$6)),IFERROR(IF(VLOOKUP($C24,Roc_int!$C$12:$K$400,5,FALSE)=$F24,VLOOKUP($C24,Roc_int!$C$12:$K$400,9,FALSE),""),""),"") ->  | AZ24: =IF(IF(AND($J24="non inscrit",AZ$6>$H$4),OR($P24<$H$5,$P24<AT$6),OR($J24<$H$5,$J24<AT$6)),IFERROR(IF(VLOOKUP($C24,Qc_int!$C$12:$K$400,5,FALSE)=$F24,VLOOKUP($C24,Qc_int!$C$12:$K$400,9,FALSE),""),""),"") ->  | BA24: =IF(IF(AND($J24="non inscrit",BA$6>$H$4),OR($P24<$H$5,$P24<AU$6),OR($J24<$H$5,$J24<AU$6)),IFERROR(IF(VLOOKUP($C24,Asc_int!$C$12:$K$400,5,FALSE)=$F24,VLOOKUP($C24,Asc_int!$C$12:$K$400,9,FALSE),""),""),"") ->  | BB24: =IF(IF(AND($J24="non inscrit",BB$6>$H$4),OR($P24<$H$5,$P24<AV$6),OR($J24<$H$5,$J24<AV$6)),IFERROR(IF(VLOOKUP($C24,CQ_int!$C$12:$K$400,5,FALSE)=$F24,VLOOKUP($C24,CQ_int!$C$12:$K$400,9,FALSE),""),""),"") ->  | BC24: =IF(IF(AND($J24="non inscrit",BC$6>$H$4),OR($P24<$H$5,$P24<AW$6),OR($J24<$H$5,$J24<AW$6)),IFERROR(IF(VLOOKUP($C24,QC2_int!$C$12:$K$400,5,FALSE)=$F24,VLOOKUP($C24,QC2_int!$C$12:$K$400,9,FALSE),""),""),"") ->  | BD24: =IF(IF(AND($J24="non inscrit",BD$6>$H$4),OR($P24<$H$5,$P24<AX$6),OR($J24<$H$5,$J24<AX$6)),IFERROR(IF(VLOOKUP($C24,Ach_int!$C$12:$K$400,5,FALSE)=$F24,VLOOKUP($C24,Ach_int!$C$12:$K$400,9,FALSE),""),""),"") ->  | BF24: =IF(IF(AND($J24="non inscrit",BF$6>$H$4),OR($P24<$H$5,$P24<AZ$6),OR($J24<$H$5,$J24<AZ$6)),IFERROR(IF(VLOOKUP($C24,Buck_int!$C$12:$K$400,5,FALSE)=$F24,VLOOKUP($C24,Buck_int!$C$12:$K$400,9,FALSE),""),""),"") ->  | BG24: =IF(IF(AND($J24="non inscrit",BG$6>$H$4),OR($P24<$H$5,$P24<BA$6),OR($J24<$H$5,$J24<BA$6)),IFERROR(IF(VLOOKUP($C24,CQC_int!$C$12:$K$400,5,FALSE)=$F24,VLOOKUP($C24,CQC_int!$C$12:$K$400,9,FALSE),""),""),"") ->  | BH24: =IF(IF(AND($J24="non inscrit",BH$6>$H$4),OR($P24<$H$5,$P24<BB$6),OR($J24<$H$5,$J24<BB$6)),IFERROR(IF(VLOOKUP($C24,LG3_int!$C$12:$K$400,5,FALSE)=$F24,VLOOKUP($C24,LG3_int!$C$12:$K$400,9,FALSE),""),""),"") ->  | BI24: =IF(IF(AND($J24="non inscrit",BI$6>$H$4),OR($P24<$H$5,$P24<BC$6),OR($J24<$H$5,$J24<BC$6)),IFERROR(IF(VLOOKUP($C24,LS_int!$C$12:$K$400,5,FALSE)=$F24,VLOOKUP($C24,LS_int!$C$12:$K$400,9,FALSE),""),""),"") ->  | BT24: =IF(IF(AND($J24="non inscrit",BT$6>$H$4),OR($P24<$H$5,$P24<BN$6),OR($J24<$H$5,$J24<BN$6)),IFERROR(IF(VLOOKUP($C24,FI!$C$12:$K$400,5,FALSE)=$F24,VLOOKUP($C24,FI!$C$12:$K$400,9,FALSE),""),""),"") -> 
A25: =A24 -> 1 | B25: =B24+1 -> 14 | D25: =IF($C25="","",IF($N$1>$H$4,IFERROR(VLOOKUP($C25,'Membres-2024'!$A:$G,2,FALSE),""),IFERROR(VLOOKUP($C25,'Membres-2023'!$A:$G,2,FALSE),""))) ->  | E25: =IF($C25="","",IF($N$1>$H$4,IFERROR(VLOOKUP($C25,'Membres-2024'!$A:$G,3,FALSE),""),IFERROR(VLOOKUP($C25,'Membres-2023'!$A:$G,3,FALSE),""))) ->  | F25: =IF($C25="","",IF($N$1>$H$4,IFERROR(VLOOKUP($C25,'Membres-2024'!$A:$G,7,FALSE),""),IFERROR(VLOOKUP($C25,'Membres-2023'!$A:$G,7,FALSE),""))) ->  | G25: =IF($C25="","",IF($N$1>$H$4,IFERROR(VLOOKUP($C25,'Membres-2024'!$A:$G,5,FALSE),""),IFERROR(VLOOKUP($C25,'Membres-2023'!$A:$G,5,FALSE),""))) ->  | H25: =COUNTIF($Y25:$BT25,">=0") -> 0 | I25: =SUM(K25:O25,Q25:U25) -> 0 | J25: =IFERROR(IF(VLOOKUP(C25,'Membres-2023'!$A:$F,6,FALSE)>=$H$3,VLOOKUP(C25,'Membres-2023'!$A:$F,6,FALSE),"non inscrit"),IF($C25>0,"non inscrit","")) ->  | K25: =IFERROR(IF(COUNTA(Y25:AT25)>0,LARGE(Y25:AT25,1)/6,""),"") ->  | L25: =IFERROR(IF(COUNTA(Y25:AT25)>1,LARGE(Y25:AT25,2)/6,""),"") ->  | M25: =IFERROR(IF(COUNTA(Y25:AT25)>2,LARGE(Y25:AT25,3)/6,""),"") ->  | N25: =IFERROR(IF(COUNTA(Y25:AT25)>3,LARGE(Y25:AT25,4)/6,""),"") ->  | O25: =IF(AU25<>"",AU25,"") ->  | P25: =IFERROR(IF(VLOOKUP(C25,'Membres-2024'!$A:$F,6,FALSE)>=$H$3,VLOOKUP(C25,'Membres-2024'!$A:$F,6,FALSE),"non inscrit"),IF($C25>0,"non inscrit","")) ->  | Q25: =IFERROR(IF(COUNTA(AW25:BS25)>0,LARGE(AW25:BS25,1)/6,""),"") ->  | R25: =IFERROR(IF(COUNTA(AW25:BS25)>1,LARGE(AW25:BS25,2)/6,""),"") ->  | S25: =IFERROR(IF(COUNTA(AW25:BS25)>2,LARGE(AW25:BS25,3)/6,""),"") ->  | T25: =IFERROR(IF(COUNTA(AW25:BS25)>3,LARGE(AW25:BS25,4)/6,""),"") ->  | U25: =IF(BT25<>"",BT25,"") ->  | Y25: =IF(IF(AND($J25="non inscrit",Y$6>$H$4),OR($P25<$H$5,$P25<Y$6),OR($J25<$H$5,$J25<Y$6)),IFERROR(IF(VLOOKUP($C25,ASF_ext!$C$12:$K$400,5,FALSE)=$F25,VLOOKUP($C25,ASF_ext!$C$12:$K$400,9,FALSE),""),""),"") ->  | Z25: =IF(IF(AND($J25="non inscrit",Z$6>$H$4),OR($P25<$H$5,$P25<Z$6),OR($J25<$H$5,$J25<Z$6)),IFERROR(IF(VLOOKUP($C25,LG_ext!$C$12:$K$400,5,FALSE)=$F25,VLOOKUP($C25,LG_ext!$C$12:$K$400,9,FALSE),""),""),"") ->  | AA25: =IF(IF(AND($J25="non inscrit",AA$6>$H$4),OR($P25<$H$5,$P25<AA$6),OR($J25<$H$5,$J25<AA$6)),IFERROR(IF(VLOOKUP($C25,Jul_ext!$C$12:$K$400,5,FALSE)=$F25,VLOOKUP($C25,Jul_ext!$C$12:$K$400,9,FALSE),""),""),"") ->  | AB25: =IF(IF(AND($J25="non inscrit",AB$6>$H$4),OR($P25<$H$5,$P25<AB$6),OR($J25<$H$5,$J25<AB$6)),IFERROR(IF(VLOOKUP($C25,CQ_ext!$C$12:$K$400,5,FALSE)=$F25,VLOOKUP($C25,CQ_ext!$C$12:$K$400,9,FALSE),""),""),"") ->  | AC25: =IF(IF(AND($J25="non inscrit",AC$6>$H$4),OR($P25<$H$5,$P25<AC$6),OR($J25<$H$5,$J25<AC$6)),IFERROR(IF(VLOOKUP($C25,NAQ_ext!$C$12:$K$400,5,FALSE)=$F25,VLOOKUP($C25,NAQ_ext!$C$12:$K$400,9,FALSE),""),""),"") ->  | AD25: =IF(IF(AND($J25="non inscrit",AD$6>$H$4),OR($P25<$H$5,$P25<AD$6),OR($J25<$H$5,$J25<AD$6)),IFERROR(IF(VLOOKUP($C25,MtL_ext!$C$12:$K$400,5,FALSE)=$F25,VLOOKUP($C25,MtL_ext!$C$12:$K$400,9,FALSE),""),""),"") ->  | AE25: =IF(IF(AND($J25="non inscrit",AE$6>$H$4),OR($P25<$H$5,$P25<AE$6),OR($J25<$H$5,$J25<AE$6)),IFERROR(IF(VLOOKUP($C25,Cant_ext!$C$12:$K$400,5,FALSE)=$F25,VLOOKUP($C25,Cant_ext!$C$12:$K$400,9,FALSE),""),""),"") ->  | AH25: =IF(IF(AND($J25="non inscrit",AH$6>$H$4),OR($P25<$H$5,$P25<AH$6),OR($J25<$H$5,$J25<AH$6)),IFERROR(IF(VLOOKUP($C25,ASF2_ext!$C$12:$K$400,5,FALSE)=$F25,VLOOKUP($C25,ASF2_ext!$C$12:$K$400,9,FALSE),""),""),"") ->  | AI25: =IF(IF(AND($J25="non inscrit",AI$6>$H$4),OR($P25<$H$5,$P25<AI$6),OR($J25<$H$5,$J25<AI$6)),IFERROR(IF(VLOOKUP($C25,Ascot_ext!$C$12:$K$400,5,FALSE)=$F25,VLOOKUP($C25,Ascot_ext!$C$12:$K$400,9,FALSE),""),""),"") ->  | AJ25: =IF(IF(AND($J25="non inscrit",AJ$6>$H$4),OR($P25<$H$5,$P25<AJ$6),OR($J25<$H$5,$J25<AJ$6)),IFERROR(IF(VLOOKUP($C25,BBA_ext!$C$12:$K$400,5,FALSE)=$F25,VLOOKUP($C25,BBA_ext!$C$12:$K$400,9,FALSE),""),""),"") ->  | AK25: =IF(IF(AND($J25="non inscrit",AK$6>$H$4),OR($P25<$H$5,$P25<AK$6),OR($J25<$H$5,$J25<AK$6)),IFERROR(IF(VLOOKUP($C25,Tuq1_ext!$C$12:$K$400,5,FALSE)=$F25,VLOOKUP($C25,Tuq1_ext!$C$12:$K$400,9,FALSE),""),""),"") ->  | AL25: =IF(IF(AND($J25="non inscrit",AL$6>$H$4),OR($P25<$H$5,$P25<AL$6),OR($J25<$H$5,$J25<AL$6)),IFERROR(IF(VLOOKUP($C25,Tuq2_ext!$C$12:$K$400,5,FALSE)=$F25,VLOOKUP($C25,Tuq2_ext!$C$12:$K$400,9,FALSE),""),""),"") ->  | AM25: =IF(IF(AND($J25="non inscrit",AM$6>$H$4),OR($P25<$H$5,$P25<AM$6),OR($J25<$H$5,$J25<AM$6)),IFERROR(IF(VLOOKUP($C25,CQ2_ext!$C$12:$K$400,5,FALSE)=$F25,VLOOKUP($C25,CQ2_ext!$C$12:$K$400,9,FALSE),""),""),"") ->  | AN25: =IF(IF(AND($J25="non inscrit",AN$6>$H$4),OR($P25<$H$5,$P25<AN$6),OR($J25<$H$5,$J25<AN$6)),IFERROR(IF(VLOOKUP($C25,MTL2_ext!$C$12:$K$400,5,FALSE)=$F25,VLOOKUP($C25,MTL2_ext!$C$12:$K$400,9,FALSE),""),""),"") ->  | AO25: =IF(IF(AND($J25="non inscrit",AO$6>$H$4),OR($P25<$H$5,$P25<AO$6),OR($J25<$H$5,$J25<AO$6)),IFERROR(IF(VLOOKUP($C25,NO_ext!$C$12:$K$400,5,FALSE)=$F25,VLOOKUP($C25,NO_ext!$C$12:$K$400,9,FALSE),""),""),"") ->  | AP25: =IF(IF(AND($J25="non inscrit",AP$6>$H$4),OR($P25<$H$5,$P25<AP$6),OR($J25<$H$5,$J25<AP$6)),IFERROR(IF(VLOOKUP($C25,VD_ext!$C$12:$K$400,5,FALSE)=$F25,VLOOKUP($C25,VD_ext!$C$12:$K$400,9,FALSE),""),""),"") ->  | AQ25: =IF(IF(AND($J25="non inscrit",AQ$6>$H$4),OR($P25<$H$5,$P25<AQ$6),OR($J25<$H$5,$J25<AQ$6)),IFERROR(IF(VLOOKUP($C25,PT_ext!$C$12:$K$400,5,FALSE)=$F25,VLOOKUP($C25,PT_ext!$C$12:$K$400,9,FALSE),""),""),"") ->  | AR25: =IF(IF(AND($J25="non inscrit",AR$6>$H$4),OR($P25<$H$5,$P25<AR$6),OR($J25<$H$5,$J25<AR$6)),IFERROR(IF(VLOOKUP($C25,Vic_ext!$C$12:$K$400,5,FALSE)=$F25,VLOOKUP($C25,Vic_ext!$C$12:$K$400,9,FALSE),""),""),"") ->  | AS25: =IF(IF(AND($J25="non inscrit",AS$6>$H$4),OR($P25<$H$5,$P25<AS$6),OR($J25<$H$5,$J25<AS$6)),IFERROR(IF(VLOOKUP($C25,Sor_ext!$C$12:$K$400,5,FALSE)=$F25,VLOOKUP($C25,Sor_ext!$C$12:$K$400,9,FALSE),""),""),"") ->  | AU25: =IF(IF(AND($J25="non inscrit",AU$6>$H$4),OR($P25<$H$5,$P25<AU$6),OR($J25<$H$5,$J25<AU$6)),IFERROR(IF(VLOOKUP($C25,PROV_ext!$C$12:$K$400,5,FALSE)=$F25,VLOOKUP($C25,PROV_ext!$C$12:$K$400,9,FALSE),""),""),"") ->  | AW25: =IF(IF(AND($J25="non inscrit",AW$6>$H$4),OR($P25<$H$5,$P25<AQ$6),OR($J25<$H$5,$J25<AQ$6)),IFERROR(IF(VLOOKUP($C25,Coat_int!$C$12:$K$400,5,FALSE)=$F25,VLOOKUP($C25,Coat_int!$C$12:$K$400,9,FALSE),""),""),"") ->  | AX25: =IF(IF(AND($J25="non inscrit",AX$6>$H$4),OR($P25<$H$5,$P25<AR$6),OR($J25<$H$5,$J25<AR$6)),IFERROR(IF(VLOOKUP($C25,LG_int!$C$12:$K$400,5,FALSE)=$F25,VLOOKUP($C25,LG_int!$C$12:$K$400,9,FALSE),""),""),"") ->  | AY25: =IF(IF(AND($J25="non inscrit",AY$6>$H$4),OR($P25<$H$5,$P25<AS$6),OR($J25<$H$5,$J25<AS$6)),IFERROR(IF(VLOOKUP($C25,Roc_int!$C$12:$K$400,5,FALSE)=$F25,VLOOKUP($C25,Roc_int!$C$12:$K$400,9,FALSE),""),""),"") ->  | AZ25: =IF(IF(AND($J25="non inscrit",AZ$6>$H$4),OR($P25<$H$5,$P25<AT$6),OR($J25<$H$5,$J25<AT$6)),IFERROR(IF(VLOOKUP($C25,Qc_int!$C$12:$K$400,5,FALSE)=$F25,VLOOKUP($C25,Qc_int!$C$12:$K$400,9,FALSE),""),""),"") ->  | BA25: =IF(IF(AND($J25="non inscrit",BA$6>$H$4),OR($P25<$H$5,$P25<AU$6),OR($J25<$H$5,$J25<AU$6)),IFERROR(IF(VLOOKUP($C25,Asc_int!$C$12:$K$400,5,FALSE)=$F25,VLOOKUP($C25,Asc_int!$C$12:$K$400,9,FALSE),""),""),"") ->  | BB25: =IF(IF(AND($J25="non inscrit",BB$6>$H$4),OR($P25<$H$5,$P25<AV$6),OR($J25<$H$5,$J25<AV$6)),IFERROR(IF(VLOOKUP($C25,CQ_int!$C$12:$K$400,5,FALSE)=$F25,VLOOKUP($C25,CQ_int!$C$12:$K$400,9,FALSE),""),""),"") ->  | BC25: =IF(IF(AND($J25="non inscrit",BC$6>$H$4),OR($P25<$H$5,$P25<AW$6),OR($J25<$H$5,$J25<AW$6)),IFERROR(IF(VLOOKUP($C25,QC2_int!$C$12:$K$400,5,FALSE)=$F25,VLOOKUP($C25,QC2_int!$C$12:$K$400,9,FALSE),""),""),"") ->  | BD25: =IF(IF(AND($J25="non inscrit",BD$6>$H$4),OR($P25<$H$5,$P25<AX$6),OR($J25<$H$5,$J25<AX$6)),IFERROR(IF(VLOOKUP($C25,Ach_int!$C$12:$K$400,5,FALSE)=$F25,VLOOKUP($C25,Ach_int!$C$12:$K$400,9,FALSE),""),""),"") ->  | BF25: =IF(IF(AND($J25="non inscrit",BF$6>$H$4),OR($P25<$H$5,$P25<AZ$6),OR($J25<$H$5,$J25<AZ$6)),IFERROR(IF(VLOOKUP($C25,Buck_int!$C$12:$K$400,5,FALSE)=$F25,VLOOKUP($C25,Buck_int!$C$12:$K$400,9,FALSE),""),""),"") ->  | BG25: =IF(IF(AND($J25="non inscrit",BG$6>$H$4),OR($P25<$H$5,$P25<BA$6),OR($J25<$H$5,$J25<BA$6)),IFERROR(IF(VLOOKUP($C25,CQC_int!$C$12:$K$400,5,FALSE)=$F25,VLOOKUP($C25,CQC_int!$C$12:$K$400,9,FALSE),""),""),"") ->  | BH25: =IF(IF(AND($J25="non inscrit",BH$6>$H$4),OR($P25<$H$5,$P25<BB$6),OR($J25<$H$5,$J25<BB$6)),IFERROR(IF(VLOOKUP($C25,LG3_int!$C$12:$K$400,5,FALSE)=$F25,VLOOKUP($C25,LG3_int!$C$12:$K$400,9,FALSE),""),""),"") ->  | BI25: =IF(IF(AND($J25="non inscrit",BI$6>$H$4),OR($P25<$H$5,$P25<BC$6),OR($J25<$H$5,$J25<BC$6)),IFERROR(IF(VLOOKUP($C25,LS_int!$C$12:$K$400,5,FALSE)=$F25,VLOOKUP($C25,LS_int!$C$12:$K$400,9,FALSE),""),""),"") ->  | BT25: =IF(IF(AND($J25="non inscrit",BT$6>$H$4),OR($P25<$H$5,$P25<BN$6),OR($J25<$H$5,$J25<BN$6)),IFERROR(IF(VLOOKUP($C25,FI!$C$12:$K$400,5,FALSE)=$F25,VLOOKUP($C25,FI!$C$12:$K$400,9,FALSE),""),""),"") -> 
A26: =A25 -> 1 | B26: =B25+1 -> 15 | C26: 2833 | D26: =IF($C26="","",IF($N$1>$H$4,IFERROR(VLOOKUP($C26,'Membres-2024'!$A:$G,2,FALSE),""),IFERROR(VLOOKUP($C26,'Membres-2023'!$A:$G,2,FALSE),""))) -> Boudrias | E26: =IF($C26="","",IF($N$1>$H$4,IFERROR(VLOOKUP($C26,'Membres-2024'!$A:$G,3,FALSE),""),IFERROR(VLOOKUP($C26,'Membres-2023'!$A:$G,3,FALSE),""))) -> OLLY | F26: =IF($C26="","",IF($N$1>$H$4,IFERROR(VLOOKUP($C26,'Membres-2024'!$A:$G,7,FALSE),""),IFERROR(VLOOKUP($C26,'Membres-2023'!$A:$G,7,FALSE),""))) -> 1 | G26: =IF($C26="","",IF($N$1>$H$4,IFERROR(VLOOKUP($C26,'Membres-2024'!$A:$G,5,FALSE),""),IFERROR(VLOOKUP($C26,'Membres-2023'!$A:$G,5,FALSE),""))) -> Mont-Laurier (Lynx) | H26: =COUNTIF($Y26:$BT26,">=0") -> 0 | I26: =SUM(K26:O26,Q26:U26) -> 0 | J26: =IFERROR(IF(VLOOKUP(C26,'Membres-2023'!$A:$F,6,FALSE)>=$H$3,VLOOKUP(C26,'Membres-2023'!$A:$F,6,FALSE),"non inscrit"),IF($C26>0,"non inscrit","")) -> 2023-01-03 | K26: =IFERROR(IF(COUNTA(Y26:AT26)>0,LARGE(Y26:AT26,1)/6,""),"") ->  | L26: =IFERROR(IF(COUNTA(Y26:AT26)>1,LARGE(Y26:AT26,2)/6,""),"") ->  | M26: =IFERROR(IF(COUNTA(Y26:AT26)>2,LARGE(Y26:AT26,3)/6,""),"") ->  | N26: =IFERROR(IF(COUNTA(Y26:AT26)>3,LARGE(Y26:AT26,4)/6,""),"") ->  | O26: =IF(AU26<>"",AU26,"") ->  | P26: =IFERROR(IF(VLOOKUP(C26,'Membres-2024'!$A:$F,6,FALSE)>=$H$3,VLOOKUP(C26,'Membres-2024'!$A:$F,6,FALSE),"non inscrit"),IF($C26>0,"non inscrit","")) -> 2024-01-08 | Q26: =IFERROR(IF(COUNTA(AW26:BS26)>0,LARGE(AW26:BS26,1)/6,""),"") ->  | R26: =IFERROR(IF(COUNTA(AW26:BS26)>1,LARGE(AW26:BS26,2)/6,""),"") ->  | S26: =IFERROR(IF(COUNTA(AW26:BS26)>2,LARGE(AW26:BS26,3)/6,""),"") ->  | T26: =IFERROR(IF(COUNTA(AW26:BS26)>3,LARGE(AW26:BS26,4)/6,""),"") ->  | U26: =IF(BT26<>"",BT26,"") ->  | Y26: =IF(IF(AND($J26="non inscrit",Y$6>$H$4),OR($P26<$H$5,$P26<Y$6),OR($J26<$H$5,$J26<Y$6)),IFERROR(IF(VLOOKUP($C26,ASF_ext!$C$12:$K$400,5,FALSE)=$F26,VLOOKUP($C26,ASF_ext!$C$12:$K$400,9,FALSE),""),""),"") ->  | Z26: =IF(IF(AND($J26="non inscrit",Z$6>$H$4),OR($P26<$H$5,$P26<Z$6),OR($J26<$H$5,$J26<Z$6)),IFERROR(IF(VLOOKUP($C26,LG_ext!$C$12:$K$400,5,FALSE)=$F26,VLOOKUP($C26,LG_ext!$C$12:$K$400,9,FALSE),""),""),"") ->  | AA26: =IF(IF(AND($J26="non inscrit",AA$6>$H$4),OR($P26<$H$5,$P26<AA$6),OR($J26<$H$5,$J26<AA$6)),IFERROR(IF(VLOOKUP($C26,Jul_ext!$C$12:$K$400,5,FALSE)=$F26,VLOOKUP($C26,Jul_ext!$C$12:$K$400,9,FALSE),""),""),"") ->  | AB26: =IF(IF(AND($J26="non inscrit",AB$6>$H$4),OR($P26<$H$5,$P26<AB$6),OR($J26<$H$5,$J26<AB$6)),IFERROR(IF(VLOOKUP($C26,CQ_ext!$C$12:$K$400,5,FALSE)=$F26,VLOOKUP($C26,CQ_ext!$C$12:$K$400,9,FALSE),""),""),"") ->  | AC26: =IF(IF(AND($J26="non inscrit",AC$6>$H$4),OR($P26<$H$5,$P26<AC$6),OR($J26<$H$5,$J26<AC$6)),IFERROR(IF(VLOOKUP($C26,NAQ_ext!$C$12:$K$400,5,FALSE)=$F26,VLOOKUP($C26,NAQ_ext!$C$12:$K$400,9,FALSE),""),""),"") ->  | AD26: =IF(IF(AND($J26="non inscrit",AD$6>$H$4),OR($P26<$H$5,$P26<AD$6),OR($J26<$H$5,$J26<AD$6)),IFERROR(IF(VLOOKUP($C26,MtL_ext!$C$12:$K$400,5,FALSE)=$F26,VLOOKUP($C26,MtL_ext!$C$12:$K$400,9,FALSE),""),""),"") ->  | AE26: =IF(IF(AND($J26="non inscrit",AE$6>$H$4),OR($P26<$H$5,$P26<AE$6),OR($J26<$H$5,$J26<AE$6)),IFERROR(IF(VLOOKUP($C26,Cant_ext!$C$12:$K$400,5,FALSE)=$F26,VLOOKUP($C26,Cant_ext!$C$12:$K$400,9,FALSE),""),""),"") ->  | AH26: =IF(IF(AND($J26="non inscrit",AH$6>$H$4),OR($P26<$H$5,$P26<AH$6),OR($J26<$H$5,$J26<AH$6)),IFERROR(IF(VLOOKUP($C26,ASF2_ext!$C$12:$K$400,5,FALSE)=$F26,VLOOKUP($C26,ASF2_ext!$C$12:$K$400,9,FALSE),""),""),"") ->  | AI26: =IF(IF(AND($J26="non inscrit",AI$6>$H$4),OR($P26<$H$5,$P26<AI$6),OR($J26<$H$5,$J26<AI$6)),IFERROR(IF(VLOOKUP($C26,Ascot_ext!$C$12:$K$400,5,FALSE)=$F26,VLOOKUP($C26,Ascot_ext!$C$12:$K$400,9,FALSE),""),""),"") ->  | AJ26: =IF(IF(AND($J26="non inscrit",AJ$6>$H$4),OR($P26<$H$5,$P26<AJ$6),OR($J26<$H$5,$J26<AJ$6)),IFERROR(IF(VLOOKUP($C26,BBA_ext!$C$12:$K$400,5,FALSE)=$F26,VLOOKUP($C26,BBA_ext!$C$12:$K$400,9,FALSE),""),""),"") ->  | AK26: =IF(IF(AND($J26="non inscrit",AK$6>$H$4),OR($P26<$H$5,$P26<AK$6),OR($J26<$H$5,$J26<AK$6)),IFERROR(IF(VLOOKUP($C26,Tuq1_ext!$C$12:$K$400,5,FALSE)=$F26,VLOOKUP($C26,Tuq1_ext!$C$12:$K$400,9,FALSE),""),""),"") ->  | AL26: =IF(IF(AND($J26="non inscrit",AL$6>$H$4),OR($P26<$H$5,$P26<AL$6),OR($J26<$H$5,$J26<AL$6)),IFERROR(IF(VLOOKUP($C26,Tuq2_ext!$C$12:$K$400,5,FALSE)=$F26,VLOOKUP($C26,Tuq2_ext!$C$12:$K$400,9,FALSE),""),""),"") ->  | AM26: =IF(IF(AND($J26="non inscrit",AM$6>$H$4),OR($P26<$H$5,$P26<AM$6),OR($J26<$H$5,$J26<AM$6)),IFERROR(IF(VLOOKUP($C26,CQ2_ext!$C$12:$K$400,5,FALSE)=$F26,VLOOKUP($C26,CQ2_ext!$C$12:$K$400,9,FALSE),""),""),"") ->  | AN26: =IF(IF(AND($J26="non inscrit",AN$6>$H$4),OR($P26<$H$5,$P26<AN$6),OR($J26<$H$5,$J26<AN$6)),IFERROR(IF(VLOOKUP($C26,MTL2_ext!$C$12:$K$400,5,FALSE)=$F26,VLOOKUP($C26,MTL2_ext!$C$12:$K$400,9,FALSE),""),""),"") ->  | AO26: =IF(IF(AND($J26="non inscrit",AO$6>$H$4),OR($P26<$H$5,$P26<AO$6),OR($J26<$H$5,$J26<AO$6)),IFERROR(IF(VLOOKUP($C26,NO_ext!$C$12:$K$400,5,FALSE)=$F26,VLOOKUP($C26,NO_ext!$C$12:$K$400,9,FALSE),""),""),"") ->  | AP26: =IF(IF(AND($J26="non inscrit",AP$6>$H$4),OR($P26<$H$5,$P26<AP$6),OR($J26<$H$5,$J26<AP$6)),IFERROR(IF(VLOOKUP($C26,VD_ext!$C$12:$K$400,5,FALSE)=$F26,VLOOKUP($C26,VD_ext!$C$12:$K$400,9,FALSE),""),""),"") ->  | AQ26: =IF(IF(AND($J26="non inscrit",AQ$6>$H$4),OR($P26<$H$5,$P26<AQ$6),OR($J26<$H$5,$J26<AQ$6)),IFERROR(IF(VLOOKUP($C26,PT_ext!$C$12:$K$400,5,FALSE)=$F26,VLOOKUP($C26,PT_ext!$C$12:$K$400,9,FALSE),""),""),"") ->  | AR26: =IF(IF(AND($J26="non inscrit",AR$6>$H$4),OR($P26<$H$5,$P26<AR$6),OR($J26<$H$5,$J26<AR$6)),IFERROR(IF(VLOOKUP($C26,Vic_ext!$C$12:$K$400,5,FALSE)=$F26,VLOOKUP($C26,Vic_ext!$C$12:$K$400,9,FALSE),""),""),"") ->  | AS26: =IF(IF(AND($J26="non inscrit",AS$6>$H$4),OR($P26<$H$5,$P26<AS$6),OR($J26<$H$5,$J26<AS$6)),IFERROR(IF(VLOOKUP($C26,Sor_ext!$C$12:$K$400,5,FALSE)=$F26,VLOOKUP($C26,Sor_ext!$C$12:$K$400,9,FALSE),""),""),"") ->  | AU26: =IF(IF(AND($J26="non inscrit",AU$6>$H$4),OR($P26<$H$5,$P26<AU$6),OR($J26<$H$5,$J26<AU$6)),IFERROR(IF(VLOOKUP($C26,PROV_ext!$C$12:$K$400,5,FALSE)=$F26,VLOOKUP($C26,PROV_ext!$C$12:$K$400,9,FALSE),""),""),"") ->  | AW26: =IF(IF(AND($J26="non inscrit",AW$6>$H$4),OR($P26<$H$5,$P26<AQ$6),OR($J26<$H$5,$J26<AQ$6)),IFERROR(IF(VLOOKUP($C26,Coat_int!$C$12:$K$400,5,FALSE)=$F26,VLOOKUP($C26,Coat_int!$C$12:$K$400,9,FALSE),""),""),"") ->  | AX26: =IF(IF(AND($J26="non inscrit",AX$6>$H$4),OR($P26<$H$5,$P26<AR$6),OR($J26<$H$5,$J26<AR$6)),IFERROR(IF(VLOOKUP($C26,LG_int!$C$12:$K$400,5,FALSE)=$F26,VLOOKUP($C26,LG_int!$C$12:$K$400,9,FALSE),""),""),"") ->  | AY26: =IF(IF(AND($J26="non inscrit",AY$6>$H$4),OR($P26<$H$5,$P26<AS$6),OR($J26<$H$5,$J26<AS$6)),IFERROR(IF(VLOOKUP($C26,Roc_int!$C$12:$K$400,5,FALSE)=$F26,VLOOKUP($C26,Roc_int!$C$12:$K$400,9,FALSE),""),""),"") ->  | AZ26: =IF(IF(AND($J26="non inscrit",AZ$6>$H$4),OR($P26<$H$5,$P26<AT$6),OR($J26<$H$5,$J26<AT$6)),IFERROR(IF(VLOOKUP($C26,Qc_int!$C$12:$K$400,5,FALSE)=$F26,VLOOKUP($C26,Qc_int!$C$12:$K$400,9,FALSE),""),""),"") ->  | BA26: =IF(IF(AND($J26="non inscrit",BA$6>$H$4),OR($P26<$H$5,$P26<AU$6),OR($J26<$H$5,$J26<AU$6)),IFERROR(IF(VLOOKUP($C26,Asc_int!$C$12:$K$400,5,FALSE)=$F26,VLOOKUP($C26,Asc_int!$C$12:$K$400,9,FALSE),""),""),"") ->  | BB26: =IF(IF(AND($J26="non inscrit",BB$6>$H$4),OR($P26<$H$5,$P26<AV$6),OR($J26<$H$5,$J26<AV$6)),IFERROR(IF(VLOOKUP($C26,CQ_int!$C$12:$K$400,5,FALSE)=$F26,VLOOKUP($C26,CQ_int!$C$12:$K$400,9,FALSE),""),""),"") ->  | BC26: =IF(IF(AND($J26="non inscrit",BC$6>$H$4),OR($P26<$H$5,$P26<AW$6),OR($J26<$H$5,$J26<AW$6)),IFERROR(IF(VLOOKUP($C26,QC2_int!$C$12:$K$400,5,FALSE)=$F26,VLOOKUP($C26,QC2_int!$C$12:$K$400,9,FALSE),""),""),"") ->  | BD26: =IF(IF(AND($J26="non inscrit",BD$6>$H$4),OR($P26<$H$5,$P26<AX$6),OR($J26<$H$5,$J26<AX$6)),IFERROR(IF(VLOOKUP($C26,Ach_int!$C$12:$K$400,5,FALSE)=$F26,VLOOKUP($C26,Ach_int!$C$12:$K$400,9,FALSE),""),""),"") ->  | BF26: =IF(IF(AND($J26="non inscrit",BF$6>$H$4),OR($P26<$H$5,$P26<AZ$6),OR($J26<$H$5,$J26<AZ$6)),IFERROR(IF(VLOOKUP($C26,Buck_int!$C$12:$K$400,5,FALSE)=$F26,VLOOKUP($C26,Buck_int!$C$12:$K$400,9,FALSE),""),""),"") ->  | BG26: =IF(IF(AND($J26="non inscrit",BG$6>$H$4),OR($P26<$H$5,$P26<BA$6),OR($J26<$H$5,$J26<BA$6)),IFERROR(IF(VLOOKUP($C26,CQC_int!$C$12:$K$400,5,FALSE)=$F26,VLOOKUP($C26,CQC_int!$C$12:$K$400,9,FALSE),""),""),"") ->  | BH26: =IF(IF(AND($J26="non inscrit",BH$6>$H$4),OR($P26<$H$5,$P26<BB$6),OR($J26<$H$5,$J26<BB$6)),IFERROR(IF(VLOOKUP($C26,LG3_int!$C$12:$K$400,5,FALSE)=$F26,VLOOKUP($C26,LG3_int!$C$12:$K$400,9,FALSE),""),""),"") ->  | BI26: =IF(IF(AND($J26="non inscrit",BI$6>$H$4),OR($P26<$H$5,$P26<BC$6),OR($J26<$H$5,$J26<BC$6)),IFERROR(IF(VLOOKUP($C26,LS_int!$C$12:$K$400,5,FALSE)=$F26,VLOOKUP($C26,LS_int!$C$12:$K$400,9,FALSE),""),""),"") ->  | BT26: =IF(IF(AND($J26="non inscrit",BT$6>$H$4),OR($P26<$H$5,$P26<BN$6),OR($J26<$H$5,$J26<BN$6)),IFERROR(IF(VLOOKUP($C26,FI!$C$12:$K$400,5,FALSE)=$F26,VLOOKUP($C26,FI!$C$12:$K$400,9,FALSE),""),""),"") -> 
A27: =A28 -> 2 | I27: 1324 | J27: 1 | P27: 1
A28: 2 | B28: Classe 2 et | E28: FEMME FUTUR ARCHER - POULIES ( - 12 ans ) | I28: 1323 | J28: 1 | K28: 15 mètres | M28: BLANC | P28: 1
A29: =A28 -> 2 | B29: Classe 4 | E29: FEMME FUTUR ARCHER - TRADITIONNEL ( - 12 ans ) | I29: 1322 | J29: 1 | K29: 15 mètres | M29: BLANC | P29: 1
A30: =A29 -> 2 | I30: 1321 | J30: 1 | P30: 1
A31: =A30 -> 2 | B31: =B30+1 -> 1 | C31: 6189 | D31: =IF($C31="","",IF($N$1>$H$4,IFERROR(VLOOKUP($C31,'Membres-2024'!$A:$G,2,FALSE),""),IFERROR(VLOOKUP($C31,'Membres-2023'!$A:$G,2,FALSE),""))) -> Poirier | E31: =IF($C31="","",IF($N$1>$H$4,IFERROR(VLOOKUP($C31,'Membres-2024'!$A:$G,3,FALSE),""),IFERROR(VLOOKUP($C31,'Membres-2023'!$A:$G,3,FALSE),""))) -> Laury | F31: =IF($C31="","",IF($N$1>$H$4,IFERROR(VLOOKUP($C31,'Membres-2024'!$A:$G,7,FALSE),""),IFERROR(VLOOKUP($C31,'Membres-2023'!$A:$G,7,FALSE),""))) -> 2 | G31: =IF($C31="","",IF($N$1>$H$4,IFERROR(VLOOKUP($C31,'Membres-2024'!$A:$G,5,FALSE),""),IFERROR(VLOOKUP($C31,'Membres-2023'!$A:$G,5,FALSE),""))) -> Arcus St-Jean | H31: =COUNTIF($Y31:$BT31,">=0") -> 5 | I31: =SUM(K31:O31,Q31:U31) -> 386.8333333 | J31: =IFERROR(IF(VLOOKUP(C31,'Membres-2023'!$A:$F,6,FALSE)>=$H$3,VLOOKUP(C31,'Membres-2023'!$A:$F,6,FALSE),"non inscrit"),IF($C31>0,"non inscrit","")) -> 2023-05-09 | K31: =IFERROR(IF(COUNTA(Y31:AT31)>0,LARGE(Y31:AT31,1)/6,""),"") ->  | L31: =IFERROR(IF(COUNTA(Y31:AT31)>1,LARGE(Y31:AT31,2)/6,""),"") ->  | M31: =IFERROR(IF(COUNTA(Y31:AT31)>2,LARGE(Y31:AT31,3)/6,""),"") ->  | N31: =IFERROR(IF(COUNTA(Y31:AT31)>3,LARGE(Y31:AT31,4)/6,""),"") ->  | O31: =IF(AU31<>"",AU31,"") ->  | P31: =IFERROR(IF(VLOOKUP(C31,'Membres-2024'!$A:$F,6,FALSE)>=$H$3,VLOOKUP(C31,'Membres-2024'!$A:$F,6,FALSE),"non inscrit"),IF($C31>0,"non inscrit","")) -> 2024-02-11 | Q31: =IFERROR(IF(COUNTA(AW31:BS31)>0,LARGE(AW31:BS31,1)/6,""),"") -> 40 | R31: =IFERROR(IF(COUNTA(AW31:BS31)>1,LARGE(AW31:BS31,2)/6,""),"") -> 37.16666667 | S31: =IFERROR(IF(COUNTA(AW31:BS31)>2,LARGE(AW31:BS31,3)/6,""),"") -> 36.83333333 | T31: =IFERROR(IF(COUNTA(AW31:BS31)>3,LARGE(AW31:BS31,4)/6,""),"") -> 36.83333333 | U31: =IF(BT31<>"",BT31,"") -> 236 | Y31: =IF(IF(AND($J31="non inscrit",Y$6>$H$4),OR($P31<$H$5,$P31<Y$6),OR($J31<$H$5,$J31<Y$6)),IFERROR(IF(VLOOKUP($C31,ASF_ext!$C$12:$K$400,5,FALSE)=$F31,VLOOKUP($C31,ASF_ext!$C$12:$K$400,9,FALSE),""),""),"") ->  | Z31: =IF(IF(AND($J31="non inscrit",Z$6>$H$4),OR($P31<$H$5,$P31<Z$6),OR($J31<$H$5,$J31<Z$6)),IFERROR(IF(VLOOKUP($C31,LG_ext!$C$12:$K$400,5,FALSE)=$F31,VLOOKUP($C31,LG_ext!$C$12:$K$400,9,FALSE),""),""),"") ->  | AA31: =IF(IF(AND($J31="non inscrit",AA$6>$H$4),OR($P31<$H$5,$P31<AA$6),OR($J31<$H$5,$J31<AA$6)),IFERROR(IF(VLOOKUP($C31,Jul_ext!$C$12:$K$400,5,FALSE)=$F31,VLOOKUP($C31,Jul_ext!$C$12:$K$400,9,FALSE),""),""),"") ->  | AB31: =IF(IF(AND($J31="non inscrit",AB$6>$H$4),OR($P31<$H$5,$P31<AB$6),OR($J31<$H$5,$J31<AB$6)),IFERROR(IF(VLOOKUP($C31,CQ_ext!$C$12:$K$400,5,FALSE)=$F31,VLOOKUP($C31,CQ_ext!$C$12:$K$400,9,FALSE),""),""),"") ->  | AC31: =IF(IF(AND($J31="non inscrit",AC$6>$H$4),OR($P31<$H$5,$P31<AC$6),OR($J31<$H$5,$J31<AC$6)),IFERROR(IF(VLOOKUP($C31,NAQ_ext!$C$12:$K$400,5,FALSE)=$F31,VLOOKUP($C31,NAQ_ext!$C$12:$K$400,9,FALSE),""),""),"") ->  | AD31: =IF(IF(AND($J31="non inscrit",AD$6>$H$4),OR($P31<$H$5,$P31<AD$6),OR($J31<$H$5,$J31<AD$6)),IFERROR(IF(VLOOKUP($C31,MtL_ext!$C$12:$K$400,5,FALSE)=$F31,VLOOKUP($C31,MtL_ext!$C$12:$K$400,9,FALSE),""),""),"") ->  | AE31: =IF(IF(AND($J31="non inscrit",AE$6>$H$4),OR($P31<$H$5,$P31<AE$6),OR($J31<$H$5,$J31<AE$6)),IFERROR(IF(VLOOKUP($C31,Cant_ext!$C$12:$K$400,5,FALSE)=$F31,VLOOKUP($C31,Cant_ext!$C$12:$K$400,9,FALSE),""),""),"") ->  | AH31: =IF(IF(AND($J31="non inscrit",AH$6>$H$4),OR($P31<$H$5,$P31<AH$6),OR($J31<$H$5,$J31<AH$6)),IFERROR(IF(VLOOKUP($C31,ASF2_ext!$C$12:$K$400,5,FALSE)=$F31,VLOOKUP($C31,ASF2_ext!$C$12:$K$400,9,FALSE),""),""),"") ->  | AI31: =IF(IF(AND($J31="non inscrit",AI$6>$H$4),OR($P31<$H$5,$P31<AI$6),OR($J31<$H$5,$J31<AI$6)),IFERROR(IF(VLOOKUP($C31,Ascot_ext!$C$12:$K$400,5,FALSE)=$F31,VLOOKUP($C31,Ascot_ext!$C$12:$K$400,9,FALSE),""),""),"") ->  | AJ31: =IF(IF(AND($J31="non inscrit",AJ$6>$H$4),OR($P31<$H$5,$P31<AJ$6),OR($J31<$H$5,$J31<AJ$6)),IFERROR(IF(VLOOKUP($C31,BBA_ext!$C$12:$K$400,5,FALSE)=$F31,VLOOKUP($C31,BBA_ext!$C$12:$K$400,9,FALSE),""),""),"") ->  | AK31: =IF(IF(AND($J31="non inscrit",AK$6>$H$4),OR($P31<$H$5,$P31<AK$6),OR($J31<$H$5,$J31<AK$6)),IFERROR(IF(VLOOKUP($C31,Tuq1_ext!$C$12:$K$400,5,FALSE)=$F31,VLOOKUP($C31,Tuq1_ext!$C$12:$K$400,9,FALSE),""),""),"") ->  | AL31: =IF(IF(AND($J31="non inscrit",AL$6>$H$4),OR($P31<$H$5,$P31<AL$6),OR($J31<$H$5,$J31<AL$6)),IFERROR(IF(VLOOKUP($C31,Tuq2_ext!$C$12:$K$400,5,FALSE)=$F31,VLOOKUP($C31,Tuq2_ext!$C$12:$K$400,9,FALSE),""),""),"") ->  | AM31: =IF(IF(AND($J31="non inscrit",AM$6>$H$4),OR($P31<$H$5,$P31<AM$6),OR($J31<$H$5,$J31<AM$6)),IFERROR(IF(VLOOKUP($C31,CQ2_ext!$C$12:$K$400,5,FALSE)=$F31,VLOOKUP($C31,CQ2_ext!$C$12:$K$400,9,FALSE),""),""),"") ->  | AN31: =IF(IF(AND($J31="non inscrit",AN$6>$H$4),OR($P31<$H$5,$P31<AN$6),OR($J31<$H$5,$J31<AN$6)),IFERROR(IF(VLOOKUP($C31,MTL2_ext!$C$12:$K$400,5,FALSE)=$F31,VLOOKUP($C31,MTL2_ext!$C$12:$K$400,9,FALSE),""),""),"") ->  | AO31: =IF(IF(AND($J31="non inscrit",AO$6>$H$4),OR($P31<$H$5,$P31<AO$6),OR($J31<$H$5,$J31<AO$6)),IFERROR(IF(VLOOKUP($C31,NO_ext!$C$12:$K$400,5,FALSE)=$F31,VLOOKUP($C31,NO_ext!$C$12:$K$400,9,FALSE),""),""),"") ->  | AP31: =IF(IF(AND($J31="non inscrit",AP$6>$H$4),OR($P31<$H$5,$P31<AP$6),OR($J31<$H$5,$J31<AP$6)),IFERROR(IF(VLOOKUP($C31,VD_ext!$C$12:$K$400,5,FALSE)=$F31,VLOOKUP($C31,VD_ext!$C$12:$K$400,9,FALSE),""),""),"") ->  | AQ31: =IF(IF(AND($J31="non inscrit",AQ$6>$H$4),OR($P31<$H$5,$P31<AQ$6),OR($J31<$H$5,$J31<AQ$6)),IFERROR(IF(VLOOKUP($C31,PT_ext!$C$12:$K$400,5,FALSE)=$F31,VLOOKUP($C31,PT_ext!$C$12:$K$400,9,FALSE),""),""),"") ->  | AR31: =IF(IF(AND($J31="non inscrit",AR$6>$H$4),OR($P31<$H$5,$P31<AR$6),OR($J31<$H$5,$J31<AR$6)),IFERROR(IF(VLOOKUP($C31,Vic_ext!$C$12:$K$400,5,FALSE)=$F31,VLOOKUP($C31,Vic_ext!$C$12:$K$400,9,FALSE),""),""),"") ->  | AS31: =IF(IF(AND($J31="non inscrit",AS$6>$H$4),OR($P31<$H$5,$P31<AS$6),OR($J31<$H$5,$J31<AS$6)),IFERROR(IF(VLOOKUP($C31,Sor_ext!$C$12:$K$400,5,FALSE)=$F31,VLOOKUP($C31,Sor_ext!$C$12:$K$400,9,FALSE),""),""),"") ->  | AU31: =IF(IF(AND($J31="non inscrit",AU$6>$H$4),OR($P31<$H$5,$P31<AU$6),OR($J31<$H$5,$J31<AU$6)),IFERROR(IF(VLOOKUP($C31,PROV_ext!$C$12:$K$400,5,FALSE)=$F31,VLOOKUP($C31,PROV_ext!$C$12:$K$400,9,FALSE),""),""),"") ->  | AW31: =IF(IF(AND($J31="non inscrit",AW$6>$H$4),OR($P31<$H$5,$P31<AQ$6),OR($J31<$H$5,$J31<AQ$6)),IFERROR(IF(VLOOKUP($C31,Coat_int!$C$12:$K$400,5,FALSE)=$F31,VLOOKUP($C31,Coat_int!$C$12:$K$400,9,FALSE),""),""),"") ->  | AX31: =IF(IF(AND($J31="non inscrit",AX$6>$H$4),OR($P31<$H$5,$P31<AR$6),OR($J31<$H$5,$J31<AR$6)),IFERROR(IF(VLOOKUP($C31,LG_int!$C$12:$K$400,5,FALSE)=$F31,VLOOKUP($C31,LG_int!$C$12:$K$400,9,FALSE),""),""),"") ->  | AY31: =IF(IF(AND($J31="non inscrit",AY$6>$H$4),OR($P31<$H$5,$P31<AS$6),OR($J31<$H$5,$J31<AS$6)),IFERROR(IF(VLOOKUP($C31,Roc_int!$C$12:$K$400,5,FALSE)=$F31,VLOOKUP($C31,Roc_int!$C$12:$K$400,9,FALSE),""),""),"") ->  | AZ31: =IF(IF(AND($J31="non inscrit",AZ$6>$H$4),OR($P31<$H$5,$P31<AT$6),OR($J31<$H$5,$J31<AT$6)),IFERROR(IF(VLOOKUP($C31,Qc_int!$C$12:$K$400,5,FALSE)=$F31,VLOOKUP($C31,Qc_int!$C$12:$K$400,9,FALSE),""),""),"") ->  | BA31: =IF(IF(AND($J31="non inscrit",BA$6>$H$4),OR($P31<$H$5,$P31<AU$6),OR($J31<$H$5,$J31<AU$6)),IFERROR(IF(VLOOKUP($C31,Asc_int!$C$12:$K$400,5,FALSE)=$F31,VLOOKUP($C31,Asc_int!$C$12:$K$400,9,FALSE),""),""),"") ->  | BB31: =IF(IF(AND($J31="non inscrit",BB$6>$H$4),OR($P31<$H$5,$P31<AV$6),OR($J31<$H$5,$J31<AV$6)),IFERROR(IF(VLOOKUP($C31,CQ_int!$C$12:$K$400,5,FALSE)=$F31,VLOOKUP($C31,CQ_int!$C$12:$K$400,9,FALSE),""),""),"") -> 223 | BC31: =IF(IF(AND($J31="non inscrit",BC$6>$H$4),OR($P31<$H$5,$P31<AW$6),OR($J31<$H$5,$J31<AW$6)),IFERROR(IF(VLOOKUP($C31,QC2_int!$C$12:$K$400,5,FALSE)=$F31,VLOOKUP($C31,QC2_int!$C$12:$K$400,9,FALSE),""),""),"") ->  | BD31: =IF(IF(AND($J31="non inscrit",BD$6>$H$4),OR($P31<$H$5,$P31<AX$6),OR($J31<$H$5,$J31<AX$6)),IFERROR(IF(VLOOKUP($C31,Ach_int!$C$12:$K$400,5,FALSE)=$F31,VLOOKUP($C31,Ach_int!$C$12:$K$400,9,FALSE),""),""),"") -> 221 | BF31: =IF(IF(AND($J31="non inscrit",BF$6>$H$4),OR($P31<$H$5,$P31<AZ$6),OR($J31<$H$5,$J31<AZ$6)),IFERROR(IF(VLOOKUP($C31,Buck_int!$C$12:$K$400,5,FALSE)=$F31,VLOOKUP($C31,Buck_int!$C$12:$K$400,9,FALSE),""),""),"") -> 221 | BG31: =IF(IF(AND($J31="non inscrit",BG$6>$H$4),OR($P31<$H$5,$P31<BA$6),OR($J31<$H$5,$J31<BA$6)),IFERROR(IF(VLOOKUP($C31,CQC_int!$C$12:$K$400,5,FALSE)=$F31,VLOOKUP($C31,CQC_int!$C$12:$K$400,9,FALSE),""),""),"") ->  | BH31: =IF(IF(AND($J31="non inscrit",BH$6>$H$4),OR($P31<$H$5,$P31<BB$6),OR($J31<$H$5,$J31<BB$6)),IFERROR(IF(VLOOKUP($C31,LG3_int!$C$12:$K$400,5,FALSE)=$F31,VLOOKUP($C31,LG3_int!$C$12:$K$400,9,FALSE),""),""),"") -> 240 | BI31: =IF(IF(AND($J31="non inscrit",BI$6>$H$4),OR($P31<$H$5,$P31<BC$6),OR($J31<$H$5,$J31<BC$6)),IFERROR(IF(VLOOKUP($C31,LS_int!$C$12:$K$400,5,FALSE)=$F31,VLOOKUP($C31,LS_int!$C$12:$K$400,9,FALSE),""),""),"") ->  | BT31: =IF(IF(AND($J31="non inscrit",BT$6>$H$4),OR($P31<$H$5,$P31<BN$6),OR($J31<$H$5,$J31<BN$6)),IFERROR(IF(VLOOKUP($C31,FI!$C$12:$K$400,5,FALSE)=$F31,VLOOKUP($C31,FI!$C$12:$K$400,9,FALSE),""),""),"") -> 236
A32: =A31 -> 2 | B32: =B31+1 -> 2 | C32: 3854 | D32: =IF($C32="","",IF($N$1>$H$4,IFERROR(VLOOKUP($C32,'Membres-2024'!$A:$G,2,FALSE),""),IFERROR(VLOOKUP($C32,'Membres-2023'!$A:$G,2,FALSE),""))) -> Berthiaume | E32: =IF($C32="","",IF($N$1>$H$4,IFERROR(VLOOKUP($C32,'Membres-2024'!$A:$G,3,FALSE),""),IFERROR(VLOOKUP($C32,'Membres-2023'!$A:$G,3,FALSE),""))) -> Océan | F32: =IF($C32="","",IF($N$1>$H$4,IFERROR(VLOOKUP($C32,'Membres-2024'!$A:$G,7,FALSE),""),IFERROR(VLOOKUP($C32,'Membres-2023'!$A:$G,7,FALSE),""))) -> 2 | G32: =IF($C32="","",IF($N$1>$H$4,IFERROR(VLOOKUP($C32,'Membres-2024'!$A:$G,5,FALSE),""),IFERROR(VLOOKUP($C32,'Membres-2023'!$A:$G,5,FALSE),""))) -> Mont-Laurier (Lynx) | H32: =COUNTIF($Y32:$BT32,">=0") -> 2 | I32: =SUM(K32:O32,Q32:U32) -> 62.16666667 | J32: =IFERROR(IF(VLOOKUP(C32,'Membres-2023'!$A:$F,6,FALSE)>=$H$3,VLOOKUP(C32,'Membres-2023'!$A:$F,6,FALSE),"non inscrit"),IF($C32>0,"non inscrit","")) -> 2023-01-23 | K32: =IFERROR(IF(COUNTA(Y32:AT32)>0,LARGE(Y32:AT32,1)/6,""),"") -> 31.33333333 | L32: =IFERROR(IF(COUNTA(Y32:AT32)>1,LARGE(Y32:AT32,2)/6,""),"") -> 30.83333333 | M32: =IFERROR(IF(COUNTA(Y32:AT32)>2,LARGE(Y32:AT32,3)/6,""),"") ->  | N32: =IFERROR(IF(COUNTA(Y32:AT32)>3,LARGE(Y32:AT32,4)/6,""),"") ->  | O32: =IF(AU32<>"",AU32,"") ->  | P32: =IFERROR(IF(VLOOKUP(C32,'Membres-2024'!$A:$F,6,FALSE)>=$H$3,VLOOKUP(C32,'Membres-2024'!$A:$F,6,FALSE),"non inscrit"),IF($C32>0,"non inscrit","")) -> 2024-01-08 | Q32: =IFERROR(IF(COUNTA(AW32:BS32)>0,LARGE(AW32:BS32,1)/6,""),"") ->  | R32: =IFERROR(IF(COUNTA(AW32:BS32)>1,LARGE(AW32:BS32,2)/6,""),"") ->  | S32: =IFERROR(IF(COUNTA(AW32:BS32)>2,LARGE(AW32:BS32,3)/6,""),"") ->  | T32: =IFERROR(IF(COUNTA(AW32:BS32)>3,LARGE(AW32:BS32,4)/6,""),"") ->  | U32: =IF(BT32<>"",BT32,"") ->  | Y32: =IF(IF(AND($J32="non inscrit",Y$6>$H$4),OR($P32<$H$5,$P32<Y$6),OR($J32<$H$5,$J32<Y$6)),IFERROR(IF(VLOOKUP($C32,ASF_ext!$C$12:$K$400,5,FALSE)=$F32,VLOOKUP($C32,ASF_ext!$C$12:$K$400,9,FALSE),""),""),"") ->  | Z32: =IF(IF(AND($J32="non inscrit",Z$6>$H$4),OR($P32<$H$5,$P32<Z$6),OR($J32<$H$5,$J32<Z$6)),IFERROR(IF(VLOOKUP($C32,LG_ext!$C$12:$K$400,5,FALSE)=$F32,VLOOKUP($C32,LG_ext!$C$12:$K$400,9,FALSE),""),""),"") ->  | AA32: =IF(IF(AND($J32="non inscrit",AA$6>$H$4),OR($P32<$H$5,$P32<AA$6),OR($J32<$H$5,$J32<AA$6)),IFERROR(IF(VLOOKUP($C32,Jul_ext!$C$12:$K$400,5,FALSE)=$F32,VLOOKUP($C32,Jul_ext!$C$12:$K$400,9,FALSE),""),""),"") ->  | AB32: =IF(IF(AND($J32="non inscrit",AB$6>$H$4),OR($P32<$H$5,$P32<AB$6),OR($J32<$H$5,$J32<AB$6)),IFERROR(IF(VLOOKUP($C32,CQ_ext!$C$12:$K$400,5,FALSE)=$F32,VLOOKUP($C32,CQ_ext!$C$12:$K$400,9,FALSE),""),""),"") ->  | AC32: =IF(IF(AND($J32="non inscrit",AC$6>$H$4),OR($P32<$H$5,$P32<AC$6),OR($J32<$H$5,$J32<AC$6)),IFERROR(IF(VLOOKUP($C32,NAQ_ext!$C$12:$K$400,5,FALSE)=$F32,VLOOKUP($C32,NAQ_ext!$C$12:$K$400,9,FALSE),""),""),"") ->  | AD32: =IF(IF(AND($J32="non inscrit",AD$6>$H$4),OR($P32<$H$5,$P32<AD$6),OR($J32<$H$5,$J32<AD$6)),IFERROR(IF(VLOOKUP($C32,MtL_ext!$C$12:$K$400,5,FALSE)=$F32,VLOOKUP($C32,MtL_ext!$C$12:$K$400,9,FALSE),""),""),"") -> 185 | AE32: =IF(IF(AND($J32="non inscrit",AE$6>$H$4),OR($P32<$H$5,$P32<AE$6),OR($J32<$H$5,$J32<AE$6)),IFERROR(IF(VLOOKUP($C32,Cant_ext!$C$12:$K$400,5,FALSE)=$F32,VLOOKUP($C32,Cant_ext!$C$12:$K$400,9,FALSE),""),""),"") ->  | AH32: =IF(IF(AND($J32="non inscrit",AH$6>$H$4),OR($P32<$H$5,$P32<AH$6),OR($J32<$H$5,$J32<AH$6)),IFERROR(IF(VLOOKUP($C32,ASF2_ext!$C$12:$K$400,5,FALSE)=$F32,VLOOKUP($C32,ASF2_ext!$C$12:$K$400,9,FALSE),""),""),"") ->  | AI32: =IF(IF(AND($J32="non inscrit",AI$6>$H$4),OR($P32<$H$5,$P32<AI$6),OR($J32<$H$5,$J32<AI$6)),IFERROR(IF(VLOOKUP($C32,Ascot_ext!$C$12:$K$400,5,FALSE)=$F32,VLOOKUP($C32,Ascot_ext!$C$12:$K$400,9,FALSE),""),""),"") ->  | AJ32: =IF(IF(AND($J32="non inscrit",AJ$6>$H$4),OR($P32<$H$5,$P32<AJ$6),OR($J32<$H$5,$J32<AJ$6)),IFERROR(IF(VLOOKUP($C32,BBA_ext!$C$12:$K$400,5,FALSE)=$F32,VLOOKUP($C32,BBA_ext!$C$12:$K$400,9,FALSE),""),""),"") ->  | AK32: =IF(IF(AND($J32="non inscrit",AK$6>$H$4),OR($P32<$H$5,$P32<AK$6),OR($J32<$H$5,$J32<AK$6)),IFERROR(IF(VLOOKUP($C32,Tuq1_ext!$C$12:$K$400,5,FALSE)=$F32,VLOOKUP($C32,Tuq1_ext!$C$12:$K$400,9,FALSE),""),""),"") ->  | AL32: =IF(IF(AND($J32="non inscrit",AL$6>$H$4),OR($P32<$H$5,$P32<AL$6),OR($J32<$H$5,$J32<AL$6)),IFERROR(IF(VLOOKUP($C32,Tuq2_ext!$C$12:$K$400,5,FALSE)=$F32,VLOOKUP($C32,Tuq2_ext!$C$12:$K$400,9,FALSE),""),""),"") ->  | AM32: =IF(IF(AND($J32="non inscrit",AM$6>$H$4),OR($P32<$H$5,$P32<AM$6),OR($J32<$H$5,$J32<AM$6)),IFERROR(IF(VLOOKUP($C32,CQ2_ext!$C$12:$K$400,5,FALSE)=$F32,VLOOKUP($C32,CQ2_ext!$C$12:$K$400,9,FALSE),""),""),"") ->  | AN32: =IF(IF(AND($J32="non inscrit",AN$6>$H$4),OR($P32<$H$5,$P32<AN$6),OR($J32<$H$5,$J32<AN$6)),IFERROR(IF(VLOOKUP($C32,MTL2_ext!$C$12:$K$400,5,FALSE)=$F32,VLOOKUP($C32,MTL2_ext!$C$12:$K$400,9,FALSE),""),""),"") -> 188 | AO32: =IF(IF(AND($J32="non inscrit",AO$6>$H$4),OR($P32<$H$5,$P32<AO$6),OR($J32<$H$5,$J32<AO$6)),IFERROR(IF(VLOOKUP($C32,NO_ext!$C$12:$K$400,5,FALSE)=$F32,VLOOKUP($C32,NO_ext!$C$12:$K$400,9,FALSE),""),""),"") ->  | AP32: =IF(IF(AND($J32="non inscrit",AP$6>$H$4),OR($P32<$H$5,$P32<AP$6),OR($J32<$H$5,$J32<AP$6)),IFERROR(IF(VLOOKUP($C32,VD_ext!$C$12:$K$400,5,FALSE)=$F32,VLOOKUP($C32,VD_ext!$C$12:$K$400,9,FALSE),""),""),"") ->  | AQ32: =IF(IF(AND($J32="non inscrit",AQ$6>$H$4),OR($P32<$H$5,$P32<AQ$6),OR($J32<$H$5,$J32<AQ$6)),IFERROR(IF(VLOOKUP($C32,PT_ext!$C$12:$K$400,5,FALSE)=$F32,VLOOKUP($C32,PT_ext!$C$12:$K$400,9,FALSE),""),""),"") ->  | AR32: =IF(IF(AND($J32="non inscrit",AR$6>$H$4),OR($P32<$H$5,$P32<AR$6),OR($J32<$H$5,$J32<AR$6)),IFERROR(IF(VLOOKUP($C32,Vic_ext!$C$12:$K$400,5,FALSE)=$F32,VLOOKUP($C32,Vic_ext!$C$12:$K$400,9,FALSE),""),""),"") ->  | AS32: =IF(IF(AND($J32="non inscrit",AS$6>$H$4),OR($P32<$H$5,$P32<AS$6),OR($J32<$H$5,$J32<AS$6)),IFERROR(IF(VLOOKUP($C32,Sor_ext!$C$12:$K$400,5,FALSE)=$F32,VLOOKUP($C32,Sor_ext!$C$12:$K$400,9,FALSE),""),""),"") ->  | AU32: =IF(IF(AND($J32="non inscrit",AU$6>$H$4),OR($P32<$H$5,$P32<AU$6),OR($J32<$H$5,$J32<AU$6)),IFERROR(IF(VLOOKUP($C32,PROV_ext!$C$12:$K$400,5,FALSE)=$F32,VLOOKUP($C32,PROV_ext!$C$12:$K$400,9,FALSE),""),""),"") ->  | AW32: =IF(IF(AND($J32="non inscrit",AW$6>$H$4),OR($P32<$H$5,$P32<AQ$6),OR($J32<$H$5,$J32<AQ$6)),IFERROR(IF(VLOOKUP($C32,Coat_int!$C$12:$K$400,5,FALSE)=$F32,VLOOKUP($C32,Coat_int!$C$12:$K$400,9,FALSE),""),""),"") ->  | AX32: =IF(IF(AND($J32="non inscrit",AX$6>$H$4),OR($P32<$H$5,$P32<AR$6),OR($J32<$H$5,$J32<AR$6)),IFERROR(IF(VLOOKUP($C32,LG_int!$C$12:$K$400,5,FALSE)=$F32,VLOOKUP($C32,LG_int!$C$12:$K$400,9,FALSE),""),""),"") ->  | AY32: =IF(IF(AND($J32="non inscrit",AY$6>$H$4),OR($P32<$H$5,$P32<AS$6),OR($J32<$H$5,$J32<AS$6)),IFERROR(IF(VLOOKUP($C32,Roc_int!$C$12:$K$400,5,FALSE)=$F32,VLOOKUP($C32,Roc_int!$C$12:$K$400,9,FALSE),""),""),"") ->  | AZ32: =IF(IF(AND($J32="non inscrit",AZ$6>$H$4),OR($P32<$H$5,$P32<AT$6),OR($J32<$H$5,$J32<AT$6)),IFERROR(IF(VLOOKUP($C32,Qc_int!$C$12:$K$400,5,FALSE)=$F32,VLOOKUP($C32,Qc_int!$C$12:$K$400,9,FALSE),""),""),"") ->  | BA32: =IF(IF(AND($J32="non inscrit",BA$6>$H$4),OR($P32<$H$5,$P32<AU$6),OR($J32<$H$5,$J32<AU$6)),IFERROR(IF(VLOOKUP($C32,Asc_int!$C$12:$K$400,5,FALSE)=$F32,VLOOKUP($C32,Asc_int!$C$12:$K$400,9,FALSE),""),""),"") ->  | BB32: =IF(IF(AND($J32="non inscrit",BB$6>$H$4),OR($P32<$H$5,$P32<AV$6),OR($J32<$H$5,$J32<AV$6)),IFERROR(IF(VLOOKUP($C32,CQ_int!$C$12:$K$400,5,FALSE)=$F32,VLOOKUP($C32,CQ_int!$C$12:$K$400,9,FALSE),""),""),"") ->  | BC32: =IF(IF(AND($J32="non inscrit",BC$6>$H$4),OR($P32<$H$5,$P32<AW$6),OR($J32<$H$5,$J32<AW$6)),IFERROR(IF(VLOOKUP($C32,QC2_int!$C$12:$K$400,5,FALSE)=$F32,VLOOKUP($C32,QC2_int!$C$12:$K$400,9,FALSE),""),""),"") ->  | BD32: =IF(IF(AND($J32="non inscrit",BD$6>$H$4),OR($P32<$H$5,$P32<AX$6),OR($J32<$H$5,$J32<AX$6)),IFERROR(IF(VLOOKUP($C32,Ach_int!$C$12:$K$400,5,FALSE)=$F32,VLOOKUP($C32,Ach_int!$C$12:$K$400,9,FALSE),""),""),"") ->  | BF32: =IF(IF(AND($J32="non inscrit",BF$6>$H$4),OR($P32<$H$5,$P32<AZ$6),OR($J32<$H$5,$J32<AZ$6)),IFERROR(IF(VLOOKUP($C32,Buck_int!$C$12:$K$400,5,FALSE)=$F32,VLOOKUP($C32,Buck_int!$C$12:$K$400,9,FALSE),""),""),"") ->  | BG32: =IF(IF(AND($J32="non inscrit",BG$6>$H$4),OR($P32<$H$5,$P32<BA$6),OR($J32<$H$5,$J32<BA$6)),IFERROR(IF(VLOOKUP($C32,CQC_int!$C$12:$K$400,5,FALSE)=$F32,VLOOKUP($C32,CQC_int!$C$12:$K$400,9,FALSE),""),""),"") ->  | BH32: =IF(IF(AND($J32="non inscrit",BH$6>$H$4),OR($P32<$H$5,$P32<BB$6),OR($J32<$H$5,$J32<BB$6)),IFERROR(IF(VLOOKUP($C32,LG3_int!$C$12:$K$400,5,FALSE)=$F32,VLOOKUP($C32,LG3_int!$C$12:$K$400,9,FALSE),""),""),"") ->  | BI32: =IF(IF(AND($J32="non inscrit",BI$6>$H$4),OR($P32<$H$5,$P32<BC$6),OR($J32<$H$5,$J32<BC$6)),IFERROR(IF(VLOOKUP($C32,LS_int!$C$12:$K$400,5,FALSE)=$F32,VLOOKUP($C32,LS_int!$C$12:$K$400,9,FALSE),""),""),"") ->  | BT32: =IF(IF(AND($J32="non inscrit",BT$6>$H$4),OR($P32<$H$5,$P32<BN$6),OR($J32<$H$5,$J32<BN$6)),IFERROR(IF(VLOOKUP($C32,FI!$C$12:$K$400,5,FALSE)=$F32,VLOOKUP($C32,FI!$C$12:$K$400,9,FALSE),""),""),"") -> 
A33: =A32 -> 2 | B33: =B32+1 -> 3 | C33: 4502 | D33: =IF($C33="","",IF($N$1>$H$4,IFERROR(VLOOKUP($C33,'Membres-2024'!$A:$G,2,FALSE),""),IFERROR(VLOOKUP($C33,'Membres-2023'!$A:$G,2,FALSE),""))) -> Morin | E33: =IF($C33="","",IF($N$1>$H$4,IFERROR(VLOOKUP($C33,'Membres-2024'!$A:$G,3,FALSE),""),IFERROR(VLOOKUP($C33,'Membres-2023'!$A:$G,3,FALSE),""))) -> Lili-Rose | F33: =IF($C33="","",IF($N$1>$H$4,IFERROR(VLOOKUP($C33,'Membres-2024'!$A:$G,7,FALSE),""),IFERROR(VLOOKUP($C33,'Membres-2023'!$A:$G,7,FALSE),""))) -> 2 | G33: =IF($C33="","",IF($N$1>$H$4,IFERROR(VLOOKUP($C33,'Membres-2024'!$A:$G,5,FALSE),""),IFERROR(VLOOKUP($C33,'Membres-2023'!$A:$G,5,FALSE),""))) -> La Tuque (Archers de) | H33: =COUNTIF($Y33:$BT33,">=0") -> 1 | I33: =SUM(K33:O33,Q33:U33) -> 43.83333333 | J33: =IFERROR(IF(VLOOKUP(C33,'Membres-2023'!$A:$F,6,FALSE)>=$H$3,VLOOKUP(C33,'Membres-2023'!$A:$F,6,FALSE),"non inscrit"),IF($C33>0,"non inscrit","")) -> 2023-01-30 | K33: =IFERROR(IF(COUNTA(Y33:AT33)>0,LARGE(Y33:AT33,1)/6,""),"") -> 43.83333333 | L33: =IFERROR(IF(COUNTA(Y33:AT33)>1,LARGE(Y33:AT33,2)/6,""),"") ->  | M33: =IFERROR(IF(COUNTA(Y33:AT33)>2,LARGE(Y33:AT33,3)/6,""),"") ->  | N33: =IFERROR(IF(COUNTA(Y33:AT33)>3,LARGE(Y33:AT33,4)/6,""),"") ->  | O33: =IF(AU33<>"",AU33,"") ->  | P33: =IFERROR(IF(VLOOKUP(C33,'Membres-2024'!$A:$F,6,FALSE)>=$H$3,VLOOKUP(C33,'Membres-2024'!$A:$F,6,FALSE),"non inscrit"),IF($C33>0,"non inscrit","")) -> 2024-03-14 | Q33: =IFERROR(IF(COUNTA(AW33:BS33)>0,LARGE(AW33:BS33,1)/6,""),"") ->  | R33: =IFERROR(IF(COUNTA(AW33:BS33)>1,LARGE(AW33:BS33,2)/6,""),"") ->  | S33: =IFERROR(IF(COUNTA(AW33:BS33)>2,LARGE(AW33:BS33,3)/6,""),"") ->  | T33: =IFERROR(IF(COUNTA(AW33:BS33)>3,LARGE(AW33:BS33,4)/6,""),"") ->  | U33: =IF(BT33<>"",BT33,"") ->  | Y33: =IF(IF(AND($J33="non inscrit",Y$6>$H$4),OR($P33<$H$5,$P33<Y$6),OR($J33<$H$5,$J33<Y$6)),IFERROR(IF(VLOOKUP($C33,ASF_ext!$C$12:$K$400,5,FALSE)=$F33,VLOOKUP($C33,ASF_ext!$C$12:$K$400,9,FALSE),""),""),"") ->  | Z33: =IF(IF(AND($J33="non inscrit",Z$6>$H$4),OR($P33<$H$5,$P33<Z$6),OR($J33<$H$5,$J33<Z$6)),IFERROR(IF(VLOOKUP($C33,LG_ext!$C$12:$K$400,5,FALSE)=$F33,VLOOKUP($C33,LG_ext!$C$12:$K$400,9,FALSE),""),""),"") ->  | AA33: =IF(IF(AND($J33="non inscrit",AA$6>$H$4),OR($P33<$H$5,$P33<AA$6),OR($J33<$H$5,$J33<AA$6)),IFERROR(IF(VLOOKUP($C33,Jul_ext!$C$12:$K$400,5,FALSE)=$F33,VLOOKUP($C33,Jul_ext!$C$12:$K$400,9,FALSE),""),""),"") ->  | AB33: =IF(IF(AND($J33="non inscrit",AB$6>$H$4),OR($P33<$H$5,$P33<AB$6),OR($J33<$H$5,$J33<AB$6)),IFERROR(IF(VLOOKUP($C33,CQ_ext!$C$12:$K$400,5,FALSE)=$F33,VLOOKUP($C33,CQ_ext!$C$12:$K$400,9,FALSE),""),""),"") ->  | AC33: =IF(IF(AND($J33="non inscrit",AC$6>$H$4),OR($P33<$H$5,$P33<AC$6),OR($J33<$H$5,$J33<AC$6)),IFERROR(IF(VLOOKUP($C33,NAQ_ext!$C$12:$K$400,5,FALSE)=$F33,VLOOKUP($C33,NAQ_ext!$C$12:$K$400,9,FALSE),""),""),"") ->  | AD33: =IF(IF(AND($J33="non inscrit",AD$6>$H$4),OR($P33<$H$5,$P33<AD$6),OR($J33<$H$5,$J33<AD$6)),IFERROR(IF(VLOOKUP($C33,MtL_ext!$C$12:$K$400,5,FALSE)=$F33,VLOOKUP($C33,MtL_ext!$C$12:$K$400,9,FALSE),""),""),"") ->  | AE33: =IF(IF(AND($J33="non inscrit",AE$6>$H$4),OR($P33<$H$5,$P33<AE$6),OR($J33<$H$5,$J33<AE$6)),IFERROR(IF(VLOOKUP($C33,Cant_ext!$C$12:$K$400,5,FALSE)=$F33,VLOOKUP($C33,Cant_ext!$C$12:$K$400,9,FALSE),""),""),"") ->  | AH33: =IF(IF(AND($J33="non inscrit",AH$6>$H$4),OR($P33<$H$5,$P33<AH$6),OR($J33<$H$5,$J33<AH$6)),IFERROR(IF(VLOOKUP($C33,ASF2_ext!$C$12:$K$400,5,FALSE)=$F33,VLOOKUP($C33,ASF2_ext!$C$12:$K$400,9,FALSE),""),""),"") ->  | AI33: =IF(IF(AND($J33="non inscrit",AI$6>$H$4),OR($P33<$H$5,$P33<AI$6),OR($J33<$H$5,$J33<AI$6)),IFERROR(IF(VLOOKUP($C33,Ascot_ext!$C$12:$K$400,5,FALSE)=$F33,VLOOKUP($C33,Ascot_ext!$C$12:$K$400,9,FALSE),""),""),"") ->  | AJ33: =IF(IF(AND($J33="non inscrit",AJ$6>$H$4),OR($P33<$H$5,$P33<AJ$6),OR($J33<$H$5,$J33<AJ$6)),IFERROR(IF(VLOOKUP($C33,BBA_ext!$C$12:$K$400,5,FALSE)=$F33,VLOOKUP($C33,BBA_ext!$C$12:$K$400,9,FALSE),""),""),"") ->  | AK33: =IF(IF(AND($J33="non inscrit",AK$6>$H$4),OR($P33<$H$5,$P33<AK$6),OR($J33<$H$5,$J33<AK$6)),IFERROR(IF(VLOOKUP($C33,Tuq1_ext!$C$12:$K$400,5,FALSE)=$F33,VLOOKUP($C33,Tuq1_ext!$C$12:$K$400,9,FALSE),""),""),"") -> 263 | AL33: =IF(IF(AND($J33="non inscrit",AL$6>$H$4),OR($P33<$H$5,$P33<AL$6),OR($J33<$H$5,$J33<AL$6)),IFERROR(IF(VLOOKUP($C33,Tuq2_ext!$C$12:$K$400,5,FALSE)=$F33,VLOOKUP($C33,Tuq2_ext!$C$12:$K$400,9,FALSE),""),""),"") ->  | AM33: =IF(IF(AND($J33="non inscrit",AM$6>$H$4),OR($P33<$H$5,$P33<AM$6),OR($J33<$H$5,$J33<AM$6)),IFERROR(IF(VLOOKUP($C33,CQ2_ext!$C$12:$K$400,5,FALSE)=$F33,VLOOKUP($C33,CQ2_ext!$C$12:$K$400,9,FALSE),""),""),"") ->  | AN33: =IF(IF(AND($J33="non inscrit",AN$6>$H$4),OR($P33<$H$5,$P33<AN$6),OR($J33<$H$5,$J33<AN$6)),IFERROR(IF(VLOOKUP($C33,MTL2_ext!$C$12:$K$400,5,FALSE)=$F33,VLOOKUP($C33,MTL2_ext!$C$12:$K$400,9,FALSE),""),""),"") ->  | AO33: =IF(IF(AND($J33="non inscrit",AO$6>$H$4),OR($P33<$H$5,$P33<AO$6),OR($J33<$H$5,$J33<AO$6)),IFERROR(IF(VLOOKUP($C33,NO_ext!$C$12:$K$400,5,FALSE)=$F33,VLOOKUP($C33,NO_ext!$C$12:$K$400,9,FALSE),""),""),"") ->  | AP33: =IF(IF(AND($J33="non inscrit",AP$6>$H$4),OR($P33<$H$5,$P33<AP$6),OR($J33<$H$5,$J33<AP$6)),IFERROR(IF(VLOOKUP($C33,VD_ext!$C$12:$K$400,5,FALSE)=$F33,VLOOKUP($C33,VD_ext!$C$12:$K$400,9,FALSE),""),""),"") ->  | AQ33: =IF(IF(AND($J33="non inscrit",AQ$6>$H$4),OR($P33<$H$5,$P33<AQ$6),OR($J33<$H$5,$J33<AQ$6)),IFERROR(IF(VLOOKUP($C33,PT_ext!$C$12:$K$400,5,FALSE)=$F33,VLOOKUP($C33,PT_ext!$C$12:$K$400,9,FALSE),""),""),"") ->  | AR33: =IF(IF(AND($J33="non inscrit",AR$6>$H$4),OR($P33<$H$5,$P33<AR$6),OR($J33<$H$5,$J33<AR$6)),IFERROR(IF(VLOOKUP($C33,Vic_ext!$C$12:$K$400,5,FALSE)=$F33,VLOOKUP($C33,Vic_ext!$C$12:$K$400,9,FALSE),""),""),"") ->  | AS33: =IF(IF(AND($J33="non inscrit",AS$6>$H$4),OR($P33<$H$5,$P33<AS$6),OR($J33<$H$5,$J33<AS$6)),IFERROR(IF(VLOOKUP($C33,Sor_ext!$C$12:$K$400,5,FALSE)=$F33,VLOOKUP($C33,Sor_ext!$C$12:$K$400,9,FALSE),""),""),"") ->  | AU33: =IF(IF(AND($J33="non inscrit",AU$6>$H$4),OR($P33<$H$5,$P33<AU$6),OR($J33<$H$5,$J33<AU$6)),IFERROR(IF(VLOOKUP($C33,PROV_ext!$C$12:$K$400,5,FALSE)=$F33,VLOOKUP($C33,PROV_ext!$C$12:$K$400,9,FALSE),""),""),"") ->  | AW33: =IF(IF(AND($J33="non inscrit",AW$6>$H$4),OR($P33<$H$5,$P33<AQ$6),OR($J33<$H$5,$J33<AQ$6)),IFERROR(IF(VLOOKUP($C33,Coat_int!$C$12:$K$400,5,FALSE)=$F33,VLOOKUP($C33,Coat_int!$C$12:$K$400,9,FALSE),""),""),"") ->  | AX33: =IF(IF(AND($J33="non inscrit",AX$6>$H$4),OR($P33<$H$5,$P33<AR$6),OR($J33<$H$5,$J33<AR$6)),IFERROR(IF(VLOOKUP($C33,LG_int!$C$12:$K$400,5,FALSE)=$F33,VLOOKUP($C33,LG_int!$C$12:$K$400,9,FALSE),""),""),"") ->  | AY33: =IF(IF(AND($J33="non inscrit",AY$6>$H$4),OR($P33<$H$5,$P33<AS$6),OR($J33<$H$5,$J33<AS$6)),IFERROR(IF(VLOOKUP($C33,Roc_int!$C$12:$K$400,5,FALSE)=$F33,VLOOKUP($C33,Roc_int!$C$12:$K$400,9,FALSE),""),""),"") ->  | AZ33: =IF(IF(AND($J33="non inscrit",AZ$6>$H$4),OR($P33<$H$5,$P33<AT$6),OR($J33<$H$5,$J33<AT$6)),IFERROR(IF(VLOOKUP($C33,Qc_int!$C$12:$K$400,5,FALSE)=$F33,VLOOKUP($C33,Qc_int!$C$12:$K$400,9,FALSE),""),""),"") ->  | BA33: =IF(IF(AND($J33="non inscrit",BA$6>$H$4),OR($P33<$H$5,$P33<AU$6),OR($J33<$H$5,$J33<AU$6)),IFERROR(IF(VLOOKUP($C33,Asc_int!$C$12:$K$400,5,FALSE)=$F33,VLOOKUP($C33,Asc_int!$C$12:$K$400,9,FALSE),""),""),"") ->  | BB33: =IF(IF(AND($J33="non inscrit",BB$6>$H$4),OR($P33<$H$5,$P33<AV$6),OR($J33<$H$5,$J33<AV$6)),IFERROR(IF(VLOOKUP($C33,CQ_int!$C$12:$K$400,5,FALSE)=$F33,VLOOKUP($C33,CQ_int!$C$12:$K$400,9,FALSE),""),""),"") ->  | BC33: =IF(IF(AND($J33="non inscrit",BC$6>$H$4),OR($P33<$H$5,$P33<AW$6),OR($J33<$H$5,$J33<AW$6)),IFERROR(IF(VLOOKUP($C33,QC2_int!$C$12:$K$400,5,FALSE)=$F33,VLOOKUP($C33,QC2_int!$C$12:$K$400,9,FALSE),""),""),"") ->  | BD33: =IF(IF(AND($J33="non inscrit",BD$6>$H$4),OR($P33<$H$5,$P33<AX$6),OR($J33<$H$5,$J33<AX$6)),IFERROR(IF(VLOOKUP($C33,Ach_int!$C$12:$K$400,5,FALSE)=$F33,VLOOKUP($C33,Ach_int!$C$12:$K$400,9,FALSE),""),""),"") ->  | BF33: =IF(IF(AND($J33="non inscrit",BF$6>$H$4),OR($P33<$H$5,$P33<AZ$6),OR($J33<$H$5,$J33<AZ$6)),IFERROR(IF(VLOOKUP($C33,Buck_int!$C$12:$K$400,5,FALSE)=$F33,VLOOKUP($C33,Buck_int!$C$12:$K$400,9,FALSE),""),""),"") ->  | BG33: =IF(IF(AND($J33="non inscrit",BG$6>$H$4),OR($P33<$H$5,$P33<BA$6),OR($J33<$H$5,$J33<BA$6)),IFERROR(IF(VLOOKUP($C33,CQC_int!$C$12:$K$400,5,FALSE)=$F33,VLOOKUP($C33,CQC_int!$C$12:$K$400,9,FALSE),""),""),"") ->  | BH33: =IF(IF(AND($J33="non inscrit",BH$6>$H$4),OR($P33<$H$5,$P33<BB$6),OR($J33<$H$5,$J33<BB$6)),IFERROR(IF(VLOOKUP($C33,LG3_int!$C$12:$K$400,5,FALSE)=$F33,VLOOKUP($C33,LG3_int!$C$12:$K$400,9,FALSE),""),""),"") ->  | BI33: =IF(IF(AND($J33="non inscrit",BI$6>$H$4),OR($P33<$H$5,$P33<BC$6),OR($J33<$H$5,$J33<BC$6)),IFERROR(IF(VLOOKUP($C33,LS_int!$C$12:$K$400,5,FALSE)=$F33,VLOOKUP($C33,LS_int!$C$12:$K$400,9,FALSE),""),""),"") ->  | BT33: =IF(IF(AND($J33="non inscrit",BT$6>$H$4),OR($P33<$H$5,$P33<BN$6),OR($J33<$H$5,$J33<BN$6)),IFERROR(IF(VLOOKUP($C33,FI!$C$12:$K$400,5,FALSE)=$F33,VLOOKUP($C33,FI!$C$12:$K$400,9,FALSE),""),""),"") -> 
A34: =A33 -> 2 | B34: =B33+1 -> 4 | C34: 4775 | D34: =IF($C34="","",IF($N$1>$H$4,IFERROR(VLOOKUP($C34,'Membres-2024'!$A:$G,2,FALSE),""),IFERROR(VLOOKUP($C34,'Membres-2023'!$A:$G,2,FALSE),""))) -> Bernier | E34: =IF($C34="","",IF($N$1>$H$4,IFERROR(VLOOKUP($C34,'Membres-2024'!$A:$G,3,FALSE),""),IFERROR(VLOOKUP($C34,'Membres-2023'!$A:$G,3,FALSE),""))) -> Kim | F34: =IF($C34="","",IF($N$1>$H$4,IFERROR(VLOOKUP($C34,'Membres-2024'!$A:$G,7,FALSE),""),IFERROR(VLOOKUP($C34,'Membres-2023'!$A:$G,7,FALSE),""))) -> 2 | G34: =IF($C34="","",IF($N$1>$H$4,IFERROR(VLOOKUP($C34,'Membres-2024'!$A:$G,5,FALSE),""),IFERROR(VLOOKUP($C34,'Membres-2023'!$A:$G,5,FALSE),""))) -> Ascot Corner (Archers d') | H34: =COUNTIF($Y34:$BT34,">=0") -> 1 | I34: =SUM(K34:O34,Q34:U34) -> 39.66666667 | J34: =IFERROR(IF(VLOOKUP(C34,'Membres-2023'!$A:$F,6,FALSE)>=$H$3,VLOOKUP(C34,'Membres-2023'!$A:$F,6,FALSE),"non inscrit"),IF($C34>0,"non inscrit","")) -> 2023-01-23 | K34: =IFERROR(IF(COUNTA(Y34:AT34)>0,LARGE(Y34:AT34,1)/6,""),"") -> 39.66666667 | L34: =IFERROR(IF(COUNTA(Y34:AT34)>1,LARGE(Y34:AT34,2)/6,""),"") ->  | M34: =IFERROR(IF(COUNTA(Y34:AT34)>2,LARGE(Y34:AT34,3)/6,""),"") ->  | N34: =IFERROR(IF(COUNTA(Y34:AT34)>3,LARGE(Y34:AT34,4)/6,""),"") ->  | O34: =IF(AU34<>"",AU34,"") ->  | P34: =IFERROR(IF(VLOOKUP(C34,'Membres-2024'!$A:$F,6,FALSE)>=$H$3,VLOOKUP(C34,'Membres-2024'!$A:$F,6,FALSE),"non inscrit"),IF($C34>0,"non inscrit","")) -> 2023-01-23 | Q34: =IFERROR(IF(COUNTA(AW34:BS34)>0,LARGE(AW34:BS34,1)/6,""),"") ->  | R34: =IFERROR(IF(COUNTA(AW34:BS34)>1,LARGE(AW34:BS34,2)/6,""),"") ->  | S34: =IFERROR(IF(COUNTA(AW34:BS34)>2,LARGE(AW34:BS34,3)/6,""),"") ->  | T34: =IFERROR(IF(COUNTA(AW34:BS34)>3,LARGE(AW34:BS34,4)/6,""),"") ->  | U34: =IF(BT34<>"",BT34,"") ->  | Y34: =IF(IF(AND($J34="non inscrit",Y$6>$H$4),OR($P34<$H$5,$P34<Y$6),OR($J34<$H$5,$J34<Y$6)),IFERROR(IF(VLOOKUP($C34,ASF_ext!$C$12:$K$400,5,FALSE)=$F34,VLOOKUP($C34,ASF_ext!$C$12:$K$400,9,FALSE),""),""),"") ->  | Z34: =IF(IF(AND($J34="non inscrit",Z$6>$H$4),OR($P34<$H$5,$P34<Z$6),OR($J34<$H$5,$J34<Z$6)),IFERROR(IF(VLOOKUP($C34,LG_ext!$C$12:$K$400,5,FALSE)=$F34,VLOOKUP($C34,LG_ext!$C$12:$K$400,9,FALSE),""),""),"") ->  | AA34: =IF(IF(AND($J34="non inscrit",AA$6>$H$4),OR($P34<$H$5,$P34<AA$6),OR($J34<$H$5,$J34<AA$6)),IFERROR(IF(VLOOKUP($C34,Jul_ext!$C$12:$K$400,5,FALSE)=$F34,VLOOKUP($C34,Jul_ext!$C$12:$K$400,9,FALSE),""),""),"") ->  | AB34: =IF(IF(AND($J34="non inscrit",AB$6>$H$4),OR($P34<$H$5,$P34<AB$6),OR($J34<$H$5,$J34<AB$6)),IFERROR(IF(VLOOKUP($C34,CQ_ext!$C$12:$K$400,5,FALSE)=$F34,VLOOKUP($C34,CQ_ext!$C$12:$K$400,9,FALSE),""),""),"") -> 238 | AC34: =IF(IF(AND($J34="non inscrit",AC$6>$H$4),OR($P34<$H$5,$P34<AC$6),OR($J34<$H$5,$J34<AC$6)),IFERROR(IF(VLOOKUP($C34,NAQ_ext!$C$12:$K$400,5,FALSE)=$F34,VLOOKUP($C34,NAQ_ext!$C$12:$K$400,9,FALSE),""),""),"") ->  | AD34: =IF(IF(AND($J34="non inscrit",AD$6>$H$4),OR($P34<$H$5,$P34<AD$6),OR($J34<$H$5,$J34<AD$6)),IFERROR(IF(VLOOKUP($C34,MtL_ext!$C$12:$K$400,5,FALSE)=$F34,VLOOKUP($C34,MtL_ext!$C$12:$K$400,9,FALSE),""),""),"") ->  | AE34: =IF(IF(AND($J34="non inscrit",AE$6>$H$4),OR($P34<$H$5,$P34<AE$6),OR($J34<$H$5,$J34<AE$6)),IFERROR(IF(VLOOKUP($C34,Cant_ext!$C$12:$K$400,5,FALSE)=$F34,VLOOKUP($C34,Cant_ext!$C$12:$K$400,9,FALSE),""),""),"") ->  | AH34: =IF(IF(AND($J34="non inscrit",AH$6>$H$4),OR($P34<$H$5,$P34<AH$6),OR($J34<$H$5,$J34<AH$6)),IFERROR(IF(VLOOKUP($C34,ASF2_ext!$C$12:$K$400,5,FALSE)=$F34,VLOOKUP($C34,ASF2_ext!$C$12:$K$400,9,FALSE),""),""),"") ->  | AI34: =IF(IF(AND($J34="non inscrit",AI$6>$H$4),OR($P34<$H$5,$P34<AI$6),OR($J34<$H$5,$J34<AI$6)),IFERROR(IF(VLOOKUP($C34,Ascot_ext!$C$12:$K$400,5,FALSE)=$F34,VLOOKUP($C34,Ascot_ext!$C$12:$K$400,9,FALSE),""),""),"") ->  | AJ34: =IF(IF(AND($J34="non inscrit",AJ$6>$H$4),OR($P34<$H$5,$P34<AJ$6),OR($J34<$H$5,$J34<AJ$6)),IFERROR(IF(VLOOKUP($C34,BBA_ext!$C$12:$K$400,5,FALSE)=$F34,VLOOKUP($C34,BBA_ext!$C$12:$K$400,9,FALSE),""),""),"") ->  | AK34: =IF(IF(AND($J34="non inscrit",AK$6>$H$4),OR($P34<$H$5,$P34<AK$6),OR($J34<$H$5,$J34<AK$6)),IFERROR(IF(VLOOKUP($C34,Tuq1_ext!$C$12:$K$400,5,FALSE)=$F34,VLOOKUP($C34,Tuq1_ext!$C$12:$K$400,9,FALSE),""),""),"") ->  | AL34: =IF(IF(AND($J34="non inscrit",AL$6>$H$4),OR($P34<$H$5,$P34<AL$6),OR($J34<$H$5,$J34<AL$6)),IFERROR(IF(VLOOKUP($C34,Tuq2_ext!$C$12:$K$400,5,FALSE)=$F34,VLOOKUP($C34,Tuq2_ext!$C$12:$K$400,9,FALSE),""),""),"") ->  | AM34: =IF(IF(AND($J34="non inscrit",AM$6>$H$4),OR($P34<$H$5,$P34<AM$6),OR($J34<$H$5,$J34<AM$6)),IFERROR(IF(VLOOKUP($C34,CQ2_ext!$C$12:$K$400,5,FALSE)=$F34,VLOOKUP($C34,CQ2_ext!$C$12:$K$400,9,FALSE),""),""),"") ->  | AN34: =IF(IF(AND($J34="non inscrit",AN$6>$H$4),OR($P34<$H$5,$P34<AN$6),OR($J34<$H$5,$J34<AN$6)),IFERROR(IF(VLOOKUP($C34,MTL2_ext!$C$12:$K$400,5,FALSE)=$F34,VLOOKUP($C34,MTL2_ext!$C$12:$K$400,9,FALSE),""),""),"") ->  | AO34: =IF(IF(AND($J34="non inscrit",AO$6>$H$4),OR($P34<$H$5,$P34<AO$6),OR($J34<$H$5,$J34<AO$6)),IFERROR(IF(VLOOKUP($C34,NO_ext!$C$12:$K$400,5,FALSE)=$F34,VLOOKUP($C34,NO_ext!$C$12:$K$400,9,FALSE),""),""),"") ->  | AP34: =IF(IF(AND($J34="non inscrit",AP$6>$H$4),OR($P34<$H$5,$P34<AP$6),OR($J34<$H$5,$J34<AP$6)),IFERROR(IF(VLOOKUP($C34,VD_ext!$C$12:$K$400,5,FALSE)=$F34,VLOOKUP($C34,VD_ext!$C$12:$K$400,9,FALSE),""),""),"") ->  | AQ34: =IF(IF(AND($J34="non inscrit",AQ$6>$H$4),OR($P34<$H$5,$P34<AQ$6),OR($J34<$H$5,$J34<AQ$6)),IFERROR(IF(VLOOKUP($C34,PT_ext!$C$12:$K$400,5,FALSE)=$F34,VLOOKUP($C34,PT_ext!$C$12:$K$400,9,FALSE),""),""),"") ->  | AR34: =IF(IF(AND($J34="non inscrit",AR$6>$H$4),OR($P34<$H$5,$P34<AR$6),OR($J34<$H$5,$J34<AR$6)),IFERROR(IF(VLOOKUP($C34,Vic_ext!$C$12:$K$400,5,FALSE)=$F34,VLOOKUP($C34,Vic_ext!$C$12:$K$400,9,FALSE),""),""),"") ->  | AS34: =IF(IF(AND($J34="non inscrit",AS$6>$H$4),OR($P34<$H$5,$P34<AS$6),OR($J34<$H$5,$J34<AS$6)),IFERROR(IF(VLOOKUP($C34,Sor_ext!$C$12:$K$400,5,FALSE)=$F34,VLOOKUP($C34,Sor_ext!$C$12:$K$400,9,FALSE),""),""),"") ->  | AU34: =IF(IF(AND($J34="non inscrit",AU$6>$H$4),OR($P34<$H$5,$P34<AU$6),OR($J34<$H$5,$J34<AU$6)),IFERROR(IF(VLOOKUP($C34,PROV_ext!$C$12:$K$400,5,FALSE)=$F34,VLOOKUP($C34,PROV_ext!$C$12:$K$400,9,FALSE),""),""),"") ->  | AW34: =IF(IF(AND($J34="non inscrit",AW$6>$H$4),OR($P34<$H$5,$P34<AQ$6),OR($J34<$H$5,$J34<AQ$6)),IFERROR(IF(VLOOKUP($C34,Coat_int!$C$12:$K$400,5,FALSE)=$F34,VLOOKUP($C34,Coat_int!$C$12:$K$400,9,FALSE),""),""),"") ->  | AX34: =IF(IF(AND($J34="non inscrit",AX$6>$H$4),OR($P34<$H$5,$P34<AR$6),OR($J34<$H$5,$J34<AR$6)),IFERROR(IF(VLOOKUP($C34,LG_int!$C$12:$K$400,5,FALSE)=$F34,VLOOKUP($C34,LG_int!$C$12:$K$400,9,FALSE),""),""),"") ->  | AY34: =IF(IF(AND($J34="non inscrit",AY$6>$H$4),OR($P34<$H$5,$P34<AS$6),OR($J34<$H$5,$J34<AS$6)),IFERROR(IF(VLOOKUP($C34,Roc_int!$C$12:$K$400,5,FALSE)=$F34,VLOOKUP($C34,Roc_int!$C$12:$K$400,9,FALSE),""),""),"") ->  | AZ34: =IF(IF(AND($J34="non inscrit",AZ$6>$H$4),OR($P34<$H$5,$P34<AT$6),OR($J34<$H$5,$J34<AT$6)),IFERROR(IF(VLOOKUP($C34,Qc_int!$C$12:$K$400,5,FALSE)=$F34,VLOOKUP($C34,Qc_int!$C$12:$K$400,9,FALSE),""),""),"") ->  | BA34: =IF(IF(AND($J34="non inscrit",BA$6>$H$4),OR($P34<$H$5,$P34<AU$6),OR($J34<$H$5,$J34<AU$6)),IFERROR(IF(VLOOKUP($C34,Asc_int!$C$12:$K$400,5,FALSE)=$F34,VLOOKUP($C34,Asc_int!$C$12:$K$400,9,FALSE),""),""),"") ->  | BB34: =IF(IF(AND($J34="non inscrit",BB$6>$H$4),OR($P34<$H$5,$P34<AV$6),OR($J34<$H$5,$J34<AV$6)),IFERROR(IF(VLOOKUP($C34,CQ_int!$C$12:$K$400,5,FALSE)=$F34,VLOOKUP($C34,CQ_int!$C$12:$K$400,9,FALSE),""),""),"") ->  | BC34: =IF(IF(AND($J34="non inscrit",BC$6>$H$4),OR($P34<$H$5,$P34<AW$6),OR($J34<$H$5,$J34<AW$6)),IFERROR(IF(VLOOKUP($C34,QC2_int!$C$12:$K$400,5,FALSE)=$F34,VLOOKUP($C34,QC2_int!$C$12:$K$400,9,FALSE),""),""),"") ->  | BD34: =IF(IF(AND($J34="non inscrit",BD$6>$H$4),OR($P34<$H$5,$P34<AX$6),OR($J34<$H$5,$J34<AX$6)),IFERROR(IF(VLOOKUP($C34,Ach_int!$C$12:$K$400,5,FALSE)=$F34,VLOOKUP($C34,Ach_int!$C$12:$K$400,9,FALSE),""),""),"") ->  | BF34: =IF(IF(AND($J34="non inscrit",BF$6>$H$4),OR($P34<$H$5,$P34<AZ$6),OR($J34<$H$5,$J34<AZ$6)),IFERROR(IF(VLOOKUP($C34,Buck_int!$C$12:$K$400,5,FALSE)=$F34,VLOOKUP($C34,Buck_int!$C$12:$K$400,9,FALSE),""),""),"") ->  | BG34: =IF(IF(AND($J34="non inscrit",BG$6>$H$4),OR($P34<$H$5,$P34<BA$6),OR($J34<$H$5,$J34<BA$6)),IFERROR(IF(VLOOKUP($C34,CQC_int!$C$12:$K$400,5,FALSE)=$F34,VLOOKUP($C34,CQC_int!$C$12:$K$400,9,FALSE),""),""),"") ->  | BH34: =IF(IF(AND($J34="non inscrit",BH$6>$H$4),OR($P34<$H$5,$P34<BB$6),OR($J34<$H$5,$J34<BB$6)),IFERROR(IF(VLOOKUP($C34,LG3_int!$C$12:$K$400,5,FALSE)=$F34,VLOOKUP($C34,LG3_int!$C$12:$K$400,9,FALSE),""),""),"") ->  | BI34: =IF(IF(AND($J34="non inscrit",BI$6>$H$4),OR($P34<$H$5,$P34<BC$6),OR($J34<$H$5,$J34<BC$6)),IFERROR(IF(VLOOKUP($C34,LS_int!$C$12:$K$400,5,FALSE)=$F34,VLOOKUP($C34,LS_int!$C$12:$K$400,9,FALSE),""),""),"") ->  | BT34: =IF(IF(AND($J34="non inscrit",BT$6>$H$4),OR($P34<$H$5,$P34<BN$6),OR($J34<$H$5,$J34<BN$6)),IFERROR(IF(VLOOKUP($C34,FI!$C$12:$K$400,5,FALSE)=$F34,VLOOKUP($C34,FI!$C$12:$K$400,9,FALSE),""),""),"") -> 
A35: =A34 -> 2 | B35: =B34+1 -> 5 | D35: =IF($C35="","",IF($N$1>$H$4,IFERROR(VLOOKUP($C35,'Membres-2024'!$A:$G,2,FALSE),""),IFERROR(VLOOKUP($C35,'Membres-2023'!$A:$G,2,FALSE),""))) ->  | E35: =IF($C35="","",IF($N$1>$H$4,IFERROR(VLOOKUP($C35,'Membres-2024'!$A:$G,3,FALSE),""),IFERROR(VLOOKUP($C35,'Membres-2023'!$A:$G,3,FALSE),""))) ->  | F35: =IF($C35="","",IF($N$1>$H$4,IFERROR(VLOOKUP($C35,'Membres-2024'!$A:$G,7,FALSE),""),IFERROR(VLOOKUP($C35,'Membres-2023'!$A:$G,7,FALSE),""))) ->  | G35: =IF($C35="","",IF($N$1>$H$4,IFERROR(VLOOKUP($C35,'Membres-2024'!$A:$G,5,FALSE),""),IFERROR(VLOOKUP($C35,'Membres-2023'!$A:$G,5,FALSE),""))) ->  | H35: =COUNTIF($Y35:$BT35,">=0") -> 0 | I35: =SUM(K35:O35,Q35:U35) -> 0 | J35: =IFERROR(IF(VLOOKUP(C35,'Membres-2023'!$A:$F,6,FALSE)>=$H$3,VLOOKUP(C35,'Membres-2023'!$A:$F,6,FALSE),"non inscrit"),IF($C35>0,"non inscrit","")) ->  | K35: =IFERROR(IF(COUNTA(Y35:AT35)>0,LARGE(Y35:AT35,1)/6,""),"") ->  | L35: =IFERROR(IF(COUNTA(Y35:AT35)>1,LARGE(Y35:AT35,2)/6,""),"") ->  | M35: =IFERROR(IF(COUNTA(Y35:AT35)>2,LARGE(Y35:AT35,3)/6,""),"") ->  | N35: =IFERROR(IF(COUNTA(Y35:AT35)>3,LARGE(Y35:AT35,4)/6,""),"") ->  | O35: =IF(AU35<>"",AU35,"") ->  | P35: =IFERROR(IF(VLOOKUP(C35,'Membres-2024'!$A:$F,6,FALSE)>=$H$3,VLOOKUP(C35,'Membres-2024'!$A:$F,6,FALSE),"non inscrit"),IF($C35>0,"non inscrit","")) ->  | Q35: =IFERROR(IF(COUNTA(AW35:BS35)>0,LARGE(AW35:BS35,1)/6,""),"") ->  | R35: =IFERROR(IF(COUNTA(AW35:BS35)>1,LARGE(AW35:BS35,2)/6,""),"") ->  | S35: =IFERROR(IF(COUNTA(AW35:BS35)>2,LARGE(AW35:BS35,3)/6,""),"") ->  | T35: =IFERROR(IF(COUNTA(AW35:BS35)>3,LARGE(AW35:BS35,4)/6,""),"") ->  | U35: =IF(BT35<>"",BT35,"") ->  | Y35: =IF(IF(AND($J35="non inscrit",Y$6>$H$4),OR($P35<$H$5,$P35<Y$6),OR($J35<$H$5,$J35<Y$6)),IFERROR(IF(VLOOKUP($C35,ASF_ext!$C$12:$K$400,5,FALSE)=$F35,VLOOKUP($C35,ASF_ext!$C$12:$K$400,9,FALSE),""),""),"") ->  | Z35: =IF(IF(AND($J35="non inscrit",Z$6>$H$4),OR($P35<$H$5,$P35<Z$6),OR($J35<$H$5,$J35<Z$6)),IFERROR(IF(VLOOKUP($C35,LG_ext!$C$12:$K$400,5,FALSE)=$F35,VLOOKUP($C35,LG_ext!$C$12:$K$400,9,FALSE),""),""),"") ->  | AA35: =IF(IF(AND($J35="non inscrit",AA$6>$H$4),OR($P35<$H$5,$P35<AA$6),OR($J35<$H$5,$J35<AA$6)),IFERROR(IF(VLOOKUP($C35,Jul_ext!$C$12:$K$400,5,FALSE)=$F35,VLOOKUP($C35,Jul_ext!$C$12:$K$400,9,FALSE),""),""),"") ->  | AB35: =IF(IF(AND($J35="non inscrit",AB$6>$H$4),OR($P35<$H$5,$P35<AB$6),OR($J35<$H$5,$J35<AB$6)),IFERROR(IF(VLOOKUP($C35,CQ_ext!$C$12:$K$400,5,FALSE)=$F35,VLOOKUP($C35,CQ_ext!$C$12:$K$400,9,FALSE),""),""),"") ->  | AC35: =IF(IF(AND($J35="non inscrit",AC$6>$H$4),OR($P35<$H$5,$P35<AC$6),OR($J35<$H$5,$J35<AC$6)),IFERROR(IF(VLOOKUP($C35,NAQ_ext!$C$12:$K$400,5,FALSE)=$F35,VLOOKUP($C35,NAQ_ext!$C$12:$K$400,9,FALSE),""),""),"") ->  | AD35: =IF(IF(AND($J35="non inscrit",AD$6>$H$4),OR($P35<$H$5,$P35<AD$6),OR($J35<$H$5,$J35<AD$6)),IFERROR(IF(VLOOKUP($C35,MtL_ext!$C$12:$K$400,5,FALSE)=$F35,VLOOKUP($C35,MtL_ext!$C$12:$K$400,9,FALSE),""),""),"") ->  | AE35: =IF(IF(AND($J35="non inscrit",AE$6>$H$4),OR($P35<$H$5,$P35<AE$6),OR($J35<$H$5,$J35<AE$6)),IFERROR(IF(VLOOKUP($C35,Cant_ext!$C$12:$K$400,5,FALSE)=$F35,VLOOKUP($C35,Cant_ext!$C$12:$K$400,9,FALSE),""),""),"") ->  | AH35: =IF(IF(AND($J35="non inscrit",AH$6>$H$4),OR($P35<$H$5,$P35<AH$6),OR($J35<$H$5,$J35<AH$6)),IFERROR(IF(VLOOKUP($C35,ASF2_ext!$C$12:$K$400,5,FALSE)=$F35,VLOOKUP($C35,ASF2_ext!$C$12:$K$400,9,FALSE),""),""),"") ->  | AI35: =IF(IF(AND($J35="non inscrit",AI$6>$H$4),OR($P35<$H$5,$P35<AI$6),OR($J35<$H$5,$J35<AI$6)),IFERROR(IF(VLOOKUP($C35,Ascot_ext!$C$12:$K$400,5,FALSE)=$F35,VLOOKUP($C35,Ascot_ext!$C$12:$K$400,9,FALSE),""),""),"") ->  | AJ35: =IF(IF(AND($J35="non inscrit",AJ$6>$H$4),OR($P35<$H$5,$P35<AJ$6),OR($J35<$H$5,$J35<AJ$6)),IFERROR(IF(VLOOKUP($C35,BBA_ext!$C$12:$K$400,5,FALSE)=$F35,VLOOKUP($C35,BBA_ext!$C$12:$K$400,9,FALSE),""),""),"") ->  | AK35: =IF(IF(AND($J35="non inscrit",AK$6>$H$4),OR($P35<$H$5,$P35<AK$6),OR($J35<$H$5,$J35<AK$6)),IFERROR(IF(VLOOKUP($C35,Tuq1_ext!$C$12:$K$400,5,FALSE)=$F35,VLOOKUP($C35,Tuq1_ext!$C$12:$K$400,9,FALSE),""),""),"") ->  | AL35: =IF(IF(AND($J35="non inscrit",AL$6>$H$4),OR($P35<$H$5,$P35<AL$6),OR($J35<$H$5,$J35<AL$6)),IFERROR(IF(VLOOKUP($C35,Tuq2_ext!$C$12:$K$400,5,FALSE)=$F35,VLOOKUP($C35,Tuq2_ext!$C$12:$K$400,9,FALSE),""),""),"") ->  | AM35: =IF(IF(AND($J35="non inscrit",AM$6>$H$4),OR($P35<$H$5,$P35<AM$6),OR($J35<$H$5,$J35<AM$6)),IFERROR(IF(VLOOKUP($C35,CQ2_ext!$C$12:$K$400,5,FALSE)=$F35,VLOOKUP($C35,CQ2_ext!$C$12:$K$400,9,FALSE),""),""),"") ->  | AN35: =IF(IF(AND($J35="non inscrit",AN$6>$H$4),OR($P35<$H$5,$P35<AN$6),OR($J35<$H$5,$J35<AN$6)),IFERROR(IF(VLOOKUP($C35,MTL2_ext!$C$12:$K$400,5,FALSE)=$F35,VLOOKUP($C35,MTL2_ext!$C$12:$K$400,9,FALSE),""),""),"") ->  | AO35: =IF(IF(AND($J35="non inscrit",AO$6>$H$4),OR($P35<$H$5,$P35<AO$6),OR($J35<$H$5,$J35<AO$6)),IFERROR(IF(VLOOKUP($C35,NO_ext!$C$12:$K$400,5,FALSE)=$F35,VLOOKUP($C35,NO_ext!$C$12:$K$400,9,FALSE),""),""),"") ->  | AP35: =IF(IF(AND($J35="non inscrit",AP$6>$H$4),OR($P35<$H$5,$P35<AP$6),OR($J35<$H$5,$J35<AP$6)),IFERROR(IF(VLOOKUP($C35,VD_ext!$C$12:$K$400,5,FALSE)=$F35,VLOOKUP($C35,VD_ext!$C$12:$K$400,9,FALSE),""),""),"") ->  | AQ35: =IF(IF(AND($J35="non inscrit",AQ$6>$H$4),OR($P35<$H$5,$P35<AQ$6),OR($J35<$H$5,$J35<AQ$6)),IFERROR(IF(VLOOKUP($C35,PT_ext!$C$12:$K$400,5,FALSE)=$F35,VLOOKUP($C35,PT_ext!$C$12:$K$400,9,FALSE),""),""),"") ->  | AR35: =IF(IF(AND($J35="non inscrit",AR$6>$H$4),OR($P35<$H$5,$P35<AR$6),OR($J35<$H$5,$J35<AR$6)),IFERROR(IF(VLOOKUP($C35,Vic_ext!$C$12:$K$400,5,FALSE)=$F35,VLOOKUP($C35,Vic_ext!$C$12:$K$400,9,FALSE),""),""),"") ->  | AS35: =IF(IF(AND($J35="non inscrit",AS$6>$H$4),OR($P35<$H$5,$P35<AS$6),OR($J35<$H$5,$J35<AS$6)),IFERROR(IF(VLOOKUP($C35,Sor_ext!$C$12:$K$400,5,FALSE)=$F35,VLOOKUP($C35,Sor_ext!$C$12:$K$400,9,FALSE),""),""),"") ->  | AU35: =IF(IF(AND($J35="non inscrit",AU$6>$H$4),OR($P35<$H$5,$P35<AU$6),OR($J35<$H$5,$J35<AU$6)),IFERROR(IF(VLOOKUP($C35,PROV_ext!$C$12:$K$400,5,FALSE)=$F35,VLOOKUP($C35,PROV_ext!$C$12:$K$400,9,FALSE),""),""),"") ->  | AW35: =IF(IF(AND($J35="non inscrit",AW$6>$H$4),OR($P35<$H$5,$P35<AQ$6),OR($J35<$H$5,$J35<AQ$6)),IFERROR(IF(VLOOKUP($C35,Coat_int!$C$12:$K$400,5,FALSE)=$F35,VLOOKUP($C35,Coat_int!$C$12:$K$400,9,FALSE),""),""),"") ->  | AX35: =IF(IF(AND($J35="non inscrit",AX$6>$H$4),OR($P35<$H$5,$P35<AR$6),OR($J35<$H$5,$J35<AR$6)),IFERROR(IF(VLOOKUP($C35,LG_int!$C$12:$K$400,5,FALSE)=$F35,VLOOKUP($C35,LG_int!$C$12:$K$400,9,FALSE),""),""),"") ->  | AY35: =IF(IF(AND($J35="non inscrit",AY$6>$H$4),OR($P35<$H$5,$P35<AS$6),OR($J35<$H$5,$J35<AS$6)),IFERROR(IF(VLOOKUP($C35,Roc_int!$C$12:$K$400,5,FALSE)=$F35,VLOOKUP($C35,Roc_int!$C$12:$K$400,9,FALSE),""),""),"") ->  | AZ35: =IF(IF(AND($J35="non inscrit",AZ$6>$H$4),OR($P35<$H$5,$P35<AT$6),OR($J35<$H$5,$J35<AT$6)),IFERROR(IF(VLOOKUP($C35,Qc_int!$C$12:$K$400,5,FALSE)=$F35,VLOOKUP($C35,Qc_int!$C$12:$K$400,9,FALSE),""),""),"") ->  | BA35: =IF(IF(AND($J35="non inscrit",BA$6>$H$4),OR($P35<$H$5,$P35<AU$6),OR($J35<$H$5,$J35<AU$6)),IFERROR(IF(VLOOKUP($C35,Asc_int!$C$12:$K$400,5,FALSE)=$F35,VLOOKUP($C35,Asc_int!$C$12:$K$400,9,FALSE),""),""),"") ->  | BB35: =IF(IF(AND($J35="non inscrit",BB$6>$H$4),OR($P35<$H$5,$P35<AV$6),OR($J35<$H$5,$J35<AV$6)),IFERROR(IF(VLOOKUP($C35,CQ_int!$C$12:$K$400,5,FALSE)=$F35,VLOOKUP($C35,CQ_int!$C$12:$K$400,9,FALSE),""),""),"") ->  | BC35: =IF(IF(AND($J35="non inscrit",BC$6>$H$4),OR($P35<$H$5,$P35<AW$6),OR($J35<$H$5,$J35<AW$6)),IFERROR(IF(VLOOKUP($C35,QC2_int!$C$12:$K$400,5,FALSE)=$F35,VLOOKUP($C35,QC2_int!$C$12:$K$400,9,FALSE),""),""),"") ->  | BD35: =IF(IF(AND($J35="non inscrit",BD$6>$H$4),OR($P35<$H$5,$P35<AX$6),OR($J35<$H$5,$J35<AX$6)),IFERROR(IF(VLOOKUP($C35,Ach_int!$C$12:$K$400,5,FALSE)=$F35,VLOOKUP($C35,Ach_int!$C$12:$K$400,9,FALSE),""),""),"") ->  | BF35: =IF(IF(AND($J35="non inscrit",BF$6>$H$4),OR($P35<$H$5,$P35<AZ$6),OR($J35<$H$5,$J35<AZ$6)),IFERROR(IF(VLOOKUP($C35,Buck_int!$C$12:$K$400,5,FALSE)=$F35,VLOOKUP($C35,Buck_int!$C$12:$K$400,9,FALSE),""),""),"") ->  | BG35: =IF(IF(AND($J35="non inscrit",BG$6>$H$4),OR($P35<$H$5,$P35<BA$6),OR($J35<$H$5,$J35<BA$6)),IFERROR(IF(VLOOKUP($C35,CQC_int!$C$12:$K$400,5,FALSE)=$F35,VLOOKUP($C35,CQC_int!$C$12:$K$400,9,FALSE),""),""),"") ->  | BH35: =IF(IF(AND($J35="non inscrit",BH$6>$H$4),OR($P35<$H$5,$P35<BB$6),OR($J35<$H$5,$J35<BB$6)),IFERROR(IF(VLOOKUP($C35,LG3_int!$C$12:$K$400,5,FALSE)=$F35,VLOOKUP($C35,LG3_int!$C$12:$K$400,9,FALSE),""),""),"") ->  | BI35: =IF(IF(AND($J35="non inscrit",BI$6>$H$4),OR($P35<$H$5,$P35<BC$6),OR($J35<$H$5,$J35<BC$6)),IFERROR(IF(VLOOKUP($C35,LS_int!$C$12:$K$400,5,FALSE)=$F35,VLOOKUP($C35,LS_int!$C$12:$K$400,9,FALSE),""),""),"") ->  | BT35: =IF(IF(AND($J35="non inscrit",BT$6>$H$4),OR($P35<$H$5,$P35<BN$6),OR($J35<$H$5,$J35<BN$6)),IFERROR(IF(VLOOKUP($C35,FI!$C$12:$K$400,5,FALSE)=$F35,VLOOKUP($C35,FI!$C$12:$K$400,9,FALSE),""),""),"") -> 
A36: =A35 -> 2 | B36: =B35+1 -> 6 | D36: =IF($C36="","",IF($N$1>$H$4,IFERROR(VLOOKUP($C36,'Membres-2024'!$A:$G,2,FALSE),""),IFERROR(VLOOKUP($C36,'Membres-2023'!$A:$G,2,FALSE),""))) ->  | E36: =IF($C36="","",IF($N$1>$H$4,IFERROR(VLOOKUP($C36,'Membres-2024'!$A:$G,3,FALSE),""),IFERROR(VLOOKUP($C36,'Membres-2023'!$A:$G,3,FALSE),""))) ->  | F36: =IF($C36="","",IF($N$1>$H$4,IFERROR(VLOOKUP($C36,'Membres-2024'!$A:$G,7,FALSE),""),IFERROR(VLOOKUP($C36,'Membres-2023'!$A:$G,7,FALSE),""))) ->  | G36: =IF($C36="","",IF($N$1>$H$4,IFERROR(VLOOKUP($C36,'Membres-2024'!$A:$G,5,FALSE),""),IFERROR(VLOOKUP($C36,'Membres-2023'!$A:$G,5,FALSE),""))) ->  | H36: =COUNTIF($Y36:$BT36,">=0") -> 0 | I36: =SUM(K36:O36,Q36:U36) -> 0 | J36: =IFERROR(IF(VLOOKUP(C36,'Membres-2023'!$A:$F,6,FALSE)>=$H$3,VLOOKUP(C36,'Membres-2023'!$A:$F,6,FALSE),"non inscrit"),IF($C36>0,"non inscrit","")) ->  | K36: =IFERROR(IF(COUNTA(Y36:AT36)>0,LARGE(Y36:AT36,1)/6,""),"") ->  | L36: =IFERROR(IF(COUNTA(Y36:AT36)>1,LARGE(Y36:AT36,2)/6,""),"") ->  | M36: =IFERROR(IF(COUNTA(Y36:AT36)>2,LARGE(Y36:AT36,3)/6,""),"") ->  | N36: =IFERROR(IF(COUNTA(Y36:AT36)>3,LARGE(Y36:AT36,4)/6,""),"") ->  | O36: =IF(AU36<>"",AU36,"") ->  | P36: =IFERROR(IF(VLOOKUP(C36,'Membres-2024'!$A:$F,6,FALSE)>=$H$3,VLOOKUP(C36,'Membres-2024'!$A:$F,6,FALSE),"non inscrit"),IF($C36>0,"non inscrit","")) ->  | Q36: =IFERROR(IF(COUNTA(AW36:BS36)>0,LARGE(AW36:BS36,1)/6,""),"") ->  | R36: =IFERROR(IF(COUNTA(AW36:BS36)>1,LARGE(AW36:BS36,2)/6,""),"") ->  | S36: =IFERROR(IF(COUNTA(AW36:BS36)>2,LARGE(AW36:BS36,3)/6,""),"") ->  | T36: =IFERROR(IF(COUNTA(AW36:BS36)>3,LARGE(AW36:BS36,4)/6,""),"") ->  | U36: =IF(BT36<>"",BT36,"") ->  | Y36: =IF(IF(AND($J36="non inscrit",Y$6>$H$4),OR($P36<$H$5,$P36<Y$6),OR($J36<$H$5,$J36<Y$6)),IFERROR(IF(VLOOKUP($C36,ASF_ext!$C$12:$K$400,5,FALSE)=$F36,VLOOKUP($C36,ASF_ext!$C$12:$K$400,9,FALSE),""),""),"") ->  | Z36: =IF(IF(AND($J36="non inscrit",Z$6>$H$4),OR($P36<$H$5,$P36<Z$6),OR($J36<$H$5,$J36<Z$6)),IFERROR(IF(VLOOKUP($C36,LG_ext!$C$12:$K$400,5,FALSE)=$F36,VLOOKUP($C36,LG_ext!$C$12:$K$400,9,FALSE),""),""),"") ->  | AA36: =IF(IF(AND($J36="non inscrit",AA$6>$H$4),OR($P36<$H$5,$P36<AA$6),OR($J36<$H$5,$J36<AA$6)),IFERROR(IF(VLOOKUP($C36,Jul_ext!$C$12:$K$400,5,FALSE)=$F36,VLOOKUP($C36,Jul_ext!$C$12:$K$400,9,FALSE),""),""),"") ->  | AB36: =IF(IF(AND($J36="non inscrit",AB$6>$H$4),OR($P36<$H$5,$P36<AB$6),OR($J36<$H$5,$J36<AB$6)),IFERROR(IF(VLOOKUP($C36,CQ_ext!$C$12:$K$400,5,FALSE)=$F36,VLOOKUP($C36,CQ_ext!$C$12:$K$400,9,FALSE),""),""),"") ->  | AC36: =IF(IF(AND($J36="non inscrit",AC$6>$H$4),OR($P36<$H$5,$P36<AC$6),OR($J36<$H$5,$J36<AC$6)),IFERROR(IF(VLOOKUP($C36,NAQ_ext!$C$12:$K$400,5,FALSE)=$F36,VLOOKUP($C36,NAQ_ext!$C$12:$K$400,9,FALSE),""),""),"") ->  | AD36: =IF(IF(AND($J36="non inscrit",AD$6>$H$4),OR($P36<$H$5,$P36<AD$6),OR($J36<$H$5,$J36<AD$6)),IFERROR(IF(VLOOKUP($C36,MtL_ext!$C$12:$K$400,5,FALSE)=$F36,VLOOKUP($C36,MtL_ext!$C$12:$K$400,9,FALSE),""),""),"") ->  | AE36: =IF(IF(AND($J36="non inscrit",AE$6>$H$4),OR($P36<$H$5,$P36<AE$6),OR($J36<$H$5,$J36<AE$6)),IFERROR(IF(VLOOKUP($C36,Cant_ext!$C$12:$K$400,5,FALSE)=$F36,VLOOKUP($C36,Cant_ext!$C$12:$K$400,9,FALSE),""),""),"") ->  | AH36: =IF(IF(AND($J36="non inscrit",AH$6>$H$4),OR($P36<$H$5,$P36<AH$6),OR($J36<$H$5,$J36<AH$6)),IFERROR(IF(VLOOKUP($C36,ASF2_ext!$C$12:$K$400,5,FALSE)=$F36,VLOOKUP($C36,ASF2_ext!$C$12:$K$400,9,FALSE),""),""),"") ->  | AI36: =IF(IF(AND($J36="non inscrit",AI$6>$H$4),OR($P36<$H$5,$P36<AI$6),OR($J36<$H$5,$J36<AI$6)),IFERROR(IF(VLOOKUP($C36,Ascot_ext!$C$12:$K$400,5,FALSE)=$F36,VLOOKUP($C36,Ascot_ext!$C$12:$K$400,9,FALSE),""),""),"") ->  | AJ36: =IF(IF(AND($J36="non inscrit",AJ$6>$H$4),OR($P36<$H$5,$P36<AJ$6),OR($J36<$H$5,$J36<AJ$6)),IFERROR(IF(VLOOKUP($C36,BBA_ext!$C$12:$K$400,5,FALSE)=$F36,VLOOKUP($C36,BBA_ext!$C$12:$K$400,9,FALSE),""),""),"") ->  | AK36: =IF(IF(AND($J36="non inscrit",AK$6>$H$4),OR($P36<$H$5,$P36<AK$6),OR($J36<$H$5,$J36<AK$6)),IFERROR(IF(VLOOKUP($C36,Tuq1_ext!$C$12:$K$400,5,FALSE)=$F36,VLOOKUP($C36,Tuq1_ext!$C$12:$K$400,9,FALSE),""),""),"") ->  | AL36: =IF(IF(AND($J36="non inscrit",AL$6>$H$4),OR($P36<$H$5,$P36<AL$6),OR($J36<$H$5,$J36<AL$6)),IFERROR(IF(VLOOKUP($C36,Tuq2_ext!$C$12:$K$400,5,FALSE)=$F36,VLOOKUP($C36,Tuq2_ext!$C$12:$K$400,9,FALSE),""),""),"") ->  | AM36: =IF(IF(AND($J36="non inscrit",AM$6>$H$4),OR($P36<$H$5,$P36<AM$6),OR($J36<$H$5,$J36<AM$6)),IFERROR(IF(VLOOKUP($C36,CQ2_ext!$C$12:$K$400,5,FALSE)=$F36,VLOOKUP($C36,CQ2_ext!$C$12:$K$400,9,FALSE),""),""),"") ->  | AN36: =IF(IF(AND($J36="non inscrit",AN$6>$H$4),OR($P36<$H$5,$P36<AN$6),OR($J36<$H$5,$J36<AN$6)),IFERROR(IF(VLOOKUP($C36,MTL2_ext!$C$12:$K$400,5,FALSE)=$F36,VLOOKUP($C36,MTL2_ext!$C$12:$K$400,9,FALSE),""),""),"") ->  | AO36: =IF(IF(AND($J36="non inscrit",AO$6>$H$4),OR($P36<$H$5,$P36<AO$6),OR($J36<$H$5,$J36<AO$6)),IFERROR(IF(VLOOKUP($C36,NO_ext!$C$12:$K$400,5,FALSE)=$F36,VLOOKUP($C36,NO_ext!$C$12:$K$400,9,FALSE),""),""),"") ->  | AP36: =IF(IF(AND($J36="non inscrit",AP$6>$H$4),OR($P36<$H$5,$P36<AP$6),OR($J36<$H$5,$J36<AP$6)),IFERROR(IF(VLOOKUP($C36,VD_ext!$C$12:$K$400,5,FALSE)=$F36,VLOOKUP($C36,VD_ext!$C$12:$K$400,9,FALSE),""),""),"") ->  | AQ36: =IF(IF(AND($J36="non inscrit",AQ$6>$H$4),OR($P36<$H$5,$P36<AQ$6),OR($J36<$H$5,$J36<AQ$6)),IFERROR(IF(VLOOKUP($C36,PT_ext!$C$12:$K$400,5,FALSE)=$F36,VLOOKUP($C36,PT_ext!$C$12:$K$400,9,FALSE),""),""),"") ->  | AR36: =IF(IF(AND($J36="non inscrit",AR$6>$H$4),OR($P36<$H$5,$P36<AR$6),OR($J36<$H$5,$J36<AR$6)),IFERROR(IF(VLOOKUP($C36,Vic_ext!$C$12:$K$400,5,FALSE)=$F36,VLOOKUP($C36,Vic_ext!$C$12:$K$400,9,FALSE),""),""),"") ->  | AS36: =IF(IF(AND($J36="non inscrit",AS$6>$H$4),OR($P36<$H$5,$P36<AS$6),OR($J36<$H$5,$J36<AS$6)),IFERROR(IF(VLOOKUP($C36,Sor_ext!$C$12:$K$400,5,FALSE)=$F36,VLOOKUP($C36,Sor_ext!$C$12:$K$400,9,FALSE),""),""),"") ->  | AU36: =IF(IF(AND($J36="non inscrit",AU$6>$H$4),OR($P36<$H$5,$P36<AU$6),OR($J36<$H$5,$J36<AU$6)),IFERROR(IF(VLOOKUP($C36,PROV_ext!$C$12:$K$400,5,FALSE)=$F36,VLOOKUP($C36,PROV_ext!$C$12:$K$400,9,FALSE),""),""),"") ->  | AW36: =IF(IF(AND($J36="non inscrit",AW$6>$H$4),OR($P36<$H$5,$P36<AQ$6),OR($J36<$H$5,$J36<AQ$6)),IFERROR(IF(VLOOKUP($C36,Coat_int!$C$12:$K$400,5,FALSE)=$F36,VLOOKUP($C36,Coat_int!$C$12:$K$400,9,FALSE),""),""),"") ->  | AX36: =IF(IF(AND($J36="non inscrit",AX$6>$H$4),OR($P36<$H$5,$P36<AR$6),OR($J36<$H$5,$J36<AR$6)),IFERROR(IF(VLOOKUP($C36,LG_int!$C$12:$K$400,5,FALSE)=$F36,VLOOKUP($C36,LG_int!$C$12:$K$400,9,FALSE),""),""),"") ->  | AY36: =IF(IF(AND($J36="non inscrit",AY$6>$H$4),OR($P36<$H$5,$P36<AS$6),OR($J36<$H$5,$J36<AS$6)),IFERROR(IF(VLOOKUP($C36,Roc_int!$C$12:$K$400,5,FALSE)=$F36,VLOOKUP($C36,Roc_int!$C$12:$K$400,9,FALSE),""),""),"") ->  | AZ36: =IF(IF(AND($J36="non inscrit",AZ$6>$H$4),OR($P36<$H$5,$P36<AT$6),OR($J36<$H$5,$J36<AT$6)),IFERROR(IF(VLOOKUP($C36,Qc_int!$C$12:$K$400,5,FALSE)=$F36,VLOOKUP($C36,Qc_int!$C$12:$K$400,9,FALSE),""),""),"") ->  | BA36: =IF(IF(AND($J36="non inscrit",BA$6>$H$4),OR($P36<$H$5,$P36<AU$6),OR($J36<$H$5,$J36<AU$6)),IFERROR(IF(VLOOKUP($C36,Asc_int!$C$12:$K$400,5,FALSE)=$F36,VLOOKUP($C36,Asc_int!$C$12:$K$400,9,FALSE),""),""),"") ->  | BB36: =IF(IF(AND($J36="non inscrit",BB$6>$H$4),OR($P36<$H$5,$P36<AV$6),OR($J36<$H$5,$J36<AV$6)),IFERROR(IF(VLOOKUP($C36,CQ_int!$C$12:$K$400,5,FALSE)=$F36,VLOOKUP($C36,CQ_int!$C$12:$K$400,9,FALSE),""),""),"") ->  | BC36: =IF(IF(AND($J36="non inscrit",BC$6>$H$4),OR($P36<$H$5,$P36<AW$6),OR($J36<$H$5,$J36<AW$6)),IFERROR(IF(VLOOKUP($C36,QC2_int!$C$12:$K$400,5,FALSE)=$F36,VLOOKUP($C36,QC2_int!$C$12:$K$400,9,FALSE),""),""),"") ->  | BD36: =IF(IF(AND($J36="non inscrit",BD$6>$H$4),OR($P36<$H$5,$P36<AX$6),OR($J36<$H$5,$J36<AX$6)),IFERROR(IF(VLOOKUP($C36,Ach_int!$C$12:$K$400,5,FALSE)=$F36,VLOOKUP($C36,Ach_int!$C$12:$K$400,9,FALSE),""),""),"") ->  | BF36: =IF(IF(AND($J36="non inscrit",BF$6>$H$4),OR($P36<$H$5,$P36<AZ$6),OR($J36<$H$5,$J36<AZ$6)),IFERROR(IF(VLOOKUP($C36,Buck_int!$C$12:$K$400,5,FALSE)=$F36,VLOOKUP($C36,Buck_int!$C$12:$K$400,9,FALSE),""),""),"") ->  | BG36: =IF(IF(AND($J36="non inscrit",BG$6>$H$4),OR($P36<$H$5,$P36<BA$6),OR($J36<$H$5,$J36<BA$6)),IFERROR(IF(VLOOKUP($C36,CQC_int!$C$12:$K$400,5,FALSE)=$F36,VLOOKUP($C36,CQC_int!$C$12:$K$400,9,FALSE),""),""),"") ->  | BH36: =IF(IF(AND($J36="non inscrit",BH$6>$H$4),OR($P36<$H$5,$P36<BB$6),OR($J36<$H$5,$J36<BB$6)),IFERROR(IF(VLOOKUP($C36,LG3_int!$C$12:$K$400,5,FALSE)=$F36,VLOOKUP($C36,LG3_int!$C$12:$K$400,9,FALSE),""),""),"") ->  | BI36: =IF(IF(AND($J36="non inscrit",BI$6>$H$4),OR($P36<$H$5,$P36<BC$6),OR($J36<$H$5,$J36<BC$6)),IFERROR(IF(VLOOKUP($C36,LS_int!$C$12:$K$400,5,FALSE)=$F36,VLOOKUP($C36,LS_int!$C$12:$K$400,9,FALSE),""),""),"") ->  | BT36: =IF(IF(AND($J36="non inscrit",BT$6>$H$4),OR($P36<$H$5,$P36<BN$6),OR($J36<$H$5,$J36<BN$6)),IFERROR(IF(VLOOKUP($C36,FI!$C$12:$K$400,5,FALSE)=$F36,VLOOKUP($C36,FI!$C$12:$K$400,9,FALSE),""),""),"") -> 
A37: =A36 -> 2 | B37: =B36+1 -> 7 | D37: =IF($C37="","",IF($N$1>$H$4,IFERROR(VLOOKUP($C37,'Membres-2024'!$A:$G,2,FALSE),""),IFERROR(VLOOKUP($C37,'Membres-2023'!$A:$G,2,FALSE),""))) ->  | E37: =IF($C37="","",IF($N$1>$H$4,IFERROR(VLOOKUP($C37,'Membres-2024'!$A:$G,3,FALSE),""),IFERROR(VLOOKUP($C37,'Membres-2023'!$A:$G,3,FALSE),""))) ->  | F37: =IF($C37="","",IF($N$1>$H$4,IFERROR(VLOOKUP($C37,'Membres-2024'!$A:$G,7,FALSE),""),IFERROR(VLOOKUP($C37,'Membres-2023'!$A:$G,7,FALSE),""))) ->  | G37: =IF($C37="","",IF($N$1>$H$4,IFERROR(VLOOKUP($C37,'Membres-2024'!$A:$G,5,FALSE),""),IFERROR(VLOOKUP($C37,'Membres-2023'!$A:$G,5,FALSE),""))) ->  | H37: =COUNTIF($Y37:$BT37,">=0") -> 0 | I37: =SUM(K37:O37,Q37:U37) -> 0 | J37: =IFERROR(IF(VLOOKUP(C37,'Membres-2023'!$A:$F,6,FALSE)>=$H$3,VLOOKUP(C37,'Membres-2023'!$A:$F,6,FALSE),"non inscrit"),IF($C37>0,"non inscrit","")) ->  | K37: =IFERROR(IF(COUNTA(Y37:AT37)>0,LARGE(Y37:AT37,1)/6,""),"") ->  | L37: =IFERROR(IF(COUNTA(Y37:AT37)>1,LARGE(Y37:AT37,2)/6,""),"") ->  | M37: =IFERROR(IF(COUNTA(Y37:AT37)>2,LARGE(Y37:AT37,3)/6,""),"") ->  | N37: =IFERROR(IF(COUNTA(Y37:AT37)>3,LARGE(Y37:AT37,4)/6,""),"") ->  | O37: =IF(AU37<>"",AU37,"") ->  | P37: =IFERROR(IF(VLOOKUP(C37,'Membres-2024'!$A:$F,6,FALSE)>=$H$3,VLOOKUP(C37,'Membres-2024'!$A:$F,6,FALSE),"non inscrit"),IF($C37>0,"non inscrit","")) ->  | Q37: =IFERROR(IF(COUNTA(AW37:BS37)>0,LARGE(AW37:BS37,1)/6,""),"") ->  | R37: =IFERROR(IF(COUNTA(AW37:BS37)>1,LARGE(AW37:BS37,2)/6,""),"") ->  | S37: =IFERROR(IF(COUNTA(AW37:BS37)>2,LARGE(AW37:BS37,3)/6,""),"") ->  | T37: =IFERROR(IF(COUNTA(AW37:BS37)>3,LARGE(AW37:BS37,4)/6,""),"") ->  | U37: =IF(BT37<>"",BT37,"") ->  | Y37: =IF(IF(AND($J37="non inscrit",Y$6>$H$4),OR($P37<$H$5,$P37<Y$6),OR($J37<$H$5,$J37<Y$6)),IFERROR(IF(VLOOKUP($C37,ASF_ext!$C$12:$K$400,5,FALSE)=$F37,VLOOKUP($C37,ASF_ext!$C$12:$K$400,9,FALSE),""),""),"") ->  | Z37: =IF(IF(AND($J37="non inscrit",Z$6>$H$4),OR($P37<$H$5,$P37<Z$6),OR($J37<$H$5,$J37<Z$6)),IFERROR(IF(VLOOKUP($C37,LG_ext!$C$12:$K$400,5,FALSE)=$F37,VLOOKUP($C37,LG_ext!$C$12:$K$400,9,FALSE),""),""),"") ->  | AA37: =IF(IF(AND($J37="non inscrit",AA$6>$H$4),OR($P37<$H$5,$P37<AA$6),OR($J37<$H$5,$J37<AA$6)),IFERROR(IF(VLOOKUP($C37,Jul_ext!$C$12:$K$400,5,FALSE)=$F37,VLOOKUP($C37,Jul_ext!$C$12:$K$400,9,FALSE),""),""),"") ->  | AB37: =IF(IF(AND($J37="non inscrit",AB$6>$H$4),OR($P37<$H$5,$P37<AB$6),OR($J37<$H$5,$J37<AB$6)),IFERROR(IF(VLOOKUP($C37,CQ_ext!$C$12:$K$400,5,FALSE)=$F37,VLOOKUP($C37,CQ_ext!$C$12:$K$400,9,FALSE),""),""),"") ->  | AC37: =IF(IF(AND($J37="non inscrit",AC$6>$H$4),OR($P37<$H$5,$P37<AC$6),OR($J37<$H$5,$J37<AC$6)),IFERROR(IF(VLOOKUP($C37,NAQ_ext!$C$12:$K$400,5,FALSE)=$F37,VLOOKUP($C37,NAQ_ext!$C$12:$K$400,9,FALSE),""),""),"") ->  | AD37: =IF(IF(AND($J37="non inscrit",AD$6>$H$4),OR($P37<$H$5,$P37<AD$6),OR($J37<$H$5,$J37<AD$6)),IFERROR(IF(VLOOKUP($C37,MtL_ext!$C$12:$K$400,5,FALSE)=$F37,VLOOKUP($C37,MtL_ext!$C$12:$K$400,9,FALSE),""),""),"") ->  | AE37: =IF(IF(AND($J37="non inscrit",AE$6>$H$4),OR($P37<$H$5,$P37<AE$6),OR($J37<$H$5,$J37<AE$6)),IFERROR(IF(VLOOKUP($C37,Cant_ext!$C$12:$K$400,5,FALSE)=$F37,VLOOKUP($C37,Cant_ext!$C$12:$K$400,9,FALSE),""),""),"") ->  | AH37: =IF(IF(AND($J37="non inscrit",AH$6>$H$4),OR($P37<$H$5,$P37<AH$6),OR($J37<$H$5,$J37<AH$6)),IFERROR(IF(VLOOKUP($C37,ASF2_ext!$C$12:$K$400,5,FALSE)=$F37,VLOOKUP($C37,ASF2_ext!$C$12:$K$400,9,FALSE),""),""),"") ->  | AI37: =IF(IF(AND($J37="non inscrit",AI$6>$H$4),OR($P37<$H$5,$P37<AI$6),OR($J37<$H$5,$J37<AI$6)),IFERROR(IF(VLOOKUP($C37,Ascot_ext!$C$12:$K$400,5,FALSE)=$F37,VLOOKUP($C37,Ascot_ext!$C$12:$K$400,9,FALSE),""),""),"") ->  | AJ37: =IF(IF(AND($J37="non inscrit",AJ$6>$H$4),OR($P37<$H$5,$P37<AJ$6),OR($J37<$H$5,$J37<AJ$6)),IFERROR(IF(VLOOKUP($C37,BBA_ext!$C$12:$K$400,5,FALSE)=$F37,VLOOKUP($C37,BBA_ext!$C$12:$K$400,9,FALSE),""),""),"") ->  | AK37: =IF(IF(AND($J37="non inscrit",AK$6>$H$4),OR($P37<$H$5,$P37<AK$6),OR($J37<$H$5,$J37<AK$6)),IFERROR(IF(VLOOKUP($C37,Tuq1_ext!$C$12:$K$400,5,FALSE)=$F37,VLOOKUP($C37,Tuq1_ext!$C$12:$K$400,9,FALSE),""),""),"") ->  | AL37: =IF(IF(AND($J37="non inscrit",AL$6>$H$4),OR($P37<$H$5,$P37<AL$6),OR($J37<$H$5,$J37<AL$6)),IFERROR(IF(VLOOKUP($C37,Tuq2_ext!$C$12:$K$400,5,FALSE)=$F37,VLOOKUP($C37,Tuq2_ext!$C$12:$K$400,9,FALSE),""),""),"") ->  | AM37: =IF(IF(AND($J37="non inscrit",AM$6>$H$4),OR($P37<$H$5,$P37<AM$6),OR($J37<$H$5,$J37<AM$6)),IFERROR(IF(VLOOKUP($C37,CQ2_ext!$C$12:$K$400,5,FALSE)=$F37,VLOOKUP($C37,CQ2_ext!$C$12:$K$400,9,FALSE),""),""),"") ->  | AN37: =IF(IF(AND($J37="non inscrit",AN$6>$H$4),OR($P37<$H$5,$P37<AN$6),OR($J37<$H$5,$J37<AN$6)),IFERROR(IF(VLOOKUP($C37,MTL2_ext!$C$12:$K$400,5,FALSE)=$F37,VLOOKUP($C37,MTL2_ext!$C$12:$K$400,9,FALSE),""),""),"") ->  | AO37: =IF(IF(AND($J37="non inscrit",AO$6>$H$4),OR($P37<$H$5,$P37<AO$6),OR($J37<$H$5,$J37<AO$6)),IFERROR(IF(VLOOKUP($C37,NO_ext!$C$12:$K$400,5,FALSE)=$F37,VLOOKUP($C37,NO_ext!$C$12:$K$400,9,FALSE),""),""),"") ->  | AP37: =IF(IF(AND($J37="non inscrit",AP$6>$H$4),OR($P37<$H$5,$P37<AP$6),OR($J37<$H$5,$J37<AP$6)),IFERROR(IF(VLOOKUP($C37,VD_ext!$C$12:$K$400,5,FALSE)=$F37,VLOOKUP($C37,VD_ext!$C$12:$K$400,9,FALSE),""),""),"") ->  | AQ37: =IF(IF(AND($J37="non inscrit",AQ$6>$H$4),OR($P37<$H$5,$P37<AQ$6),OR($J37<$H$5,$J37<AQ$6)),IFERROR(IF(VLOOKUP($C37,PT_ext!$C$12:$K$400,5,FALSE)=$F37,VLOOKUP($C37,PT_ext!$C$12:$K$400,9,FALSE),""),""),"") ->  | AR37: =IF(IF(AND($J37="non inscrit",AR$6>$H$4),OR($P37<$H$5,$P37<AR$6),OR($J37<$H$5,$J37<AR$6)),IFERROR(IF(VLOOKUP($C37,Vic_ext!$C$12:$K$400,5,FALSE)=$F37,VLOOKUP($C37,Vic_ext!$C$12:$K$400,9,FALSE),""),""),"") ->  | AS37: =IF(IF(AND($J37="non inscrit",AS$6>$H$4),OR($P37<$H$5,$P37<AS$6),OR($J37<$H$5,$J37<AS$6)),IFERROR(IF(VLOOKUP($C37,Sor_ext!$C$12:$K$400,5,FALSE)=$F37,VLOOKUP($C37,Sor_ext!$C$12:$K$400,9,FALSE),""),""),"") ->  | AU37: =IF(IF(AND($J37="non inscrit",AU$6>$H$4),OR($P37<$H$5,$P37<AU$6),OR($J37<$H$5,$J37<AU$6)),IFERROR(IF(VLOOKUP($C37,PROV_ext!$C$12:$K$400,5,FALSE)=$F37,VLOOKUP($C37,PROV_ext!$C$12:$K$400,9,FALSE),""),""),"") ->  | AW37: =IF(IF(AND($J37="non inscrit",AW$6>$H$4),OR($P37<$H$5,$P37<AQ$6),OR($J37<$H$5,$J37<AQ$6)),IFERROR(IF(VLOOKUP($C37,Coat_int!$C$12:$K$400,5,FALSE)=$F37,VLOOKUP($C37,Coat_int!$C$12:$K$400,9,FALSE),""),""),"") ->  | AX37: =IF(IF(AND($J37="non inscrit",AX$6>$H$4),OR($P37<$H$5,$P37<AR$6),OR($J37<$H$5,$J37<AR$6)),IFERROR(IF(VLOOKUP($C37,LG_int!$C$12:$K$400,5,FALSE)=$F37,VLOOKUP($C37,LG_int!$C$12:$K$400,9,FALSE),""),""),"") ->  | AY37: =IF(IF(AND($J37="non inscrit",AY$6>$H$4),OR($P37<$H$5,$P37<AS$6),OR($J37<$H$5,$J37<AS$6)),IFERROR(IF(VLOOKUP($C37,Roc_int!$C$12:$K$400,5,FALSE)=$F37,VLOOKUP($C37,Roc_int!$C$12:$K$400,9,FALSE),""),""),"") ->  | AZ37: =IF(IF(AND($J37="non inscrit",AZ$6>$H$4),OR($P37<$H$5,$P37<AT$6),OR($J37<$H$5,$J37<AT$6)),IFERROR(IF(VLOOKUP($C37,Qc_int!$C$12:$K$400,5,FALSE)=$F37,VLOOKUP($C37,Qc_int!$C$12:$K$400,9,FALSE),""),""),"") ->  | BA37: =IF(IF(AND($J37="non inscrit",BA$6>$H$4),OR($P37<$H$5,$P37<AU$6),OR($J37<$H$5,$J37<AU$6)),IFERROR(IF(VLOOKUP($C37,Asc_int!$C$12:$K$400,5,FALSE)=$F37,VLOOKUP($C37,Asc_int!$C$12:$K$400,9,FALSE),""),""),"") ->  | BB37: =IF(IF(AND($J37="non inscrit",BB$6>$H$4),OR($P37<$H$5,$P37<AV$6),OR($J37<$H$5,$J37<AV$6)),IFERROR(IF(VLOOKUP($C37,CQ_int!$C$12:$K$400,5,FALSE)=$F37,VLOOKUP($C37,CQ_int!$C$12:$K$400,9,FALSE),""),""),"") ->  | BC37: =IF(IF(AND($J37="non inscrit",BC$6>$H$4),OR($P37<$H$5,$P37<AW$6),OR($J37<$H$5,$J37<AW$6)),IFERROR(IF(VLOOKUP($C37,QC2_int!$C$12:$K$400,5,FALSE)=$F37,VLOOKUP($C37,QC2_int!$C$12:$K$400,9,FALSE),""),""),"") ->  | BD37: =IF(IF(AND($J37="non inscrit",BD$6>$H$4),OR($P37<$H$5,$P37<AX$6),OR($J37<$H$5,$J37<AX$6)),IFERROR(IF(VLOOKUP($C37,Ach_int!$C$12:$K$400,5,FALSE)=$F37,VLOOKUP($C37,Ach_int!$C$12:$K$400,9,FALSE),""),""),"") ->  | BF37: =IF(IF(AND($J37="non inscrit",BF$6>$H$4),OR($P37<$H$5,$P37<AZ$6),OR($J37<$H$5,$J37<AZ$6)),IFERROR(IF(VLOOKUP($C37,Buck_int!$C$12:$K$400,5,FALSE)=$F37,VLOOKUP($C37,Buck_int!$C$12:$K$400,9,FALSE),""),""),"") ->  | BG37: =IF(IF(AND($J37="non inscrit",BG$6>$H$4),OR($P37<$H$5,$P37<BA$6),OR($J37<$H$5,$J37<BA$6)),IFERROR(IF(VLOOKUP($C37,CQC_int!$C$12:$K$400,5,FALSE)=$F37,VLOOKUP($C37,CQC_int!$C$12:$K$400,9,FALSE),""),""),"") ->  | BH37: =IF(IF(AND($J37="non inscrit",BH$6>$H$4),OR($P37<$H$5,$P37<BB$6),OR($J37<$H$5,$J37<BB$6)),IFERROR(IF(VLOOKUP($C37,LG3_int!$C$12:$K$400,5,FALSE)=$F37,VLOOKUP($C37,LG3_int!$C$12:$K$400,9,FALSE),""),""),"") ->  | BI37: =IF(IF(AND($J37="non inscrit",BI$6>$H$4),OR($P37<$H$5,$P37<BC$6),OR($J37<$H$5,$J37<BC$6)),IFERROR(IF(VLOOKUP($C37,LS_int!$C$12:$K$400,5,FALSE)=$F37,VLOOKUP($C37,LS_int!$C$12:$K$400,9,FALSE),""),""),"") ->  | BT37: =IF(IF(AND($J37="non inscrit",BT$6>$H$4),OR($P37<$H$5,$P37<BN$6),OR($J37<$H$5,$J37<BN$6)),IFERROR(IF(VLOOKUP($C37,FI!$C$12:$K$400,5,FALSE)=$F37,VLOOKUP($C37,FI!$C$12:$K$400,9,FALSE),""),""),"") -> 
A38: =A37 -> 2 | B38: =B37+1 -> 8 | D38: =IF($C38="","",IF($N$1>$H$4,IFERROR(VLOOKUP($C38,'Membres-2024'!$A:$G,2,FALSE),""),IFERROR(VLOOKUP($C38,'Membres-2023'!$A:$G,2,FALSE),""))) ->  | E38: =IF($C38="","",IF($N$1>$H$4,IFERROR(VLOOKUP($C38,'Membres-2024'!$A:$G,3,FALSE),""),IFERROR(VLOOKUP($C38,'Membres-2023'!$A:$G,3,FALSE),""))) ->  | F38: =IF($C38="","",IF($N$1>$H$4,IFERROR(VLOOKUP($C38,'Membres-2024'!$A:$G,7,FALSE),""),IFERROR(VLOOKUP($C38,'Membres-2023'!$A:$G,7,FALSE),""))) ->  | G38: =IF($C38="","",IF($N$1>$H$4,IFERROR(VLOOKUP($C38,'Membres-2024'!$A:$G,5,FALSE),""),IFERROR(VLOOKUP($C38,'Membres-2023'!$A:$G,5,FALSE),""))) ->  | H38: =COUNTIF($Y38:$BT38,">=0") -> 0 | I38: =SUM(K38:O38,Q38:U38) -> 0 | J38: =IFERROR(IF(VLOOKUP(C38,'Membres-2023'!$A:$F,6,FALSE)>=$H$3,VLOOKUP(C38,'Membres-2023'!$A:$F,6,FALSE),"non inscrit"),IF($C38>0,"non inscrit","")) ->  | K38: =IFERROR(IF(COUNTA(Y38:AT38)>0,LARGE(Y38:AT38,1)/6,""),"") ->  | L38: =IFERROR(IF(COUNTA(Y38:AT38)>1,LARGE(Y38:AT38,2)/6,""),"") ->  | M38: =IFERROR(IF(COUNTA(Y38:AT38)>2,LARGE(Y38:AT38,3)/6,""),"") ->  | N38: =IFERROR(IF(COUNTA(Y38:AT38)>3,LARGE(Y38:AT38,4)/6,""),"") ->  | O38: =IF(AU38<>"",AU38,"") ->  | P38: =IFERROR(IF(VLOOKUP(C38,'Membres-2024'!$A:$F,6,FALSE)>=$H$3,VLOOKUP(C38,'Membres-2024'!$A:$F,6,FALSE),"non inscrit"),IF($C38>0,"non inscrit","")) ->  | Q38: =IFERROR(IF(COUNTA(AW38:BS38)>0,LARGE(AW38:BS38,1)/6,""),"") ->  | R38: =IFERROR(IF(COUNTA(AW38:BS38)>1,LARGE(AW38:BS38,2)/6,""),"") ->  | S38: =IFERROR(IF(COUNTA(AW38:BS38)>2,LARGE(AW38:BS38,3)/6,""),"") ->  | T38: =IFERROR(IF(COUNTA(AW38:BS38)>3,LARGE(AW38:BS38,4)/6,""),"") ->  | U38: =IF(BT38<>"",BT38,"") ->  | Y38: =IF(IF(AND($J38="non inscrit",Y$6>$H$4),OR($P38<$H$5,$P38<Y$6),OR($J38<$H$5,$J38<Y$6)),IFERROR(IF(VLOOKUP($C38,ASF_ext!$C$12:$K$400,5,FALSE)=$F38,VLOOKUP($C38,ASF_ext!$C$12:$K$400,9,FALSE),""),""),"") ->  | Z38: =IF(IF(AND($J38="non inscrit",Z$6>$H$4),OR($P38<$H$5,$P38<Z$6),OR($J38<$H$5,$J38<Z$6)),IFERROR(IF(VLOOKUP($C38,LG_ext!$C$12:$K$400,5,FALSE)=$F38,VLOOKUP($C38,LG_ext!$C$12:$K$400,9,FALSE),""),""),"") ->  | AA38: =IF(IF(AND($J38="non inscrit",AA$6>$H$4),OR($P38<$H$5,$P38<AA$6),OR($J38<$H$5,$J38<AA$6)),IFERROR(IF(VLOOKUP($C38,Jul_ext!$C$12:$K$400,5,FALSE)=$F38,VLOOKUP($C38,Jul_ext!$C$12:$K$400,9,FALSE),""),""),"") ->  | AB38: =IF(IF(AND($J38="non inscrit",AB$6>$H$4),OR($P38<$H$5,$P38<AB$6),OR($J38<$H$5,$J38<AB$6)),IFERROR(IF(VLOOKUP($C38,CQ_ext!$C$12:$K$400,5,FALSE)=$F38,VLOOKUP($C38,CQ_ext!$C$12:$K$400,9,FALSE),""),""),"") ->  | AC38: =IF(IF(AND($J38="non inscrit",AC$6>$H$4),OR($P38<$H$5,$P38<AC$6),OR($J38<$H$5,$J38<AC$6)),IFERROR(IF(VLOOKUP($C38,NAQ_ext!$C$12:$K$400,5,FALSE)=$F38,VLOOKUP($C38,NAQ_ext!$C$12:$K$400,9,FALSE),""),""),"") ->  | AD38: =IF(IF(AND($J38="non inscrit",AD$6>$H$4),OR($P38<$H$5,$P38<AD$6),OR($J38<$H$5,$J38<AD$6)),IFERROR(IF(VLOOKUP($C38,MtL_ext!$C$12:$K$400,5,FALSE)=$F38,VLOOKUP($C38,MtL_ext!$C$12:$K$400,9,FALSE),""),""),"") ->  | AE38: =IF(IF(AND($J38="non inscrit",AE$6>$H$4),OR($P38<$H$5,$P38<AE$6),OR($J38<$H$5,$J38<AE$6)),IFERROR(IF(VLOOKUP($C38,Cant_ext!$C$12:$K$400,5,FALSE)=$F38,VLOOKUP($C38,Cant_ext!$C$12:$K$400,9,FALSE),""),""),"") ->  | AH38: =IF(IF(AND($J38="non inscrit",AH$6>$H$4),OR($P38<$H$5,$P38<AH$6),OR($J38<$H$5,$J38<AH$6)),IFERROR(IF(VLOOKUP($C38,ASF2_ext!$C$12:$K$400,5,FALSE)=$F38,VLOOKUP($C38,ASF2_ext!$C$12:$K$400,9,FALSE),""),""),"") ->  | AI38: =IF(IF(AND($J38="non inscrit",AI$6>$H$4),OR($P38<$H$5,$P38<AI$6),OR($J38<$H$5,$J38<AI$6)),IFERROR(IF(VLOOKUP($C38,Ascot_ext!$C$12:$K$400,5,FALSE)=$F38,VLOOKUP($C38,Ascot_ext!$C$12:$K$400,9,FALSE),""),""),"") ->  | AJ38: =IF(IF(AND($J38="non inscrit",AJ$6>$H$4),OR($P38<$H$5,$P38<AJ$6),OR($J38<$H$5,$J38<AJ$6)),IFERROR(IF(VLOOKUP($C38,BBA_ext!$C$12:$K$400,5,FALSE)=$F38,VLOOKUP($C38,BBA_ext!$C$12:$K$400,9,FALSE),""),""),"") ->  | AK38: =IF(IF(AND($J38="non inscrit",AK$6>$H$4),OR($P38<$H$5,$P38<AK$6),OR($J38<$H$5,$J38<AK$6)),IFERROR(IF(VLOOKUP($C38,Tuq1_ext!$C$12:$K$400,5,FALSE)=$F38,VLOOKUP($C38,Tuq1_ext!$C$12:$K$400,9,FALSE),""),""),"") ->  | AL38: =IF(IF(AND($J38="non inscrit",AL$6>$H$4),OR($P38<$H$5,$P38<AL$6),OR($J38<$H$5,$J38<AL$6)),IFERROR(IF(VLOOKUP($C38,Tuq2_ext!$C$12:$K$400,5,FALSE)=$F38,VLOOKUP($C38,Tuq2_ext!$C$12:$K$400,9,FALSE),""),""),"") ->  | AM38: =IF(IF(AND($J38="non inscrit",AM$6>$H$4),OR($P38<$H$5,$P38<AM$6),OR($J38<$H$5,$J38<AM$6)),IFERROR(IF(VLOOKUP($C38,CQ2_ext!$C$12:$K$400,5,FALSE)=$F38,VLOOKUP($C38,CQ2_ext!$C$12:$K$400,9,FALSE),""),""),"") ->  | AN38: =IF(IF(AND($J38="non inscrit",AN$6>$H$4),OR($P38<$H$5,$P38<AN$6),OR($J38<$H$5,$J38<AN$6)),IFERROR(IF(VLOOKUP($C38,MTL2_ext!$C$12:$K$400,5,FALSE)=$F38,VLOOKUP($C38,MTL2_ext!$C$12:$K$400,9,FALSE),""),""),"") ->  | AO38: =IF(IF(AND($J38="non inscrit",AO$6>$H$4),OR($P38<$H$5,$P38<AO$6),OR($J38<$H$5,$J38<AO$6)),IFERROR(IF(VLOOKUP($C38,NO_ext!$C$12:$K$400,5,FALSE)=$F38,VLOOKUP($C38,NO_ext!$C$12:$K$400,9,FALSE),""),""),"") ->  | AP38: =IF(IF(AND($J38="non inscrit",AP$6>$H$4),OR($P38<$H$5,$P38<AP$6),OR($J38<$H$5,$J38<AP$6)),IFERROR(IF(VLOOKUP($C38,VD_ext!$C$12:$K$400,5,FALSE)=$F38,VLOOKUP($C38,VD_ext!$C$12:$K$400,9,FALSE),""),""),"") ->  | AQ38: =IF(IF(AND($J38="non inscrit",AQ$6>$H$4),OR($P38<$H$5,$P38<AQ$6),OR($J38<$H$5,$J38<AQ$6)),IFERROR(IF(VLOOKUP($C38,PT_ext!$C$12:$K$400,5,FALSE)=$F38,VLOOKUP($C38,PT_ext!$C$12:$K$400,9,FALSE),""),""),"") ->  | AR38: =IF(IF(AND($J38="non inscrit",AR$6>$H$4),OR($P38<$H$5,$P38<AR$6),OR($J38<$H$5,$J38<AR$6)),IFERROR(IF(VLOOKUP($C38,Vic_ext!$C$12:$K$400,5,FALSE)=$F38,VLOOKUP($C38,Vic_ext!$C$12:$K$400,9,FALSE),""),""),"") ->  | AS38: =IF(IF(AND($J38="non inscrit",AS$6>$H$4),OR($P38<$H$5,$P38<AS$6),OR($J38<$H$5,$J38<AS$6)),IFERROR(IF(VLOOKUP($C38,Sor_ext!$C$12:$K$400,5,FALSE)=$F38,VLOOKUP($C38,Sor_ext!$C$12:$K$400,9,FALSE),""),""),"") ->  | AU38: =IF(IF(AND($J38="non inscrit",AU$6>$H$4),OR($P38<$H$5,$P38<AU$6),OR($J38<$H$5,$J38<AU$6)),IFERROR(IF(VLOOKUP($C38,PROV_ext!$C$12:$K$400,5,FALSE)=$F38,VLOOKUP($C38,PROV_ext!$C$12:$K$400,9,FALSE),""),""),"") ->  | AW38: =IF(IF(AND($J38="non inscrit",AW$6>$H$4),OR($P38<$H$5,$P38<AQ$6),OR($J38<$H$5,$J38<AQ$6)),IFERROR(IF(VLOOKUP($C38,Coat_int!$C$12:$K$400,5,FALSE)=$F38,VLOOKUP($C38,Coat_int!$C$12:$K$400,9,FALSE),""),""),"") ->  | AX38: =IF(IF(AND($J38="non inscrit",AX$6>$H$4),OR($P38<$H$5,$P38<AR$6),OR($J38<$H$5,$J38<AR$6)),IFERROR(IF(VLOOKUP($C38,LG_int!$C$12:$K$400,5,FALSE)=$F38,VLOOKUP($C38,LG_int!$C$12:$K$400,9,FALSE),""),""),"") ->  | AY38: =IF(IF(AND($J38="non inscrit",AY$6>$H$4),OR($P38<$H$5,$P38<AS$6),OR($J38<$H$5,$J38<AS$6)),IFERROR(IF(VLOOKUP($C38,Roc_int!$C$12:$K$400,5,FALSE)=$F38,VLOOKUP($C38,Roc_int!$C$12:$K$400,9,FALSE),""),""),"") ->  | AZ38: =IF(IF(AND($J38="non inscrit",AZ$6>$H$4),OR($P38<$H$5,$P38<AT$6),OR($J38<$H$5,$J38<AT$6)),IFERROR(IF(VLOOKUP($C38,Qc_int!$C$12:$K$400,5,FALSE)=$F38,VLOOKUP($C38,Qc_int!$C$12:$K$400,9,FALSE),""),""),"") ->  | BA38: =IF(IF(AND($J38="non inscrit",BA$6>$H$4),OR($P38<$H$5,$P38<AU$6),OR($J38<$H$5,$J38<AU$6)),IFERROR(IF(VLOOKUP($C38,Asc_int!$C$12:$K$400,5,FALSE)=$F38,VLOOKUP($C38,Asc_int!$C$12:$K$400,9,FALSE),""),""),"") ->  | BB38: =IF(IF(AND($J38="non inscrit",BB$6>$H$4),OR($P38<$H$5,$P38<AV$6),OR($J38<$H$5,$J38<AV$6)),IFERROR(IF(VLOOKUP($C38,CQ_int!$C$12:$K$400,5,FALSE)=$F38,VLOOKUP($C38,CQ_int!$C$12:$K$400,9,FALSE),""),""),"") ->  | BC38: =IF(IF(AND($J38="non inscrit",BC$6>$H$4),OR($P38<$H$5,$P38<AW$6),OR($J38<$H$5,$J38<AW$6)),IFERROR(IF(VLOOKUP($C38,QC2_int!$C$12:$K$400,5,FALSE)=$F38,VLOOKUP($C38,QC2_int!$C$12:$K$400,9,FALSE),""),""),"") ->  | BD38: =IF(IF(AND($J38="non inscrit",BD$6>$H$4),OR($P38<$H$5,$P38<AX$6),OR($J38<$H$5,$J38<AX$6)),IFERROR(IF(VLOOKUP($C38,Ach_int!$C$12:$K$400,5,FALSE)=$F38,VLOOKUP($C38,Ach_int!$C$12:$K$400,9,FALSE),""),""),"") ->  | BF38: =IF(IF(AND($J38="non inscrit",BF$6>$H$4),OR($P38<$H$5,$P38<AZ$6),OR($J38<$H$5,$J38<AZ$6)),IFERROR(IF(VLOOKUP($C38,Buck_int!$C$12:$K$400,5,FALSE)=$F38,VLOOKUP($C38,Buck_int!$C$12:$K$400,9,FALSE),""),""),"") ->  | BG38: =IF(IF(AND($J38="non inscrit",BG$6>$H$4),OR($P38<$H$5,$P38<BA$6),OR($J38<$H$5,$J38<BA$6)),IFERROR(IF(VLOOKUP($C38,CQC_int!$C$12:$K$400,5,FALSE)=$F38,VLOOKUP($C38,CQC_int!$C$12:$K$400,9,FALSE),""),""),"") ->  | BH38: =IF(IF(AND($J38="non inscrit",BH$6>$H$4),OR($P38<$H$5,$P38<BB$6),OR($J38<$H$5,$J38<BB$6)),IFERROR(IF(VLOOKUP($C38,LG3_int!$C$12:$K$400,5,FALSE)=$F38,VLOOKUP($C38,LG3_int!$C$12:$K$400,9,FALSE),""),""),"") ->  | BI38: =IF(IF(AND($J38="non inscrit",BI$6>$H$4),OR($P38<$H$5,$P38<BC$6),OR($J38<$H$5,$J38<BC$6)),IFERROR(IF(VLOOKUP($C38,LS_int!$C$12:$K$400,5,FALSE)=$F38,VLOOKUP($C38,LS_int!$C$12:$K$400,9,FALSE),""),""),"") ->  | BT38: =IF(IF(AND($J38="non inscrit",BT$6>$H$4),OR($P38<$H$5,$P38<BN$6),OR($J38<$H$5,$J38<BN$6)),IFERROR(IF(VLOOKUP($C38,FI!$C$12:$K$400,5,FALSE)=$F38,VLOOKUP($C38,FI!$C$12:$K$400,9,FALSE),""),""),"") -> 
A39: =A38 -> 2 | B39: =B38+1 -> 9 | D39: =IF($C39="","",IF($N$1>$H$4,IFERROR(VLOOKUP($C39,'Membres-2024'!$A:$G,2,FALSE),""),IFERROR(VLOOKUP($C39,'Membres-2023'!$A:$G,2,FALSE),""))) ->  | E39: =IF($C39="","",IF($N$1>$H$4,IFERROR(VLOOKUP($C39,'Membres-2024'!$A:$G,3,FALSE),""),IFERROR(VLOOKUP($C39,'Membres-2023'!$A:$G,3,FALSE),""))) ->  | F39: =IF($C39="","",IF($N$1>$H$4,IFERROR(VLOOKUP($C39,'Membres-2024'!$A:$G,7,FALSE),""),IFERROR(VLOOKUP($C39,'Membres-2023'!$A:$G,7,FALSE),""))) ->  | G39: =IF($C39="","",IF($N$1>$H$4,IFERROR(VLOOKUP($C39,'Membres-2024'!$A:$G,5,FALSE),""),IFERROR(VLOOKUP($C39,'Membres-2023'!$A:$G,5,FALSE),""))) ->  | H39: =COUNTIF($Y39:$BT39,">=0") -> 0 | I39: =SUM(K39:O39,Q39:U39) -> 0 | J39: =IFERROR(IF(VLOOKUP(C39,'Membres-2023'!$A:$F,6,FALSE)>=$H$3,VLOOKUP(C39,'Membres-2023'!$A:$F,6,FALSE),"non inscrit"),IF($C39>0,"non inscrit","")) ->  | K39: =IFERROR(IF(COUNTA(Y39:AT39)>0,LARGE(Y39:AT39,1)/6,""),"") ->  | L39: =IFERROR(IF(COUNTA(Y39:AT39)>1,LARGE(Y39:AT39,2)/6,""),"") ->  | M39: =IFERROR(IF(COUNTA(Y39:AT39)>2,LARGE(Y39:AT39,3)/6,""),"") ->  | N39: =IFERROR(IF(COUNTA(Y39:AT39)>3,LARGE(Y39:AT39,4)/6,""),"") ->  | O39: =IF(AU39<>"",AU39,"") ->  | P39: =IFERROR(IF(VLOOKUP(C39,'Membres-2024'!$A:$F,6,FALSE)>=$H$3,VLOOKUP(C39,'Membres-2024'!$A:$F,6,FALSE),"non inscrit"),IF($C39>0,"non inscrit","")) ->  | Q39: =IFERROR(IF(COUNTA(AW39:BS39)>0,LARGE(AW39:BS39,1)/6,""),"") ->  | R39: =IFERROR(IF(COUNTA(AW39:BS39)>1,LARGE(AW39:BS39,2)/6,""),"") ->  | S39: =IFERROR(IF(COUNTA(AW39:BS39)>2,LARGE(AW39:BS39,3)/6,""),"") ->  | T39: =IFERROR(IF(COUNTA(AW39:BS39)>3,LARGE(AW39:BS39,4)/6,""),"") ->  | U39: =IF(BT39<>"",BT39,"") ->  | Y39: =IF(IF(AND($J39="non inscrit",Y$6>$H$4),OR($P39<$H$5,$P39<Y$6),OR($J39<$H$5,$J39<Y$6)),IFERROR(IF(VLOOKUP($C39,ASF_ext!$C$12:$K$400,5,FALSE)=$F39,VLOOKUP($C39,ASF_ext!$C$12:$K$400,9,FALSE),""),""),"") ->  | Z39: =IF(IF(AND($J39="non inscrit",Z$6>$H$4),OR($P39<$H$5,$P39<Z$6),OR($J39<$H$5,$J39<Z$6)),IFERROR(IF(VLOOKUP($C39,LG_ext!$C$12:$K$400,5,FALSE)=$F39,VLOOKUP($C39,LG_ext!$C$12:$K$400,9,FALSE),""),""),"") ->  | AA39: =IF(IF(AND($J39="non inscrit",AA$6>$H$4),OR($P39<$H$5,$P39<AA$6),OR($J39<$H$5,$J39<AA$6)),IFERROR(IF(VLOOKUP($C39,Jul_ext!$C$12:$K$400,5,FALSE)=$F39,VLOOKUP($C39,Jul_ext!$C$12:$K$400,9,FALSE),""),""),"") ->  | AB39: =IF(IF(AND($J39="non inscrit",AB$6>$H$4),OR($P39<$H$5,$P39<AB$6),OR($J39<$H$5,$J39<AB$6)),IFERROR(IF(VLOOKUP($C39,CQ_ext!$C$12:$K$400,5,FALSE)=$F39,VLOOKUP($C39,CQ_ext!$C$12:$K$400,9,FALSE),""),""),"") ->  | AC39: =IF(IF(AND($J39="non inscrit",AC$6>$H$4),OR($P39<$H$5,$P39<AC$6),OR($J39<$H$5,$J39<AC$6)),IFERROR(IF(VLOOKUP($C39,NAQ_ext!$C$12:$K$400,5,FALSE)=$F39,VLOOKUP($C39,NAQ_ext!$C$12:$K$400,9,FALSE),""),""),"") ->  | AD39: =IF(IF(AND($J39="non inscrit",AD$6>$H$4),OR($P39<$H$5,$P39<AD$6),OR($J39<$H$5,$J39<AD$6)),IFERROR(IF(VLOOKUP($C39,MtL_ext!$C$12:$K$400,5,FALSE)=$F39,VLOOKUP($C39,MtL_ext!$C$12:$K$400,9,FALSE),""),""),"") ->  | AE39: =IF(IF(AND($J39="non inscrit",AE$6>$H$4),OR($P39<$H$5,$P39<AE$6),OR($J39<$H$5,$J39<AE$6)),IFERROR(IF(VLOOKUP($C39,Cant_ext!$C$12:$K$400,5,FALSE)=$F39,VLOOKUP($C39,Cant_ext!$C$12:$K$400,9,FALSE),""),""),"") ->  | AH39: =IF(IF(AND($J39="non inscrit",AH$6>$H$4),OR($P39<$H$5,$P39<AH$6),OR($J39<$H$5,$J39<AH$6)),IFERROR(IF(VLOOKUP($C39,ASF2_ext!$C$12:$K$400,5,FALSE)=$F39,VLOOKUP($C39,ASF2_ext!$C$12:$K$400,9,FALSE),""),""),"") ->  | AI39: =IF(IF(AND($J39="non inscrit",AI$6>$H$4),OR($P39<$H$5,$P39<AI$6),OR($J39<$H$5,$J39<AI$6)),IFERROR(IF(VLOOKUP($C39,Ascot_ext!$C$12:$K$400,5,FALSE)=$F39,VLOOKUP($C39,Ascot_ext!$C$12:$K$400,9,FALSE),""),""),"") ->  | AJ39: =IF(IF(AND($J39="non inscrit",AJ$6>$H$4),OR($P39<$H$5,$P39<AJ$6),OR($J39<$H$5,$J39<AJ$6)),IFERROR(IF(VLOOKUP($C39,BBA_ext!$C$12:$K$400,5,FALSE)=$F39,VLOOKUP($C39,BBA_ext!$C$12:$K$400,9,FALSE),""),""),"") ->  | AK39: =IF(IF(AND($J39="non inscrit",AK$6>$H$4),OR($P39<$H$5,$P39<AK$6),OR($J39<$H$5,$J39<AK$6)),IFERROR(IF(VLOOKUP($C39,Tuq1_ext!$C$12:$K$400,5,FALSE)=$F39,VLOOKUP($C39,Tuq1_ext!$C$12:$K$400,9,FALSE),""),""),"") ->  | AL39: =IF(IF(AND($J39="non inscrit",AL$6>$H$4),OR($P39<$H$5,$P39<AL$6),OR($J39<$H$5,$J39<AL$6)),IFERROR(IF(VLOOKUP($C39,Tuq2_ext!$C$12:$K$400,5,FALSE)=$F39,VLOOKUP($C39,Tuq2_ext!$C$12:$K$400,9,FALSE),""),""),"") ->  | AM39: =IF(IF(AND($J39="non inscrit",AM$6>$H$4),OR($P39<$H$5,$P39<AM$6),OR($J39<$H$5,$J39<AM$6)),IFERROR(IF(VLOOKUP($C39,CQ2_ext!$C$12:$K$400,5,FALSE)=$F39,VLOOKUP($C39,CQ2_ext!$C$12:$K$400,9,FALSE),""),""),"") ->  | AN39: =IF(IF(AND($J39="non inscrit",AN$6>$H$4),OR($P39<$H$5,$P39<AN$6),OR($J39<$H$5,$J39<AN$6)),IFERROR(IF(VLOOKUP($C39,MTL2_ext!$C$12:$K$400,5,FALSE)=$F39,VLOOKUP($C39,MTL2_ext!$C$12:$K$400,9,FALSE),""),""),"") ->  | AO39: =IF(IF(AND($J39="non inscrit",AO$6>$H$4),OR($P39<$H$5,$P39<AO$6),OR($J39<$H$5,$J39<AO$6)),IFERROR(IF(VLOOKUP($C39,NO_ext!$C$12:$K$400,5,FALSE)=$F39,VLOOKUP($C39,NO_ext!$C$12:$K$400,9,FALSE),""),""),"") ->  | AP39: =IF(IF(AND($J39="non inscrit",AP$6>$H$4),OR($P39<$H$5,$P39<AP$6),OR($J39<$H$5,$J39<AP$6)),IFERROR(IF(VLOOKUP($C39,VD_ext!$C$12:$K$400,5,FALSE)=$F39,VLOOKUP($C39,VD_ext!$C$12:$K$400,9,FALSE),""),""),"") ->  | AQ39: =IF(IF(AND($J39="non inscrit",AQ$6>$H$4),OR($P39<$H$5,$P39<AQ$6),OR($J39<$H$5,$J39<AQ$6)),IFERROR(IF(VLOOKUP($C39,PT_ext!$C$12:$K$400,5,FALSE)=$F39,VLOOKUP($C39,PT_ext!$C$12:$K$400,9,FALSE),""),""),"") ->  | AR39: =IF(IF(AND($J39="non inscrit",AR$6>$H$4),OR($P39<$H$5,$P39<AR$6),OR($J39<$H$5,$J39<AR$6)),IFERROR(IF(VLOOKUP($C39,Vic_ext!$C$12:$K$400,5,FALSE)=$F39,VLOOKUP($C39,Vic_ext!$C$12:$K$400,9,FALSE),""),""),"") ->  | AS39: =IF(IF(AND($J39="non inscrit",AS$6>$H$4),OR($P39<$H$5,$P39<AS$6),OR($J39<$H$5,$J39<AS$6)),IFERROR(IF(VLOOKUP($C39,Sor_ext!$C$12:$K$400,5,FALSE)=$F39,VLOOKUP($C39,Sor_ext!$C$12:$K$400,9,FALSE),""),""),"") ->  | AU39: =IF(IF(AND($J39="non inscrit",AU$6>$H$4),OR($P39<$H$5,$P39<AU$6),OR($J39<$H$5,$J39<AU$6)),IFERROR(IF(VLOOKUP($C39,PROV_ext!$C$12:$K$400,5,FALSE)=$F39,VLOOKUP($C39,PROV_ext!$C$12:$K$400,9,FALSE),""),""),"") ->  | AW39: =IF(IF(AND($J39="non inscrit",AW$6>$H$4),OR($P39<$H$5,$P39<AQ$6),OR($J39<$H$5,$J39<AQ$6)),IFERROR(IF(VLOOKUP($C39,Coat_int!$C$12:$K$400,5,FALSE)=$F39,VLOOKUP($C39,Coat_int!$C$12:$K$400,9,FALSE),""),""),"") ->  | AX39: =IF(IF(AND($J39="non inscrit",AX$6>$H$4),OR($P39<$H$5,$P39<AR$6),OR($J39<$H$5,$J39<AR$6)),IFERROR(IF(VLOOKUP($C39,LG_int!$C$12:$K$400,5,FALSE)=$F39,VLOOKUP($C39,LG_int!$C$12:$K$400,9,FALSE),""),""),"") ->  | AY39: =IF(IF(AND($J39="non inscrit",AY$6>$H$4),OR($P39<$H$5,$P39<AS$6),OR($J39<$H$5,$J39<AS$6)),IFERROR(IF(VLOOKUP($C39,Roc_int!$C$12:$K$400,5,FALSE)=$F39,VLOOKUP($C39,Roc_int!$C$12:$K$400,9,FALSE),""),""),"") ->  | AZ39: =IF(IF(AND($J39="non inscrit",AZ$6>$H$4),OR($P39<$H$5,$P39<AT$6),OR($J39<$H$5,$J39<AT$6)),IFERROR(IF(VLOOKUP($C39,Qc_int!$C$12:$K$400,5,FALSE)=$F39,VLOOKUP($C39,Qc_int!$C$12:$K$400,9,FALSE),""),""),"") ->  | BA39: =IF(IF(AND($J39="non inscrit",BA$6>$H$4),OR($P39<$H$5,$P39<AU$6),OR($J39<$H$5,$J39<AU$6)),IFERROR(IF(VLOOKUP($C39,Asc_int!$C$12:$K$400,5,FALSE)=$F39,VLOOKUP($C39,Asc_int!$C$12:$K$400,9,FALSE),""),""),"") ->  | BB39: =IF(IF(AND($J39="non inscrit",BB$6>$H$4),OR($P39<$H$5,$P39<AV$6),OR($J39<$H$5,$J39<AV$6)),IFERROR(IF(VLOOKUP($C39,CQ_int!$C$12:$K$400,5,FALSE)=$F39,VLOOKUP($C39,CQ_int!$C$12:$K$400,9,FALSE),""),""),"") ->  | BC39: =IF(IF(AND($J39="non inscrit",BC$6>$H$4),OR($P39<$H$5,$P39<AW$6),OR($J39<$H$5,$J39<AW$6)),IFERROR(IF(VLOOKUP($C39,QC2_int!$C$12:$K$400,5,FALSE)=$F39,VLOOKUP($C39,QC2_int!$C$12:$K$400,9,FALSE),""),""),"") ->  | BD39: =IF(IF(AND($J39="non inscrit",BD$6>$H$4),OR($P39<$H$5,$P39<AX$6),OR($J39<$H$5,$J39<AX$6)),IFERROR(IF(VLOOKUP($C39,Ach_int!$C$12:$K$400,5,FALSE)=$F39,VLOOKUP($C39,Ach_int!$C$12:$K$400,9,FALSE),""),""),"") ->  | BF39: =IF(IF(AND($J39="non inscrit",BF$6>$H$4),OR($P39<$H$5,$P39<AZ$6),OR($J39<$H$5,$J39<AZ$6)),IFERROR(IF(VLOOKUP($C39,Buck_int!$C$12:$K$400,5,FALSE)=$F39,VLOOKUP($C39,Buck_int!$C$12:$K$400,9,FALSE),""),""),"") ->  | BG39: =IF(IF(AND($J39="non inscrit",BG$6>$H$4),OR($P39<$H$5,$P39<BA$6),OR($J39<$H$5,$J39<BA$6)),IFERROR(IF(VLOOKUP($C39,CQC_int!$C$12:$K$400,5,FALSE)=$F39,VLOOKUP($C39,CQC_int!$C$12:$K$400,9,FALSE),""),""),"") ->  | BH39: =IF(IF(AND($J39="non inscrit",BH$6>$H$4),OR($P39<$H$5,$P39<BB$6),OR($J39<$H$5,$J39<BB$6)),IFERROR(IF(VLOOKUP($C39,LG3_int!$C$12:$K$400,5,FALSE)=$F39,VLOOKUP($C39,LG3_int!$C$12:$K$400,9,FALSE),""),""),"") ->  | BI39: =IF(IF(AND($J39="non inscrit",BI$6>$H$4),OR($P39<$H$5,$P39<BC$6),OR($J39<$H$5,$J39<BC$6)),IFERROR(IF(VLOOKUP($C39,LS_int!$C$12:$K$400,5,FALSE)=$F39,VLOOKUP($C39,LS_int!$C$12:$K$400,9,FALSE),""),""),"") ->  | BT39: =IF(IF(AND($J39="non inscrit",BT$6>$H$4),OR($P39<$H$5,$P39<BN$6),OR($J39<$H$5,$J39<BN$6)),IFERROR(IF(VLOOKUP($C39,FI!$C$12:$K$400,5,FALSE)=$F39,VLOOKUP($C39,FI!$C$12:$K$400,9,FALSE),""),""),"") -> 
A40: =A39 -> 2 | B40: =B39+1 -> 10 | C40: 4791 | D40: =IF($C40="","",IF($N$1>$H$4,IFERROR(VLOOKUP($C40,'Membres-2024'!$A:$G,2,FALSE),""),IFERROR(VLOOKUP($C40,'Membres-2023'!$A:$G,2,FALSE),""))) -> Voyer | E40: =IF($C40="","",IF($N$1>$H$4,IFERROR(VLOOKUP($C40,'Membres-2024'!$A:$G,3,FALSE),""),IFERROR(VLOOKUP($C40,'Membres-2023'!$A:$G,3,FALSE),""))) -> Rose | F40: =IF($C40="","",IF($N$1>$H$4,IFERROR(VLOOKUP($C40,'Membres-2024'!$A:$G,7,FALSE),""),IFERROR(VLOOKUP($C40,'Membres-2023'!$A:$G,7,FALSE),""))) -> 2 | G40: =IF($C40="","",IF($N$1>$H$4,IFERROR(VLOOKUP($C40,'Membres-2024'!$A:$G,5,FALSE),""),IFERROR(VLOOKUP($C40,'Membres-2023'!$A:$G,5,FALSE),""))) -> Cantley (Archers de) | H40: =COUNTIF($Y40:$BT40,">=0") -> 0 | I40: =SUM(K40:O40,Q40:U40) -> 0 | J40: =IFERROR(IF(VLOOKUP(C40,'Membres-2023'!$A:$F,6,FALSE)>=$H$3,VLOOKUP(C40,'Membres-2023'!$A:$F,6,FALSE),"non inscrit"),IF($C40>0,"non inscrit","")) -> non inscrit | K40: =IFERROR(IF(COUNTA(Y40:AT40)>0,LARGE(Y40:AT40,1)/6,""),"") ->  | L40: =IFERROR(IF(COUNTA(Y40:AT40)>1,LARGE(Y40:AT40,2)/6,""),"") ->  | M40: =IFERROR(IF(COUNTA(Y40:AT40)>2,LARGE(Y40:AT40,3)/6,""),"") ->  | N40: =IFERROR(IF(COUNTA(Y40:AT40)>3,LARGE(Y40:AT40,4)/6,""),"") ->  | O40: =IF(AU40<>"",AU40,"") ->  | P40: =IFERROR(IF(VLOOKUP(C40,'Membres-2024'!$A:$F,6,FALSE)>=$H$3,VLOOKUP(C40,'Membres-2024'!$A:$F,6,FALSE),"non inscrit"),IF($C40>0,"non inscrit","")) -> 2024-01-20 | Q40: =IFERROR(IF(COUNTA(AW40:BS40)>0,LARGE(AW40:BS40,1)/6,""),"") ->  | R40: =IFERROR(IF(COUNTA(AW40:BS40)>1,LARGE(AW40:BS40,2)/6,""),"") ->  | S40: =IFERROR(IF(COUNTA(AW40:BS40)>2,LARGE(AW40:BS40,3)/6,""),"") ->  | T40: =IFERROR(IF(COUNTA(AW40:BS40)>3,LARGE(AW40:BS40,4)/6,""),"") ->  | U40: =IF(BT40<>"",BT40,"") ->  | Y40: =IF(IF(AND($J40="non inscrit",Y$6>$H$4),OR($P40<$H$5,$P40<Y$6),OR($J40<$H$5,$J40<Y$6)),IFERROR(IF(VLOOKUP($C40,ASF_ext!$C$12:$K$400,5,FALSE)=$F40,VLOOKUP($C40,ASF_ext!$C$12:$K$400,9,FALSE),""),""),"") ->  | Z40: =IF(IF(AND($J40="non inscrit",Z$6>$H$4),OR($P40<$H$5,$P40<Z$6),OR($J40<$H$5,$J40<Z$6)),IFERROR(IF(VLOOKUP($C40,LG_ext!$C$12:$K$400,5,FALSE)=$F40,VLOOKUP($C40,LG_ext!$C$12:$K$400,9,FALSE),""),""),"") ->  | AA40: =IF(IF(AND($J40="non inscrit",AA$6>$H$4),OR($P40<$H$5,$P40<AA$6),OR($J40<$H$5,$J40<AA$6)),IFERROR(IF(VLOOKUP($C40,Jul_ext!$C$12:$K$400,5,FALSE)=$F40,VLOOKUP($C40,Jul_ext!$C$12:$K$400,9,FALSE),""),""),"") ->  | AB40: =IF(IF(AND($J40="non inscrit",AB$6>$H$4),OR($P40<$H$5,$P40<AB$6),OR($J40<$H$5,$J40<AB$6)),IFERROR(IF(VLOOKUP($C40,CQ_ext!$C$12:$K$400,5,FALSE)=$F40,VLOOKUP($C40,CQ_ext!$C$12:$K$400,9,FALSE),""),""),"") ->  | AC40: =IF(IF(AND($J40="non inscrit",AC$6>$H$4),OR($P40<$H$5,$P40<AC$6),OR($J40<$H$5,$J40<AC$6)),IFERROR(IF(VLOOKUP($C40,NAQ_ext!$C$12:$K$400,5,FALSE)=$F40,VLOOKUP($C40,NAQ_ext!$C$12:$K$400,9,FALSE),""),""),"") ->  | AD40: =IF(IF(AND($J40="non inscrit",AD$6>$H$4),OR($P40<$H$5,$P40<AD$6),OR($J40<$H$5,$J40<AD$6)),IFERROR(IF(VLOOKUP($C40,MtL_ext!$C$12:$K$400,5,FALSE)=$F40,VLOOKUP($C40,MtL_ext!$C$12:$K$400,9,FALSE),""),""),"") ->  | AE40: =IF(IF(AND($J40="non inscrit",AE$6>$H$4),OR($P40<$H$5,$P40<AE$6),OR($J40<$H$5,$J40<AE$6)),IFERROR(IF(VLOOKUP($C40,Cant_ext!$C$12:$K$400,5,FALSE)=$F40,VLOOKUP($C40,Cant_ext!$C$12:$K$400,9,FALSE),""),""),"") ->  | AH40: =IF(IF(AND($J40="non inscrit",AH$6>$H$4),OR($P40<$H$5,$P40<AH$6),OR($J40<$H$5,$J40<AH$6)),IFERROR(IF(VLOOKUP($C40,ASF2_ext!$C$12:$K$400,5,FALSE)=$F40,VLOOKUP($C40,ASF2_ext!$C$12:$K$400,9,FALSE),""),""),"") ->  | AI40: =IF(IF(AND($J40="non inscrit",AI$6>$H$4),OR($P40<$H$5,$P40<AI$6),OR($J40<$H$5,$J40<AI$6)),IFERROR(IF(VLOOKUP($C40,Ascot_ext!$C$12:$K$400,5,FALSE)=$F40,VLOOKUP($C40,Ascot_ext!$C$12:$K$400,9,FALSE),""),""),"") ->  | AJ40: =IF(IF(AND($J40="non inscrit",AJ$6>$H$4),OR($P40<$H$5,$P40<AJ$6),OR($J40<$H$5,$J40<AJ$6)),IFERROR(IF(VLOOKUP($C40,BBA_ext!$C$12:$K$400,5,FALSE)=$F40,VLOOKUP($C40,BBA_ext!$C$12:$K$400,9,FALSE),""),""),"") ->  | AK40: =IF(IF(AND($J40="non inscrit",AK$6>$H$4),OR($P40<$H$5,$P40<AK$6),OR($J40<$H$5,$J40<AK$6)),IFERROR(IF(VLOOKUP($C40,Tuq1_ext!$C$12:$K$400,5,FALSE)=$F40,VLOOKUP($C40,Tuq1_ext!$C$12:$K$400,9,FALSE),""),""),"") ->  | AL40: =IF(IF(AND($J40="non inscrit",AL$6>$H$4),OR($P40<$H$5,$P40<AL$6),OR($J40<$H$5,$J40<AL$6)),IFERROR(IF(VLOOKUP($C40,Tuq2_ext!$C$12:$K$400,5,FALSE)=$F40,VLOOKUP($C40,Tuq2_ext!$C$12:$K$400,9,FALSE),""),""),"") ->  | AM40: =IF(IF(AND($J40="non inscrit",AM$6>$H$4),OR($P40<$H$5,$P40<AM$6),OR($J40<$H$5,$J40<AM$6)),IFERROR(IF(VLOOKUP($C40,CQ2_ext!$C$12:$K$400,5,FALSE)=$F40,VLOOKUP($C40,CQ2_ext!$C$12:$K$400,9,FALSE),""),""),"") ->  | AN40: =IF(IF(AND($J40="non inscrit",AN$6>$H$4),OR($P40<$H$5,$P40<AN$6),OR($J40<$H$5,$J40<AN$6)),IFERROR(IF(VLOOKUP($C40,MTL2_ext!$C$12:$K$400,5,FALSE)=$F40,VLOOKUP($C40,MTL2_ext!$C$12:$K$400,9,FALSE),""),""),"") ->  | AO40: =IF(IF(AND($J40="non inscrit",AO$6>$H$4),OR($P40<$H$5,$P40<AO$6),OR($J40<$H$5,$J40<AO$6)),IFERROR(IF(VLOOKUP($C40,NO_ext!$C$12:$K$400,5,FALSE)=$F40,VLOOKUP($C40,NO_ext!$C$12:$K$400,9,FALSE),""),""),"") ->  | AP40: =IF(IF(AND($J40="non inscrit",AP$6>$H$4),OR($P40<$H$5,$P40<AP$6),OR($J40<$H$5,$J40<AP$6)),IFERROR(IF(VLOOKUP($C40,VD_ext!$C$12:$K$400,5,FALSE)=$F40,VLOOKUP($C40,VD_ext!$C$12:$K$400,9,FALSE),""),""),"") ->  | AQ40: =IF(IF(AND($J40="non inscrit",AQ$6>$H$4),OR($P40<$H$5,$P40<AQ$6),OR($J40<$H$5,$J40<AQ$6)),IFERROR(IF(VLOOKUP($C40,PT_ext!$C$12:$K$400,5,FALSE)=$F40,VLOOKUP($C40,PT_ext!$C$12:$K$400,9,FALSE),""),""),"") ->  | AR40: =IF(IF(AND($J40="non inscrit",AR$6>$H$4),OR($P40<$H$5,$P40<AR$6),OR($J40<$H$5,$J40<AR$6)),IFERROR(IF(VLOOKUP($C40,Vic_ext!$C$12:$K$400,5,FALSE)=$F40,VLOOKUP($C40,Vic_ext!$C$12:$K$400,9,FALSE),""),""),"") ->  | AS40: =IF(IF(AND($J40="non inscrit",AS$6>$H$4),OR($P40<$H$5,$P40<AS$6),OR($J40<$H$5,$J40<AS$6)),IFERROR(IF(VLOOKUP($C40,Sor_ext!$C$12:$K$400,5,FALSE)=$F40,VLOOKUP($C40,Sor_ext!$C$12:$K$400,9,FALSE),""),""),"") ->  | AU40: =IF(IF(AND($J40="non inscrit",AU$6>$H$4),OR($P40<$H$5,$P40<AU$6),OR($J40<$H$5,$J40<AU$6)),IFERROR(IF(VLOOKUP($C40,PROV_ext!$C$12:$K$400,5,FALSE)=$F40,VLOOKUP($C40,PROV_ext!$C$12:$K$400,9,FALSE),""),""),"") ->  | AW40: =IF(IF(AND($J40="non inscrit",AW$6>$H$4),OR($P40<$H$5,$P40<AQ$6),OR($J40<$H$5,$J40<AQ$6)),IFERROR(IF(VLOOKUP($C40,Coat_int!$C$12:$K$400,5,FALSE)=$F40,VLOOKUP($C40,Coat_int!$C$12:$K$400,9,FALSE),""),""),"") ->  | AX40: =IF(IF(AND($J40="non inscrit",AX$6>$H$4),OR($P40<$H$5,$P40<AR$6),OR($J40<$H$5,$J40<AR$6)),IFERROR(IF(VLOOKUP($C40,LG_int!$C$12:$K$400,5,FALSE)=$F40,VLOOKUP($C40,LG_int!$C$12:$K$400,9,FALSE),""),""),"") ->  | AY40: =IF(IF(AND($J40="non inscrit",AY$6>$H$4),OR($P40<$H$5,$P40<AS$6),OR($J40<$H$5,$J40<AS$6)),IFERROR(IF(VLOOKUP($C40,Roc_int!$C$12:$K$400,5,FALSE)=$F40,VLOOKUP($C40,Roc_int!$C$12:$K$400,9,FALSE),""),""),"") ->  | AZ40: =IF(IF(AND($J40="non inscrit",AZ$6>$H$4),OR($P40<$H$5,$P40<AT$6),OR($J40<$H$5,$J40<AT$6)),IFERROR(IF(VLOOKUP($C40,Qc_int!$C$12:$K$400,5,FALSE)=$F40,VLOOKUP($C40,Qc_int!$C$12:$K$400,9,FALSE),""),""),"") ->  | BA40: =IF(IF(AND($J40="non inscrit",BA$6>$H$4),OR($P40<$H$5,$P40<AU$6),OR($J40<$H$5,$J40<AU$6)),IFERROR(IF(VLOOKUP($C40,Asc_int!$C$12:$K$400,5,FALSE)=$F40,VLOOKUP($C40,Asc_int!$C$12:$K$400,9,FALSE),""),""),"") ->  | BB40: =IF(IF(AND($J40="non inscrit",BB$6>$H$4),OR($P40<$H$5,$P40<AV$6),OR($J40<$H$5,$J40<AV$6)),IFERROR(IF(VLOOKUP($C40,CQ_int!$C$12:$K$400,5,FALSE)=$F40,VLOOKUP($C40,CQ_int!$C$12:$K$400,9,FALSE),""),""),"") ->  | BC40: =IF(IF(AND($J40="non inscrit",BC$6>$H$4),OR($P40<$H$5,$P40<AW$6),OR($J40<$H$5,$J40<AW$6)),IFERROR(IF(VLOOKUP($C40,QC2_int!$C$12:$K$400,5,FALSE)=$F40,VLOOKUP($C40,QC2_int!$C$12:$K$400,9,FALSE),""),""),"") ->  | BD40: =IF(IF(AND($J40="non inscrit",BD$6>$H$4),OR($P40<$H$5,$P40<AX$6),OR($J40<$H$5,$J40<AX$6)),IFERROR(IF(VLOOKUP($C40,Ach_int!$C$12:$K$400,5,FALSE)=$F40,VLOOKUP($C40,Ach_int!$C$12:$K$400,9,FALSE),""),""),"") ->  | BF40: =IF(IF(AND($J40="non inscrit",BF$6>$H$4),OR($P40<$H$5,$P40<AZ$6),OR($J40<$H$5,$J40<AZ$6)),IFERROR(IF(VLOOKUP($C40,Buck_int!$C$12:$K$400,5,FALSE)=$F40,VLOOKUP($C40,Buck_int!$C$12:$K$400,9,FALSE),""),""),"") ->  | BG40: =IF(IF(AND($J40="non inscrit",BG$6>$H$4),OR($P40<$H$5,$P40<BA$6),OR($J40<$H$5,$J40<BA$6)),IFERROR(IF(VLOOKUP($C40,CQC_int!$C$12:$K$400,5,FALSE)=$F40,VLOOKUP($C40,CQC_int!$C$12:$K$400,9,FALSE),""),""),"") ->  | BH40: =IF(IF(AND($J40="non inscrit",BH$6>$H$4),OR($P40<$H$5,$P40<BB$6),OR($J40<$H$5,$J40<BB$6)),IFERROR(IF(VLOOKUP($C40,LG3_int!$C$12:$K$400,5,FALSE)=$F40,VLOOKUP($C40,LG3_int!$C$12:$K$400,9,FALSE),""),""),"") ->  | BI40: =IF(IF(AND($J40="non inscrit",BI$6>$H$4),OR($P40<$H$5,$P40<BC$6),OR($J40<$H$5,$J40<BC$6)),IFERROR(IF(VLOOKUP($C40,LS_int!$C$12:$K$400,5,FALSE)=$F40,VLOOKUP($C40,LS_int!$C$12:$K$400,9,FALSE),""),""),"") ->  | BT40: =IF(IF(AND($J40="non inscrit",BT$6>$H$4),OR($P40<$H$5,$P40<BN$6),OR($J40<$H$5,$J40<BN$6)),IFERROR(IF(VLOOKUP($C40,FI!$C$12:$K$400,5,FALSE)=$F40,VLOOKUP($C40,FI!$C$12:$K$400,9,FALSE),""),""),"") -> 
A41: =A42 -> 5 | I41: 1324 | J41: 1 | P41: 1
A42: 5 | B42: Classe 5 | E42: HOMME Benjamin ( 14 ans et moins ) | I42: 1322 | J42: 1 | K42: 25 mètres | M42: Orange | P42: 1
A43: =A42 -> 5 | I43: 1321 | J43: 1 | P43: 1
A44: =A43 -> 5 | B44: =B43+1 -> 1 | C44: 6333 | D44: =IF($C44="","",IF($N$1>$H$4,IFERROR(VLOOKUP($C44,'Membres-2024'!$A:$G,2,FALSE),""),IFERROR(VLOOKUP($C44,'Membres-2023'!$A:$G,2,FALSE),""))) -> Bernier | E44: =IF($C44="","",IF($N$1>$H$4,IFERROR(VLOOKUP($C44,'Membres-2024'!$A:$G,3,FALSE),""),IFERROR(VLOOKUP($C44,'Membres-2023'!$A:$G,3,FALSE),""))) -> Alexis | F44: 5 | G44: =IF($C44="","",IF($N$1>$H$4,IFERROR(VLOOKUP($C44,'Membres-2024'!$A:$G,5,FALSE),""),IFERROR(VLOOKUP($C44,'Membres-2023'!$A:$G,5,FALSE),""))) -> Acti-Sports de Coaticok | H44: =COUNTIF($Y44:$BT44,">=0") -> 6 | I44: =SUM(K44:O44,Q44:U44) -> 370.8333333 | J44: =IFERROR(IF(VLOOKUP(C44,'Membres-2023'!$A:$F,6,FALSE)>=$H$3,VLOOKUP(C44,'Membres-2023'!$A:$F,6,FALSE),"non inscrit"),IF($C44>0,"non inscrit","")) -> 2023-02-24 | K44: =IFERROR(IF(COUNTA(Y44:AT44)>0,LARGE(Y44:AT44,1)/6,""),"") ->  | L44: =IFERROR(IF(COUNTA(Y44:AT44)>1,LARGE(Y44:AT44,2)/6,""),"") ->  | M44: =IFERROR(IF(COUNTA(Y44:AT44)>2,LARGE(Y44:AT44,3)/6,""),"") ->  | N44: =IFERROR(IF(COUNTA(Y44:AT44)>3,LARGE(Y44:AT44,4)/6,""),"") ->  | O44: =IF(AU44<>"",AU44,"") ->  | P44: =IFERROR(IF(VLOOKUP(C44,'Membres-2024'!$A:$F,6,FALSE)>=$H$3,VLOOKUP(C44,'Membres-2024'!$A:$F,6,FALSE),"non inscrit"),IF($C44>0,"non inscrit","")) -> 2023-02-24 | Q44: =IFERROR(IF(COUNTA(AW44:BS44)>0,LARGE(AW44:BS44,1)/6,""),"") -> 43.5 | R44: =IFERROR(IF(COUNTA(AW44:BS44)>1,LARGE(AW44:BS44,2)/6,""),"") -> 41.5 | S44: =IFERROR(IF(COUNTA(AW44:BS44)>2,LARGE(AW44:BS44,3)/6,""),"") -> 41.5 | T44: =IFERROR(IF(COUNTA(AW44:BS44)>3,LARGE(AW44:BS44,4)/6,""),"") -> 39.33333333 | U44: =IF(BT44<>"",BT44,"") -> 205 | Y44: =IF(IF(AND($J44="non inscrit",Y$6>$H$4),OR($P44<$H$5,$P44<Y$6),OR($J44<$H$5,$J44<Y$6)),IFERROR(IF(VLOOKUP($C44,ASF_ext!$C$12:$K$400,5,FALSE)=$F44,VLOOKUP($C44,ASF_ext!$C$12:$K$400,9,FALSE),""),""),"") ->  | Z44: =IF(IF(AND($J44="non inscrit",Z$6>$H$4),OR($P44<$H$5,$P44<Z$6),OR($J44<$H$5,$J44<Z$6)),IFERROR(IF(VLOOKUP($C44,LG_ext!$C$12:$K$400,5,FALSE)=$F44,VLOOKUP($C44,LG_ext!$C$12:$K$400,9,FALSE),""),""),"") ->  | AA44: =IF(IF(AND($J44="non inscrit",AA$6>$H$4),OR($P44<$H$5,$P44<AA$6),OR($J44<$H$5,$J44<AA$6)),IFERROR(IF(VLOOKUP($C44,Jul_ext!$C$12:$K$400,5,FALSE)=$F44,VLOOKUP($C44,Jul_ext!$C$12:$K$400,9,FALSE),""),""),"") ->  | AB44: =IF(IF(AND($J44="non inscrit",AB$6>$H$4),OR($P44<$H$5,$P44<AB$6),OR($J44<$H$5,$J44<AB$6)),IFERROR(IF(VLOOKUP($C44,CQ_ext!$C$12:$K$400,5,FALSE)=$F44,VLOOKUP($C44,CQ_ext!$C$12:$K$400,9,FALSE),""),""),"") ->  | AC44: =IF(IF(AND($J44="non inscrit",AC$6>$H$4),OR($P44<$H$5,$P44<AC$6),OR($J44<$H$5,$J44<AC$6)),IFERROR(IF(VLOOKUP($C44,NAQ_ext!$C$12:$K$400,5,FALSE)=$F44,VLOOKUP($C44,NAQ_ext!$C$12:$K$400,9,FALSE),""),""),"") ->  | AD44: =IF(IF(AND($J44="non inscrit",AD$6>$H$4),OR($P44<$H$5,$P44<AD$6),OR($J44<$H$5,$J44<AD$6)),IFERROR(IF(VLOOKUP($C44,MtL_ext!$C$12:$K$400,5,FALSE)=$F44,VLOOKUP($C44,MtL_ext!$C$12:$K$400,9,FALSE),""),""),"") ->  | AE44: =IF(IF(AND($J44="non inscrit",AE$6>$H$4),OR($P44<$H$5,$P44<AE$6),OR($J44<$H$5,$J44<AE$6)),IFERROR(IF(VLOOKUP($C44,Cant_ext!$C$12:$K$400,5,FALSE)=$F44,VLOOKUP($C44,Cant_ext!$C$12:$K$400,9,FALSE),""),""),"") ->  | AH44: =IF(IF(AND($J44="non inscrit",AH$6>$H$4),OR($P44<$H$5,$P44<AH$6),OR($J44<$H$5,$J44<AH$6)),IFERROR(IF(VLOOKUP($C44,ASF2_ext!$C$12:$K$400,5,FALSE)=$F44,VLOOKUP($C44,ASF2_ext!$C$12:$K$400,9,FALSE),""),""),"") ->  | AI44: =IF(IF(AND($J44="non inscrit",AI$6>$H$4),OR($P44<$H$5,$P44<AI$6),OR($J44<$H$5,$J44<AI$6)),IFERROR(IF(VLOOKUP($C44,Ascot_ext!$C$12:$K$400,5,FALSE)=$F44,VLOOKUP($C44,Ascot_ext!$C$12:$K$400,9,FALSE),""),""),"") ->  | AJ44: =IF(IF(AND($J44="non inscrit",AJ$6>$H$4),OR($P44<$H$5,$P44<AJ$6),OR($J44<$H$5,$J44<AJ$6)),IFERROR(IF(VLOOKUP($C44,BBA_ext!$C$12:$K$400,5,FALSE)=$F44,VLOOKUP($C44,BBA_ext!$C$12:$K$400,9,FALSE),""),""),"") ->  | AK44: =IF(IF(AND($J44="non inscrit",AK$6>$H$4),OR($P44<$H$5,$P44<AK$6),OR($J44<$H$5,$J44<AK$6)),IFERROR(IF(VLOOKUP($C44,Tuq1_ext!$C$12:$K$400,5,FALSE)=$F44,VLOOKUP($C44,Tuq1_ext!$C$12:$K$400,9,FALSE),""),""),"") ->  | AL44: =IF(IF(AND($J44="non inscrit",AL$6>$H$4),OR($P44<$H$5,$P44<AL$6),OR($J44<$H$5,$J44<AL$6)),IFERROR(IF(VLOOKUP($C44,Tuq2_ext!$C$12:$K$400,5,FALSE)=$F44,VLOOKUP($C44,Tuq2_ext!$C$12:$K$400,9,FALSE),""),""),"") ->  | AM44: =IF(IF(AND($J44="non inscrit",AM$6>$H$4),OR($P44<$H$5,$P44<AM$6),OR($J44<$H$5,$J44<AM$6)),IFERROR(IF(VLOOKUP($C44,CQ2_ext!$C$12:$K$400,5,FALSE)=$F44,VLOOKUP($C44,CQ2_ext!$C$12:$K$400,9,FALSE),""),""),"") ->  | AN44: =IF(IF(AND($J44="non inscrit",AN$6>$H$4),OR($P44<$H$5,$P44<AN$6),OR($J44<$H$5,$J44<AN$6)),IFERROR(IF(VLOOKUP($C44,MTL2_ext!$C$12:$K$400,5,FALSE)=$F44,VLOOKUP($C44,MTL2_ext!$C$12:$K$400,9,FALSE),""),""),"") ->  | AO44: =IF(IF(AND($J44="non inscrit",AO$6>$H$4),OR($P44<$H$5,$P44<AO$6),OR($J44<$H$5,$J44<AO$6)),IFERROR(IF(VLOOKUP($C44,NO_ext!$C$12:$K$400,5,FALSE)=$F44,VLOOKUP($C44,NO_ext!$C$12:$K$400,9,FALSE),""),""),"") ->  | AP44: =IF(IF(AND($J44="non inscrit",AP$6>$H$4),OR($P44<$H$5,$P44<AP$6),OR($J44<$H$5,$J44<AP$6)),IFERROR(IF(VLOOKUP($C44,VD_ext!$C$12:$K$400,5,FALSE)=$F44,VLOOKUP($C44,VD_ext!$C$12:$K$400,9,FALSE),""),""),"") ->  | AQ44: =IF(IF(AND($J44="non inscrit",AQ$6>$H$4),OR($P44<$H$5,$P44<AQ$6),OR($J44<$H$5,$J44<AQ$6)),IFERROR(IF(VLOOKUP($C44,PT_ext!$C$12:$K$400,5,FALSE)=$F44,VLOOKUP($C44,PT_ext!$C$12:$K$400,9,FALSE),""),""),"") ->  | AR44: =IF(IF(AND($J44="non inscrit",AR$6>$H$4),OR($P44<$H$5,$P44<AR$6),OR($J44<$H$5,$J44<AR$6)),IFERROR(IF(VLOOKUP($C44,Vic_ext!$C$12:$K$400,5,FALSE)=$F44,VLOOKUP($C44,Vic_ext!$C$12:$K$400,9,FALSE),""),""),"") ->  | AS44: =IF(IF(AND($J44="non inscrit",AS$6>$H$4),OR($P44<$H$5,$P44<AS$6),OR($J44<$H$5,$J44<AS$6)),IFERROR(IF(VLOOKUP($C44,Sor_ext!$C$12:$K$400,5,FALSE)=$F44,VLOOKUP($C44,Sor_ext!$C$12:$K$400,9,FALSE),""),""),"") ->  | AU44: =IF(IF(AND($J44="non inscrit",AU$6>$H$4),OR($P44<$H$5,$P44<AU$6),OR($J44<$H$5,$J44<AU$6)),IFERROR(IF(VLOOKUP($C44,PROV_ext!$C$12:$K$400,5,FALSE)=$F44,VLOOKUP($C44,PROV_ext!$C$12:$K$400,9,FALSE),""),""),"") ->  | AW44: =IF(IF(AND($J44="non inscrit",AW$6>$H$4),OR($P44<$H$5,$P44<AQ$6),OR($J44<$H$5,$J44<AQ$6)),IFERROR(IF(VLOOKUP($C44,Coat_int!$C$12:$K$400,5,FALSE)=$F44,VLOOKUP($C44,Coat_int!$C$12:$K$400,9,FALSE),""),""),"") -> 236 | AX44: =IF(IF(AND($J44="non inscrit",AX$6>$H$4),OR($P44<$H$5,$P44<AR$6),OR($J44<$H$5,$J44<AR$6)),IFERROR(IF(VLOOKUP($C44,LG_int!$C$12:$K$400,5,FALSE)=$F44,VLOOKUP($C44,LG_int!$C$12:$K$400,9,FALSE),""),""),"") -> 249 | AY44: =IF(IF(AND($J44="non inscrit",AY$6>$H$4),OR($P44<$H$5,$P44<AS$6),OR($J44<$H$5,$J44<AS$6)),IFERROR(IF(VLOOKUP($C44,Roc_int!$C$12:$K$400,5,FALSE)=$F44,VLOOKUP($C44,Roc_int!$C$12:$K$400,9,FALSE),""),""),"") ->  | AZ44: =IF(IF(AND($J44="non inscrit",AZ$6>$H$4),OR($P44<$H$5,$P44<AT$6),OR($J44<$H$5,$J44<AT$6)),IFERROR(IF(VLOOKUP($C44,Qc_int!$C$12:$K$400,5,FALSE)=$F44,VLOOKUP($C44,Qc_int!$C$12:$K$400,9,FALSE),""),""),"") ->  | BA44: =IF(IF(AND($J44="non inscrit",BA$6>$H$4),OR($P44<$H$5,$P44<AU$6),OR($J44<$H$5,$J44<AU$6)),IFERROR(IF(VLOOKUP($C44,Asc_int!$C$12:$K$400,5,FALSE)=$F44,VLOOKUP($C44,Asc_int!$C$12:$K$400,9,FALSE),""),""),"") ->  | BB44: =IF(IF(AND($J44="non inscrit",BB$6>$H$4),OR($P44<$H$5,$P44<AV$6),OR($J44<$H$5,$J44<AV$6)),IFERROR(IF(VLOOKUP($C44,CQ_int!$C$12:$K$400,5,FALSE)=$F44,VLOOKUP($C44,CQ_int!$C$12:$K$400,9,FALSE),""),""),"") -> 249 | BC44: =IF(IF(AND($J44="non inscrit",BC$6>$H$4),OR($P44<$H$5,$P44<AW$6),OR($J44<$H$5,$J44<AW$6)),IFERROR(IF(VLOOKUP($C44,QC2_int!$C$12:$K$400,5,FALSE)=$F44,VLOOKUP($C44,QC2_int!$C$12:$K$400,9,FALSE),""),""),"") -> 261 | BD44: =IF(IF(AND($J44="non inscrit",BD$6>$H$4),OR($P44<$H$5,$P44<AX$6),OR($J44<$H$5,$J44<AX$6)),IFERROR(IF(VLOOKUP($C44,Ach_int!$C$12:$K$400,5,FALSE)=$F44,VLOOKUP($C44,Ach_int!$C$12:$K$400,9,FALSE),""),""),"") ->  | BF44: =IF(IF(AND($J44="non inscrit",BF$6>$H$4),OR($P44<$H$5,$P44<AZ$6),OR($J44<$H$5,$J44<AZ$6)),IFERROR(IF(VLOOKUP($C44,Buck_int!$C$12:$K$400,5,FALSE)=$F44,VLOOKUP($C44,Buck_int!$C$12:$K$400,9,FALSE),""),""),"") ->  | BG44: =IF(IF(AND($J44="non inscrit",BG$6>$H$4),OR($P44<$H$5,$P44<BA$6),OR($J44<$H$5,$J44<BA$6)),IFERROR(IF(VLOOKUP($C44,CQC_int!$C$12:$K$400,5,FALSE)=$F44,VLOOKUP($C44,CQC_int!$C$12:$K$400,9,FALSE),""),""),"") -> 209 | BH44: =IF(IF(AND($J44="non inscrit",BH$6>$H$4),OR($P44<$H$5,$P44<BB$6),OR($J44<$H$5,$J44<BB$6)),IFERROR(IF(VLOOKUP($C44,LG3_int!$C$12:$K$400,5,FALSE)=$F44,VLOOKUP($C44,LG3_int!$C$12:$K$400,9,FALSE),""),""),"") ->  | BI44: =IF(IF(AND($J44="non inscrit",BI$6>$H$4),OR($P44<$H$5,$P44<BC$6),OR($J44<$H$5,$J44<BC$6)),IFERROR(IF(VLOOKUP($C44,LS_int!$C$12:$K$400,5,FALSE)=$F44,VLOOKUP($C44,LS_int!$C$12:$K$400,9,FALSE),""),""),"") ->  | BT44: =IF(IF(AND($J44="non inscrit",BT$6>$H$4),OR($P44<$H$5,$P44<BN$6),OR($J44<$H$5,$J44<BN$6)),IFERROR(IF(VLOOKUP($C44,FI!$C$12:$K$400,5,FALSE)=$F44,VLOOKUP($C44,FI!$C$12:$K$400,9,FALSE),""),""),"") -> 205
A45: =A44 -> 5 | B45: =B44+1 -> 2 | C45: 5729 | D45: =IF($C45="","",IF($N$1>$H$4,IFERROR(VLOOKUP($C45,'Membres-2024'!$A:$G,2,FALSE),""),IFERROR(VLOOKUP($C45,'Membres-2023'!$A:$G,2,FALSE),""))) -> Lacelle | E45: =IF($C45="","",IF($N$1>$H$4,IFERROR(VLOOKUP($C45,'Membres-2024'!$A:$G,3,FALSE),""),IFERROR(VLOOKUP($C45,'Membres-2023'!$A:$G,3,FALSE),""))) -> Éloik | F45: =IF($C45="","",IF($N$1>$H$4,IFERROR(VLOOKUP($C45,'Membres-2024'!$A:$G,7,FALSE),""),IFERROR(VLOOKUP($C45,'Membres-2023'!$A:$G,7,FALSE),""))) -> 5 | G45: =IF($C45="","",IF($N$1>$H$4,IFERROR(VLOOKUP($C45,'Membres-2024'!$A:$G,5,FALSE),""),IFERROR(VLOOKUP($C45,'Membres-2023'!$A:$G,5,FALSE),""))) -> Cantley (Archers de) | H45: =COUNTIF($Y45:$BT45,">=0") -> 5 | I45: =SUM(K45:O45,Q45:U45) -> 338 | J45: =IFERROR(IF(VLOOKUP(C45,'Membres-2023'!$A:$F,6,FALSE)>=$H$3,VLOOKUP(C45,'Membres-2023'!$A:$F,6,FALSE),"non inscrit"),IF($C45>0,"non inscrit","")) -> 2023-01-17 | K45: =IFERROR(IF(COUNTA(Y45:AT45)>0,LARGE(Y45:AT45,1)/6,""),"") -> 39 | L45: =IFERROR(IF(COUNTA(Y45:AT45)>1,LARGE(Y45:AT45,2)/6,""),"") -> 34.33333333 | M45: =IFERROR(IF(COUNTA(Y45:AT45)>2,LARGE(Y45:AT45,3)/6,""),"") -> 32.66666667 | N45: =IFERROR(IF(COUNTA(Y45:AT45)>3,LARGE(Y45:AT45,4)/6,""),"") ->  | O45: =IF(AU45<>"",AU45,"") -> 193 | P45: =IFERROR(IF(VLOOKUP(C45,'Membres-2024'!$A:$F,6,FALSE)>=$H$3,VLOOKUP(C45,'Membres-2024'!$A:$F,6,FALSE),"non inscrit"),IF($C45>0,"non inscrit","")) -> 2024-01-20 | Q45: =IFERROR(IF(COUNTA(AW45:BS45)>0,LARGE(AW45:BS45,1)/6,""),"") -> 39 | R45: =IFERROR(IF(COUNTA(AW45:BS45)>1,LARGE(AW45:BS45,2)/6,""),"") ->  | S45: =IFERROR(IF(COUNTA(AW45:BS45)>2,LARGE(AW45:BS45,3)/6,""),"") ->  | T45: =IFERROR(IF(COUNTA(AW45:BS45)>3,LARGE(AW45:BS45,4)/6,""),"") ->  | U45: =IF(BT45<>"",BT45,"") ->  | Y45: =IF(IF(AND($J45="non inscrit",Y$6>$H$4),OR($P45<$H$5,$P45<Y$6),OR($J45<$H$5,$J45<Y$6)),IFERROR(IF(VLOOKUP($C45,ASF_ext!$C$12:$K$400,5,FALSE)=$F45,VLOOKUP($C45,ASF_ext!$C$12:$K$400,9,FALSE),""),""),"") ->  | Z45: =IF(IF(AND($J45="non inscrit",Z$6>$H$4),OR($P45<$H$5,$P45<Z$6),OR($J45<$H$5,$J45<Z$6)),IFERROR(IF(VLOOKUP($C45,LG_ext!$C$12:$K$400,5,FALSE)=$F45,VLOOKUP($C45,LG_ext!$C$12:$K$400,9,FALSE),""),""),"") -> 196 | AA45: =IF(IF(AND($J45="non inscrit",AA$6>$H$4),OR($P45<$H$5,$P45<AA$6),OR($J45<$H$5,$J45<AA$6)),IFERROR(IF(VLOOKUP($C45,Jul_ext!$C$12:$K$400,5,FALSE)=$F45,VLOOKUP($C45,Jul_ext!$C$12:$K$400,9,FALSE),""),""),"") ->  | AB45: =IF(IF(AND($J45="non inscrit",AB$6>$H$4),OR($P45<$H$5,$P45<AB$6),OR($J45<$H$5,$J45<AB$6)),IFERROR(IF(VLOOKUP($C45,CQ_ext!$C$12:$K$400,5,FALSE)=$F45,VLOOKUP($C45,CQ_ext!$C$12:$K$400,9,FALSE),""),""),"") ->  | AC45: =IF(IF(AND($J45="non inscrit",AC$6>$H$4),OR($P45<$H$5,$P45<AC$6),OR($J45<$H$5,$J45<AC$6)),IFERROR(IF(VLOOKUP($C45,NAQ_ext!$C$12:$K$400,5,FALSE)=$F45,VLOOKUP($C45,NAQ_ext!$C$12:$K$400,9,FALSE),""),""),"") ->  | AD45: =IF(IF(AND($J45="non inscrit",AD$6>$H$4),OR($P45<$H$5,$P45<AD$6),OR($J45<$H$5,$J45<AD$6)),IFERROR(IF(VLOOKUP($C45,MtL_ext!$C$12:$K$400,5,FALSE)=$F45,VLOOKUP($C45,MtL_ext!$C$12:$K$400,9,FALSE),""),""),"") -> 206 | AE45: =IF(IF(AND($J45="non inscrit",AE$6>$H$4),OR($P45<$H$5,$P45<AE$6),OR($J45<$H$5,$J45<AE$6)),IFERROR(IF(VLOOKUP($C45,Cant_ext!$C$12:$K$400,5,FALSE)=$F45,VLOOKUP($C45,Cant_ext!$C$12:$K$400,9,FALSE),""),""),"") ->  | AH45: =IF(IF(AND($J45="non inscrit",AH$6>$H$4),OR($P45<$H$5,$P45<AH$6),OR($J45<$H$5,$J45<AH$6)),IFERROR(IF(VLOOKUP($C45,ASF2_ext!$C$12:$K$400,5,FALSE)=$F45,VLOOKUP($C45,ASF2_ext!$C$12:$K$400,9,FALSE),""),""),"") ->  | AI45: =IF(IF(AND($J45="non inscrit",AI$6>$H$4),OR($P45<$H$5,$P45<AI$6),OR($J45<$H$5,$J45<AI$6)),IFERROR(IF(VLOOKUP($C45,Ascot_ext!$C$12:$K$400,5,FALSE)=$F45,VLOOKUP($C45,Ascot_ext!$C$12:$K$400,9,FALSE),""),""),"") ->  | AJ45: =IF(IF(AND($J45="non inscrit",AJ$6>$H$4),OR($P45<$H$5,$P45<AJ$6),OR($J45<$H$5,$J45<AJ$6)),IFERROR(IF(VLOOKUP($C45,BBA_ext!$C$12:$K$400,5,FALSE)=$F45,VLOOKUP($C45,BBA_ext!$C$12:$K$400,9,FALSE),""),""),"") ->  | AK45: =IF(IF(AND($J45="non inscrit",AK$6>$H$4),OR($P45<$H$5,$P45<AK$6),OR($J45<$H$5,$J45<AK$6)),IFERROR(IF(VLOOKUP($C45,Tuq1_ext!$C$12:$K$400,5,FALSE)=$F45,VLOOKUP($C45,Tuq1_ext!$C$12:$K$400,9,FALSE),""),""),"") ->  | AL45: =IF(IF(AND($J45="non inscrit",AL$6>$H$4),OR($P45<$H$5,$P45<AL$6),OR($J45<$H$5,$J45<AL$6)),IFERROR(IF(VLOOKUP($C45,Tuq2_ext!$C$12:$K$400,5,FALSE)=$F45,VLOOKUP($C45,Tuq2_ext!$C$12:$K$400,9,FALSE),""),""),"") ->  | AM45: =IF(IF(AND($J45="non inscrit",AM$6>$H$4),OR($P45<$H$5,$P45<AM$6),OR($J45<$H$5,$J45<AM$6)),IFERROR(IF(VLOOKUP($C45,CQ2_ext!$C$12:$K$400,5,FALSE)=$F45,VLOOKUP($C45,CQ2_ext!$C$12:$K$400,9,FALSE),""),""),"") ->  | AN45: =IF(IF(AND($J45="non inscrit",AN$6>$H$4),OR($P45<$H$5,$P45<AN$6),OR($J45<$H$5,$J45<AN$6)),IFERROR(IF(VLOOKUP($C45,MTL2_ext!$C$12:$K$400,5,FALSE)=$F45,VLOOKUP($C45,MTL2_ext!$C$12:$K$400,9,FALSE),""),""),"") -> 234 | AO45: =IF(IF(AND($J45="non inscrit",AO$6>$H$4),OR($P45<$H$5,$P45<AO$6),OR($J45<$H$5,$J45<AO$6)),IFERROR(IF(VLOOKUP($C45,NO_ext!$C$12:$K$400,5,FALSE)=$F45,VLOOKUP($C45,NO_ext!$C$12:$K$400,9,FALSE),""),""),"") ->  | AP45: =IF(IF(AND($J45="non inscrit",AP$6>$H$4),OR($P45<$H$5,$P45<AP$6),OR($J45<$H$5,$J45<AP$6)),IFERROR(IF(VLOOKUP($C45,VD_ext!$C$12:$K$400,5,FALSE)=$F45,VLOOKUP($C45,VD_ext!$C$12:$K$400,9,FALSE),""),""),"") ->  | AQ45: =IF(IF(AND($J45="non inscrit",AQ$6>$H$4),OR($P45<$H$5,$P45<AQ$6),OR($J45<$H$5,$J45<AQ$6)),IFERROR(IF(VLOOKUP($C45,PT_ext!$C$12:$K$400,5,FALSE)=$F45,VLOOKUP($C45,PT_ext!$C$12:$K$400,9,FALSE),""),""),"") ->  | AR45: =IF(IF(AND($J45="non inscrit",AR$6>$H$4),OR($P45<$H$5,$P45<AR$6),OR($J45<$H$5,$J45<AR$6)),IFERROR(IF(VLOOKUP($C45,Vic_ext!$C$12:$K$400,5,FALSE)=$F45,VLOOKUP($C45,Vic_ext!$C$12:$K$400,9,FALSE),""),""),"") ->  | AS45: =IF(IF(AND($J45="non inscrit",AS$6>$H$4),OR($P45<$H$5,$P45<AS$6),OR($J45<$H$5,$J45<AS$6)),IFERROR(IF(VLOOKUP($C45,Sor_ext!$C$12:$K$400,5,FALSE)=$F45,VLOOKUP($C45,Sor_ext!$C$12:$K$400,9,FALSE),""),""),"") ->  | AU45: =IF(IF(AND($J45="non inscrit",AU$6>$H$4),OR($P45<$H$5,$P45<AU$6),OR($J45<$H$5,$J45<AU$6)),IFERROR(IF(VLOOKUP($C45,PROV_ext!$C$12:$K$400,5,FALSE)=$F45,VLOOKUP($C45,PROV_ext!$C$12:$K$400,9,FALSE),""),""),"") -> 193 | AW45: =IF(IF(AND($J45="non inscrit",AW$6>$H$4),OR($P45<$H$5,$P45<AQ$6),OR($J45<$H$5,$J45<AQ$6)),IFERROR(IF(VLOOKUP($C45,Coat_int!$C$12:$K$400,5,FALSE)=$F45,VLOOKUP($C45,Coat_int!$C$12:$K$400,9,FALSE),""),""),"") ->  | AX45: =IF(IF(AND($J45="non inscrit",AX$6>$H$4),OR($P45<$H$5,$P45<AR$6),OR($J45<$H$5,$J45<AR$6)),IFERROR(IF(VLOOKUP($C45,LG_int!$C$12:$K$400,5,FALSE)=$F45,VLOOKUP($C45,LG_int!$C$12:$K$400,9,FALSE),""),""),"") -> 234 | AY45: =IF(IF(AND($J45="non inscrit",AY$6>$H$4),OR($P45<$H$5,$P45<AS$6),OR($J45<$H$5,$J45<AS$6)),IFERROR(IF(VLOOKUP($C45,Roc_int!$C$12:$K$400,5,FALSE)=$F45,VLOOKUP($C45,Roc_int!$C$12:$K$400,9,FALSE),""),""),"") ->  | AZ45: =IF(IF(AND($J45="non inscrit",AZ$6>$H$4),OR($P45<$H$5,$P45<AT$6),OR($J45<$H$5,$J45<AT$6)),IFERROR(IF(VLOOKUP($C45,Qc_int!$C$12:$K$400,5,FALSE)=$F45,VLOOKUP($C45,Qc_int!$C$12:$K$400,9,FALSE),""),""),"") ->  | BA45: =IF(IF(AND($J45="non inscrit",BA$6>$H$4),OR($P45<$H$5,$P45<AU$6),OR($J45<$H$5,$J45<AU$6)),IFERROR(IF(VLOOKUP($C45,Asc_int!$C$12:$K$400,5,FALSE)=$F45,VLOOKUP($C45,Asc_int!$C$12:$K$400,9,FALSE),""),""),"") ->  | BB45: =IF(IF(AND($J45="non inscrit",BB$6>$H$4),OR($P45<$H$5,$P45<AV$6),OR($J45<$H$5,$J45<AV$6)),IFERROR(IF(VLOOKUP($C45,CQ_int!$C$12:$K$400,5,FALSE)=$F45,VLOOKUP($C45,CQ_int!$C$12:$K$400,9,FALSE),""),""),"") ->  | BC45: =IF(IF(AND($J45="non inscrit",BC$6>$H$4),OR($P45<$H$5,$P45<AW$6),OR($J45<$H$5,$J45<AW$6)),IFERROR(IF(VLOOKUP($C45,QC2_int!$C$12:$K$400,5,FALSE)=$F45,VLOOKUP($C45,QC2_int!$C$12:$K$400,9,FALSE),""),""),"") ->  | BD45: =IF(IF(AND($J45="non inscrit",BD$6>$H$4),OR($P45<$H$5,$P45<AX$6),OR($J45<$H$5,$J45<AX$6)),IFERROR(IF(VLOOKUP($C45,Ach_int!$C$12:$K$400,5,FALSE)=$F45,VLOOKUP($C45,Ach_int!$C$12:$K$400,9,FALSE),""),""),"") ->  | BF45: =IF(IF(AND($J45="non inscrit",BF$6>$H$4),OR($P45<$H$5,$P45<AZ$6),OR($J45<$H$5,$J45<AZ$6)),IFERROR(IF(VLOOKUP($C45,Buck_int!$C$12:$K$400,5,FALSE)=$F45,VLOOKUP($C45,Buck_int!$C$12:$K$400,9,FALSE),""),""),"") ->  | BG45: =IF(IF(AND($J45="non inscrit",BG$6>$H$4),OR($P45<$H$5,$P45<BA$6),OR($J45<$H$5,$J45<BA$6)),IFERROR(IF(VLOOKUP($C45,CQC_int!$C$12:$K$400,5,FALSE)=$F45,VLOOKUP($C45,CQC_int!$C$12:$K$400,9,FALSE),""),""),"") ->  | BH45: =IF(IF(AND($J45="non inscrit",BH$6>$H$4),OR($P45<$H$5,$P45<BB$6),OR($J45<$H$5,$J45<BB$6)),IFERROR(IF(VLOOKUP($C45,LG3_int!$C$12:$K$400,5,FALSE)=$F45,VLOOKUP($C45,LG3_int!$C$12:$K$400,9,FALSE),""),""),"") ->  | BI45: =IF(IF(AND($J45="non inscrit",BI$6>$H$4),OR($P45<$H$5,$P45<BC$6),OR($J45<$H$5,$J45<BC$6)),IFERROR(IF(VLOOKUP($C45,LS_int!$C$12:$K$400,5,FALSE)=$F45,VLOOKUP($C45,LS_int!$C$12:$K$400,9,FALSE),""),""),"") ->  | BT45: =IF(IF(AND($J45="non inscrit",BT$6>$H$4),OR($P45<$H$5,$P45<BN$6),OR($J45<$H$5,$J45<BN$6)),IFERROR(IF(VLOOKUP($C45,FI!$C$12:$K$400,5,FALSE)=$F45,VLOOKUP($C45,FI!$C$12:$K$400,9,FALSE),""),""),"") -> 
A46: =A45 -> 5 | B46: =B45+1 -> 3 | C46: 7801 | D46: =IF($C46="","",IF($N$1>$H$4,IFERROR(VLOOKUP($C46,'Membres-2024'!$A:$G,2,FALSE),""),IFERROR(VLOOKUP($C46,'Membres-2023'!$A:$G,2,FALSE),""))) -> Dubois-Habel | E46: =IF($C46="","",IF($N$1>$H$4,IFERROR(VLOOKUP($C46,'Membres-2024'!$A:$G,3,FALSE),""),IFERROR(VLOOKUP($C46,'Membres-2023'!$A:$G,3,FALSE),""))) -> Malik | F46: 5 | G46: =IF($C46="","",IF($N$1>$H$4,IFERROR(VLOOKUP($C46,'Membres-2024'!$A:$G,5,FALSE),""),IFERROR(VLOOKUP($C46,'Membres-2023'!$A:$G,5,FALSE),""))) -> Pro3D | H46: =COUNTIF($Y46:$BT46,">=0") -> 2 | I46: =SUM(K46:O46,Q46:U46) -> 77.83333333 | J46: =IFERROR(IF(VLOOKUP(C46,'Membres-2023'!$A:$F,6,FALSE)>=$H$3,VLOOKUP(C46,'Membres-2023'!$A:$F,6,FALSE),"non inscrit"),IF($C46>0,"non inscrit","")) -> 2023-01-08 | K46: =IFERROR(IF(COUNTA(Y46:AT46)>0,LARGE(Y46:AT46,1)/6,""),"") -> 39.16666667 | L46: =IFERROR(IF(COUNTA(Y46:AT46)>1,LARGE(Y46:AT46,2)/6,""),"") -> 38.66666667 | M46: =IFERROR(IF(COUNTA(Y46:AT46)>2,LARGE(Y46:AT46,3)/6,""),"") ->  | N46: =IFERROR(IF(COUNTA(Y46:AT46)>3,LARGE(Y46:AT46,4)/6,""),"") ->  | O46: =IF(AU46<>"",AU46,"") ->  | P46: =IFERROR(IF(VLOOKUP(C46,'Membres-2024'!$A:$F,6,FALSE)>=$H$3,VLOOKUP(C46,'Membres-2024'!$A:$F,6,FALSE),"non inscrit"),IF($C46>0,"non inscrit","")) -> 2023-01-08 | Q46: =IFERROR(IF(COUNTA(AW46:BS46)>0,LARGE(AW46:BS46,1)/6,""),"") ->  | R46: =IFERROR(IF(COUNTA(AW46:BS46)>1,LARGE(AW46:BS46,2)/6,""),"") ->  | S46: =IFERROR(IF(COUNTA(AW46:BS46)>2,LARGE(AW46:BS46,3)/6,""),"") ->  | T46: =IFERROR(IF(COUNTA(AW46:BS46)>3,LARGE(AW46:BS46,4)/6,""),"") ->  | U46: =IF(BT46<>"",BT46,"") ->  | Y46: =IF(IF(AND($J46="non inscrit",Y$6>$H$4),OR($P46<$H$5,$P46<Y$6),OR($J46<$H$5,$J46<Y$6)),IFERROR(IF(VLOOKUP($C46,ASF_ext!$C$12:$K$400,5,FALSE)=$F46,VLOOKUP($C46,ASF_ext!$C$12:$K$400,9,FALSE),""),""),"") ->  | Z46: =IF(IF(AND($J46="non inscrit",Z$6>$H$4),OR($P46<$H$5,$P46<Z$6),OR($J46<$H$5,$J46<Z$6)),IFERROR(IF(VLOOKUP($C46,LG_ext!$C$12:$K$400,5,FALSE)=$F46,VLOOKUP($C46,LG_ext!$C$12:$K$400,9,FALSE),""),""),"") ->  | AA46: =IF(IF(AND($J46="non inscrit",AA$6>$H$4),OR($P46<$H$5,$P46<AA$6),OR($J46<$H$5,$J46<AA$6)),IFERROR(IF(VLOOKUP($C46,Jul_ext!$C$12:$K$400,5,FALSE)=$F46,VLOOKUP($C46,Jul_ext!$C$12:$K$400,9,FALSE),""),""),"") ->  | AB46: =IF(IF(AND($J46="non inscrit",AB$6>$H$4),OR($P46<$H$5,$P46<AB$6),OR($J46<$H$5,$J46<AB$6)),IFERROR(IF(VLOOKUP($C46,CQ_ext!$C$12:$K$400,5,FALSE)=$F46,VLOOKUP($C46,CQ_ext!$C$12:$K$400,9,FALSE),""),""),"") -> 232 | AC46: =IF(IF(AND($J46="non inscrit",AC$6>$H$4),OR($P46<$H$5,$P46<AC$6),OR($J46<$H$5,$J46<AC$6)),IFERROR(IF(VLOOKUP($C46,NAQ_ext!$C$12:$K$400,5,FALSE)=$F46,VLOOKUP($C46,NAQ_ext!$C$12:$K$400,9,FALSE),""),""),"") ->  | AD46: =IF(IF(AND($J46="non inscrit",AD$6>$H$4),OR($P46<$H$5,$P46<AD$6),OR($J46<$H$5,$J46<AD$6)),IFERROR(IF(VLOOKUP($C46,MtL_ext!$C$12:$K$400,5,FALSE)=$F46,VLOOKUP($C46,MtL_ext!$C$12:$K$400,9,FALSE),""),""),"") ->  | AE46: =IF(IF(AND($J46="non inscrit",AE$6>$H$4),OR($P46<$H$5,$P46<AE$6),OR($J46<$H$5,$J46<AE$6)),IFERROR(IF(VLOOKUP($C46,Cant_ext!$C$12:$K$400,5,FALSE)=$F46,VLOOKUP($C46,Cant_ext!$C$12:$K$400,9,FALSE),""),""),"") ->  | AH46: =IF(IF(AND($J46="non inscrit",AH$6>$H$4),OR($P46<$H$5,$P46<AH$6),OR($J46<$H$5,$J46<AH$6)),IFERROR(IF(VLOOKUP($C46,ASF2_ext!$C$12:$K$400,5,FALSE)=$F46,VLOOKUP($C46,ASF2_ext!$C$12:$K$400,9,FALSE),""),""),"") -> 235 | AI46: =IF(IF(AND($J46="non inscrit",AI$6>$H$4),OR($P46<$H$5,$P46<AI$6),OR($J46<$H$5,$J46<AI$6)),IFERROR(IF(VLOOKUP($C46,Ascot_ext!$C$12:$K$400,5,FALSE)=$F46,VLOOKUP($C46,Ascot_ext!$C$12:$K$400,9,FALSE),""),""),"") ->  | AJ46: =IF(IF(AND($J46="non inscrit",AJ$6>$H$4),OR($P46<$H$5,$P46<AJ$6),OR($J46<$H$5,$J46<AJ$6)),IFERROR(IF(VLOOKUP($C46,BBA_ext!$C$12:$K$400,5,FALSE)=$F46,VLOOKUP($C46,BBA_ext!$C$12:$K$400,9,FALSE),""),""),"") ->  | AK46: =IF(IF(AND($J46="non inscrit",AK$6>$H$4),OR($P46<$H$5,$P46<AK$6),OR($J46<$H$5,$J46<AK$6)),IFERROR(IF(VLOOKUP($C46,Tuq1_ext!$C$12:$K$400,5,FALSE)=$F46,VLOOKUP($C46,Tuq1_ext!$C$12:$K$400,9,FALSE),""),""),"") ->  | AL46: =IF(IF(AND($J46="non inscrit",AL$6>$H$4),OR($P46<$H$5,$P46<AL$6),OR($J46<$H$5,$J46<AL$6)),IFERROR(IF(VLOOKUP($C46,Tuq2_ext!$C$12:$K$400,5,FALSE)=$F46,VLOOKUP($C46,Tuq2_ext!$C$12:$K$400,9,FALSE),""),""),"") ->  | AM46: =IF(IF(AND($J46="non inscrit",AM$6>$H$4),OR($P46<$H$5,$P46<AM$6),OR($J46<$H$5,$J46<AM$6)),IFERROR(IF(VLOOKUP($C46,CQ2_ext!$C$12:$K$400,5,FALSE)=$F46,VLOOKUP($C46,CQ2_ext!$C$12:$K$400,9,FALSE),""),""),"") ->  | AN46: =IF(IF(AND($J46="non inscrit",AN$6>$H$4),OR($P46<$H$5,$P46<AN$6),OR($J46<$H$5,$J46<AN$6)),IFERROR(IF(VLOOKUP($C46,MTL2_ext!$C$12:$K$400,5,FALSE)=$F46,VLOOKUP($C46,MTL2_ext!$C$12:$K$400,9,FALSE),""),""),"") ->  | AO46: =IF(IF(AND($J46="non inscrit",AO$6>$H$4),OR($P46<$H$5,$P46<AO$6),OR($J46<$H$5,$J46<AO$6)),IFERROR(IF(VLOOKUP($C46,NO_ext!$C$12:$K$400,5,FALSE)=$F46,VLOOKUP($C46,NO_ext!$C$12:$K$400,9,FALSE),""),""),"") ->  | AP46: =IF(IF(AND($J46="non inscrit",AP$6>$H$4),OR($P46<$H$5,$P46<AP$6),OR($J46<$H$5,$J46<AP$6)),IFERROR(IF(VLOOKUP($C46,VD_ext!$C$12:$K$400,5,FALSE)=$F46,VLOOKUP($C46,VD_ext!$C$12:$K$400,9,FALSE),""),""),"") ->  | AQ46: =IF(IF(AND($J46="non inscrit",AQ$6>$H$4),OR($P46<$H$5,$P46<AQ$6),OR($J46<$H$5,$J46<AQ$6)),IFERROR(IF(VLOOKUP($C46,PT_ext!$C$12:$K$400,5,FALSE)=$F46,VLOOKUP($C46,PT_ext!$C$12:$K$400,9,FALSE),""),""),"") ->  | AR46: =IF(IF(AND($J46="non inscrit",AR$6>$H$4),OR($P46<$H$5,$P46<AR$6),OR($J46<$H$5,$J46<AR$6)),IFERROR(IF(VLOOKUP($C46,Vic_ext!$C$12:$K$400,5,FALSE)=$F46,VLOOKUP($C46,Vic_ext!$C$12:$K$400,9,FALSE),""),""),"") ->  | AS46: =IF(IF(AND($J46="non inscrit",AS$6>$H$4),OR($P46<$H$5,$P46<AS$6),OR($J46<$H$5,$J46<AS$6)),IFERROR(IF(VLOOKUP($C46,Sor_ext!$C$12:$K$400,5,FALSE)=$F46,VLOOKUP($C46,Sor_ext!$C$12:$K$400,9,FALSE),""),""),"") ->  | AU46: =IF(IF(AND($J46="non inscrit",AU$6>$H$4),OR($P46<$H$5,$P46<AU$6),OR($J46<$H$5,$J46<AU$6)),IFERROR(IF(VLOOKUP($C46,PROV_ext!$C$12:$K$400,5,FALSE)=$F46,VLOOKUP($C46,PROV_ext!$C$12:$K$400,9,FALSE),""),""),"") ->  | AW46: =IF(IF(AND($J46="non inscrit",AW$6>$H$4),OR($P46<$H$5,$P46<AQ$6),OR($J46<$H$5,$J46<AQ$6)),IFERROR(IF(VLOOKUP($C46,Coat_int!$C$12:$K$400,5,FALSE)=$F46,VLOOKUP($C46,Coat_int!$C$12:$K$400,9,FALSE),""),""),"") ->  | AX46: =IF(IF(AND($J46="non inscrit",AX$6>$H$4),OR($P46<$H$5,$P46<AR$6),OR($J46<$H$5,$J46<AR$6)),IFERROR(IF(VLOOKUP($C46,LG_int!$C$12:$K$400,5,FALSE)=$F46,VLOOKUP($C46,LG_int!$C$12:$K$400,9,FALSE),""),""),"") ->  | AY46: =IF(IF(AND($J46="non inscrit",AY$6>$H$4),OR($P46<$H$5,$P46<AS$6),OR($J46<$H$5,$J46<AS$6)),IFERROR(IF(VLOOKUP($C46,Roc_int!$C$12:$K$400,5,FALSE)=$F46,VLOOKUP($C46,Roc_int!$C$12:$K$400,9,FALSE),""),""),"") ->  | AZ46: =IF(IF(AND($J46="non inscrit",AZ$6>$H$4),OR($P46<$H$5,$P46<AT$6),OR($J46<$H$5,$J46<AT$6)),IFERROR(IF(VLOOKUP($C46,Qc_int!$C$12:$K$400,5,FALSE)=$F46,VLOOKUP($C46,Qc_int!$C$12:$K$400,9,FALSE),""),""),"") ->  | BA46: =IF(IF(AND($J46="non inscrit",BA$6>$H$4),OR($P46<$H$5,$P46<AU$6),OR($J46<$H$5,$J46<AU$6)),IFERROR(IF(VLOOKUP($C46,Asc_int!$C$12:$K$400,5,FALSE)=$F46,VLOOKUP($C46,Asc_int!$C$12:$K$400,9,FALSE),""),""),"") ->  | BB46: =IF(IF(AND($J46="non inscrit",BB$6>$H$4),OR($P46<$H$5,$P46<AV$6),OR($J46<$H$5,$J46<AV$6)),IFERROR(IF(VLOOKUP($C46,CQ_int!$C$12:$K$400,5,FALSE)=$F46,VLOOKUP($C46,CQ_int!$C$12:$K$400,9,FALSE),""),""),"") ->  | BC46: =IF(IF(AND($J46="non inscrit",BC$6>$H$4),OR($P46<$H$5,$P46<AW$6),OR($J46<$H$5,$J46<AW$6)),IFERROR(IF(VLOOKUP($C46,QC2_int!$C$12:$K$400,5,FALSE)=$F46,VLOOKUP($C46,QC2_int!$C$12:$K$400,9,FALSE),""),""),"") ->  | BD46: =IF(IF(AND($J46="non inscrit",BD$6>$H$4),OR($P46<$H$5,$P46<AX$6),OR($J46<$H$5,$J46<AX$6)),IFERROR(IF(VLOOKUP($C46,Ach_int!$C$12:$K$400,5,FALSE)=$F46,VLOOKUP($C46,Ach_int!$C$12:$K$400,9,FALSE),""),""),"") ->  | BF46: =IF(IF(AND($J46="non inscrit",BF$6>$H$4),OR($P46<$H$5,$P46<AZ$6),OR($J46<$H$5,$J46<AZ$6)),IFERROR(IF(VLOOKUP($C46,Buck_int!$C$12:$K$400,5,FALSE)=$F46,VLOOKUP($C46,Buck_int!$C$12:$K$400,9,FALSE),""),""),"") ->  | BG46: =IF(IF(AND($J46="non inscrit",BG$6>$H$4),OR($P46<$H$5,$P46<BA$6),OR($J46<$H$5,$J46<BA$6)),IFERROR(IF(VLOOKUP($C46,CQC_int!$C$12:$K$400,5,FALSE)=$F46,VLOOKUP($C46,CQC_int!$C$12:$K$400,9,FALSE),""),""),"") ->  | BH46: =IF(IF(AND($J46="non inscrit",BH$6>$H$4),OR($P46<$H$5,$P46<BB$6),OR($J46<$H$5,$J46<BB$6)),IFERROR(IF(VLOOKUP($C46,LG3_int!$C$12:$K$400,5,FALSE)=$F46,VLOOKUP($C46,LG3_int!$C$12:$K$400,9,FALSE),""),""),"") ->  | BI46: =IF(IF(AND($J46="non inscrit",BI$6>$H$4),OR($P46<$H$5,$P46<BC$6),OR($J46<$H$5,$J46<BC$6)),IFERROR(IF(VLOOKUP($C46,LS_int!$C$12:$K$400,5,FALSE)=$F46,VLOOKUP($C46,LS_int!$C$12:$K$400,9,FALSE),""),""),"") ->  | BT46: =IF(IF(AND($J46="non inscrit",BT$6>$H$4),OR($P46<$H$5,$P46<BN$6),OR($J46<$H$5,$J46<BN$6)),IFERROR(IF(VLOOKUP($C46,FI!$C$12:$K$400,5,FALSE)=$F46,VLOOKUP($C46,FI!$C$12:$K$400,9,FALSE),""),""),"") -> 
A47: =A46 -> 5 | B47: =B46+1 -> 4 | C47: 7576 | D47: =IF($C47="","",IF($N$1>$H$4,IFERROR(VLOOKUP($C47,'Membres-2024'!$A:$G,2,FALSE),""),IFERROR(VLOOKUP($C47,'Membres-2023'!$A:$G,2,FALSE),""))) -> Beaulieu | E47: =IF($C47="","",IF($N$1>$H$4,IFERROR(VLOOKUP($C47,'Membres-2024'!$A:$G,3,FALSE),""),IFERROR(VLOOKUP($C47,'Membres-2023'!$A:$G,3,FALSE),""))) -> Liam | F47: =IF($C47="","",IF($N$1>$H$4,IFERROR(VLOOKUP($C47,'Membres-2024'!$A:$G,7,FALSE),""),IFERROR(VLOOKUP($C47,'Membres-2023'!$A:$G,7,FALSE),""))) -> 5 | G47: =IF($C47="","",IF($N$1>$H$4,IFERROR(VLOOKUP($C47,'Membres-2024'!$A:$G,5,FALSE),""),IFERROR(VLOOKUP($C47,'Membres-2023'!$A:$G,5,FALSE),""))) -> Club de tir Legardeur | H47: =COUNTIF($Y47:$BT47,">=0") -> 1 | I47: =SUM(K47:O47,Q47:U47) -> 38.83333333 | J47: =IFERROR(IF(VLOOKUP(C47,'Membres-2023'!$A:$F,6,FALSE)>=$H$3,VLOOKUP(C47,'Membres-2023'!$A:$F,6,FALSE),"non inscrit"),IF($C47>0,"non inscrit","")) -> 2023-02-01 | K47: =IFERROR(IF(COUNTA(Y47:AT47)>0,LARGE(Y47:AT47,1)/6,""),"") -> 38.83333333 | L47: =IFERROR(IF(COUNTA(Y47:AT47)>1,LARGE(Y47:AT47,2)/6,""),"") ->  | M47: =IFERROR(IF(COUNTA(Y47:AT47)>2,LARGE(Y47:AT47,3)/6,""),"") ->  | N47: =IFERROR(IF(COUNTA(Y47:AT47)>3,LARGE(Y47:AT47,4)/6,""),"") ->  | O47: =IF(AU47<>"",AU47,"") ->  | P47: =IFERROR(IF(VLOOKUP(C47,'Membres-2024'!$A:$F,6,FALSE)>=$H$3,VLOOKUP(C47,'Membres-2024'!$A:$F,6,FALSE),"non inscrit"),IF($C47>0,"non inscrit","")) -> 2023-02-01 | Q47: =IFERROR(IF(COUNTA(AW47:BS47)>0,LARGE(AW47:BS47,1)/6,""),"") ->  | R47: =IFERROR(IF(COUNTA(AW47:BS47)>1,LARGE(AW47:BS47,2)/6,""),"") ->  | S47: =IFERROR(IF(COUNTA(AW47:BS47)>2,LARGE(AW47:BS47,3)/6,""),"") ->  | T47: =IFERROR(IF(COUNTA(AW47:BS47)>3,LARGE(AW47:BS47,4)/6,""),"") ->  | U47: =IF(BT47<>"",BT47,"") ->  | Y47: =IF(IF(AND($J47="non inscrit",Y$6>$H$4),OR($P47<$H$5,$P47<Y$6),OR($J47<$H$5,$J47<Y$6)),IFERROR(IF(VLOOKUP($C47,ASF_ext!$C$12:$K$400,5,FALSE)=$F47,VLOOKUP($C47,ASF_ext!$C$12:$K$400,9,FALSE),""),""),"") ->  | Z47: =IF(IF(AND($J47="non inscrit",Z$6>$H$4),OR($P47<$H$5,$P47<Z$6),OR($J47<$H$5,$J47<Z$6)),IFERROR(IF(VLOOKUP($C47,LG_ext!$C$12:$K$400,5,FALSE)=$F47,VLOOKUP($C47,LG_ext!$C$12:$K$400,9,FALSE),""),""),"") -> 233 | AA47: =IF(IF(AND($J47="non inscrit",AA$6>$H$4),OR($P47<$H$5,$P47<AA$6),OR($J47<$H$5,$J47<AA$6)),IFERROR(IF(VLOOKUP($C47,Jul_ext!$C$12:$K$400,5,FALSE)=$F47,VLOOKUP($C47,Jul_ext!$C$12:$K$400,9,FALSE),""),""),"") ->  | AB47: =IF(IF(AND($J47="non inscrit",AB$6>$H$4),OR($P47<$H$5,$P47<AB$6),OR($J47<$H$5,$J47<AB$6)),IFERROR(IF(VLOOKUP($C47,CQ_ext!$C$12:$K$400,5,FALSE)=$F47,VLOOKUP($C47,CQ_ext!$C$12:$K$400,9,FALSE),""),""),"") ->  | AC47: =IF(IF(AND($J47="non inscrit",AC$6>$H$4),OR($P47<$H$5,$P47<AC$6),OR($J47<$H$5,$J47<AC$6)),IFERROR(IF(VLOOKUP($C47,NAQ_ext!$C$12:$K$400,5,FALSE)=$F47,VLOOKUP($C47,NAQ_ext!$C$12:$K$400,9,FALSE),""),""),"") ->  | AD47: =IF(IF(AND($J47="non inscrit",AD$6>$H$4),OR($P47<$H$5,$P47<AD$6),OR($J47<$H$5,$J47<AD$6)),IFERROR(IF(VLOOKUP($C47,MtL_ext!$C$12:$K$400,5,FALSE)=$F47,VLOOKUP($C47,MtL_ext!$C$12:$K$400,9,FALSE),""),""),"") ->  | AE47: =IF(IF(AND($J47="non inscrit",AE$6>$H$4),OR($P47<$H$5,$P47<AE$6),OR($J47<$H$5,$J47<AE$6)),IFERROR(IF(VLOOKUP($C47,Cant_ext!$C$12:$K$400,5,FALSE)=$F47,VLOOKUP($C47,Cant_ext!$C$12:$K$400,9,FALSE),""),""),"") ->  | AH47: =IF(IF(AND($J47="non inscrit",AH$6>$H$4),OR($P47<$H$5,$P47<AH$6),OR($J47<$H$5,$J47<AH$6)),IFERROR(IF(VLOOKUP($C47,ASF2_ext!$C$12:$K$400,5,FALSE)=$F47,VLOOKUP($C47,ASF2_ext!$C$12:$K$400,9,FALSE),""),""),"") ->  | AI47: =IF(IF(AND($J47="non inscrit",AI$6>$H$4),OR($P47<$H$5,$P47<AI$6),OR($J47<$H$5,$J47<AI$6)),IFERROR(IF(VLOOKUP($C47,Ascot_ext!$C$12:$K$400,5,FALSE)=$F47,VLOOKUP($C47,Ascot_ext!$C$12:$K$400,9,FALSE),""),""),"") ->  | AJ47: =IF(IF(AND($J47="non inscrit",AJ$6>$H$4),OR($P47<$H$5,$P47<AJ$6),OR($J47<$H$5,$J47<AJ$6)),IFERROR(IF(VLOOKUP($C47,BBA_ext!$C$12:$K$400,5,FALSE)=$F47,VLOOKUP($C47,BBA_ext!$C$12:$K$400,9,FALSE),""),""),"") ->  | AK47: =IF(IF(AND($J47="non inscrit",AK$6>$H$4),OR($P47<$H$5,$P47<AK$6),OR($J47<$H$5,$J47<AK$6)),IFERROR(IF(VLOOKUP($C47,Tuq1_ext!$C$12:$K$400,5,FALSE)=$F47,VLOOKUP($C47,Tuq1_ext!$C$12:$K$400,9,FALSE),""),""),"") ->  | AL47: =IF(IF(AND($J47="non inscrit",AL$6>$H$4),OR($P47<$H$5,$P47<AL$6),OR($J47<$H$5,$J47<AL$6)),IFERROR(IF(VLOOKUP($C47,Tuq2_ext!$C$12:$K$400,5,FALSE)=$F47,VLOOKUP($C47,Tuq2_ext!$C$12:$K$400,9,FALSE),""),""),"") ->  | AM47: =IF(IF(AND($J47="non inscrit",AM$6>$H$4),OR($P47<$H$5,$P47<AM$6),OR($J47<$H$5,$J47<AM$6)),IFERROR(IF(VLOOKUP($C47,CQ2_ext!$C$12:$K$400,5,FALSE)=$F47,VLOOKUP($C47,CQ2_ext!$C$12:$K$400,9,FALSE),""),""),"") ->  | AN47: =IF(IF(AND($J47="non inscrit",AN$6>$H$4),OR($P47<$H$5,$P47<AN$6),OR($J47<$H$5,$J47<AN$6)),IFERROR(IF(VLOOKUP($C47,MTL2_ext!$C$12:$K$400,5,FALSE)=$F47,VLOOKUP($C47,MTL2_ext!$C$12:$K$400,9,FALSE),""),""),"") ->  | AO47: =IF(IF(AND($J47="non inscrit",AO$6>$H$4),OR($P47<$H$5,$P47<AO$6),OR($J47<$H$5,$J47<AO$6)),IFERROR(IF(VLOOKUP($C47,NO_ext!$C$12:$K$400,5,FALSE)=$F47,VLOOKUP($C47,NO_ext!$C$12:$K$400,9,FALSE),""),""),"") ->  | AP47: =IF(IF(AND($J47="non inscrit",AP$6>$H$4),OR($P47<$H$5,$P47<AP$6),OR($J47<$H$5,$J47<AP$6)),IFERROR(IF(VLOOKUP($C47,VD_ext!$C$12:$K$400,5,FALSE)=$F47,VLOOKUP($C47,VD_ext!$C$12:$K$400,9,FALSE),""),""),"") ->  | AQ47: =IF(IF(AND($J47="non inscrit",AQ$6>$H$4),OR($P47<$H$5,$P47<AQ$6),OR($J47<$H$5,$J47<AQ$6)),IFERROR(IF(VLOOKUP($C47,PT_ext!$C$12:$K$400,5,FALSE)=$F47,VLOOKUP($C47,PT_ext!$C$12:$K$400,9,FALSE),""),""),"") ->  | AR47: =IF(IF(AND($J47="non inscrit",AR$6>$H$4),OR($P47<$H$5,$P47<AR$6),OR($J47<$H$5,$J47<AR$6)),IFERROR(IF(VLOOKUP($C47,Vic_ext!$C$12:$K$400,5,FALSE)=$F47,VLOOKUP($C47,Vic_ext!$C$12:$K$400,9,FALSE),""),""),"") ->  | AS47: =IF(IF(AND($J47="non inscrit",AS$6>$H$4),OR($P47<$H$5,$P47<AS$6),OR($J47<$H$5,$J47<AS$6)),IFERROR(IF(VLOOKUP($C47,Sor_ext!$C$12:$K$400,5,FALSE)=$F47,VLOOKUP($C47,Sor_ext!$C$12:$K$400,9,FALSE),""),""),"") ->  | AU47: =IF(IF(AND($J47="non inscrit",AU$6>$H$4),OR($P47<$H$5,$P47<AU$6),OR($J47<$H$5,$J47<AU$6)),IFERROR(IF(VLOOKUP($C47,PROV_ext!$C$12:$K$400,5,FALSE)=$F47,VLOOKUP($C47,PROV_ext!$C$12:$K$400,9,FALSE),""),""),"") ->  | AW47: =IF(IF(AND($J47="non inscrit",AW$6>$H$4),OR($P47<$H$5,$P47<AQ$6),OR($J47<$H$5,$J47<AQ$6)),IFERROR(IF(VLOOKUP($C47,Coat_int!$C$12:$K$400,5,FALSE)=$F47,VLOOKUP($C47,Coat_int!$C$12:$K$400,9,FALSE),""),""),"") ->  | AX47: =IF(IF(AND($J47="non inscrit",AX$6>$H$4),OR($P47<$H$5,$P47<AR$6),OR($J47<$H$5,$J47<AR$6)),IFERROR(IF(VLOOKUP($C47,LG_int!$C$12:$K$400,5,FALSE)=$F47,VLOOKUP($C47,LG_int!$C$12:$K$400,9,FALSE),""),""),"") ->  | AY47: =IF(IF(AND($J47="non inscrit",AY$6>$H$4),OR($P47<$H$5,$P47<AS$6),OR($J47<$H$5,$J47<AS$6)),IFERROR(IF(VLOOKUP($C47,Roc_int!$C$12:$K$400,5,FALSE)=$F47,VLOOKUP($C47,Roc_int!$C$12:$K$400,9,FALSE),""),""),"") ->  | AZ47: =IF(IF(AND($J47="non inscrit",AZ$6>$H$4),OR($P47<$H$5,$P47<AT$6),OR($J47<$H$5,$J47<AT$6)),IFERROR(IF(VLOOKUP($C47,Qc_int!$C$12:$K$400,5,FALSE)=$F47,VLOOKUP($C47,Qc_int!$C$12:$K$400,9,FALSE),""),""),"") ->  | BA47: =IF(IF(AND($J47="non inscrit",BA$6>$H$4),OR($P47<$H$5,$P47<AU$6),OR($J47<$H$5,$J47<AU$6)),IFERROR(IF(VLOOKUP($C47,Asc_int!$C$12:$K$400,5,FALSE)=$F47,VLOOKUP($C47,Asc_int!$C$12:$K$400,9,FALSE),""),""),"") ->  | BB47: =IF(IF(AND($J47="non inscrit",BB$6>$H$4),OR($P47<$H$5,$P47<AV$6),OR($J47<$H$5,$J47<AV$6)),IFERROR(IF(VLOOKUP($C47,CQ_int!$C$12:$K$400,5,FALSE)=$F47,VLOOKUP($C47,CQ_int!$C$12:$K$400,9,FALSE),""),""),"") ->  | BC47: =IF(IF(AND($J47="non inscrit",BC$6>$H$4),OR($P47<$H$5,$P47<AW$6),OR($J47<$H$5,$J47<AW$6)),IFERROR(IF(VLOOKUP($C47,QC2_int!$C$12:$K$400,5,FALSE)=$F47,VLOOKUP($C47,QC2_int!$C$12:$K$400,9,FALSE),""),""),"") ->  | BD47: =IF(IF(AND($J47="non inscrit",BD$6>$H$4),OR($P47<$H$5,$P47<AX$6),OR($J47<$H$5,$J47<AX$6)),IFERROR(IF(VLOOKUP($C47,Ach_int!$C$12:$K$400,5,FALSE)=$F47,VLOOKUP($C47,Ach_int!$C$12:$K$400,9,FALSE),""),""),"") ->  | BF47: =IF(IF(AND($J47="non inscrit",BF$6>$H$4),OR($P47<$H$5,$P47<AZ$6),OR($J47<$H$5,$J47<AZ$6)),IFERROR(IF(VLOOKUP($C47,Buck_int!$C$12:$K$400,5,FALSE)=$F47,VLOOKUP($C47,Buck_int!$C$12:$K$400,9,FALSE),""),""),"") ->  | BG47: =IF(IF(AND($J47="non inscrit",BG$6>$H$4),OR($P47<$H$5,$P47<BA$6),OR($J47<$H$5,$J47<BA$6)),IFERROR(IF(VLOOKUP($C47,CQC_int!$C$12:$K$400,5,FALSE)=$F47,VLOOKUP($C47,CQC_int!$C$12:$K$400,9,FALSE),""),""),"") ->  | BH47: =IF(IF(AND($J47="non inscrit",BH$6>$H$4),OR($P47<$H$5,$P47<BB$6),OR($J47<$H$5,$J47<BB$6)),IFERROR(IF(VLOOKUP($C47,LG3_int!$C$12:$K$400,5,FALSE)=$F47,VLOOKUP($C47,LG3_int!$C$12:$K$400,9,FALSE),""),""),"") ->  | BI47: =IF(IF(AND($J47="non inscrit",BI$6>$H$4),OR($P47<$H$5,$P47<BC$6),OR($J47<$H$5,$J47<BC$6)),IFERROR(IF(VLOOKUP($C47,LS_int!$C$12:$K$400,5,FALSE)=$F47,VLOOKUP($C47,LS_int!$C$12:$K$400,9,FALSE),""),""),"") ->  | BT47: =IF(IF(AND($J47="non inscrit",BT$6>$H$4),OR($P47<$H$5,$P47<BN$6),OR($J47<$H$5,$J47<BN$6)),IFERROR(IF(VLOOKUP($C47,FI!$C$12:$K$400,5,FALSE)=$F47,VLOOKUP($C47,FI!$C$12:$K$400,9,FALSE),""),""),"") -> 
A48: =A47 -> 5 | B48: =B47+1 -> 5 | C48: 6536 | D48: =IF($C48="","",IF($N$1>$H$4,IFERROR(VLOOKUP($C48,'Membres-2024'!$A:$G,2,FALSE),""),IFERROR(VLOOKUP($C48,'Membres-2023'!$A:$G,2,FALSE),""))) -> Gervais | E48: =IF($C48="","",IF($N$1>$H$4,IFERROR(VLOOKUP($C48,'Membres-2024'!$A:$G,3,FALSE),""),IFERROR(VLOOKUP($C48,'Membres-2023'!$A:$G,3,FALSE),""))) -> Christophe | F48: =IF($C48="","",IF($N$1>$H$4,IFERROR(VLOOKUP($C48,'Membres-2024'!$A:$G,7,FALSE),""),IFERROR(VLOOKUP($C48,'Membres-2023'!$A:$G,7,FALSE),""))) -> 5 | G48: =IF($C48="","",IF($N$1>$H$4,IFERROR(VLOOKUP($C48,'Membres-2024'!$A:$G,5,FALSE),""),IFERROR(VLOOKUP($C48,'Membres-2023'!$A:$G,5,FALSE),""))) -> Val d'Or (Les archers de) | H48: =COUNTIF($Y48:$BT48,">=0") -> 1 | I48: =SUM(K48:O48,Q48:U48) -> 37.33333333 | J48: =IFERROR(IF(VLOOKUP(C48,'Membres-2023'!$A:$F,6,FALSE)>=$H$3,VLOOKUP(C48,'Membres-2023'!$A:$F,6,FALSE),"non inscrit"),IF($C48>0,"non inscrit","")) -> 2023-02-23 | K48: =IFERROR(IF(COUNTA(Y48:AT48)>0,LARGE(Y48:AT48,1)/6,""),"") -> 37.33333333 | L48: =IFERROR(IF(COUNTA(Y48:AT48)>1,LARGE(Y48:AT48,2)/6,""),"") ->  | M48: =IFERROR(IF(COUNTA(Y48:AT48)>2,LARGE(Y48:AT48,3)/6,""),"") ->  | N48: =IFERROR(IF(COUNTA(Y48:AT48)>3,LARGE(Y48:AT48,4)/6,""),"") ->  | O48: =IF(AU48<>"",AU48,"") ->  | P48: =IFERROR(IF(VLOOKUP(C48,'Membres-2024'!$A:$F,6,FALSE)>=$H$3,VLOOKUP(C48,'Membres-2024'!$A:$F,6,FALSE),"non inscrit"),IF($C48>0,"non inscrit","")) -> 2024-03-20 | Q48: =IFERROR(IF(COUNTA(AW48:BS48)>0,LARGE(AW48:BS48,1)/6,""),"") ->  | R48: =IFERROR(IF(COUNTA(AW48:BS48)>1,LARGE(AW48:BS48,2)/6,""),"") ->  | S48: =IFERROR(IF(COUNTA(AW48:BS48)>2,LARGE(AW48:BS48,3)/6,""),"") ->  | T48: =IFERROR(IF(COUNTA(AW48:BS48)>3,LARGE(AW48:BS48,4)/6,""),"") ->  | U48: =IF(BT48<>"",BT48,"") ->  | Y48: =IF(IF(AND($J48="non inscrit",Y$6>$H$4),OR($P48<$H$5,$P48<Y$6),OR($J48<$H$5,$J48<Y$6)),IFERROR(IF(VLOOKUP($C48,ASF_ext!$C$12:$K$400,5,FALSE)=$F48,VLOOKUP($C48,ASF_ext!$C$12:$K$400,9,FALSE),""),""),"") ->  | Z48: =IF(IF(AND($J48="non inscrit",Z$6>$H$4),OR($P48<$H$5,$P48<Z$6),OR($J48<$H$5,$J48<Z$6)),IFERROR(IF(VLOOKUP($C48,LG_ext!$C$12:$K$400,5,FALSE)=$F48,VLOOKUP($C48,LG_ext!$C$12:$K$400,9,FALSE),""),""),"") ->  | AA48: =IF(IF(AND($J48="non inscrit",AA$6>$H$4),OR($P48<$H$5,$P48<AA$6),OR($J48<$H$5,$J48<AA$6)),IFERROR(IF(VLOOKUP($C48,Jul_ext!$C$12:$K$400,5,FALSE)=$F48,VLOOKUP($C48,Jul_ext!$C$12:$K$400,9,FALSE),""),""),"") ->  | AB48: =IF(IF(AND($J48="non inscrit",AB$6>$H$4),OR($P48<$H$5,$P48<AB$6),OR($J48<$H$5,$J48<AB$6)),IFERROR(IF(VLOOKUP($C48,CQ_ext!$C$12:$K$400,5,FALSE)=$F48,VLOOKUP($C48,CQ_ext!$C$12:$K$400,9,FALSE),""),""),"") ->  | AC48: =IF(IF(AND($J48="non inscrit",AC$6>$H$4),OR($P48<$H$5,$P48<AC$6),OR($J48<$H$5,$J48<AC$6)),IFERROR(IF(VLOOKUP($C48,NAQ_ext!$C$12:$K$400,5,FALSE)=$F48,VLOOKUP($C48,NAQ_ext!$C$12:$K$400,9,FALSE),""),""),"") ->  | AD48: =IF(IF(AND($J48="non inscrit",AD$6>$H$4),OR($P48<$H$5,$P48<AD$6),OR($J48<$H$5,$J48<AD$6)),IFERROR(IF(VLOOKUP($C48,MtL_ext!$C$12:$K$400,5,FALSE)=$F48,VLOOKUP($C48,MtL_ext!$C$12:$K$400,9,FALSE),""),""),"") ->  | AE48: =IF(IF(AND($J48="non inscrit",AE$6>$H$4),OR($P48<$H$5,$P48<AE$6),OR($J48<$H$5,$J48<AE$6)),IFERROR(IF(VLOOKUP($C48,Cant_ext!$C$12:$K$400,5,FALSE)=$F48,VLOOKUP($C48,Cant_ext!$C$12:$K$400,9,FALSE),""),""),"") ->  | AH48: =IF(IF(AND($J48="non inscrit",AH$6>$H$4),OR($P48<$H$5,$P48<AH$6),OR($J48<$H$5,$J48<AH$6)),IFERROR(IF(VLOOKUP($C48,ASF2_ext!$C$12:$K$400,5,FALSE)=$F48,VLOOKUP($C48,ASF2_ext!$C$12:$K$400,9,FALSE),""),""),"") ->  | AI48: =IF(IF(AND($J48="non inscrit",AI$6>$H$4),OR($P48<$H$5,$P48<AI$6),OR($J48<$H$5,$J48<AI$6)),IFERROR(IF(VLOOKUP($C48,Ascot_ext!$C$12:$K$400,5,FALSE)=$F48,VLOOKUP($C48,Ascot_ext!$C$12:$K$400,9,FALSE),""),""),"") ->  | AJ48: =IF(IF(AND($J48="non inscrit",AJ$6>$H$4),OR($P48<$H$5,$P48<AJ$6),OR($J48<$H$5,$J48<AJ$6)),IFERROR(IF(VLOOKUP($C48,BBA_ext!$C$12:$K$400,5,FALSE)=$F48,VLOOKUP($C48,BBA_ext!$C$12:$K$400,9,FALSE),""),""),"") ->  | AK48: =IF(IF(AND($J48="non inscrit",AK$6>$H$4),OR($P48<$H$5,$P48<AK$6),OR($J48<$H$5,$J48<AK$6)),IFERROR(IF(VLOOKUP($C48,Tuq1_ext!$C$12:$K$400,5,FALSE)=$F48,VLOOKUP($C48,Tuq1_ext!$C$12:$K$400,9,FALSE),""),""),"") ->  | AL48: =IF(IF(AND($J48="non inscrit",AL$6>$H$4),OR($P48<$H$5,$P48<AL$6),OR($J48<$H$5,$J48<AL$6)),IFERROR(IF(VLOOKUP($C48,Tuq2_ext!$C$12:$K$400,5,FALSE)=$F48,VLOOKUP($C48,Tuq2_ext!$C$12:$K$400,9,FALSE),""),""),"") ->  | AM48: =IF(IF(AND($J48="non inscrit",AM$6>$H$4),OR($P48<$H$5,$P48<AM$6),OR($J48<$H$5,$J48<AM$6)),IFERROR(IF(VLOOKUP($C48,CQ2_ext!$C$12:$K$400,5,FALSE)=$F48,VLOOKUP($C48,CQ2_ext!$C$12:$K$400,9,FALSE),""),""),"") ->  | AN48: =IF(IF(AND($J48="non inscrit",AN$6>$H$4),OR($P48<$H$5,$P48<AN$6),OR($J48<$H$5,$J48<AN$6)),IFERROR(IF(VLOOKUP($C48,MTL2_ext!$C$12:$K$400,5,FALSE)=$F48,VLOOKUP($C48,MTL2_ext!$C$12:$K$400,9,FALSE),""),""),"") ->  | AO48: =IF(IF(AND($J48="non inscrit",AO$6>$H$4),OR($P48<$H$5,$P48<AO$6),OR($J48<$H$5,$J48<AO$6)),IFERROR(IF(VLOOKUP($C48,NO_ext!$C$12:$K$400,5,FALSE)=$F48,VLOOKUP($C48,NO_ext!$C$12:$K$400,9,FALSE),""),""),"") ->  | AP48: =IF(IF(AND($J48="non inscrit",AP$6>$H$4),OR($P48<$H$5,$P48<AP$6),OR($J48<$H$5,$J48<AP$6)),IFERROR(IF(VLOOKUP($C48,VD_ext!$C$12:$K$400,5,FALSE)=$F48,VLOOKUP($C48,VD_ext!$C$12:$K$400,9,FALSE),""),""),"") -> 224 | AQ48: =IF(IF(AND($J48="non inscrit",AQ$6>$H$4),OR($P48<$H$5,$P48<AQ$6),OR($J48<$H$5,$J48<AQ$6)),IFERROR(IF(VLOOKUP($C48,PT_ext!$C$12:$K$400,5,FALSE)=$F48,VLOOKUP($C48,PT_ext!$C$12:$K$400,9,FALSE),""),""),"") ->  | AR48: =IF(IF(AND($J48="non inscrit",AR$6>$H$4),OR($P48<$H$5,$P48<AR$6),OR($J48<$H$5,$J48<AR$6)),IFERROR(IF(VLOOKUP($C48,Vic_ext!$C$12:$K$400,5,FALSE)=$F48,VLOOKUP($C48,Vic_ext!$C$12:$K$400,9,FALSE),""),""),"") ->  | AS48: =IF(IF(AND($J48="non inscrit",AS$6>$H$4),OR($P48<$H$5,$P48<AS$6),OR($J48<$H$5,$J48<AS$6)),IFERROR(IF(VLOOKUP($C48,Sor_ext!$C$12:$K$400,5,FALSE)=$F48,VLOOKUP($C48,Sor_ext!$C$12:$K$400,9,FALSE),""),""),"") ->  | AU48: =IF(IF(AND($J48="non inscrit",AU$6>$H$4),OR($P48<$H$5,$P48<AU$6),OR($J48<$H$5,$J48<AU$6)),IFERROR(IF(VLOOKUP($C48,PROV_ext!$C$12:$K$400,5,FALSE)=$F48,VLOOKUP($C48,PROV_ext!$C$12:$K$400,9,FALSE),""),""),"") ->  | AW48: =IF(IF(AND($J48="non inscrit",AW$6>$H$4),OR($P48<$H$5,$P48<AQ$6),OR($J48<$H$5,$J48<AQ$6)),IFERROR(IF(VLOOKUP($C48,Coat_int!$C$12:$K$400,5,FALSE)=$F48,VLOOKUP($C48,Coat_int!$C$12:$K$400,9,FALSE),""),""),"") ->  | AX48: =IF(IF(AND($J48="non inscrit",AX$6>$H$4),OR($P48<$H$5,$P48<AR$6),OR($J48<$H$5,$J48<AR$6)),IFERROR(IF(VLOOKUP($C48,LG_int!$C$12:$K$400,5,FALSE)=$F48,VLOOKUP($C48,LG_int!$C$12:$K$400,9,FALSE),""),""),"") ->  | AY48: =IF(IF(AND($J48="non inscrit",AY$6>$H$4),OR($P48<$H$5,$P48<AS$6),OR($J48<$H$5,$J48<AS$6)),IFERROR(IF(VLOOKUP($C48,Roc_int!$C$12:$K$400,5,FALSE)=$F48,VLOOKUP($C48,Roc_int!$C$12:$K$400,9,FALSE),""),""),"") ->  | AZ48: =IF(IF(AND($J48="non inscrit",AZ$6>$H$4),OR($P48<$H$5,$P48<AT$6),OR($J48<$H$5,$J48<AT$6)),IFERROR(IF(VLOOKUP($C48,Qc_int!$C$12:$K$400,5,FALSE)=$F48,VLOOKUP($C48,Qc_int!$C$12:$K$400,9,FALSE),""),""),"") ->  | BA48: =IF(IF(AND($J48="non inscrit",BA$6>$H$4),OR($P48<$H$5,$P48<AU$6),OR($J48<$H$5,$J48<AU$6)),IFERROR(IF(VLOOKUP($C48,Asc_int!$C$12:$K$400,5,FALSE)=$F48,VLOOKUP($C48,Asc_int!$C$12:$K$400,9,FALSE),""),""),"") ->  | BB48: =IF(IF(AND($J48="non inscrit",BB$6>$H$4),OR($P48<$H$5,$P48<AV$6),OR($J48<$H$5,$J48<AV$6)),IFERROR(IF(VLOOKUP($C48,CQ_int!$C$12:$K$400,5,FALSE)=$F48,VLOOKUP($C48,CQ_int!$C$12:$K$400,9,FALSE),""),""),"") ->  | BC48: =IF(IF(AND($J48="non inscrit",BC$6>$H$4),OR($P48<$H$5,$P48<AW$6),OR($J48<$H$5,$J48<AW$6)),IFERROR(IF(VLOOKUP($C48,QC2_int!$C$12:$K$400,5,FALSE)=$F48,VLOOKUP($C48,QC2_int!$C$12:$K$400,9,FALSE),""),""),"") ->  | BD48: =IF(IF(AND($J48="non inscrit",BD$6>$H$4),OR($P48<$H$5,$P48<AX$6),OR($J48<$H$5,$J48<AX$6)),IFERROR(IF(VLOOKUP($C48,Ach_int!$C$12:$K$400,5,FALSE)=$F48,VLOOKUP($C48,Ach_int!$C$12:$K$400,9,FALSE),""),""),"") ->  | BF48: =IF(IF(AND($J48="non inscrit",BF$6>$H$4),OR($P48<$H$5,$P48<AZ$6),OR($J48<$H$5,$J48<AZ$6)),IFERROR(IF(VLOOKUP($C48,Buck_int!$C$12:$K$400,5,FALSE)=$F48,VLOOKUP($C48,Buck_int!$C$12:$K$400,9,FALSE),""),""),"") ->  | BG48: =IF(IF(AND($J48="non inscrit",BG$6>$H$4),OR($P48<$H$5,$P48<BA$6),OR($J48<$H$5,$J48<BA$6)),IFERROR(IF(VLOOKUP($C48,CQC_int!$C$12:$K$400,5,FALSE)=$F48,VLOOKUP($C48,CQC_int!$C$12:$K$400,9,FALSE),""),""),"") ->  | BH48: =IF(IF(AND($J48="non inscrit",BH$6>$H$4),OR($P48<$H$5,$P48<BB$6),OR($J48<$H$5,$J48<BB$6)),IFERROR(IF(VLOOKUP($C48,LG3_int!$C$12:$K$400,5,FALSE)=$F48,VLOOKUP($C48,LG3_int!$C$12:$K$400,9,FALSE),""),""),"") ->  | BI48: =IF(IF(AND($J48="non inscrit",BI$6>$H$4),OR($P48<$H$5,$P48<BC$6),OR($J48<$H$5,$J48<BC$6)),IFERROR(IF(VLOOKUP($C48,LS_int!$C$12:$K$400,5,FALSE)=$F48,VLOOKUP($C48,LS_int!$C$12:$K$400,9,FALSE),""),""),"") ->  | BT48: =IF(IF(AND($J48="non inscrit",BT$6>$H$4),OR($P48<$H$5,$P48<BN$6),OR($J48<$H$5,$J48<BN$6)),IFERROR(IF(VLOOKUP($C48,FI!$C$12:$K$400,5,FALSE)=$F48,VLOOKUP($C48,FI!$C$12:$K$400,9,FALSE),""),""),"") -> 
A49: =A48 -> 5 | B49: =B48+1 -> 6 | C49: 4774 | D49: =IF($C49="","",IF($N$1>$H$4,IFERROR(VLOOKUP($C49,'Membres-2024'!$A:$G,2,FALSE),""),IFERROR(VLOOKUP($C49,'Membres-2023'!$A:$G,2,FALSE),""))) -> Plouffe | E49: =IF($C49="","",IF($N$1>$H$4,IFERROR(VLOOKUP($C49,'Membres-2024'!$A:$G,3,FALSE),""),IFERROR(VLOOKUP($C49,'Membres-2023'!$A:$G,3,FALSE),""))) -> Julien | F49: =IF($C49="","",IF($N$1>$H$4,IFERROR(VLOOKUP($C49,'Membres-2024'!$A:$G,7,FALSE),""),IFERROR(VLOOKUP($C49,'Membres-2023'!$A:$G,7,FALSE),""))) -> 5 | G49: =IF($C49="","",IF($N$1>$H$4,IFERROR(VLOOKUP($C49,'Membres-2024'!$A:$G,5,FALSE),""),IFERROR(VLOOKUP($C49,'Membres-2023'!$A:$G,5,FALSE),""))) -> Ascot Corner (Archers d') | H49: =COUNTIF($Y49:$BT49,">=0") -> 1 | I49: =SUM(K49:O49,Q49:U49) -> 35.66666667 | J49: =IFERROR(IF(VLOOKUP(C49,'Membres-2023'!$A:$F,6,FALSE)>=$H$3,VLOOKUP(C49,'Membres-2023'!$A:$F,6,FALSE),"non inscrit"),IF($C49>0,"non inscrit","")) -> 2023-01-23 | K49: =IFERROR(IF(COUNTA(Y49:AT49)>0,LARGE(Y49:AT49,1)/6,""),"") -> 35.66666667 | L49: =IFERROR(IF(COUNTA(Y49:AT49)>1,LARGE(Y49:AT49,2)/6,""),"") ->  | M49: =IFERROR(IF(COUNTA(Y49:AT49)>2,LARGE(Y49:AT49,3)/6,""),"") ->  | N49: =IFERROR(IF(COUNTA(Y49:AT49)>3,LARGE(Y49:AT49,4)/6,""),"") ->  | O49: =IF(AU49<>"",AU49,"") ->  | P49: =IFERROR(IF(VLOOKUP(C49,'Membres-2024'!$A:$F,6,FALSE)>=$H$3,VLOOKUP(C49,'Membres-2024'!$A:$F,6,FALSE),"non inscrit"),IF($C49>0,"non inscrit","")) -> 2023-01-23 | Q49: =IFERROR(IF(COUNTA(AW49:BS49)>0,LARGE(AW49:BS49,1)/6,""),"") ->  | R49: =IFERROR(IF(COUNTA(AW49:BS49)>1,LARGE(AW49:BS49,2)/6,""),"") ->  | S49: =IFERROR(IF(COUNTA(AW49:BS49)>2,LARGE(AW49:BS49,3)/6,""),"") ->  | T49: =IFERROR(IF(COUNTA(AW49:BS49)>3,LARGE(AW49:BS49,4)/6,""),"") ->  | U49: =IF(BT49<>"",BT49,"") ->  | Y49: =IF(IF(AND($J49="non inscrit",Y$6>$H$4),OR($P49<$H$5,$P49<Y$6),OR($J49<$H$5,$J49<Y$6)),IFERROR(IF(VLOOKUP($C49,ASF_ext!$C$12:$K$400,5,FALSE)=$F49,VLOOKUP($C49,ASF_ext!$C$12:$K$400,9,FALSE),""),""),"") ->  | Z49: =IF(IF(AND($J49="non inscrit",Z$6>$H$4),OR($P49<$H$5,$P49<Z$6),OR($J49<$H$5,$J49<Z$6)),IFERROR(IF(VLOOKUP($C49,LG_ext!$C$12:$K$400,5,FALSE)=$F49,VLOOKUP($C49,LG_ext!$C$12:$K$400,9,FALSE),""),""),"") ->  | AA49: =IF(IF(AND($J49="non inscrit",AA$6>$H$4),OR($P49<$H$5,$P49<AA$6),OR($J49<$H$5,$J49<AA$6)),IFERROR(IF(VLOOKUP($C49,Jul_ext!$C$12:$K$400,5,FALSE)=$F49,VLOOKUP($C49,Jul_ext!$C$12:$K$400,9,FALSE),""),""),"") ->  | AB49: =IF(IF(AND($J49="non inscrit",AB$6>$H$4),OR($P49<$H$5,$P49<AB$6),OR($J49<$H$5,$J49<AB$6)),IFERROR(IF(VLOOKUP($C49,CQ_ext!$C$12:$K$400,5,FALSE)=$F49,VLOOKUP($C49,CQ_ext!$C$12:$K$400,9,FALSE),""),""),"") -> 214 | AC49: =IF(IF(AND($J49="non inscrit",AC$6>$H$4),OR($P49<$H$5,$P49<AC$6),OR($J49<$H$5,$J49<AC$6)),IFERROR(IF(VLOOKUP($C49,NAQ_ext!$C$12:$K$400,5,FALSE)=$F49,VLOOKUP($C49,NAQ_ext!$C$12:$K$400,9,FALSE),""),""),"") ->  | AD49: =IF(IF(AND($J49="non inscrit",AD$6>$H$4),OR($P49<$H$5,$P49<AD$6),OR($J49<$H$5,$J49<AD$6)),IFERROR(IF(VLOOKUP($C49,MtL_ext!$C$12:$K$400,5,FALSE)=$F49,VLOOKUP($C49,MtL_ext!$C$12:$K$400,9,FALSE),""),""),"") ->  | AE49: =IF(IF(AND($J49="non inscrit",AE$6>$H$4),OR($P49<$H$5,$P49<AE$6),OR($J49<$H$5,$J49<AE$6)),IFERROR(IF(VLOOKUP($C49,Cant_ext!$C$12:$K$400,5,FALSE)=$F49,VLOOKUP($C49,Cant_ext!$C$12:$K$400,9,FALSE),""),""),"") ->  | AH49: =IF(IF(AND($J49="non inscrit",AH$6>$H$4),OR($P49<$H$5,$P49<AH$6),OR($J49<$H$5,$J49<AH$6)),IFERROR(IF(VLOOKUP($C49,ASF2_ext!$C$12:$K$400,5,FALSE)=$F49,VLOOKUP($C49,ASF2_ext!$C$12:$K$400,9,FALSE),""),""),"") ->  | AI49: =IF(IF(AND($J49="non inscrit",AI$6>$H$4),OR($P49<$H$5,$P49<AI$6),OR($J49<$H$5,$J49<AI$6)),IFERROR(IF(VLOOKUP($C49,Ascot_ext!$C$12:$K$400,5,FALSE)=$F49,VLOOKUP($C49,Ascot_ext!$C$12:$K$400,9,FALSE),""),""),"") ->  | AJ49: =IF(IF(AND($J49="non inscrit",AJ$6>$H$4),OR($P49<$H$5,$P49<AJ$6),OR($J49<$H$5,$J49<AJ$6)),IFERROR(IF(VLOOKUP($C49,BBA_ext!$C$12:$K$400,5,FALSE)=$F49,VLOOKUP($C49,BBA_ext!$C$12:$K$400,9,FALSE),""),""),"") ->  | AK49: =IF(IF(AND($J49="non inscrit",AK$6>$H$4),OR($P49<$H$5,$P49<AK$6),OR($J49<$H$5,$J49<AK$6)),IFERROR(IF(VLOOKUP($C49,Tuq1_ext!$C$12:$K$400,5,FALSE)=$F49,VLOOKUP($C49,Tuq1_ext!$C$12:$K$400,9,FALSE),""),""),"") ->  | AL49: =IF(IF(AND($J49="non inscrit",AL$6>$H$4),OR($P49<$H$5,$P49<AL$6),OR($J49<$H$5,$J49<AL$6)),IFERROR(IF(VLOOKUP($C49,Tuq2_ext!$C$12:$K$400,5,FALSE)=$F49,VLOOKUP($C49,Tuq2_ext!$C$12:$K$400,9,FALSE),""),""),"") ->  | AM49: =IF(IF(AND($J49="non inscrit",AM$6>$H$4),OR($P49<$H$5,$P49<AM$6),OR($J49<$H$5,$J49<AM$6)),IFERROR(IF(VLOOKUP($C49,CQ2_ext!$C$12:$K$400,5,FALSE)=$F49,VLOOKUP($C49,CQ2_ext!$C$12:$K$400,9,FALSE),""),""),"") ->  | AN49: =IF(IF(AND($J49="non inscrit",AN$6>$H$4),OR($P49<$H$5,$P49<AN$6),OR($J49<$H$5,$J49<AN$6)),IFERROR(IF(VLOOKUP($C49,MTL2_ext!$C$12:$K$400,5,FALSE)=$F49,VLOOKUP($C49,MTL2_ext!$C$12:$K$400,9,FALSE),""),""),"") ->  | AO49: =IF(IF(AND($J49="non inscrit",AO$6>$H$4),OR($P49<$H$5,$P49<AO$6),OR($J49<$H$5,$J49<AO$6)),IFERROR(IF(VLOOKUP($C49,NO_ext!$C$12:$K$400,5,FALSE)=$F49,VLOOKUP($C49,NO_ext!$C$12:$K$400,9,FALSE),""),""),"") ->  | AP49: =IF(IF(AND($J49="non inscrit",AP$6>$H$4),OR($P49<$H$5,$P49<AP$6),OR($J49<$H$5,$J49<AP$6)),IFERROR(IF(VLOOKUP($C49,VD_ext!$C$12:$K$400,5,FALSE)=$F49,VLOOKUP($C49,VD_ext!$C$12:$K$400,9,FALSE),""),""),"") ->  | AQ49: =IF(IF(AND($J49="non inscrit",AQ$6>$H$4),OR($P49<$H$5,$P49<AQ$6),OR($J49<$H$5,$J49<AQ$6)),IFERROR(IF(VLOOKUP($C49,PT_ext!$C$12:$K$400,5,FALSE)=$F49,VLOOKUP($C49,PT_ext!$C$12:$K$400,9,FALSE),""),""),"") ->  | AR49: =IF(IF(AND($J49="non inscrit",AR$6>$H$4),OR($P49<$H$5,$P49<AR$6),OR($J49<$H$5,$J49<AR$6)),IFERROR(IF(VLOOKUP($C49,Vic_ext!$C$12:$K$400,5,FALSE)=$F49,VLOOKUP($C49,Vic_ext!$C$12:$K$400,9,FALSE),""),""),"") ->  | AS49: =IF(IF(AND($J49="non inscrit",AS$6>$H$4),OR($P49<$H$5,$P49<AS$6),OR($J49<$H$5,$J49<AS$6)),IFERROR(IF(VLOOKUP($C49,Sor_ext!$C$12:$K$400,5,FALSE)=$F49,VLOOKUP($C49,Sor_ext!$C$12:$K$400,9,FALSE),""),""),"") ->  | AU49: =IF(IF(AND($J49="non inscrit",AU$6>$H$4),OR($P49<$H$5,$P49<AU$6),OR($J49<$H$5,$J49<AU$6)),IFERROR(IF(VLOOKUP($C49,PROV_ext!$C$12:$K$400,5,FALSE)=$F49,VLOOKUP($C49,PROV_ext!$C$12:$K$400,9,FALSE),""),""),"") ->  | AW49: =IF(IF(AND($J49="non inscrit",AW$6>$H$4),OR($P49<$H$5,$P49<AQ$6),OR($J49<$H$5,$J49<AQ$6)),IFERROR(IF(VLOOKUP($C49,Coat_int!$C$12:$K$400,5,FALSE)=$F49,VLOOKUP($C49,Coat_int!$C$12:$K$400,9,FALSE),""),""),"") ->  | AX49: =IF(IF(AND($J49="non inscrit",AX$6>$H$4),OR($P49<$H$5,$P49<AR$6),OR($J49<$H$5,$J49<AR$6)),IFERROR(IF(VLOOKUP($C49,LG_int!$C$12:$K$400,5,FALSE)=$F49,VLOOKUP($C49,LG_int!$C$12:$K$400,9,FALSE),""),""),"") ->  | AY49: =IF(IF(AND($J49="non inscrit",AY$6>$H$4),OR($P49<$H$5,$P49<AS$6),OR($J49<$H$5,$J49<AS$6)),IFERROR(IF(VLOOKUP($C49,Roc_int!$C$12:$K$400,5,FALSE)=$F49,VLOOKUP($C49,Roc_int!$C$12:$K$400,9,FALSE),""),""),"") ->  | AZ49: =IF(IF(AND($J49="non inscrit",AZ$6>$H$4),OR($P49<$H$5,$P49<AT$6),OR($J49<$H$5,$J49<AT$6)),IFERROR(IF(VLOOKUP($C49,Qc_int!$C$12:$K$400,5,FALSE)=$F49,VLOOKUP($C49,Qc_int!$C$12:$K$400,9,FALSE),""),""),"") ->  | BA49: =IF(IF(AND($J49="non inscrit",BA$6>$H$4),OR($P49<$H$5,$P49<AU$6),OR($J49<$H$5,$J49<AU$6)),IFERROR(IF(VLOOKUP($C49,Asc_int!$C$12:$K$400,5,FALSE)=$F49,VLOOKUP($C49,Asc_int!$C$12:$K$400,9,FALSE),""),""),"") ->  | BB49: =IF(IF(AND($J49="non inscrit",BB$6>$H$4),OR($P49<$H$5,$P49<AV$6),OR($J49<$H$5,$J49<AV$6)),IFERROR(IF(VLOOKUP($C49,CQ_int!$C$12:$K$400,5,FALSE)=$F49,VLOOKUP($C49,CQ_int!$C$12:$K$400,9,FALSE),""),""),"") ->  | BC49: =IF(IF(AND($J49="non inscrit",BC$6>$H$4),OR($P49<$H$5,$P49<AW$6),OR($J49<$H$5,$J49<AW$6)),IFERROR(IF(VLOOKUP($C49,QC2_int!$C$12:$K$400,5,FALSE)=$F49,VLOOKUP($C49,QC2_int!$C$12:$K$400,9,FALSE),""),""),"") ->  | BD49: =IF(IF(AND($J49="non inscrit",BD$6>$H$4),OR($P49<$H$5,$P49<AX$6),OR($J49<$H$5,$J49<AX$6)),IFERROR(IF(VLOOKUP($C49,Ach_int!$C$12:$K$400,5,FALSE)=$F49,VLOOKUP($C49,Ach_int!$C$12:$K$400,9,FALSE),""),""),"") ->  | BF49: =IF(IF(AND($J49="non inscrit",BF$6>$H$4),OR($P49<$H$5,$P49<AZ$6),OR($J49<$H$5,$J49<AZ$6)),IFERROR(IF(VLOOKUP($C49,Buck_int!$C$12:$K$400,5,FALSE)=$F49,VLOOKUP($C49,Buck_int!$C$12:$K$400,9,FALSE),""),""),"") ->  | BG49: =IF(IF(AND($J49="non inscrit",BG$6>$H$4),OR($P49<$H$5,$P49<BA$6),OR($J49<$H$5,$J49<BA$6)),IFERROR(IF(VLOOKUP($C49,CQC_int!$C$12:$K$400,5,FALSE)=$F49,VLOOKUP($C49,CQC_int!$C$12:$K$400,9,FALSE),""),""),"") ->  | BH49: =IF(IF(AND($J49="non inscrit",BH$6>$H$4),OR($P49<$H$5,$P49<BB$6),OR($J49<$H$5,$J49<BB$6)),IFERROR(IF(VLOOKUP($C49,LG3_int!$C$12:$K$400,5,FALSE)=$F49,VLOOKUP($C49,LG3_int!$C$12:$K$400,9,FALSE),""),""),"") ->  | BI49: =IF(IF(AND($J49="non inscrit",BI$6>$H$4),OR($P49<$H$5,$P49<BC$6),OR($J49<$H$5,$J49<BC$6)),IFERROR(IF(VLOOKUP($C49,LS_int!$C$12:$K$400,5,FALSE)=$F49,VLOOKUP($C49,LS_int!$C$12:$K$400,9,FALSE),""),""),"") ->  | BT49: =IF(IF(AND($J49="non inscrit",BT$6>$H$4),OR($P49<$H$5,$P49<BN$6),OR($J49<$H$5,$J49<BN$6)),IFERROR(IF(VLOOKUP($C49,FI!$C$12:$K$400,5,FALSE)=$F49,VLOOKUP($C49,FI!$C$12:$K$400,9,FALSE),""),""),"") -> 
A50: =A49 -> 5 | B50: =B49+1 -> 7 | C50: 2834 | D50: =IF($C50="","",IF($N$1>$H$4,IFERROR(VLOOKUP($C50,'Membres-2024'!$A:$G,2,FALSE),""),IFERROR(VLOOKUP($C50,'Membres-2023'!$A:$G,2,FALSE),""))) -> Boudrias | E50: =IF($C50="","",IF($N$1>$H$4,IFERROR(VLOOKUP($C50,'Membres-2024'!$A:$G,3,FALSE),""),IFERROR(VLOOKUP($C50,'Membres-2023'!$A:$G,3,FALSE),""))) -> EVAN | F50: =IF($C50="","",IF($N$1>$H$4,IFERROR(VLOOKUP($C50,'Membres-2024'!$A:$G,7,FALSE),""),IFERROR(VLOOKUP($C50,'Membres-2023'!$A:$G,7,FALSE),""))) -> 5 | G50: =IF($C50="","",IF($N$1>$H$4,IFERROR(VLOOKUP($C50,'Membres-2024'!$A:$G,5,FALSE),""),IFERROR(VLOOKUP($C50,'Membres-2023'!$A:$G,5,FALSE),""))) -> Mont-Laurier (Lynx) | H50: =COUNTIF($Y50:$BT50,">=0") -> 1 | I50: =SUM(K50:O50,Q50:U50) -> 32 | J50: =IFERROR(IF(VLOOKUP(C50,'Membres-2023'!$A:$F,6,FALSE)>=$H$3,VLOOKUP(C50,'Membres-2023'!$A:$F,6,FALSE),"non inscrit"),IF($C50>0,"non inscrit","")) -> 2023-01-23 | K50: =IFERROR(IF(COUNTA(Y50:AT50)>0,LARGE(Y50:AT50,1)/6,""),"") -> 32 | L50: =IFERROR(IF(COUNTA(Y50:AT50)>1,LARGE(Y50:AT50,2)/6,""),"") ->  | M50: =IFERROR(IF(COUNTA(Y50:AT50)>2,LARGE(Y50:AT50,3)/6,""),"") ->  | N50: =IFERROR(IF(COUNTA(Y50:AT50)>3,LARGE(Y50:AT50,4)/6,""),"") ->  | O50: =IF(AU50<>"",AU50,"") ->  | P50: =IFERROR(IF(VLOOKUP(C50,'Membres-2024'!$A:$F,6,FALSE)>=$H$3,VLOOKUP(C50,'Membres-2024'!$A:$F,6,FALSE),"non inscrit"),IF($C50>0,"non inscrit","")) -> 2024-01-08 | Q50: =IFERROR(IF(COUNTA(AW50:BS50)>0,LARGE(AW50:BS50,1)/6,""),"") ->  | R50: =IFERROR(IF(COUNTA(AW50:BS50)>1,LARGE(AW50:BS50,2)/6,""),"") ->  | S50: =IFERROR(IF(COUNTA(AW50:BS50)>2,LARGE(AW50:BS50,3)/6,""),"") ->  | T50: =IFERROR(IF(COUNTA(AW50:BS50)>3,LARGE(AW50:BS50,4)/6,""),"") ->  | U50: =IF(BT50<>"",BT50,"") ->  | Y50: =IF(IF(AND($J50="non inscrit",Y$6>$H$4),OR($P50<$H$5,$P50<Y$6),OR($J50<$H$5,$J50<Y$6)),IFERROR(IF(VLOOKUP($C50,ASF_ext!$C$12:$K$400,5,FALSE)=$F50,VLOOKUP($C50,ASF_ext!$C$12:$K$400,9,FALSE),""),""),"") ->  | Z50: =IF(IF(AND($J50="non inscrit",Z$6>$H$4),OR($P50<$H$5,$P50<Z$6),OR($J50<$H$5,$J50<Z$6)),IFERROR(IF(VLOOKUP($C50,LG_ext!$C$12:$K$400,5,FALSE)=$F50,VLOOKUP($C50,LG_ext!$C$12:$K$400,9,FALSE),""),""),"") ->  | AA50: =IF(IF(AND($J50="non inscrit",AA$6>$H$4),OR($P50<$H$5,$P50<AA$6),OR($J50<$H$5,$J50<AA$6)),IFERROR(IF(VLOOKUP($C50,Jul_ext!$C$12:$K$400,5,FALSE)=$F50,VLOOKUP($C50,Jul_ext!$C$12:$K$400,9,FALSE),""),""),"") ->  | AB50: =IF(IF(AND($J50="non inscrit",AB$6>$H$4),OR($P50<$H$5,$P50<AB$6),OR($J50<$H$5,$J50<AB$6)),IFERROR(IF(VLOOKUP($C50,CQ_ext!$C$12:$K$400,5,FALSE)=$F50,VLOOKUP($C50,CQ_ext!$C$12:$K$400,9,FALSE),""),""),"") ->  | AC50: =IF(IF(AND($J50="non inscrit",AC$6>$H$4),OR($P50<$H$5,$P50<AC$6),OR($J50<$H$5,$J50<AC$6)),IFERROR(IF(VLOOKUP($C50,NAQ_ext!$C$12:$K$400,5,FALSE)=$F50,VLOOKUP($C50,NAQ_ext!$C$12:$K$400,9,FALSE),""),""),"") ->  | AD50: =IF(IF(AND($J50="non inscrit",AD$6>$H$4),OR($P50<$H$5,$P50<AD$6),OR($J50<$H$5,$J50<AD$6)),IFERROR(IF(VLOOKUP($C50,MtL_ext!$C$12:$K$400,5,FALSE)=$F50,VLOOKUP($C50,MtL_ext!$C$12:$K$400,9,FALSE),""),""),"") -> 192 | AE50: =IF(IF(AND($J50="non inscrit",AE$6>$H$4),OR($P50<$H$5,$P50<AE$6),OR($J50<$H$5,$J50<AE$6)),IFERROR(IF(VLOOKUP($C50,Cant_ext!$C$12:$K$400,5,FALSE)=$F50,VLOOKUP($C50,Cant_ext!$C$12:$K$400,9,FALSE),""),""),"") ->  | AH50: =IF(IF(AND($J50="non inscrit",AH$6>$H$4),OR($P50<$H$5,$P50<AH$6),OR($J50<$H$5,$J50<AH$6)),IFERROR(IF(VLOOKUP($C50,ASF2_ext!$C$12:$K$400,5,FALSE)=$F50,VLOOKUP($C50,ASF2_ext!$C$12:$K$400,9,FALSE),""),""),"") ->  | AI50: =IF(IF(AND($J50="non inscrit",AI$6>$H$4),OR($P50<$H$5,$P50<AI$6),OR($J50<$H$5,$J50<AI$6)),IFERROR(IF(VLOOKUP($C50,Ascot_ext!$C$12:$K$400,5,FALSE)=$F50,VLOOKUP($C50,Ascot_ext!$C$12:$K$400,9,FALSE),""),""),"") ->  | AJ50: =IF(IF(AND($J50="non inscrit",AJ$6>$H$4),OR($P50<$H$5,$P50<AJ$6),OR($J50<$H$5,$J50<AJ$6)),IFERROR(IF(VLOOKUP($C50,BBA_ext!$C$12:$K$400,5,FALSE)=$F50,VLOOKUP($C50,BBA_ext!$C$12:$K$400,9,FALSE),""),""),"") ->  | AK50: =IF(IF(AND($J50="non inscrit",AK$6>$H$4),OR($P50<$H$5,$P50<AK$6),OR($J50<$H$5,$J50<AK$6)),IFERROR(IF(VLOOKUP($C50,Tuq1_ext!$C$12:$K$400,5,FALSE)=$F50,VLOOKUP($C50,Tuq1_ext!$C$12:$K$400,9,FALSE),""),""),"") ->  | AL50: =IF(IF(AND($J50="non inscrit",AL$6>$H$4),OR($P50<$H$5,$P50<AL$6),OR($J50<$H$5,$J50<AL$6)),IFERROR(IF(VLOOKUP($C50,Tuq2_ext!$C$12:$K$400,5,FALSE)=$F50,VLOOKUP($C50,Tuq2_ext!$C$12:$K$400,9,FALSE),""),""),"") ->  | AM50: =IF(IF(AND($J50="non inscrit",AM$6>$H$4),OR($P50<$H$5,$P50<AM$6),OR($J50<$H$5,$J50<AM$6)),IFERROR(IF(VLOOKUP($C50,CQ2_ext!$C$12:$K$400,5,FALSE)=$F50,VLOOKUP($C50,CQ2_ext!$C$12:$K$400,9,FALSE),""),""),"") ->  | AN50: =IF(IF(AND($J50="non inscrit",AN$6>$H$4),OR($P50<$H$5,$P50<AN$6),OR($J50<$H$5,$J50<AN$6)),IFERROR(IF(VLOOKUP($C50,MTL2_ext!$C$12:$K$400,5,FALSE)=$F50,VLOOKUP($C50,MTL2_ext!$C$12:$K$400,9,FALSE),""),""),"") ->  | AO50: =IF(IF(AND($J50="non inscrit",AO$6>$H$4),OR($P50<$H$5,$P50<AO$6),OR($J50<$H$5,$J50<AO$6)),IFERROR(IF(VLOOKUP($C50,NO_ext!$C$12:$K$400,5,FALSE)=$F50,VLOOKUP($C50,NO_ext!$C$12:$K$400,9,FALSE),""),""),"") ->  | AP50: =IF(IF(AND($J50="non inscrit",AP$6>$H$4),OR($P50<$H$5,$P50<AP$6),OR($J50<$H$5,$J50<AP$6)),IFERROR(IF(VLOOKUP($C50,VD_ext!$C$12:$K$400,5,FALSE)=$F50,VLOOKUP($C50,VD_ext!$C$12:$K$400,9,FALSE),""),""),"") ->  | AQ50: =IF(IF(AND($J50="non inscrit",AQ$6>$H$4),OR($P50<$H$5,$P50<AQ$6),OR($J50<$H$5,$J50<AQ$6)),IFERROR(IF(VLOOKUP($C50,PT_ext!$C$12:$K$400,5,FALSE)=$F50,VLOOKUP($C50,PT_ext!$C$12:$K$400,9,FALSE),""),""),"") ->  | AR50: =IF(IF(AND($J50="non inscrit",AR$6>$H$4),OR($P50<$H$5,$P50<AR$6),OR($J50<$H$5,$J50<AR$6)),IFERROR(IF(VLOOKUP($C50,Vic_ext!$C$12:$K$400,5,FALSE)=$F50,VLOOKUP($C50,Vic_ext!$C$12:$K$400,9,FALSE),""),""),"") ->  | AS50: =IF(IF(AND($J50="non inscrit",AS$6>$H$4),OR($P50<$H$5,$P50<AS$6),OR($J50<$H$5,$J50<AS$6)),IFERROR(IF(VLOOKUP($C50,Sor_ext!$C$12:$K$400,5,FALSE)=$F50,VLOOKUP($C50,Sor_ext!$C$12:$K$400,9,FALSE),""),""),"") ->  | AU50: =IF(IF(AND($J50="non inscrit",AU$6>$H$4),OR($P50<$H$5,$P50<AU$6),OR($J50<$H$5,$J50<AU$6)),IFERROR(IF(VLOOKUP($C50,PROV_ext!$C$12:$K$400,5,FALSE)=$F50,VLOOKUP($C50,PROV_ext!$C$12:$K$400,9,FALSE),""),""),"") ->  | AW50: =IF(IF(AND($J50="non inscrit",AW$6>$H$4),OR($P50<$H$5,$P50<AQ$6),OR($J50<$H$5,$J50<AQ$6)),IFERROR(IF(VLOOKUP($C50,Coat_int!$C$12:$K$400,5,FALSE)=$F50,VLOOKUP($C50,Coat_int!$C$12:$K$400,9,FALSE),""),""),"") ->  | AX50: =IF(IF(AND($J50="non inscrit",AX$6>$H$4),OR($P50<$H$5,$P50<AR$6),OR($J50<$H$5,$J50<AR$6)),IFERROR(IF(VLOOKUP($C50,LG_int!$C$12:$K$400,5,FALSE)=$F50,VLOOKUP($C50,LG_int!$C$12:$K$400,9,FALSE),""),""),"") ->  | AY50: =IF(IF(AND($J50="non inscrit",AY$6>$H$4),OR($P50<$H$5,$P50<AS$6),OR($J50<$H$5,$J50<AS$6)),IFERROR(IF(VLOOKUP($C50,Roc_int!$C$12:$K$400,5,FALSE)=$F50,VLOOKUP($C50,Roc_int!$C$12:$K$400,9,FALSE),""),""),"") ->  | AZ50: =IF(IF(AND($J50="non inscrit",AZ$6>$H$4),OR($P50<$H$5,$P50<AT$6),OR($J50<$H$5,$J50<AT$6)),IFERROR(IF(VLOOKUP($C50,Qc_int!$C$12:$K$400,5,FALSE)=$F50,VLOOKUP($C50,Qc_int!$C$12:$K$400,9,FALSE),""),""),"") ->  | BA50: =IF(IF(AND($J50="non inscrit",BA$6>$H$4),OR($P50<$H$5,$P50<AU$6),OR($J50<$H$5,$J50<AU$6)),IFERROR(IF(VLOOKUP($C50,Asc_int!$C$12:$K$400,5,FALSE)=$F50,VLOOKUP($C50,Asc_int!$C$12:$K$400,9,FALSE),""),""),"") ->  | BB50: =IF(IF(AND($J50="non inscrit",BB$6>$H$4),OR($P50<$H$5,$P50<AV$6),OR($J50<$H$5,$J50<AV$6)),IFERROR(IF(VLOOKUP($C50,CQ_int!$C$12:$K$400,5,FALSE)=$F50,VLOOKUP($C50,CQ_int!$C$12:$K$400,9,FALSE),""),""),"") ->  | BC50: =IF(IF(AND($J50="non inscrit",BC$6>$H$4),OR($P50<$H$5,$P50<AW$6),OR($J50<$H$5,$J50<AW$6)),IFERROR(IF(VLOOKUP($C50,QC2_int!$C$12:$K$400,5,FALSE)=$F50,VLOOKUP($C50,QC2_int!$C$12:$K$400,9,FALSE),""),""),"") ->  | BD50: =IF(IF(AND($J50="non inscrit",BD$6>$H$4),OR($P50<$H$5,$P50<AX$6),OR($J50<$H$5,$J50<AX$6)),IFERROR(IF(VLOOKUP($C50,Ach_int!$C$12:$K$400,5,FALSE)=$F50,VLOOKUP($C50,Ach_int!$C$12:$K$400,9,FALSE),""),""),"") ->  | BF50: =IF(IF(AND($J50="non inscrit",BF$6>$H$4),OR($P50<$H$5,$P50<AZ$6),OR($J50<$H$5,$J50<AZ$6)),IFERROR(IF(VLOOKUP($C50,Buck_int!$C$12:$K$400,5,FALSE)=$F50,VLOOKUP($C50,Buck_int!$C$12:$K$400,9,FALSE),""),""),"") ->  | BG50: =IF(IF(AND($J50="non inscrit",BG$6>$H$4),OR($P50<$H$5,$P50<BA$6),OR($J50<$H$5,$J50<BA$6)),IFERROR(IF(VLOOKUP($C50,CQC_int!$C$12:$K$400,5,FALSE)=$F50,VLOOKUP($C50,CQC_int!$C$12:$K$400,9,FALSE),""),""),"") ->  | BH50: =IF(IF(AND($J50="non inscrit",BH$6>$H$4),OR($P50<$H$5,$P50<BB$6),OR($J50<$H$5,$J50<BB$6)),IFERROR(IF(VLOOKUP($C50,LG3_int!$C$12:$K$400,5,FALSE)=$F50,VLOOKUP($C50,LG3_int!$C$12:$K$400,9,FALSE),""),""),"") ->  | BI50: =IF(IF(AND($J50="non inscrit",BI$6>$H$4),OR($P50<$H$5,$P50<BC$6),OR($J50<$H$5,$J50<BC$6)),IFERROR(IF(VLOOKUP($C50,LS_int!$C$12:$K$400,5,FALSE)=$F50,VLOOKUP($C50,LS_int!$C$12:$K$400,9,FALSE),""),""),"") ->  | BT50: =IF(IF(AND($J50="non inscrit",BT$6>$H$4),OR($P50<$H$5,$P50<BN$6),OR($J50<$H$5,$J50<BN$6)),IFERROR(IF(VLOOKUP($C50,FI!$C$12:$K$400,5,FALSE)=$F50,VLOOKUP($C50,FI!$C$12:$K$400,9,FALSE),""),""),"") -> 
A51: =A50 -> 5 | B51: =B50+1 -> 8 | C51: 7464 | D51: =IF($C51="","",IF($N$1>$H$4,IFERROR(VLOOKUP($C51,'Membres-2024'!$A:$G,2,FALSE),""),IFERROR(VLOOKUP($C51,'Membres-2023'!$A:$G,2,FALSE),""))) -> Laroche | E51: =IF($C51="","",IF($N$1>$H$4,IFERROR(VLOOKUP($C51,'Membres-2024'!$A:$G,3,FALSE),""),IFERROR(VLOOKUP($C51,'Membres-2023'!$A:$G,3,FALSE),""))) -> Eliott | F51: =IF($C51="","",IF($N$1>$H$4,IFERROR(VLOOKUP($C51,'Membres-2024'!$A:$G,7,FALSE),""),IFERROR(VLOOKUP($C51,'Membres-2023'!$A:$G,7,FALSE),""))) -> 5 | G51: =IF($C51="","",IF($N$1>$H$4,IFERROR(VLOOKUP($C51,'Membres-2024'!$A:$G,5,FALSE),""),IFERROR(VLOOKUP($C51,'Membres-2023'!$A:$G,5,FALSE),""))) -> Val d'Or (Les archers de) | H51: =COUNTIF($Y51:$BT51,">=0") -> 1 | I51: =SUM(K51:O51,Q51:U51) -> 30.83333333 | J51: =IFERROR(IF(VLOOKUP(C51,'Membres-2023'!$A:$F,6,FALSE)>=$H$3,VLOOKUP(C51,'Membres-2023'!$A:$F,6,FALSE),"non inscrit"),IF($C51>0,"non inscrit","")) -> 2023-02-23 | K51: =IFERROR(IF(COUNTA(Y51:AT51)>0,LARGE(Y51:AT51,1)/6,""),"") ->  | L51: =IFERROR(IF(COUNTA(Y51:AT51)>1,LARGE(Y51:AT51,2)/6,""),"") ->  | M51: =IFERROR(IF(COUNTA(Y51:AT51)>2,LARGE(Y51:AT51,3)/6,""),"") ->  | N51: =IFERROR(IF(COUNTA(Y51:AT51)>3,LARGE(Y51:AT51,4)/6,""),"") ->  | O51: =IF(AU51<>"",AU51,"") ->  | P51: =IFERROR(IF(VLOOKUP(C51,'Membres-2024'!$A:$F,6,FALSE)>=$H$3,VLOOKUP(C51,'Membres-2024'!$A:$F,6,FALSE),"non inscrit"),IF($C51>0,"non inscrit","")) -> 2024-03-20 | Q51: =IFERROR(IF(COUNTA(AW51:BS51)>0,LARGE(AW51:BS51,1)/6,""),"") -> 30.83333333 | R51: =IFERROR(IF(COUNTA(AW51:BS51)>1,LARGE(AW51:BS51,2)/6,""),"") ->  | S51: =IFERROR(IF(COUNTA(AW51:BS51)>2,LARGE(AW51:BS51,3)/6,""),"") ->  | T51: =IFERROR(IF(COUNTA(AW51:BS51)>3,LARGE(AW51:BS51,4)/6,""),"") ->  | U51: =IF(BT51<>"",BT51,"") ->  | Y51: =IF(IF(AND($J51="non inscrit",Y$6>$H$4),OR($P51<$H$5,$P51<Y$6),OR($J51<$H$5,$J51<Y$6)),IFERROR(IF(VLOOKUP($C51,ASF_ext!$C$12:$K$400,5,FALSE)=$F51,VLOOKUP($C51,ASF_ext!$C$12:$K$400,9,FALSE),""),""),"") ->  | Z51: =IF(IF(AND($J51="non inscrit",Z$6>$H$4),OR($P51<$H$5,$P51<Z$6),OR($J51<$H$5,$J51<Z$6)),IFERROR(IF(VLOOKUP($C51,LG_ext!$C$12:$K$400,5,FALSE)=$F51,VLOOKUP($C51,LG_ext!$C$12:$K$400,9,FALSE),""),""),"") ->  | AA51: =IF(IF(AND($J51="non inscrit",AA$6>$H$4),OR($P51<$H$5,$P51<AA$6),OR($J51<$H$5,$J51<AA$6)),IFERROR(IF(VLOOKUP($C51,Jul_ext!$C$12:$K$400,5,FALSE)=$F51,VLOOKUP($C51,Jul_ext!$C$12:$K$400,9,FALSE),""),""),"") ->  | AB51: =IF(IF(AND($J51="non inscrit",AB$6>$H$4),OR($P51<$H$5,$P51<AB$6),OR($J51<$H$5,$J51<AB$6)),IFERROR(IF(VLOOKUP($C51,CQ_ext!$C$12:$K$400,5,FALSE)=$F51,VLOOKUP($C51,CQ_ext!$C$12:$K$400,9,FALSE),""),""),"") ->  | AC51: =IF(IF(AND($J51="non inscrit",AC$6>$H$4),OR($P51<$H$5,$P51<AC$6),OR($J51<$H$5,$J51<AC$6)),IFERROR(IF(VLOOKUP($C51,NAQ_ext!$C$12:$K$400,5,FALSE)=$F51,VLOOKUP($C51,NAQ_ext!$C$12:$K$400,9,FALSE),""),""),"") ->  | AD51: =IF(IF(AND($J51="non inscrit",AD$6>$H$4),OR($P51<$H$5,$P51<AD$6),OR($J51<$H$5,$J51<AD$6)),IFERROR(IF(VLOOKUP($C51,MtL_ext!$C$12:$K$400,5,FALSE)=$F51,VLOOKUP($C51,MtL_ext!$C$12:$K$400,9,FALSE),""),""),"") ->  | AE51: =IF(IF(AND($J51="non inscrit",AE$6>$H$4),OR($P51<$H$5,$P51<AE$6),OR($J51<$H$5,$J51<AE$6)),IFERROR(IF(VLOOKUP($C51,Cant_ext!$C$12:$K$400,5,FALSE)=$F51,VLOOKUP($C51,Cant_ext!$C$12:$K$400,9,FALSE),""),""),"") ->  | AH51: =IF(IF(AND($J51="non inscrit",AH$6>$H$4),OR($P51<$H$5,$P51<AH$6),OR($J51<$H$5,$J51<AH$6)),IFERROR(IF(VLOOKUP($C51,ASF2_ext!$C$12:$K$400,5,FALSE)=$F51,VLOOKUP($C51,ASF2_ext!$C$12:$K$400,9,FALSE),""),""),"") ->  | AI51: =IF(IF(AND($J51="non inscrit",AI$6>$H$4),OR($P51<$H$5,$P51<AI$6),OR($J51<$H$5,$J51<AI$6)),IFERROR(IF(VLOOKUP($C51,Ascot_ext!$C$12:$K$400,5,FALSE)=$F51,VLOOKUP($C51,Ascot_ext!$C$12:$K$400,9,FALSE),""),""),"") ->  | AJ51: =IF(IF(AND($J51="non inscrit",AJ$6>$H$4),OR($P51<$H$5,$P51<AJ$6),OR($J51<$H$5,$J51<AJ$6)),IFERROR(IF(VLOOKUP($C51,BBA_ext!$C$12:$K$400,5,FALSE)=$F51,VLOOKUP($C51,BBA_ext!$C$12:$K$400,9,FALSE),""),""),"") ->  | AK51: =IF(IF(AND($J51="non inscrit",AK$6>$H$4),OR($P51<$H$5,$P51<AK$6),OR($J51<$H$5,$J51<AK$6)),IFERROR(IF(VLOOKUP($C51,Tuq1_ext!$C$12:$K$400,5,FALSE)=$F51,VLOOKUP($C51,Tuq1_ext!$C$12:$K$400,9,FALSE),""),""),"") ->  | AL51: =IF(IF(AND($J51="non inscrit",AL$6>$H$4),OR($P51<$H$5,$P51<AL$6),OR($J51<$H$5,$J51<AL$6)),IFERROR(IF(VLOOKUP($C51,Tuq2_ext!$C$12:$K$400,5,FALSE)=$F51,VLOOKUP($C51,Tuq2_ext!$C$12:$K$400,9,FALSE),""),""),"") ->  | AM51: =IF(IF(AND($J51="non inscrit",AM$6>$H$4),OR($P51<$H$5,$P51<AM$6),OR($J51<$H$5,$J51<AM$6)),IFERROR(IF(VLOOKUP($C51,CQ2_ext!$C$12:$K$400,5,FALSE)=$F51,VLOOKUP($C51,CQ2_ext!$C$12:$K$400,9,FALSE),""),""),"") ->  | AN51: =IF(IF(AND($J51="non inscrit",AN$6>$H$4),OR($P51<$H$5,$P51<AN$6),OR($J51<$H$5,$J51<AN$6)),IFERROR(IF(VLOOKUP($C51,MTL2_ext!$C$12:$K$400,5,FALSE)=$F51,VLOOKUP($C51,MTL2_ext!$C$12:$K$400,9,FALSE),""),""),"") ->  | AO51: =IF(IF(AND($J51="non inscrit",AO$6>$H$4),OR($P51<$H$5,$P51<AO$6),OR($J51<$H$5,$J51<AO$6)),IFERROR(IF(VLOOKUP($C51,NO_ext!$C$12:$K$400,5,FALSE)=$F51,VLOOKUP($C51,NO_ext!$C$12:$K$400,9,FALSE),""),""),"") ->  | AP51: =IF(IF(AND($J51="non inscrit",AP$6>$H$4),OR($P51<$H$5,$P51<AP$6),OR($J51<$H$5,$J51<AP$6)),IFERROR(IF(VLOOKUP($C51,VD_ext!$C$12:$K$400,5,FALSE)=$F51,VLOOKUP($C51,VD_ext!$C$12:$K$400,9,FALSE),""),""),"") ->  | AQ51: =IF(IF(AND($J51="non inscrit",AQ$6>$H$4),OR($P51<$H$5,$P51<AQ$6),OR($J51<$H$5,$J51<AQ$6)),IFERROR(IF(VLOOKUP($C51,PT_ext!$C$12:$K$400,5,FALSE)=$F51,VLOOKUP($C51,PT_ext!$C$12:$K$400,9,FALSE),""),""),"") ->  | AR51: =IF(IF(AND($J51="non inscrit",AR$6>$H$4),OR($P51<$H$5,$P51<AR$6),OR($J51<$H$5,$J51<AR$6)),IFERROR(IF(VLOOKUP($C51,Vic_ext!$C$12:$K$400,5,FALSE)=$F51,VLOOKUP($C51,Vic_ext!$C$12:$K$400,9,FALSE),""),""),"") ->  | AS51: =IF(IF(AND($J51="non inscrit",AS$6>$H$4),OR($P51<$H$5,$P51<AS$6),OR($J51<$H$5,$J51<AS$6)),IFERROR(IF(VLOOKUP($C51,Sor_ext!$C$12:$K$400,5,FALSE)=$F51,VLOOKUP($C51,Sor_ext!$C$12:$K$400,9,FALSE),""),""),"") ->  | AU51: =IF(IF(AND($J51="non inscrit",AU$6>$H$4),OR($P51<$H$5,$P51<AU$6),OR($J51<$H$5,$J51<AU$6)),IFERROR(IF(VLOOKUP($C51,PROV_ext!$C$12:$K$400,5,FALSE)=$F51,VLOOKUP($C51,PROV_ext!$C$12:$K$400,9,FALSE),""),""),"") ->  | AW51: =IF(IF(AND($J51="non inscrit",AW$6>$H$4),OR($P51<$H$5,$P51<AQ$6),OR($J51<$H$5,$J51<AQ$6)),IFERROR(IF(VLOOKUP($C51,Coat_int!$C$12:$K$400,5,FALSE)=$F51,VLOOKUP($C51,Coat_int!$C$12:$K$400,9,FALSE),""),""),"") ->  | AX51: =IF(IF(AND($J51="non inscrit",AX$6>$H$4),OR($P51<$H$5,$P51<AR$6),OR($J51<$H$5,$J51<AR$6)),IFERROR(IF(VLOOKUP($C51,LG_int!$C$12:$K$400,5,FALSE)=$F51,VLOOKUP($C51,LG_int!$C$12:$K$400,9,FALSE),""),""),"") ->  | AY51: =IF(IF(AND($J51="non inscrit",AY$6>$H$4),OR($P51<$H$5,$P51<AS$6),OR($J51<$H$5,$J51<AS$6)),IFERROR(IF(VLOOKUP($C51,Roc_int!$C$12:$K$400,5,FALSE)=$F51,VLOOKUP($C51,Roc_int!$C$12:$K$400,9,FALSE),""),""),"") ->  | AZ51: =IF(IF(AND($J51="non inscrit",AZ$6>$H$4),OR($P51<$H$5,$P51<AT$6),OR($J51<$H$5,$J51<AT$6)),IFERROR(IF(VLOOKUP($C51,Qc_int!$C$12:$K$400,5,FALSE)=$F51,VLOOKUP($C51,Qc_int!$C$12:$K$400,9,FALSE),""),""),"") ->  | BA51: =IF(IF(AND($J51="non inscrit",BA$6>$H$4),OR($P51<$H$5,$P51<AU$6),OR($J51<$H$5,$J51<AU$6)),IFERROR(IF(VLOOKUP($C51,Asc_int!$C$12:$K$400,5,FALSE)=$F51,VLOOKUP($C51,Asc_int!$C$12:$K$400,9,FALSE),""),""),"") ->  | BB51: =IF(IF(AND($J51="non inscrit",BB$6>$H$4),OR($P51<$H$5,$P51<AV$6),OR($J51<$H$5,$J51<AV$6)),IFERROR(IF(VLOOKUP($C51,CQ_int!$C$12:$K$400,5,FALSE)=$F51,VLOOKUP($C51,CQ_int!$C$12:$K$400,9,FALSE),""),""),"") ->  | BC51: =IF(IF(AND($J51="non inscrit",BC$6>$H$4),OR($P51<$H$5,$P51<AW$6),OR($J51<$H$5,$J51<AW$6)),IFERROR(IF(VLOOKUP($C51,QC2_int!$C$12:$K$400,5,FALSE)=$F51,VLOOKUP($C51,QC2_int!$C$12:$K$400,9,FALSE),""),""),"") ->  | BD51: =IF(IF(AND($J51="non inscrit",BD$6>$H$4),OR($P51<$H$5,$P51<AX$6),OR($J51<$H$5,$J51<AX$6)),IFERROR(IF(VLOOKUP($C51,Ach_int!$C$12:$K$400,5,FALSE)=$F51,VLOOKUP($C51,Ach_int!$C$12:$K$400,9,FALSE),""),""),"") ->  | BF51: =IF(IF(AND($J51="non inscrit",BF$6>$H$4),OR($P51<$H$5,$P51<AZ$6),OR($J51<$H$5,$J51<AZ$6)),IFERROR(IF(VLOOKUP($C51,Buck_int!$C$12:$K$400,5,FALSE)=$F51,VLOOKUP($C51,Buck_int!$C$12:$K$400,9,FALSE),""),""),"") ->  | BG51: =IF(IF(AND($J51="non inscrit",BG$6>$H$4),OR($P51<$H$5,$P51<BA$6),OR($J51<$H$5,$J51<BA$6)),IFERROR(IF(VLOOKUP($C51,CQC_int!$C$12:$K$400,5,FALSE)=$F51,VLOOKUP($C51,CQC_int!$C$12:$K$400,9,FALSE),""),""),"") ->  | BH51: =IF(IF(AND($J51="non inscrit",BH$6>$H$4),OR($P51<$H$5,$P51<BB$6),OR($J51<$H$5,$J51<BB$6)),IFERROR(IF(VLOOKUP($C51,LG3_int!$C$12:$K$400,5,FALSE)=$F51,VLOOKUP($C51,LG3_int!$C$12:$K$400,9,FALSE),""),""),"") ->  | BI51: =IF(IF(AND($J51="non inscrit",BI$6>$H$4),OR($P51<$H$5,$P51<BC$6),OR($J51<$H$5,$J51<BC$6)),IFERROR(IF(VLOOKUP($C51,LS_int!$C$12:$K$400,5,FALSE)=$F51,VLOOKUP($C51,LS_int!$C$12:$K$400,9,FALSE),""),""),"") -> 185 | BT51: =IF(IF(AND($J51="non inscrit",BT$6>$H$4),OR($P51<$H$5,$P51<BN$6),OR($J51<$H$5,$J51<BN$6)),IFERROR(IF(VLOOKUP($C51,FI!$C$12:$K$400,5,FALSE)=$F51,VLOOKUP($C51,FI!$C$12:$K$400,9,FALSE),""),""),"") -> 
